Workbook

Sheet RRQ Allocations
D1: RRQ Type 1/
D2: T = Transportation
D3: P = Procurement | H3: % Residential | J3: % Residential | L3: % Bundled
B4: Allocation Methodology | D4: PPP = Public Purpose | F4: Description | H4: of Total Allocated | J4: that is Bundled 2/ | L4: of Total Allocated | N4: Authorizing Decision
B5: 100% Residential | D5: T | F5: 100% allocated to residential class | H5: 1 | J5: 0.8975890644 | L5: 0.8975890644 | N5: D.18-03-017 (for GHG)
B6: Core - Distribution | D6: T | H6: 0.8087357772 | J6: 0.8975890644 | L6: 0.812992294
B7: Distribution | D7: T | F7: • Marginal Cost using Rental Method for Customer Function and Marginal Cost of $373.74 for Distribution Function applied to peak day in avg. temp winter • Allocation to Small Commercial is capped at 17.717% with overage re-allocated to Residential | H7: 0.7848318119 | J7: 0.8975890644 | L7: 0.8241192187 | N7: D.19-10-036
B8: ECPT - ALL | D8: T | H8: 0.2722742932 | J8: 0.8975890644 | L8: 0.3330589455
B9: ECPT - Core only | D9: T | F9: Core Brokerage Fee: The Core Brokerage Fee is part of the distribution revenue requirement. In transportation the RRQ is reduced and then it is recovered via the customers that pay PG&E procurement rates. Pension Contribution - GT&S Core: | H9: 0.6645587839 | J9: 0.8975890644 | L9: 0.8129201077 | N9: D.95-07-048 (for Core Brokerage Fee)
B10: ECPT - Noncore only | D10: T | H10: 0 | J10: 0 | L10: 0
B11: ECPT - 50% Core / 50% Noncore | D11: T | H11: 0.3322793919 | J11: 0.8975890644 | L11: 0.4064066796
B12: ECPT (excludes Covered Entities 3 yr avg vol) | D12: T | H12: 0.3629138593 | J12: 0.8975890644 | L12: 0.4436087024
B13: EE | D13: PPP | H13: 0.3384 | J13: 0.8975890644 | L13: 0.5263600131 | N13: D.19-10-036
B14: ESA | D14: PPP | H14: 1 | J14: 0.8975890644 | L14: 0.8975890644 | N14: D.19-10-036 D.95-12-053
B15: PPP ECPT | D15: PPP | H15: 0.3964019068 | J15: 0.8975890644 | L15: 0.4832992734
B16: SGIP allocation | D16: T | H16: 0.9155803564 | J16: 0.8975890644 | L16: 0.875994189
B17: CPUC Fee Allocation | D17: T | H17: 0.3675669459 | J17: 0.8975890644 | L17: 0.4477831178
B18: CAC Allocation | D18: T | H18: 0 | J18: 0 | L18: 0
B19: Storage Allocation (Procurement) | D19: P | H19: 0.7912905715 | J19: 1 | L19: 1
B20: Capacity Allocation (Procurement) | D20: P | H20: 0.7933288665 | J20: 1 | L20: 1
B21: ECPT - Core only (Procurement) | D21: P | F21: The Core Brokerage Fee is part of the distribution revenue requirement. In transportation the RRQ is reduced and then it is recovered via the customers that pay PG&E procurement rates. | H21: 0.7339650877 | J21: 1 | L21: 1 | N21: D.95-07-048 (for Core Brokerage Fee)
B22: 2023 GTS - Inventory Management | D22: T | F22: Adopted in 2023 GTS CARD | H22: 0.3591976846 | J22: 0.8975890644 | L22: 0.4303735271 | N22: D.24-03-002
B23: User Defined 1 | D23: T | F23: Short Description of Allocation
B24: User Defined 2 | D24: T | F24: Short Description of Allocation
B25: User Defined 3 | D25: T | F25: Short Description of Allocation
B29: NOTES:
B30: 1/ For User Defined allocations, user must select the RRQ type.
B31: =CONCATENATE("2/ If the allocation applies to the entire system, then the Bundled Residential percentage will be ",TEXT(J5,"0.00%"),". if the allocation applies only to Bundled, then the Bundled Residential percentage will be 100%.") -> 2/ If the allocation applies to the entire system, then the Bundled Residential percentage will be 89.76%. if the allocation applies only to Bundled, then the Bundled Residential percentage will be 100%.

Sheet Selected Data
A1: Summary of Selected Data
Q2: Revenue
Q3: Requirement
Q4: $000
A5: 1 | B5: Current total system-level revenue requirement that is used for defining the reporting threshold: | Q5: ='Incremental Rev Req'!D73 -> 6746763.036
B6: A | C6: One-percent reporting threshold | Q6: =Q5*0.01 -> 67467.63036
A8: 2 | B8: List of currently open proceedings for which affordability metrics have been filed:
B9: A | C9: A.24-11-009 | D9: 2024 Wildfire Mitigation and Catastrophic Events | Q9: ='Incremental Rev Req'!$D$84+'Incremental Rev Req'!$D$85 -> 91228.33789
B10: B | C10: A.25-05-009 | D10: 2027 GRC (incremental from 2026 authorized RRQs) | Q10: =SUM('Incremental Rev Req'!$O$95:$O$102) -> 345548.8946
B11: C | C11: A.25-11-001 | D11: Dixie and Kincade AB1054 Cost Recovery Proceeding Application | Q11: ='Incremental Rev Req'!$D$90+'Incremental Rev Req'!$D$91 -> 95666.69071
B12: D
B13: E
A15: 3 | B15: Total system-level revenue requirement if all pending revenue were granted in full: requests were granted in full
B16: A | C16: YE 2026 | Q16: ='Incremental Rev Req'!G73+'Incremental Rev Req'!M116 -> 6746763.036
B17: B | C17: YE 2027 | Q17: ='Incremental Rev Req'!H73+'Incremental Rev Req'!N116 -> 6672282.677
B18: C | C18: YE 2028 | Q18: ='Incremental Rev Req'!I73+'Incremental Rev Req'!O116 -> 6826966.222
B19: D | C19: YE 2029 | Q19: ='Incremental Rev Req'!J73+'Incremental Rev Req'!P116 -> 7099682.642
B20: E | C20: YE 2030 | Q20: ='Incremental Rev Req'!K73+'Incremental Rev Req'!Q116 -> 7382159.065
A22: 4 | B22: Illustrative bundled residential average rate (RAR) if all pending revenue were granted in full (from Cost and Rate Tracker (CRT) as submitted by utility): | R22: $/therm | T22: Live Link:
B23: A | C23: =C16 -> YE 2026 | R23: 2.660726159 | T23: =Summary!G47 -> 2.604842388
B24: B | C24: =C17 -> YE 2027 | R24: 2.604842388
B25: C | C25: =C18 -> YE 2028 | R25: 2.6829773
B26: D | C26: =C19 -> YE 2029 | R26: 2.789834667
B27: E | C27: =C20 -> YE 2030 | R27: 2.899130712
V28: Live Link: | W28: =Summary_Year -> 2027
A29: 5 | B29: =CONCATENATE("Illustrative bundled residential average monthly bill corresponding to RAR above for typical customer in climate zone X using ",Summary!L16," therms for Non-CARE and ",Summary!L17," therms for CARE (from CRT as submitted by utility):") -> Illustrative bundled residential average monthly bill corresponding to RAR above for typical customer in climate zone X using 31 therms for Non-CARE and 26 therms for CARE (from CRT as submitted by utility): | S29: Non-CARE | T29: CARE | V29: Non-CARE | W29: CARE
B30: A | C30: =C16 -> YE 2026 | S30: 82.73225736 | T30: 53.10025911 | V30: =Summary!G103 -> 80.91858256 | W30: =Summary!G104 -> 51.88558526
B31: B | C31: =C17 -> YE 2027 | S31: 80.91858231 | T31: 51.88558583
B32: C | C32: =C18 -> YE 2028 | S32: 83.45850364 | T32: 53.57213892
B33: D | C33: =C19 -> YE 2029 | S33: 86.93388408 | T33: 55.87344928
B34: E | C34: =C20 -> YE 2030 | S34: 90.49549965 | T34: 58.20700331
A36: * | B36: Per Decision 25-12-044, metrics are only required for >1% increase requests in a General Rate Case filing. Therefore, PG&E has removed items previously numbered 2 and 4 related to affordability proceedings filed that either exceeded or did not exceed the affordability threshold.

Sheet Caveats
A1: Cost and Rate Tracking Tool Caveats
A2: * The Quarterly Tracker performs high-level rate and bill calculation estimates, which will not produce rate or bill impacts that match PG&E’s filing-quality models.
A3: * The forecast assumes perfect ratemaking, and does not include revenue-tracking balancing account balances beyond the current year. Beyond the current year, cost-tracking balancing account balances are held flat or updated with more recent information when available.
A4: * Different rate components use simplified allocations that may not reflect actual revenue allocation and rate design.
A5: * This model produces illustrative rates based on a single average throughput forecast. Actual ratemaking uses multiple throughput forecasts depending on revenue requirement type. Therefore, differences in illustrative v. actual rates will exist.

Sheet Instructions
A1: INSTRUCTIONS TO RUN "BASIC" MODEL
A2: CLICK HERE FOR INSTRUCTIONS ON VALIDATING AGAINST BILL INSERT
B5: The "non-hypothetical" portion of this model produces illustrative rates and illustrative residential bill calculations based on selected user inputs.
B6: PLEASE DO NOT INSERT ROWS OR COLUMNS INTO THE SUMMARY
B7: To run the "non-hypothetical" portion of the model:
B9: 1. | C9: User drop down selections are highlighted in green.
B10: 2. | C10: In cell D3 of the "Summary" tab, from the dropdown choices, select the year for which illustrative rate impacts are desired (ILLUSTRATION 1).
B11: 3. | C11: In cell D4 of the "Summary" tab, select, from the dropdown choices, the baseline territory for which illustrative bill impacts are desired.
B12: 4. | C12: On the "Summary" tab, in the "Pending Proceedings" section beginning on line 7, indicate whether the RRQ associated with the proceeding should be included in the illustrative bill impact analysis
C13: by selecting from the dropdown choices in column D, a "Y" or "N" where "Y" means to include the RRQ in the analysis and "N" means to not include the RRQ in the analysis (ILLUSTRATION 1).
B14: 5. | C14: Create illustrative tiered residential rates by executing the "Run Residential Rate Tiering" macro (ILLUSTRATION 1).
C15: - note that, pursuant to D.19-10-036, Ordering Paragraph 4, the tier ratios change in January of each year based on the year selected in step 2. above as described in the table below.
E16: For 2026 revenues | F16: . | G16: 1.20 (Note that the initial tiering factor for 2026 has been set at 1.246 therefore the factor for 2026 will remain at the already established value)
E17: For 2027 + revenues | F17: . | G17: 1.2
C19: ILLUSTRATION 1: | G19: 2. | H19: 3. | I19: 4. | L19: 5.
B34: 5. | C34: In cell D4 of the "Summary" tab, from the dropdown choices, select the baseline territory for which illustrative bill impacts are desired.
B36: RRQ ALLOCATION OPTIONS:
B37: 1. | C37: On the "RRQ Allocations" tab there are spaces for the user to enter their own allocation methodology (ILLUSTRATION 2).
C38: NOTE that this tab has not been fully populated by PG&E.
C40: ILLUSTRATION 2
B80: 2. | C80: Alternate allocation methodologies may be selected on the "Incremental Rev Req" tab (ILLUSTRATION 3).
C82: ILLUSTRATION 3
A115: VALIDATING THE RESULTS OF THE "TYPICAL CUSTOMER" BILL AGAINST A BILL INSERT
B117: 1. | C117: The model is set up to accept separate "typical" therms for Non-CARE and CARE customers. (See screenshot below, yellow highlights.)
B118: 2. | C118: Ensure that the therms entered in the model match the therms used in the bill insert.
B119: 3. | C119: Ensure that only the revenue requirement being evaluated is included in the impact. (See step 4 above.)
B120: 4. | C120: Run the model as described in the instructions above.
B121: 5. | C121: Note that, because this is a simplified model, the results will not exactly match the results in the bill insert.

Sheet Summary
B1: PLEASE DO NOT INSERT ROWS OR COLUMNS
B2: User Inputs (in green highlighted cells - select from drop down menu): | J2: Assumptions:
C3: Illustrative Rate Impact for Year (2026-2029) | D3: 2027 | J3: Current Effective Rates | L3: 2026-03-01
C4: Baseline Region - (Residential bill) | D4: X | J4: Throughput Forecast | L4: 2023 CARD
J5: Illustrative Residential bill calculated using | L5: Schedule G-1, Basic, Single Family
J6: Illustrative Non-CARE bill impact calculated with average summer usage of | N6: =IF($D$4="ALL CLIMATE ZONES",SUMPRODUCT('Res Bill Impact'!$Q$22:$Q$30,'Res Bill Impact'!$W$22:$W$30),VLOOKUP(Summary!$D$4,'Res Bill Impact'!$P$22:$V$30,2,FALSE)) -> 18 | O6: therms per month
B7: Pending Proceedings | D7: Include in Impact (Y/N) | E7: Applicable Year(s) | J7: Illustrative Non-CARE bill impact calculated with average winter off-peak usage of | N7: =IF($D$4="ALL CLIMATE ZONES",SUMPRODUCT('Res Bill Impact'!$R$22:$R$30,'Res Bill Impact'!$W$22:$W$30),VLOOKUP(Summary!$D$4,'Res Bill Impact'!$P$22:$V$30,3,FALSE)) -> 45 | O7: therms per month
J8: Illustrative Non-CARE bill impact calculated with average winter on-peak usage of | N8: =IF($D$4="ALL CLIMATE ZONES",SUMPRODUCT('Res Bill Impact'!$S$22:$S$30,'Res Bill Impact'!$W$22:$W$30),VLOOKUP(Summary!$D$4,'Res Bill Impact'!$P$22:$V$30,4,FALSE)) -> 59 | O8: therms per month
B9: ='Incremental Rev Req'!A110 -> 2027 Energy Savings Assistance Bridge Funding | D9: Y | E9: 2027 | J9: Illustrative CARE bill impact calculated with average summer usage of | N9: =IF($D$4="ALL CLIMATE ZONES",SUMPRODUCT('Res Bill Impact'!$T$22:$T$30,'Res Bill Impact'!$X$22:$X$30),VLOOKUP(Summary!$D$4,'Res Bill Impact'!$P$22:$V$30,5,FALSE)) -> 17 | O9: therms per month
B10: ='Incremental Rev Req'!A111 -> 2027 CARE Administrative Bridge Funding | D10: Y | E10: 2027 | J10: Illustrative CARE bill impact calculated with average winter off-peak usage of | N10: =IF($D$4="ALL CLIMATE ZONES",SUMPRODUCT('Res Bill Impact'!$U$22:$U$30,'Res Bill Impact'!$X$22:$X$30),VLOOKUP(Summary!$D$4,'Res Bill Impact'!$P$22:$V$30,6,FALSE)) -> 34 | O10: therms per month
B11: ='Incremental Rev Req'!A112 -> Income Qualified Program (ESA) PY 2028-2033 | D11: N | E11: 2028-2030 | J11: Illustrative CARE bill impact calculated with average winter on-peak usage of | N11: =IF($D$4="ALL CLIMATE ZONES",SUMPRODUCT('Res Bill Impact'!$V$22:$V$30,'Res Bill Impact'!$X$22:$X$30),VLOOKUP(Summary!$D$4,'Res Bill Impact'!$P$22:$V$30,7,FALSE)) -> 43 | O11: therms per month
B12: ='Incremental Rev Req'!A113 -> Income Qualified Program (CARE) PY 2028-2033 | D12: N | E12: 2028-2030 | J12: Average monthly usage is for all customers (Non-CARE and CARE) based on seasonal usage in | P12: 2025
B13: ='Incremental Rev Req'!A80 -> Billing Modernization (Distribution) | D13: Y | E13: 2027-2030 | J13: Summer Season | L13: 7 | M13: months
B14: ='Incremental Rev Req'!A81 -> Billing Modernization (Transmission) | D14: Y | E14: 2027-2030 | J14: Winter Season Off-peak | L14: 3 | M14: months
B15: ='Incremental Rev Req'!A82 -> Stanpac Application | D15: Y | E15: 2027-2030 | J15: Winter Season On-peak | L15: 2 | M15: months
B16: ='Incremental Rev Req'!A83 -> Hydrogen Demonstration Project (2027) | D16: Y | E16: 2027-2030 | J16: Typical Non-CARE Residential Customer usage | L16: 31 | M16: therms per month
B17: ='Incremental Rev Req'!A84 -> 2024 Wildfire Mitigation and Catastrophic Events (distribution) | D17: Y | E17: 2027-2030 | J17: Typical CARE Residential Customer usage | L17: 26 | M17: therms per month
B18: ='Incremental Rev Req'!A85 -> 2024 Wildfire Mitigation and Catastrophic Events (transmission) | D18: Y | E18: 2027-2030 | J18: Residential CARE Customers as Percent of Total Residential Customers | N18: 0.2253453186
B19: ='Incremental Rev Req'!A114 -> Energy Efficiency 2028-2031 | D19: N | E19: 2028-2030 | J19: Historic California Climate Credit | L19: 46.25933774
B20: ='Incremental Rev Req'!A88 -> Wildfire Gas and Safety Costs (Distribution) Non-IRR | D20: Y | E20: 2027 | J20: Present California Climate Credit | L20: 46.25933774
B21: ='Incremental Rev Req'!A89 -> Wildfire Gas and Safety Costs (Transmission) - Non IRR | D21: Y | E21: 2027
B22: ='Incremental Rev Req'!A90 -> Kincaid-Dixie (Distribution) | D22: Y | E22: 2027
B23: ='Incremental Rev Req'!A91 -> Kincaid-Dixie (Generation) | D23: Y | E23: 2027
B24: ='Incremental Rev Req'!A95 -> 2027 GRC - Gas Distribution | D24: Y | E24: 2027-2030
B25: ='Incremental Rev Req'!A96 -> 2027 GRC - Core Local Transmission | D25: Y | E25: 2027-2030
B26: ='Incremental Rev Req'!A97 -> 2027 GRC - Core Procurement (Intrastate Volumetric and Capacity) | D26: Y | E26: 2027-2030
B27: ='Incremental Rev Req'!A98 -> 2027 GRC - Core Procurement (Storage) | D27: Y | E27: 2027-2030
B28: ='Incremental Rev Req'!A99 -> 2027 GRC - Noncore Local Transmission | D28: Y | E28: 2027-2030
B29: ='Incremental Rev Req'!A100 -> 2027 GRC - Customer Access Charge | D29: Y | E29: 2027-2030
B30: ='Incremental Rev Req'!A101 -> 2027 GRC - Noncore Unbundled | D30: Y | E30: 2027-2030
B31: ='Incremental Rev Req'!A102 -> 2027 GRC - Inventory Management | D31: Y | E31: 2027-2030
B32: ='Incremental Rev Req'!A103 -> CFCA - NGSS Enduser Dist. Sub Acct Recovery | D32: Y | E32: 2027-2030
B33: ='Incremental Rev Req'!A104 -> CFCA/NCA - NGSS Enduser Sub Acct Recovery | D33: Y | E33: 2027-2030
B34: ='Incremental Rev Req'!A105 -> NCA - NGSS Enduser Sub Acct Recovery | D34: Y | E34: 2027-2030
B43: Outputs:
D44: (A) | E44: (B) | F44: (C) | G44: (D) | H44: (D)/(A) | I44: (D)/(B) | J44: (D)/(C) | N44: (A) | O44: (B) | P44: (C) | Q44: (D) | R44: (D)/(A) | S44: (D)/(B) | T44: (D)/(C)
B45: Illustrative Bundled Average Rates - $ / therm | L45: Total System (Bundled + Unbundled) Illustrative Average Rates - $ / therm
B46: Customer Group | D46: 2026-01-01 | E46: =$L$3 -> 2026-03-01 | F46: =$D$3&" Illustrative Authorized" -> 2027 Illustrative Authorized | G46: =$D$3&" Illustrative w/Pending" -> 2027 Illustrative w/Pending | H46: ="% Change over "&TEXT($D$46,"mm/d/yyyy") -> % Change over 01/1/2026 | I46: ="% Change over "&TEXT($L$3,"mm/d/yyyy") -> % Change over 03/1/2026 | J46: % Change over Illustrative Authorized | L46: Customer Group | N46: =D46 -> 2026-01-01 | O46: =E46 -> 2026-03-01 | P46: 2027 Illustrative Authorized | Q46: 2027 Illustrative w/Pending | R46: % Change over 01/1/2026 | S46: % Change over 03/1/2026 | T46: % Change over Illustrative Authorized
B47: Residential | D47: 2.650756047 | E47: ='SAR and RAR'!H38 -> 2.660726159 | F47: ='SAR and RAR'!I38 -> 2.486561487 | G47: ='SAR and RAR'!J38 -> 2.604842388 | H47: =$G47/D47-1 -> -0.01732096746 | I47: -0.02100320277 | J47: =$G47/F47-1 -> 0.04756805783 | L47: Residential (RAR) | N47: 2.450640792 | O47: ='SAR and RAR'!P38 -> 2.492619045 | P47: ='SAR and RAR'!Q38 -> 2.318452168 | Q47: ='SAR and RAR'!R38 -> 2.439400302 | R47: =$Q47/N47-1 -> -0.004586755557 | S47: -0.02135053223 | T47: 0.05216762094
B48: System | D48: 2.447520575 | E48: ='SAR and RAR'!H39 -> 2.37724518 | F48: ='SAR and RAR'!I39 -> 2.221805834 | G48: ='SAR and RAR'!J39 -> 2.331769415 | H48: -0.04729323267 | I48: -0.01912960636 | J48: 0.04949288524 | L48: System (SAR) | N48: 1.099529651 | O48: ='SAR and RAR'!P39 -> 1.138823994 | P48: ='SAR and RAR'!Q39 -> 1.06797127 | Q48: ='SAR and RAR'!R39 -> 1.12664692 | R48: 0.02466260831 | S48: -0.01069267439 | T48: 0.05494122532
L50: Illustrative system rate does not include illustrative procurement for transport only customers.
B51: =CONCATENATE("Illustrative Bundled Residential Monthly Average Bills - Baseline Territory ",$D$4," (Includes Climate Credit)") -> Illustrative Bundled Residential Monthly Average Bills - Baseline Territory X (Includes Climate Credit)
D52: =$D$46 -> 2026-01-01 | E52: =$E$46 -> 2026-03-01 | F52: =$F$46 -> 2027 Illustrative Authorized | G52: =$G$46 -> 2027 Illustrative w/Pending | H52: =$H$46 -> % Change over 01/1/2026 | I52: =$I$46 -> % Change over 03/1/2026 | J52: =$J$46 -> % Change over Illustrative Authorized
B53: Non-CARE | D53: =((D59*$L$13)+(D65*$L$14)+(D71*$L$15))/12-L19/12 -> 80.2247819 | E53: =((E59*$L$13)+(E65*$L$14)+(E71*$L$15))/12-L20/12 -> 80.45728056 | F53: =((F59*$L$13)+(F65*$L$14)+(F71*$L$15))/12-L20/12 -> 74.92580572 | G53: =((G59*$L$13)+(G65*$L$14)+(G71*$L$15))/12-L20/12 -> 78.67962441 | H53: =$G53/D53-1 -> -0.01926035139 | I53: =$G53/E53-1 -> -0.02209441009 | J53: =$G53/F53-1 -> 0.05010047811
B54: CARE | D54: =((D60*$L$13)+(D66*$L$14)+(D72*$L$15))/12-L19/12 -> 49.96186429 | E54: =((E60*$L$13)+(E66*$L$14)+(E72*$L$15))/12-L20/12 -> 50.11610323 | F54: =((F60*$L$13)+(F66*$L$14)+(F72*$L$15))/12-L20/12 -> 46.64592782 | G54: =((G60*$L$13)+(G66*$L$14)+(G72*$L$15))/12-L20/12 -> 48.95812126 | H54: =$G54/D54-1 -> -0.02009018361 | I54: -0.02310598592 | J54: 0.0495690309
B55: Total | D55: =((D61*$L$13)+(D67*$L$14)+(D73*$L$15))/12-L19/12 -> 73.40517509 | E55: =((E61*$L$13)+(E67*$L$14)+(E73*$L$15))/12-L20/12 -> 73.62003829 | F55: =((F61*$L$13)+(F67*$L$14)+(F73*$L$15))/12-L20/12 -> 68.55306762 | G55: =((G61*$L$13)+(G67*$L$14)+(G73*$L$15))/12-L20/12 -> 71.98202281 | H55: -0.01938762864 | I55: -0.02224958741 | J55: 0.05001898976
B57: =CONCATENATE("Illustrative Bundled Residential Monthly Average Bills - Summer - Baseline Territory ",$D$4) -> Illustrative Bundled Residential Monthly Average Bills - Summer - Baseline Territory X
D58: =$D$46 -> 2026-01-01 | E58: =$E$46 -> 2026-03-01 | F58: =$F$46 -> 2027 Illustrative Authorized | G58: =$G$46 -> 2027 Illustrative w/Pending | H58: =$H$46 -> % Change over 01/1/2026 | I58: =$I$46 -> % Change over 03/1/2026 | J58: =$J$46 -> % Change over Illustrative Authorized
B59: Non-CARE | D59: =VLOOKUP($D$4,'Res Bill Impact'!$B$37:$N$46,2,FALSE) -> 48.95480407 | E59: =VLOOKUP($D$4,'Res Bill Impact'!$B$37:$N$46,5,FALSE) -> 49.09099349 | F59: =VLOOKUP($D$4,'Res Bill Impact'!$B$37:$N$46,8,FALSE) -> 45.86732384 | G59: =VLOOKUP($D$4,'Res Bill Impact'!$B$37:$N$46,11,FALSE) -> 48.05921374 | H59: =$G59/D59-1 -> -0.01829422782 | I59: =$G59/E59-1 -> -0.02101769962 | J59: =$G59/F59-1 -> 0.04778761246
B60: CARE | D60: =VLOOKUP($D$4,'Res Bill Impact'!$B$52:$N$616,2,FALSE) -> 36.2757192 | E60: =VLOOKUP($D$4,'Res Bill Impact'!$B$52:$N$616,5,FALSE) -> 36.3800377 | F60: =VLOOKUP($D$4,'Res Bill Impact'!$B$52:$N$616,8,FALSE) -> 34.0387662 | G60: =VLOOKUP($D$4,'Res Bill Impact'!$B$52:$N$616,11,FALSE) -> 35.60129549 | H60: =$G60/D60-1 -> -0.01859160119 | I60: -0.02140575601 | J60: 0.04590440435
B61: Total | D61: =D59*(1-$N$18)+(Summary!D60*$N$18) -> 46.09763165 | E61: =E59*(1-$N$18)+(Summary!E60*$N$18) -> 46.22663911 | F61: =F59*(1-$N$18)+(Summary!F60*$N$18) -> 43.20181375 | G61: =G59*(1-$N$18)+(Summary!G60*$N$18) -> 45.25188018 | H61: -0.01834696149 | I61: -0.02108651955 | J61: 0.0474532491
B63: =CONCATENATE("Illustrative Bundled Residential Monthly Average Bills - Winter Off-Peak - Baseline Territory ",$D$4) -> Illustrative Bundled Residential Monthly Average Bills - Winter Off-Peak - Baseline Territory X
D64: =$D$46 -> 2026-01-01 | E64: =$E$46 -> 2026-03-01 | F64: =$F$46 -> 2027 Illustrative Authorized | G64: =$G$46 -> 2027 Illustrative w/Pending | H64: =$H$46 -> % Change over 01/1/2026 | I64: =$I$46 -> % Change over 03/1/2026 | J64: =$J$46 -> % Change over Illustrative Authorized
B65: Non-CARE | D65: =VLOOKUP($D$4,'Res Bill Impact'!$B$37:$N$46,3,FALSE) -> 118.5070717 | E65: =VLOOKUP($D$4,'Res Bill Impact'!$B$37:$N$46,6,FALSE) -> 118.83375 | F65: =VLOOKUP($D$4,'Res Bill Impact'!$B$37:$N$46,9,FALSE) -> 111.0410999 | G65: =VLOOKUP($D$4,'Res Bill Impact'!$B$37:$N$46,12,FALSE) -> 116.3241702 | H65: =$G65/D65-1 -> -0.01842001073 | I65: =$G65/E65-1 -> -0.02111840985 | J65: =$G65/F65-1 -> 0.047577611
B66: CARE | D66: =VLOOKUP($D$4,'Res Bill Impact'!$B$52:$N$616,3,FALSE) -> 70.87040927 | E66: =VLOOKUP($D$4,'Res Bill Impact'!$B$52:$N$616,6,FALSE) -> 71.07307782 | F66: =VLOOKUP($D$4,'Res Bill Impact'!$B$52:$N$616,9,FALSE) -> 66.50600892 | G66: =VLOOKUP($D$4,'Res Bill Impact'!$B$52:$N$616,12,FALSE) -> 69.54586505 | H66: =$G66/D66-1 -> -0.01868966519 | I66: -0.02148792219 | J66: 0.04570799207
B67: Total | D67: =D65*(1-$N$18)+(Summary!D66*$N$18) -> 107.7723728 | E67: =E65*(1-$N$18)+(Summary!E66*$N$18) -> 108.0711061 | F67: =F65*(1-$N$18)+(Summary!F66*$N$18) -> 101.0053256 | G67: =G65*(1-$N$18)+(Summary!G66*$N$18) -> 105.7828981 | H67: -0.01845996964 | I67: -0.02117317106 | J67: 0.04730020347
B69: =CONCATENATE("Illustrative Bundled Residential Monthly Average Bills - Winter On-Peak - Baseline Territory ",$D$4) -> Illustrative Bundled Residential Monthly Average Bills - Winter On-Peak - Baseline Territory X
D70: =$D$46 -> 2026-01-01 | E70: =$E$46 -> 2026-03-01 | F70: =$F$46 -> 2027 Illustrative Authorized | G70: =$G$46 -> 2027 Illustrative w/Pending | H70: =$H$46 -> % Change over 01/1/2026 | I70: =$I$46 -> % Change over 03/1/2026 | J70: =$J$46 -> % Change over Illustrative Authorized
B71: Non-CARE | D71: =VLOOKUP($D$4,'Res Bill Impact'!$B$37:$N$46,4,FALSE) -> 155.3759384 | E71: =VLOOKUP($D$4,'Res Bill Impact'!$B$37:$N$46,7,FALSE) -> 155.80425 | F71: =VLOOKUP($D$4,'Res Bill Impact'!$B$37:$N$46,10,FALSE) -> 145.5872199 | G71: =VLOOKUP($D$4,'Res Bill Impact'!$B$37:$N$46,13,FALSE) -> 152.513912 | H71: =$G71/D71-1 -> -0.01842001073 | I71: =$G71/E71-1 -> -0.02111840985 | J71: =$G71/F71-1 -> 0.047577611
B72: CARE | D72: =VLOOKUP($D$4,'Res Bill Impact'!$B$52:$N$616,4,FALSE) -> 89.63022349 | E72: =VLOOKUP($D$4,'Res Bill Impact'!$B$52:$N$616,7,FALSE) -> 89.88653959 | F72: =VLOOKUP($D$4,'Res Bill Impact'!$B$52:$N$616,10,FALSE) -> 84.1105407 | G72: =VLOOKUP($D$4,'Res Bill Impact'!$B$52:$N$616,13,FALSE) -> 87.95506463 | H72: =$G72/D72-1 -> -0.01868966519 | I72: -0.02148792219 | J72: 0.04570799207
B73: Total | D73: =D71*(1-$N$18)+(Summary!D72*$N$18) -> 140.5604494 | E73: =E71*(1-$N$18)+(Summary!E72*$N$18) -> 140.9500025 | F73: =F71*(1-$N$18)+(Summary!F72*$N$18) -> 131.733738 | G73: =G71*(1-$N$18)+(Summary!G72*$N$18) -> 137.965878 | H73: -0.01845875857 | I73: -0.02117151138 | J73: 0.04730860928
B76: =CONCATENATE("Essential Use Illustrative Bundled Residential Monthly Average Bills - Baseline Territory ",$D$4," (Includes Climate Credit)") -> Essential Use Illustrative Bundled Residential Monthly Average Bills - Baseline Territory X (Includes Climate Credit)
D77: =$D$46 -> 2026-01-01 | E77: =$E$46 -> 2026-03-01 | F77: =$F$46 -> 2027 Illustrative Authorized | G77: =$G$46 -> 2027 Illustrative w/Pending | H77: =$H$46 -> % Change over 01/1/2026 | I77: =$I$46 -> % Change over 03/1/2026 | J77: =$J$46 -> % Change over Illustrative Authorized
B78: Essential Use Non-CARE | D78: =((D84*$L$13)+(D90*$L$14)+(D96*$L$15))/12-L19/12 -> 75.38015398 | E78: =((E84*$L$13)+(E90*$L$14)+(E96*$L$15))/12-L20/12 -> 75.5985746 | F78: =((F84*$L$13)+(F90*$L$14)+(F96*$L$15))/12-L20/12 -> 70.38832519 | G78: =((G84*$L$13)+(G90*$L$14)+(G96*$L$15))/12-L20/12 -> 73.92064261 | H78: =$G78/D78-1 -> -0.019362011 | I78: =$G78/E78-1 -> -0.02219528604 | J78: =$G78/F78-1 -> 0.05018328551
B79: Essential Use CARE | D79: =((D85*$L$13)+(D91*$L$14)+(D97*$L$15))/12-L19/12 -> 58.86011986 | E79: =((E85*$L$13)+(E91*$L$14)+(E97*$L$15))/12-L20/12 -> 59.03946651 | F79: =((F85*$L$13)+(F91*$L$14)+(F97*$L$15))/12-L20/12 -> 54.99794871 | G79: =((G85*$L$13)+(G91*$L$14)+(G97*$L$15))/12-L20/12 -> 57.6879963 | H79: =$G79/D79-1 -> -0.01991371346 | I79: -0.02289096255 | J79: =$G79/F79-1 -> 0.04891178041
B80: Total | D80: =((D86*$L$13)+(D92*$L$14)+(D98*$L$15))/12-L19/12 -> 71.65744163 | E80: =((E86*$L$13)+(E92*$L$14)+(E98*$L$15))/12-L20/12 -> 71.86705711 | F80: =((F86*$L$13)+(F92*$L$14)+(F98*$L$15))/12-L20/12 -> 66.9201759 | G80: =((G86*$L$13)+(G92*$L$14)+(G98*$L$15))/12-L20/12 -> 70.26269176 | H80: -0.01946413158 | I80: -0.02232407197 | J80: 0.0499478044
B82: =CONCATENATE("Essential Use Illustrative Bundled Residential Monthly Average Bills - Summer - Baseline Territory ",$D$4) -> Essential Use Illustrative Bundled Residential Monthly Average Bills - Summer - Baseline Territory X
D83: =$D$46 -> 2026-01-01 | E83: =$E$46 -> 2026-03-01 | F83: =$F$46 -> 2027 Illustrative Authorized | G83: =$G$46 -> 2027 Illustrative w/Pending | H83: =$H$46 -> % Change over 01/1/2026 | I83: =$I$46 -> % Change over 03/1/2026 | J83: =$J$46 -> % Change over Illustrative Authorized
B84: Essential Use Non-CARE | D84: =VLOOKUP($D$4,'Res Bill Impact'!$B$67:$N$76,2,FALSE) -> 39.2504112 | E84: =VLOOKUP($D$4,'Res Bill Impact'!$B$67:$N$76,5,FALSE) -> 39.35860945 | F84: =VLOOKUP($D$4,'Res Bill Impact'!$B$67:$N$76,8,FALSE) -> 36.77762659 | G84: =VLOOKUP($D$4,'Res Bill Impact'!$B$67:$N$76,11,FALSE) -> 38.5274182 | H84: =$G84/D84-1 -> -0.01842001073 | I84: =$G84/E84-1 -> -0.02111840985 | J84: =$G84/F84-1 -> 0.047577611
B85: Essential Use CARE | D85: =VLOOKUP($D$4,'Res Bill Impact'!$B$82:$N$91,2,FALSE) -> 31.06694021 | E85: =VLOOKUP($D$4,'Res Bill Impact'!$B$82:$N$91,5,FALSE) -> 31.15578253 | F85: =VLOOKUP($D$4,'Res Bill Impact'!$B$82:$N$91,8,FALSE) -> 29.15375012 | G85: =VLOOKUP($D$4,'Res Bill Impact'!$B$82:$N$91,11,FALSE) -> 30.4863095 | H85: =$G85/D85-1 -> -0.01868966519 | I85: -0.02148792219 | J85: 0.04570799207
B86: Total | D86: =D84*(1-$N$18)+(Summary!D85*$N$18) -> 37.40630432 | E86: =E84*(1-$N$18)+(Summary!E85*$N$18) -> 37.5101408 | F86: =F84*(1-$N$18)+(Summary!F85*$N$18) -> 35.05962172 | G86: =G84*(1-$N$18)+(Summary!G85*$N$18) -> 36.715392 | H86: -0.018470478 | I86: -0.02118757184 | J86: 0.04722727171
B88: =CONCATENATE("Essential Use Illustrative Bundled Residential Monthly Average Bills - Winter Off-Peak - Baseline Territory ",$D$4) -> Essential Use Illustrative Bundled Residential Monthly Average Bills - Winter Off-Peak - Baseline Territory X
D89: =$D$46 -> 2026-01-01 | E89: =$E$46 -> 2026-03-01 | F89: =$F$46 -> 2027 Illustrative Authorized | G89: =$G$46 -> 2027 Illustrative w/Pending | H89: =$H$46 -> % Change over 01/1/2026 | I89: =$I$46 -> % Change over 03/1/2026 | J89: =$J$46 -> % Change over Illustrative Authorized
B90: Essential Use Non-CARE | D90: =VLOOKUP($D$4,'Res Bill Impact'!$B$67:$N$76,3,FALSE) -> 118.5522624 | E90: =VLOOKUP($D$4,'Res Bill Impact'!$B$67:$N$76,6,FALSE) -> 118.8790653 | F90: =VLOOKUP($D$4,'Res Bill Impact'!$B$67:$N$76,9,FALSE) -> 111.0834436 | G90: =VLOOKUP($D$4,'Res Bill Impact'!$B$67:$N$76,12,FALSE) -> 116.3685284 | H90: =$G90/D90-1 -> -0.01842001073 | I90: =$G90/E90-1 -> -0.02111840985 | J90: =$G90/F90-1 -> 0.047577611
B91: Essential Use CARE | D91: =VLOOKUP($D$4,'Res Bill Impact'!$B$82:$N$91,3,FALSE) -> 93.83483981 | E91: =VLOOKUP($D$4,'Res Bill Impact'!$B$82:$N$91,6,FALSE) -> 94.10317988 | F91: =VLOOKUP($D$4,'Res Bill Impact'!$B$82:$N$91,9,FALSE) -> 88.05622484 | G91: =VLOOKUP($D$4,'Res Bill Impact'!$B$82:$N$91,12,FALSE) -> 92.08109807 | H91: =$G91/D91-1 -> -0.01868966519 | I91: -0.02148792219 | J91: 0.04570799207
B92: Total | D92: =D90*(1-$N$18)+(Summary!D91*$N$18) -> 112.9823069 | E92: =E90*(1-$N$18)+(Summary!E91*$N$18) -> 113.2959355 | F92: =F90*(1-$N$18)+(Summary!F91*$N$18) -> 105.8943676 | G92: =G90*(1-$N$18)+(Summary!G91*$N$18) -> 110.8954697 | H92: -0.018470478 | I92: -0.02118757184 | J92: 0.04722727171
B94: =CONCATENATE("Essential Use Illustrative Bundled Residential Monthly Average Bills - Winter On-Peak - Baseline Territory ",$D$4) -> Essential Use Illustrative Bundled Residential Monthly Average Bills - Winter On-Peak - Baseline Territory X
D95: =$D$46 -> 2026-01-01 | E95: =$E$46 -> 2026-03-01 | F95: =$F$46 -> 2027 Illustrative Authorized | G95: =$G$46 -> 2027 Illustrative w/Pending | H95: =$H$46 -> % Change over 01/1/2026 | I95: =$I$46 -> % Change over 03/1/2026 | J95: =$J$46 -> % Change over Illustrative Authorized
B96: Essential Use Non-CARE | D96: =VLOOKUP($D$4,'Res Bill Impact'!$B$67:$N$76,4,FALSE) -> 160.20576 | E96: =VLOOKUP($D$4,'Res Bill Impact'!$B$67:$N$76,7,FALSE) -> 160.6473855 | F96: =VLOOKUP($D$4,'Res Bill Impact'!$B$67:$N$76,10,FALSE) -> 150.1127616 | G96: =VLOOKUP($D$4,'Res Bill Impact'!$B$67:$N$76,13,FALSE) -> 157.2547682 | H96: =$G96/D96-1 -> -0.01842001073 | I96: =$G96/E96-1 -> -0.02111840985 | J96: =$G96/F96-1 -> 0.047577611
B97: Essential Use CARE | D97: =VLOOKUP($D$4,'Res Bill Impact'!$B$82:$N$91,4,FALSE) -> 126.8038376 | E97: =VLOOKUP($D$4,'Res Bill Impact'!$B$82:$N$91,7,FALSE) -> 127.1664593 | F97: =VLOOKUP($D$4,'Res Bill Impact'!$B$82:$N$91,10,FALSE) -> 118.9948984 | G97: =VLOOKUP($D$4,'Res Bill Impact'!$B$82:$N$91,13,FALSE) -> 124.4339163 | H97: =$G97/D97-1 -> -0.01868966519 | I97: -0.02148792219 | J97: 0.04570799207
B98: Total | D98: =D96*(1-$N$18)+(Summary!D97*$N$18) -> 152.6787931 | E98: =E96*(1-$N$18)+(Summary!E97*$N$18) -> 153.1026155 | F98: =F96*(1-$N$18)+(Summary!F97*$N$18) -> 143.1004968 | G98: =G96*(1-$N$18)+(Summary!G97*$N$18) -> 149.8587429 | H98: -0.018470478 | I98: -0.02118757184 | J98: 0.04722727171
B101: =CONCATENATE("Typical Customer Illustrative Bundled Residential Monthly Average Bills - Baseline Territory ",$D$4," (Includes Climate Credit)") -> Typical Customer Illustrative Bundled Residential Monthly Average Bills - Baseline Territory X (Includes Climate Credit)
D102: =$D$46 -> 2026-01-01 | E102: =$E$46 -> 2026-03-01 | F102: =$F$46 -> 2027 Illustrative Authorized | G102: =$G$46 -> 2027 Illustrative w/Pending | H102: =$H$46 -> % Change over 01/1/2026 | I102: =$I$46 -> % Change over 03/1/2026 | J102: =$J$46 -> % Change over Illustrative Authorized
B103: =CONCATENATE($L$16," Therms Monthly Usage - Non-CARE") -> 31 Therms Monthly Usage - Non-CARE | D103: =((D109*$L$13)+(D115*$L$14)+(D121*$L$15))/12-L19/12 -> 82.49038833 | E103: =((E109*$L$13)+(E115*$L$14)+(E121*$L$15))/12-L20/12 -> 82.73216972 | F103: =((F109*$L$13)+(F115*$L$14)+(F121*$L$15))/12-L20/12 -> 77.0405536 | G103: =((G109*$L$13)+(G115*$L$14)+(G121*$L$15))/12-L20/12 -> 80.91858256 | H103: =$G103/D103-1 -> -0.01905441119 | I103: =$G103/E103-1 -> -0.02192118464 | J103: =$G103/F103-1 -> 0.0503375011
B104: =CONCATENATE($L$17," Therms Monthly Usage - CARE") -> 26 Therms Monthly Usage - CARE | D104: =((D110*$L$13)+(D116*$L$14)+(D122*$L$15))/12-L19/12 -> 52.9360022 | E104: =((E110*$L$13)+(E116*$L$14)+(E122*$L$15))/12-L20/12 -> 53.10020084 | F104: =((F110*$L$13)+(F116*$L$14)+(F122*$L$15))/12-L20/12 -> 49.42941558 | G104: =((G110*$L$13)+(G116*$L$14)+(G122*$L$15))/12-L20/12 -> 51.88558526 | H104: =$G104/D104-1 -> -0.01984314823 | I104: -0.02287402969 | J104: 0.04969044564
B105: Total | D105: =((D111*$L$13)+(D117*$L$14)+(D123*$L$15))/12-L19/12 -> 75.83044578 | E105: =((E111*$L$13)+(E117*$L$14)+(E123*$L$15))/12-L20/12 -> 76.05474425 | F105: =((F111*$L$13)+(F117*$L$14)+(F123*$L$15))/12-L20/12 -> 70.81851291 | G105: =((G111*$L$13)+(G117*$L$14)+(G123*$L$15))/12-L20/12 -> 74.37613253 | H105: -0.01917848734 | I105: -0.02207109812 | J105: 0.050235729
B107: =CONCATENATE("Typical Customer Illustrative Bundled Residential Monthly Average Bills - Summer - Baseline Territory ",$D$4) -> Typical Customer Illustrative Bundled Residential Monthly Average Bills - Summer - Baseline Territory X
D108: =$D$46 -> 2026-01-01 | E108: =$E$46 -> 2026-03-01 | F108: =$F$46 -> 2027 Illustrative Authorized | G108: =$G$46 -> 2027 Illustrative w/Pending | H108: =$H$46 -> % Change over 01/1/2026 | I108: =$I$46 -> % Change over 03/1/2026 | J108: =$J$46 -> % Change over Illustrative Authorized
B109: =CONCATENATE($L$16," Therms Monthly Usage - Non-CARE") -> 31 Therms Monthly Usage - Non-CARE | D109: =VLOOKUP($D$4,'Res Bill Impact'!$B$97:$N$106,2,FALSE) -> 89.70756757 | E109: =VLOOKUP($D$4,'Res Bill Impact'!$B$97:$N$106,5,FALSE) -> 89.96130349 | F109: =VLOOKUP($D$4,'Res Bill Impact'!$B$97:$N$106,8,FALSE) -> 84.0387259 | G109: =VLOOKUP($D$4,'Res Bill Impact'!$B$97:$N$106,11,FALSE) -> 88.08716953 | H109: =$G109/D109-1 -> -0.01806311423 | I109: =$G109/E109-1 -> -0.02083266786 | J109: =$G109/F109-1 -> 0.04817354843
B110: =CONCATENATE($L$17," Therms Monthly Usage - CARE") -> 26 Therms Monthly Usage - CARE | D110: =VLOOKUP($D$4,'Res Bill Impact'!$B$112:$N$121,2,FALSE) -> 58.64518141 | E110: =VLOOKUP($D$4,'Res Bill Impact'!$B$112:$N$121,5,FALSE) -> 58.81596348 | F110: =VLOOKUP($D$4,'Res Bill Impact'!$B$112:$N$121,8,FALSE) -> 55.01780621 | G110: =VLOOKUP($D$4,'Res Bill Impact'!$B$112:$N$121,11,FALSE) -> 57.5679572 | H110: =$G110/D110-1 -> -0.01836850335 | I110: -0.02121883584 | J110: 0.04635137543
B111: Total | D111: =D109*(1-$N$18)+(Summary!D110*$N$18) -> 82.70780427 | E111: =E109*(1-$N$18)+(Summary!E110*$N$18) -> 82.94284692 | F111: =F109*(1-$N$18)+(Summary!F110*$N$18) -> 77.49899751 | G111: =G109*(1-$N$18)+(Summary!G110*$N$18) -> 81.20980791 | H111: -0.01811191065 | I111: -0.02089437581 | J111: 0.04788204388
B113: =CONCATENATE("Typical Customer Illustrative Bundled Residential Monthly Average Bills - Winter Off-Peak - Baseline Territory ",$D$4) -> Typical Customer Illustrative Bundled Residential Monthly Average Bills - Winter Off-Peak - Baseline Territory X
D114: =$D$46 -> 2026-01-01 | E114: =$E$46 -> 2026-03-01 | F114: =$F$46 -> 2027 Illustrative Authorized | G114: =$G$46 -> 2027 Illustrative w/Pending | H114: =$H$46 -> % Change over 01/1/2026 | I114: =$I$46 -> % Change over 03/1/2026 | J114: =$J$46 -> % Change over Illustrative Authorized
B115: =CONCATENATE($L$16," Therms Monthly Usage - Non-CARE") -> 31 Therms Monthly Usage - Non-CARE | D115: =VLOOKUP($D$4,'Res Bill Impact'!$B$97:$N$106,3,FALSE) -> 81.63820495 | E115: =VLOOKUP($D$4,'Res Bill Impact'!$B$97:$N$106,6,FALSE) -> 81.86325 | F115: =VLOOKUP($D$4,'Res Bill Impact'!$B$97:$N$106,9,FALSE) -> 76.49497994 | G115: =VLOOKUP($D$4,'Res Bill Impact'!$B$97:$N$106,12,FALSE) -> 80.13442833 | H115: =$G115/D115-1 -> -0.01842001073 | I115: =$G115/E115-1 -> -0.02111840985 | J115: =$G115/F115-1 -> 0.047577611
B116: =CONCATENATE($L$17," Therms Monthly Usage - CARE") -> 26 Therms Monthly Usage - CARE | D116: =VLOOKUP($D$4,'Res Bill Impact'!$B$112:$N$121,3,FALSE) -> 54.19501886 | E116: =VLOOKUP($D$4,'Res Bill Impact'!$B$112:$N$121,6,FALSE) -> 54.35000069 | F116: =VLOOKUP($D$4,'Res Bill Impact'!$B$112:$N$121,9,FALSE) -> 50.85753624 | G116: =VLOOKUP($D$4,'Res Bill Impact'!$B$112:$N$121,12,FALSE) -> 53.1821321 | H116: =$G116/D116-1 -> -0.01868966519 | I116: -0.02148792219 | J116: 0.04570799207
B117: Total | D117: =D115*(1-$N$18)+(Summary!D116*$N$18) -> 75.45401143 | E117: =E115*(1-$N$18)+(Summary!E116*$N$18) -> 75.66326807 | F117: =F115*(1-$N$18)+(Summary!F116*$N$18) -> 70.71770202 | G117: =G115*(1-$N$18)+(Summary!G116*$N$18) -> 74.06085455 | H117: -0.0184636556 | I117: -0.02117822235 | J117: 0.04727462064
B119: =CONCATENATE("Typical Customer Illustrative Bundled Residential Monthly Average Bills - Winter On-Peak - Baseline Territory ",$D$4) -> Typical Customer Illustrative Bundled Residential Monthly Average Bills - Winter On-Peak - Baseline Territory X
D120: =$D$46 -> 2026-01-01 | E120: =$E$46 -> 2026-03-01 | F120: =$F$46 -> 2027 Illustrative Authorized | G120: =$G$46 -> 2027 Illustrative w/Pending | H120: =$H$46 -> % Change over 01/1/2026 | I120: =$I$46 -> % Change over 03/1/2026 | J120: =$J$46 -> % Change over Illustrative Authorized
B121: =CONCATENATE($L$16," Therms Monthly Usage - Non-CARE") -> 31 Therms Monthly Usage - Non-CARE | D121: =VLOOKUP($D$4,'Res Bill Impact'!$B$97:$N$106,4,FALSE) -> 81.63820495 | E121: =VLOOKUP($D$4,'Res Bill Impact'!$B$97:$N$106,7,FALSE) -> 81.86325 | F121: =VLOOKUP($D$4,'Res Bill Impact'!$B$97:$N$106,10,FALSE) -> 76.49497994 | G121: =VLOOKUP($D$4,'Res Bill Impact'!$B$97:$N$106,13,FALSE) -> 80.13442833 | H121: =$G121/D121-1 -> -0.01842001073 | I121: =$G121/E121-1 -> -0.02111840985 | J121: =$G121/F121-1 -> 0.047577611
B122: =CONCATENATE($L$17," Therms Monthly Usage - CARE") -> 26 Therms Monthly Usage - CARE | D122: =VLOOKUP($D$4,'Res Bill Impact'!$B$112:$N$121,4,FALSE) -> 54.19501886 | E122: =VLOOKUP($D$4,'Res Bill Impact'!$B$112:$N$121,7,FALSE) -> 54.35000069 | F122: =VLOOKUP($D$4,'Res Bill Impact'!$B$112:$N$121,10,FALSE) -> 50.85753624 | G122: =VLOOKUP($D$4,'Res Bill Impact'!$B$112:$N$121,13,FALSE) -> 53.1821321 | H122: =$G122/D122-1 -> -0.01868966519 | I122: -0.02148792219 | J122: 0.04570799207
B123: Total | D123: =D121*(1-$N$18)+(Summary!D122*$N$18) -> 75.45401143 | E123: =E121*(1-$N$18)+(Summary!E122*$N$18) -> 75.66326807 | F123: =F121*(1-$N$18)+(Summary!F122*$N$18) -> 70.71770202 | G123: =G121*(1-$N$18)+(Summary!G122*$N$18) -> 74.06085455 | H123: -0.0184636556 | I123: -0.02117822235 | J123: 0.04727462064

Sheet Res Bill Impact
A1: *NOTE: This model produces illustrative rates based on a single average throughput forecast. Actual ratemaking uses multiple throughput forecasts depending on revenue requirement type. Therefore, differences in illustrative v. actual rates will exist.
E3: Schedule G-1 | P3: Schedule GL-1
E4: =Summary!L4 -> 2023 CARD | F4: =Summary!L3 -> 2026-03-01 | G4: =Summary!L3 -> 2026-03-01 | H4: Illustrative Proposed | I4: Illustrative Proposed | J4: Illustrative Proposed | K4: Illustrative Proposed | P4: =E4 -> 2023 CARD | Q4: =Summary!L3 -> 2026-03-01 | R4: =Summary!L3 -> 2026-03-01 | S4: Illustrative Proposed | T4: Illustrative Proposed | U4: Illustrative Proposed | V4: Illustrative Proposed
E5: Throughput Forecast | F5: Rates (w/illustrative procrement) | G5: Revenue | H5: Authorized Rates (w/illustrative procrement) | I5: Authorized Revenue | J5: w/Pending Rates (w/illustrative procrement) | K5: w/Pending Revenue | P5: Throughput Forecast | Q5: Rates (w/illustrative procrement) | R5: Revenue | S5: Authorized Rates (w/illustrative procrement) | T5: Authorized Revenue | U5: w/Pending Rates (w/illustrative procrement) | V5: w/Pending Revenue
D7: Baseline - Summer | E7: 248852.0342 | F7: 2.64075 | G7: =F7*E7 -> 657156.0094 | H7: =Res_RD!L49 -> 2.467579998 | I7: =E7*H7 -> 614062.3021 | J7: =Res_RD!AC49 -> 2.584981559 | K7: =E7*J7 -> 643277.9194 | O7: Baseline - Summer | P7: 70140.404 | Q7: 2.090384642 | R7: =Q7*P7 -> 146620.4233 | S7: =Res_RD!H61 -> 1.956059086 | T7: =P7*S7 -> 137198.7745 | U7: =Res_RD!Y61 -> 2.045466619 | V7: =P7*U7 -> 143469.855
D8: - Winter | E8: 574813.2918 | F8: =F7 -> 2.64075 | G8: =F8*E8 -> 1517938.2 | H8: =H7 -> 2.467579998 | I8: =E8*H8 -> 1418397.781 | J8: =J7 -> 2.584981559 | K8: =E8*J8 -> 1485881.759 | O8: - Winter | P8: 170272.5746 | Q8: =Q7 -> 2.090384642 | R8: =Q8*P8 -> 355935.1748 | S8: =S7 -> 1.956059086 | T8: =P8*S8 -> 333063.2166 | U8: =U7 -> 2.045466619 | V8: =P8*U8 -> 348286.8674
D9: Over Baseline - Summer | E9: 106674.2451 | F9: 3.14387 | G9: =F9*E9 -> 335369.9589 | H9: =Res_RD!L50 -> 2.936261697 | I9: =E9*H9 -> 313223.4999 | J9: =Res_RD!AC50 -> 3.079073523 | K9: =E9*J9 -> 328457.8436 | O9: Over Baseline - Summer | P9: 30618.99766 | Q9: 2.492880642 | R9: =Q9*P9 -> 76329.50653 | S9: =Res_RD!H62 -> 2.331004445 | T9: =P9*S9 -> 71373.01965 | U9: =Res_RD!Y62 -> 2.44074019 | V9: =P9*U9 -> 74733.01816
D10: - Winter | E10: 234628.5976 | F10: =F9 -> 3.14387 | G10: =F10*E10 -> 737641.8091 | H10: =H9 -> 2.936261697 | I10: =E10*H10 -> 688930.9642 | J10: =J9 -> 3.079073523 | K10: =E10*J10 -> 722438.7026 | O10: - Winter | P10: 59181.49733 | Q10: =Q9 -> 2.492880642 | R10: =Q10*P10 -> 147532.409 | S10: =S9 -> 2.331004445 | T10: =P10*S10 -> 137952.3334 | U10: =U9 -> 2.44074019 | V10: =P10*U10 -> 144446.6591
F12: =SUM(G7:G10)/SUM($E$7:$E$10) -> 2.788149981 | H12: =SUM(I7:I10)/SUM($E$7:$E$10) -> 2.604890528 | J12: =SUM(K7:K10)/SUM($E$7:$E$10) -> 2.72973658 | Q12: =SUM(R7:R10)/SUM($P$7:$P$10) -> 2.199842138 | S12: =SUM(T7:T10)/SUM($P$7:$P$10) -> 2.058024274 | U12: =SUM(V7:V10)/SUM($P$7:$P$10) -> 2.152959999
P19: 2025 Recorded Data - Average Monthly Usage - Therms
B20: SCHEDULE G-1 RATES ($/therm) | E20: Illustrative Proposed | F20: Illustrative Proposed | H20: MONTHLY BASELINE QUANTITIES -BASIC (Therms) | P20: Climate Zone | Q20: Summer | R20: Winter Off-Peak | S20: Winter On-Peak | T20: Summer | U20: Winter Off-Peak | V20: Winter On-Peak | W20: Sample Population Weight
B21: Rates | C21: 2026-01-01 | D21: =Summary!L3 -> 2026-03-01 | E21: Authorized | F21: w/Pending | H21: Climate Zone | I21: Summer 2022 | J21: Winter 2022 Off-Peak | K21: Winter 2022 On-Peak | Q21: Non-CARE | T21: CARE | W21: Non-CARE | X21: CARE
B22: Tier 1 | C22: 2.633490482 | D22: =F7 -> 2.64075 | E22: =H7 -> 2.467579998 | F22: =J7 -> 2.584981559 | H22: P | I22: 11.86263 | J22: 57.18396 | K22: 66.61323 | P22: P | Q22: 17 | R22: 52 | S22: 60 | T22: 14 | U22: 42 | V22: 47 | W22: 0.003359285292 | X22: 0.004745612892
B23: Tier 2 | C23: 3.134827962 | D23: =F9 -> 3.14387 | E23: =H9 -> 2.936261697 | F23: =J9 -> 3.079073523 | H23: Q | I23: 17.03352 | J23: 45.01716 | K23: 60.834 | P23: Q | Q23: INCLUDED WITH TERRITORY X
H24: R | I24: 10.95012 | J24: 37.71708 | K24: 55.05477 | P24: R | Q24: 14 | R24: 39 | S24: 58 | T24: 16 | U24: 36 | V24: 52 | W24: 0.07403913666 | X24: 0.1839724802
H25: S | I25: 11.86263 | J25: 41.97546 | K25: 59.00898 | P25: S | Q25: 15 | R25: 43 | S25: 62 | T25: 16 | U25: 40 | V25: 56 | W25: 0.3198561 | X25: 0.3410821569
B26: SCHEDULE GL-1 RATES ($/therm) | E26: Illustrative Proposed | F26: Illustrative Proposed | H26: T | I26: 17.03352 | J26: 39.84627 | K26: 51.10056 | P26: T | Q26: 19 | R26: 36 | S26: 44 | T26: 20 | U26: 31 | V26: 36 | W26: 0.1961009689 | X26: 0.147043258
B27: Rates | C27: =C21 -> 2026-01-01 | D27: =D21 -> 2026-03-01 | E27: Authorized | F27: w/Pending | H27: V | I27: 17.94603 | J27: 45.92967 | K27: 52.01307 | P27: V | Q27: 20 | R27: 43 | S27: 49 | T27: 21 | U27: 42 | V27: 46 | W27: 0.0085976199 | X27: 0.01273174353
B28: Tier 1 | C28: 2.084423802 | D28: =Q7 -> 2.090384642 | E28: =S7 -> 1.956059086 | F28: =U7 -> 2.045466619 | H28: W | I28: 11.86263 | J28: 34.67538 | K28: 51.10056 | P28: W | Q28: 14 | R28: 34 | S28: 54 | T28: 17 | U28: 35 | V28: 52 | W28: 0.01745428935 | X28: 0.07037425164
B29: Tier 2 | C29: 2.485495802 | D29: =Q9 -> 2.492880642 | E29: =S9 -> 2.331004445 | F29: =U9 -> 2.44074019 | H29: X | I29: 14.90433 | J29: 45.01716 | K29: 60.834 | P29: X | Q29: 18 | R29: 45 | S29: 59 | T29: 17 | U29: 34 | V29: 43 | W29: 0.3799733049 | X29: 0.2390702913
H30: Y | I30: 21.90024 | J30: 67.52574 | K30: 78.47586 | P30: Y | Q30: 22 | R30: 64 | S30: 71 | T30: 21 | U30: 57 | V30: 65 | W30: 0.0006192951012 | X30: 0.0009802055212
N33: Daily to Monthly Conversion Factor | O33: 30.417
C34: NON-CARE
C35: =C27 -> 2026-01-01 | F35: =D27 -> 2026-03-01 | I35: =CONCATENATE(E20," ",E21) -> Illustrative Proposed Authorized | L35: =CONCATENATE(F20," ",F21) -> Illustrative Proposed w/Pending
C36: Summer | D36: Winter Off-Peak | E36: Winter On-Peak | F36: Summer | G36: Winter Off-Peak | H36: Winter On-Peak | I36: Summer | J36: Winter Off-Peak | K36: Winter On-Peak | L36: Summer | M36: Winter Off-Peak | N36: Winter On-Peak
B37: P | C37: =IF(Q22>I22,C$22*I22+C$23*(Q22-I22),Q22*C$22) -> 47.34489432 | D37: =IF(R22>J22,C$22*J22+C$23*(R22-J22),R22*C$22) -> 136.9415051 | E37: =IF(S22>K22,C$22*K22+C$23*(S22-K22),S22*C$22) -> 158.0094289 | F37: =IF(Q22>I22,D$22*I22+D$23*(Q22-I22),Q22*D$22) -> 47.47746359 | G37: =IF(R22>J22,D$22*J22+D$23*(R22-J22),R22*D$22) -> 137.319 | H37: =IF(S22>K22,D$22*K22+D$23*(S22-K22),S22*D$22) -> 158.445 | I37: =IF(Q22>I22,E$22*I22+E$23*(Q22-I22),Q22*E$22) -> 44.35665127 | J37: =IF(R22>J22,E$22*J22+E$23*(R22-J22),R22*E$22) -> 128.3141599 | K37: =IF(S22>K22,E$22*K22+E$23*(S22-K22),S22*E$22) -> 148.0547999 | L37: =IF(Q22>I22,F$22*I22+F$23*(Q22-I22),Q22*F$22) -> 46.48301974 | M37: =IF(R22>J22,F$22*J22+F$23*(R22-J22),R22*F$22) -> 134.4190411 | N37: =IF(S22>K22,F$22*K22+F$23*(S22-K22),S22*F$22) -> 155.0988936
B38: Q
B39: R | C39: =IF(Q24>I24,C$22*I24+C$23*(Q24-I24),Q24*C$22) -> 38.3978859 | D39: =IF(R24>J24,C$22*J24+C$23*(R24-J24),R24*C$22) -> 103.3493047 | E39: =IF(S24>K24,C$22*K24+C$23*(S24-K24),S24*C$22) -> 154.2190021 | F39: =IF(Q24>I24,D$22*I24+D$23*(Q24-I24),Q24*D$22) -> 38.50495563 | G39: =IF(R24>J24,D$22*J24+D$23*(R24-J24),R24*D$22) -> 103.6347127 | H39: =IF(S24>K24,D$22*K24+D$23*(S24-K24),S24*D$22) -> 154.6453041 | I39: =IF(Q24>I24,E$22*I24+E$23*(Q24-I24),Q24*E$22) -> 35.97554291 | J39: =IF(R24>J24,E$22*J24+E$23*(R24-J24),R24*E$22) -> 96.83690105 | K39: =IF(S24>K24,E$22*K24+E$23*(S24-K24),S24*E$22) -> 144.5000153 | L39: =IF(Q24>I24,F$22*I24+F$23*(Q24-I24),Q24*F$22) -> 37.69666303 | M39: =IF(R24>J24,F$22*J24+F$23*(R24-J24),R24*F$22) -> 101.4481613 | N39: =IF(S24>K24,F$22*K24+F$23*(S24-K24),S24*F$22) -> 151.3841449
B40: S | C40: 41.0752384 | D40: 113.753731 | E40: 164.7759203 | F40: 41.18972359 | G40: 114.0677166 | H40: 165.231342 | I40: 38.48412787 | J40: 106.5861231 | K40: 154.3917962 | L40: =IF(Q25>I25,F$22*I25+F$23*(Q25-I25),Q25*F$22) -> 40.32487269 | M40: 111.660424 | N40: 161.7466956
B41: T | C41: 51.02218929 | D41: 94.80565736 | E41: 115.8735812 | F41: 51.16362542 | G41: 95.067 | H41: 116.193 | I41: 47.80567315 | J41: 88.83287993 | K41: 108.5735199 | L41: 50.08627159 | M41: =IF(R26>J26,F$22*J26+F$23*(R26-J26),R26*F$22) -> 93.05933613 | N41: 113.7391886
B42: V | C42: 53.69954179 | D42: 113.2400907 | E42: 129.0410336 | F42: 53.84839339 | G42: 113.55225 | H42: 129.39675 | I42: 50.31425811 | J42: 106.1059399 | K42: 120.9114199 | L42: 52.71448125 | M42: 111.154207 | N42: 126.6640964
B43: W | C43: 37.94041044 | D43: 89.53867639 | E43: 143.662084 | F43: 38.04585359 | G43: 89.7855 | H43: 144.0592663 | I43: 35.54786617 | J43: 83.89771993 | K43: 134.6082344 | L43: 37.24579917 | M43: 87.88937301 | N43: 141.0215942
B44: X | C44: =IF(Q29>I29,C$22*I29+C$23*(Q29-I29),Q29*C$22) -> 48.95480407 | D44: 118.5070717 | E44: 155.3759384 | F44: 49.09099349 | G44: 118.83375 | H44: 155.80425 | I44: 45.86732384 | J44: 111.0410999 | K44: 145.5872199 | L44: 48.05921374 | M44: 116.3241702 | N44: 152.513912
B45: Y | C45: 57.98680403 | D45: 168.5433909 | E45: 186.9778242 | F45: 58.14669125 | G45: 169.008 | H45: 187.49325 | I45: 54.33351564 | J45: 157.9251199 | K45: 175.1981799 | L45: 56.91888492 | M45: 165.4388198 | N45: 183.5336907
B46: ALL CLIMATE ZONES | C46: =SUMPRODUCT(C37:C45,$W$22:$W$30) -> 45.90699843 | D46: 110.7585559 | E46: 150.1480139 | F46: 46.03469323 | G46: 111.0640438 | H46: 150.5624049 | I46: 43.01177937 | J46: 103.7802895 | K46: 140.6873429 | L46: 45.06708689 | M46: 108.7192229 | N46: 147.3847233
C49: CARE
C50: =C27 -> 2026-01-01 | F50: =D27 -> 2026-03-01 | I50: =I35 -> Illustrative Proposed Authorized | L50: =L35 -> Illustrative Proposed w/Pending
C51: Summer | D51: Winter Off-Peak | E51: Winter On-Peak | F51: Summer | G51: Winter Off-Peak | H51: Winter On-Peak | I51: Summer | J51: Winter Off-Peak | K51: Winter On-Peak | L51: Summer | M51: Winter Off-Peak | N51: Winter On-Peak
B52: P | C52: =IF(T22>I22,C$28*I22+C$29*(T22-I22),T22*C$28) -> 30.03917249 | D52: =IF(U22>J22,C$28*J22+C$29*(U22-J22),U22*C$28) -> 87.54579969 | E52: =IF(V22>K22,C$28*K22+C$29*(V22-K22),V22*C$28) -> 97.9679187 | F52: =IF(T22>I22,D$28*I22+D$29*(T22-I22),T22*D$28) -> 30.12566786 | G52: =IF(U22>J22,D$28*J22+D$29*(U22-J22),U22*D$28) -> 87.79615495 | H52: =IF(V22>K22,D$28*K22+D$29*(V22-K22),V22*D$28) -> 98.24807816 | I52: =IF(T22>I22,E$28*I22+E$29*(T22-I22),T22*E$28) -> 28.18622417 | J52: =IF(U22>J22,E$28*J22+E$29*(U22-J22),U22*E$28) -> 82.15448161 | K52: =IF(V22>K22,E$28*K22+E$29*(V22-K22),V22*E$28) -> 91.93477704 | L52: =IF(T22>I22,F$28*I22+F$29*(T22-I22),T22*F$28) -> 29.48137854 | M52: =IF(U22>J22,F$28*J22+F$29*(U22-J22),U22*F$28) -> 85.90959801 | N52: =IF(V22>K22,F$28*K22+F$29*(V22-K22),V22*F$28) -> 96.1369311
B53: Q
B54: R | C54: =IF(T24>I24,C$28*I24+C$29*(T24-I24),T24*C$28) -> 35.37614631 | D54: =IF(U24>J24,C$28*J24+C$29*(U24-J24),U24*C$28) -> 75.03925688 | E54: =IF(V24>K24,C$28*K24+C$29*(V24-K24),V24*C$28) -> 108.3900377 | F54: =IF(T24>I24,D$28*I24+D$29*(T24-I24),T24*D$28) -> 35.47871077 | G54: =IF(U24>J24,D$28*J24+D$29*(U24-J24),U24*D$28) -> 75.2538471 | H54: =IF(V24>K24,D$28*K24+D$29*(V24-K24),V24*D$28) -> 108.7000014 | I54: =IF(T24>I24,E$28*I24+E$29*(T24-I24),T24*E$28) -> 33.19037445 | J54: =IF(U24>J24,E$28*J24+E$29*(U24-J24),U24*E$28) -> 70.4181271 | K54: =IF(V24>K24,E$28*K24+E$29*(V24-K24),V24*E$28) -> 101.7150725 | L54: =IF(T24>I24,F$28*I24+F$29*(T24-I24),T24*F$28) -> 34.72355001 | M54: =IF(U24>J24,F$28*J24+F$29*(U24-J24),U24*F$28) -> 73.63679829 | N54: =IF(V24>K24,F$28*K24+F$29*(V24-K24),V24*F$28) -> 106.3642642
B55: S | C55: 35.0101641 | D55: 83.37695209 | E55: 116.7277329 | F55: 35.11142914 | G55: 83.61538567 | H55: 117.0615399 | I55: 32.84823306 | J55: 78.24236344 | K55: 109.5393088 | L55: 34.36285892 | M55: 81.81866477 | N55: 114.5461307
B56: T | C56: 42.87824811 | D56: 64.61713787 | E56: 75.03925688 | F56: 43.00168917 | G56: 64.80192389 | H56: 75.2538471 | I56: 40.23344963 | J56: 60.63783167 | K56: 70.4181271 | L56: 42.08190353 | M56: 63.4094652 | N56: 73.63679829
B57: V | C57: 44.9977617 | D57: 87.54579969 | E57: 95.8834949 | F57: 45.12728819 | G57: 87.79615495 | H57: 96.15769352 | I57: 42.22231269 | J57: 82.15448161 | K57: 89.97871796 | L57: 44.16195263 | M57: 85.90959801 | N57: 94.09146448
B58: W | C58: 37.4956599 | D58: 73.08502907 | E58: 108.7507779 | F58: 37.60430979 | G58: 73.29412071 | H58: 109.0620224 | I58: 35.1792375 | J58: 68.58378277 | K58: 102.0523133 | L58: 36.80359911 | M58: 71.71964538 | N58: 106.7197891
B59: X | C59: 36.2757192 | D59: 70.87040927 | E59: 89.63022349 | F59: 36.3800377 | G59: 71.07307782 | H59: 89.88653959 | I59: 34.0387662 | J59: 66.50600892 | K59: 84.1105407 | L59: 35.60129549 | M59: 69.54586505 | N59: 87.95506463
B60: Y | C60: 43.77289985 | D60: 118.8121567 | E60: 135.4875471 | F60: 43.89807748 | G60: 119.1519246 | H60: 135.8750017 | I60: 41.07724081 | J60: 111.4953679 | K60: 127.1438406 | L60: 42.954799 | M60: 116.5915973 | N60: 132.9553302
B61: ALL CLIMATE ZONES | C61: =SUMPRODUCT(C52:C60,$X$22:$X$30) -> 36.8240734 | D61: =SUMPRODUCT(D52:D60,$X$22:$X$30) -> 75.47790642 | E61: 101.6882136 | F61: 36.9304012 | G61: 75.69375738 | H61: =SUMPRODUCT(H52:H60,$X$22:$X$30) -> 101.9790295 | I61: 34.55107817 | J61: 70.82973075 | K61: =SUMPRODUCT(K52:K60,$X$22:$X$30) -> 95.42587527 | L61: 36.14210408 | M61: 74.0672884 | N61: =SUMPRODUCT(N52:N60,$X$22:$X$30) -> 99.78780235
C64: ESSENTIAL USAGE NON-CARE
C65: =C27 -> 2026-01-01 | F65: =D27 -> 2026-03-01 | I65: =I50 -> Illustrative Proposed Authorized | L65: =L50 -> Illustrative Proposed w/Pending
C66: Summer | D66: Winter Off-Peak | E66: Winter On-Peak | F66: Summer | G66: Winter Off-Peak | H66: Winter On-Peak | I66: Summer | J66: Winter Off-Peak | K66: Winter On-Peak | L66: Summer | M66: Winter Off-Peak | N66: Winter On-Peak
B67: P | C67: =C$22*I22 -> 31.2401232 | D67: =C$22*J22 -> 150.5934144 | E67: =C$22*K22 -> 175.4253072 | F67: =D$22*I22 -> 31.32624017 | G67: =D$22*J22 -> 151.0085424 | H67: =D$22*K22 -> 175.9088871 | I67: =E$22*I22 -> 29.27198851 | J67: =E$22*J22 -> 141.1059959 | K67: =E$22*K22 -> 164.3734739 | L67: =F$22*I22 -> 30.66467979 | M67: =F$22*J22 -> 147.8194821 | N67: =F$22*K22 -> 172.1939711
B68: Q
B69: R | C69: =C$22*I24 -> 28.8370368 | D69: =C$22*J24 -> 99.32757119 | E69: =C$22*K24 -> 144.9862128 | F69: =D$22*I24 -> 28.91652939 | G69: =D$22*J24 -> 99.60137901 | H69: =D$22*K24 -> 145.3858839 | I69: =E$22*I24 -> 27.02029709 | J69: =E$22*J24 -> 93.06991219 | K69: =E$22*K24 -> 135.8520492 | L69: =F$22*I24 -> 28.30585827 | M69: =F$22*J24 -> 97.49795627 | N69: =F$22*K24 -> 142.3155652
B70: S | C70: 31.2401232 | D70: 110.5419744 | E70: 155.3995872 | F70: 31.32624017 | G70: 110.846696 | H70: 155.8279639 | I70: 29.27198851 | J70: 103.5778055 | K70: 145.6093787 | L70: 30.66467979 | M70: 108.50579 | N70: 152.5371251
B71: T | C71: 44.8576128 | D71: 104.9347728 | E71: 134.5728384 | F71: 44.98126794 | G71: 105.2240375 | H71: 134.9438038 | I71: 42.03157325 | J71: 98.32385884 | K71: 126.0947197 | L71: 44.03133509 | M71: 103.0018732 | N71: 132.0940053
B72: V | C72: 47.2606992 | D72: 120.9553488 | E72: 136.9759248 | F72: 47.39097872 | G72: 121.2887761 | H72: 137.3535146 | I72: 44.28326467 | J72: 113.335135 | K72: 128.3464112 | L72: 46.39015661 | M72: 118.72735 | N72: 134.4528268
B73: W | C73: 31.2401232 | D73: 91.31728319 | E73: 134.5728384 | F73: 31.32624017 | G73: 91.56900973 | H73: 134.9438038 | I73: 29.27198851 | J73: 85.56427411 | K73: 126.0947197 | L73: 30.66467979 | M73: 89.63521786 | N73: 132.0940053
B74: X | C74: 39.2504112 | D74: 118.5522624 | E74: 160.20576 | F74: 39.35860945 | G74: 118.8790653 | H74: 160.6473855 | I74: 36.77762659 | J74: 111.0834436 | K74: 150.1127616 | L74: 38.5274182 | M74: 116.3685284 | N74: 157.2547682
B75: Y | C75: 57.6740736 | D75: 177.8283936 | E75: 206.6654304 | F75: 57.83305878 | G75: 178.3185979 | H75: 207.2351273 | I75: 54.04059417 | J75: 166.6251654 | K75: 193.6454625 | L75: 56.61171654 | M75: 174.5527927 | N75: 202.8586509
B76: ALL CLIMATE ZONES | C76: =SUMPRODUCT(C67:C75,$W$22:$W$30) -> 36.9304085 | D76: =SUMPRODUCT(D67:D75,$W$22:$W$30) -> 111.5859789 | E76: 151.9477667 | F76: 37.0322114 | G76: 111.8935784 | H76: 152.3666281 | I76: 34.60378458 | J76: 104.5560375 | K76: 142.3750237 | L76: 36.25014998 | M76: 109.5305639 | N76: 149.1488872
C79: ESSENTIAL USAGE CARE
C80: =C27 -> 2026-01-01 | F80: =D27 -> 2026-03-01 | I80: =I65 -> Illustrative Proposed Authorized | L80: =L65 -> Illustrative Proposed w/Pending
C81: Summer | D81: Winter Off-Peak | E81: Winter On-Peak | F81: Summer | G81: Winter Off-Peak | H81: Winter On-Peak | I81: Summer | J81: Winter Off-Peak | K81: Winter On-Peak | L81: Summer | M81: Winter Off-Peak | N81: Winter On-Peak
B82: P | C82: =C$28*I22 -> 24.72674833 | D82: =C$28*J22 -> 119.1956073 | E82: =C$28*K22 -> 138.8502022 | F82: =D$28*I22 -> 24.79745956 | G82: =D$28*J22 -> 119.5364717 | H82: =D$28*K22 -> 139.2472729 | I82: =E$28*I22 -> 23.2040052 | J82: =E$28*J22 -> 111.8552045 | K82: =E$28*K22 -> 130.2994138 | L82: =F$28*I22 -> 24.26461368 | M82: =F$28*J22 -> 116.9678813 | N82: =F$28*K22 -> 136.2551384
B83: Q
B84: R | C84: =C$28*I24 -> 22.82469076 | D84: =C$28*J24 -> 78.6183793 | E84: =C$28*K24 -> 114.757473 | F84: =D$28*I24 -> 22.88996267 | G84: =D$28*J24 -> 78.84320476 | H84: =D$28*K24 -> 115.0856457 | I84: =E$28*I24 -> 21.41908172 | J84: =E$28*J24 -> 73.77683703 | K84: =E$28*K24 -> 107.6903831 | L84: =F$28*I24 -> 22.39810494 | M84: =F$28*J24 -> 77.14902811 | N84: =F$28*K24 -> 112.6126943
B85: S | C85: 24.72674833 | D85: 87.49464793 | E85: 122.9997225 | F85: 24.79745956 | G85: 87.74485691 | H85: 123.3514655 | I85: 23.2040052 | J85: 82.10647992 | K85: 115.4250515 | L85: 24.26461368 | M85: 85.85940226 | N85: 120.7008988
B86: T | C86: 35.50507452 | D86: 83.05651362 | E86: 106.5152236 | F86: 35.6066086 | G86: 83.29403084 | H86: 106.8198258 | I86: 33.31857156 | J86: 77.94165848 | K86: 99.95571469 | L86: 34.84149657 | M86: 81.50421518 | N86: 104.5244897
B87: V | C87: 37.40713209 | D87: 95.73689737 | E87: 108.4172811 | F87: 37.51410549 | G87: 96.01067677 | H87: 108.7273227 | I87: 35.10349504 | J87: 89.84114832 | K87: 101.7406382 | L87: 36.70800531 | M87: 93.94760682 | N87: 106.3909984
B88: W | C88: 24.72674833 | D88: 72.27818742 | E88: 106.5152236 | F88: 24.79745956 | G88: 72.4848818 | H88: 106.8198258 | I88: 23.2040052 | J88: 67.82709211 | K88: 99.95571469 | L88: 24.26461368 | M88: 70.9273323 | N88: 104.5244897
B89: X | C89: 31.06694021 | D89: 93.83483981 | E89: 126.8038376 | F89: 31.15578253 | G89: 94.10317988 | H89: 127.1664593 | I89: 29.15375012 | J89: 88.05622484 | K89: 118.9948984 | L89: 30.4863095 | M89: 92.08109807 | N89: 124.4339163
B90: Y | C90: 45.64938153 | D90: 140.7522597 | E90: 163.5769505 | F90: 45.77992535 | G90: 141.1547698 | H90: 164.0447325 | I90: 42.83816344 | J90: 132.0843373 | K90: 153.503419 | L90: 44.79620987 | M90: 138.1216471 | N90: 160.519752
B91: ALL CLIMATE ZONES | C91: =SUMPRODUCT(C82:C90,$X$22:$X$30) -> 27.65940567 | D91: 85.96154764 | E91: 118.738142 | F91: 27.73850345 | G91: 86.20737241 | H91: 119.0776982 | I91: 25.9560612 | J91: 80.66779228 | K91: 111.4259112 | L91: 27.14246064 | M91: 84.35495509 | N91: 116.5189658
C94: TYPICAL NON-CARE
C95: =C27 -> 2026-01-01 | F95: =D27 -> 2026-03-01 | I95: =I80 -> Illustrative Proposed Authorized | L95: =L80 -> Illustrative Proposed w/Pending
C96: Summer | D96: Winter Off-Peak | E96: Winter On-Peak | F96: Summer | G96: Winter Off-Peak | H96: Winter On-Peak | I96: Summer | J96: Winter Off-Peak | K96: Winter On-Peak | L96: Summer | M96: Winter Off-Peak | N96: Winter On-Peak
B97: P | C97: =IF(Summary!$L$16>I22,C$22*I22+C$23*(Summary!$L$16-I22),Summary!$L$16*C$22) -> 91.23248579 | D97: =IF(Summary!$L$16>J22,C$22*J22+C$23*(Summary!$L$16-J22),Summary!$L$16*C$22) -> 81.63820495 | E97: =IF(Summary!$L$16>K22,C$22*K22+C$23*(Summary!$L$16-K22),Summary!$L$16*C$22) -> 81.63820495 | F97: =IF(Summary!$L$16>I22,D$22*I22+D$23*(Summary!$L$16-I22),Summary!$L$16*D$22) -> 91.49164359 | G97: =IF(Summary!$L$16>J22,D$22*J22+D$23*(Summary!$L$16-J22),Summary!$L$16*D$22) -> 81.86325 | H97: =IF(Summary!$L$16>K22,D$22*K22+D$23*(Summary!$L$16-K22),Summary!$L$16*D$22) -> 81.86325 | I97: =IF(Summary!$L$16>I22,E$22*I22+E$23*(Summary!$L$16-I22),Summary!$L$16*E$22) -> 85.46431503 | J97: =IF(Summary!$L$16>J22,E$22*J22+E$23*(Summary!$L$16-J22),Summary!$L$16*E$22) -> 76.49497994 | K97: =IF(Summary!$L$16>K22,E$22*K22+E$23*(Summary!$L$16-K22),Summary!$L$16*E$22) -> 76.49497994 | L97: =IF(Summary!$L$16>I22,F$22*I22+F$23*(Summary!$L$16-I22),Summary!$L$16*F$22) -> 89.59004906 | M97: =IF(Summary!$L$16>J22,F$22*J22+F$23*(Summary!$L$16-J22),Summary!$L$16*F$22) -> 80.13442833 | N97: =IF(Summary!$L$16>K22,F$22*K22+F$23*(Summary!$L$16-K22),Summary!$L$16*F$22) -> 80.13442833
B98: Q
B99: R | C99: =IF(Summary!$L$16>I24,C$22*I24+C$23*(Summary!$L$16-I24),Summary!$L$16*C$22) -> 91.68996125 | D99: =IF(Summary!$L$16>J24,C$22*J24+C$23*(Summary!$L$16-J24),Summary!$L$16*C$22) -> 81.63820495 | E99: =IF(Summary!$L$16>K24,C$22*K24+C$23*(Summary!$L$16-K24),Summary!$L$16*C$22) -> 81.63820495 | F99: =IF(Summary!$L$16>I24,D$22*I24+D$23*(Summary!$L$16-I24),Summary!$L$16*D$22) -> 91.95074563 | G99: =IF(Summary!$L$16>J24,D$22*J24+D$23*(Summary!$L$16-J24),Summary!$L$16*D$22) -> 81.86325 | H99: =IF(Summary!$L$16>K24,D$22*K24+D$23*(Summary!$L$16-K24),Summary!$L$16*D$22) -> 81.86325 | I99: =IF(Summary!$L$16>I24,E$22*I24+E$23*(Summary!$L$16-I24),Summary!$L$16*E$22) -> 85.89199176 | J99: =IF(Summary!$L$16>J24,E$22*J24+E$23*(Summary!$L$16-J24),Summary!$L$16*E$22) -> 76.49497994 | K99: =IF(Summary!$L$16>K24,E$22*K24+E$23*(Summary!$L$16-K24),Summary!$L$16*E$22) -> 76.49497994 | L99: =IF(Summary!$L$16>I24,F$22*I24+F$23*(Summary!$L$16-I24),Summary!$L$16*F$22) -> 90.04091292 | M99: =IF(Summary!$L$16>J24,F$22*J24+F$23*(Summary!$L$16-J24),Summary!$L$16*F$22) -> 80.13442833 | N99: =IF(Summary!$L$16>K24,F$22*K24+F$23*(Summary!$L$16-K24),Summary!$L$16*F$22) -> 80.13442833
B100: S | C100: =IF(Summary!$L$16>I25,C$22*I25+C$23*(Summary!$L$16-I25),Summary!$L$16*C$22) -> 91.23248579 | D100: =IF(Summary!$L$16>J25,C$22*J25+C$23*(Summary!$L$16-J25),Summary!$L$16*C$22) -> 81.63820495 | E100: =IF(Summary!$L$16>K25,C$22*K25+C$23*(Summary!$L$16-K25),Summary!$L$16*C$22) -> 81.63820495 | F100: =IF(Summary!$L$16>I25,D$22*I25+D$23*(Summary!$L$16-I25),Summary!$L$16*D$22) -> 91.49164359 | G100: =IF(Summary!$L$16>J25,D$22*J25+D$23*(Summary!$L$16-J25),Summary!$L$16*D$22) -> 81.86325 | H100: =IF(Summary!$L$16>K25,D$22*K25+D$23*(Summary!$L$16-K25),Summary!$L$16*D$22) -> 81.86325 | I100: =IF(Summary!$L$16>I25,E$22*I25+E$23*(Summary!$L$16-I25),Summary!$L$16*E$22) -> 85.46431503 | J100: =IF(Summary!$L$16>J25,E$22*J25+E$23*(Summary!$L$16-J25),Summary!$L$16*E$22) -> 76.49497994 | K100: =IF(Summary!$L$16>K25,E$22*K25+E$23*(Summary!$L$16-K25),Summary!$L$16*E$22) -> 76.49497994 | L100: =IF(Summary!$L$16>I25,F$22*I25+F$23*(Summary!$L$16-I25),Summary!$L$16*F$22) -> 89.59004906 | M100: =IF(Summary!$L$16>J25,F$22*J25+F$23*(Summary!$L$16-J25),Summary!$L$16*F$22) -> 80.13442833 | N100: =IF(Summary!$L$16>K25,F$22*K25+F$23*(Summary!$L$16-K25),Summary!$L$16*F$22) -> 80.13442833
B101: T | C101: =IF(Summary!$L$16>I26,C$22*I26+C$23*(Summary!$L$16-I26),Summary!$L$16*C$22) -> 88.64012483 | D101: =IF(Summary!$L$16>J26,C$22*J26+C$23*(Summary!$L$16-J26),Summary!$L$16*C$22) -> 81.63820495 | E101: =IF(Summary!$L$16>K26,C$22*K26+C$23*(Summary!$L$16-K26),Summary!$L$16*C$22) -> 81.63820495 | F101: =IF(Summary!$L$16>I26,D$22*I26+D$23*(Summary!$L$16-I26),Summary!$L$16*D$22) -> 88.89006542 | G101: =IF(Summary!$L$16>J26,D$22*J26+D$23*(Summary!$L$16-J26),Summary!$L$16*D$22) -> 81.86325 | H101: =IF(Summary!$L$16>K26,D$22*K26+D$23*(Summary!$L$16-K26),Summary!$L$16*D$22) -> 81.86325 | I101: =IF(Summary!$L$16>I26,E$22*I26+E$23*(Summary!$L$16-I26),Summary!$L$16*E$22) -> 83.04081352 | J101: =IF(Summary!$L$16>J26,E$22*J26+E$23*(Summary!$L$16-J26),Summary!$L$16*E$22) -> 76.49497994 | K101: =IF(Summary!$L$16>K26,E$22*K26+E$23*(Summary!$L$16-K26),Summary!$L$16*E$22) -> 76.49497994 | L101: =IF(Summary!$L$16>I26,F$22*I26+F$23*(Summary!$L$16-I26),Summary!$L$16*F$22) -> 87.03515387 | M101: =IF(Summary!$L$16>J26,F$22*J26+F$23*(Summary!$L$16-J26),Summary!$L$16*F$22) -> 80.13442833 | N101: =IF(Summary!$L$16>K26,F$22*K26+F$23*(Summary!$L$16-K26),Summary!$L$16*F$22) -> 80.13442833
B102: V | C102: =IF(Summary!$L$16>I27,C$22*I27+C$23*(Summary!$L$16-I27),Summary!$L$16*C$22) -> 88.18264936 | D102: =IF(Summary!$L$16>J27,C$22*J27+C$23*(Summary!$L$16-J27),Summary!$L$16*C$22) -> 81.63820495 | E102: =IF(Summary!$L$16>K27,C$22*K27+C$23*(Summary!$L$16-K27),Summary!$L$16*C$22) -> 81.63820495 | F102: =IF(Summary!$L$16>I27,D$22*I27+D$23*(Summary!$L$16-I27),Summary!$L$16*D$22) -> 88.43096339 | G102: =IF(Summary!$L$16>J27,D$22*J27+D$23*(Summary!$L$16-J27),Summary!$L$16*D$22) -> 81.86325 | H102: =IF(Summary!$L$16>K27,D$22*K27+D$23*(Summary!$L$16-K27),Summary!$L$16*D$22) -> 81.86325 | I102: =IF(Summary!$L$16>I27,E$22*I27+E$23*(Summary!$L$16-I27),Summary!$L$16*E$22) -> 82.61313678 | J102: =IF(Summary!$L$16>J27,E$22*J27+E$23*(Summary!$L$16-J27),Summary!$L$16*E$22) -> 76.49497994 | K102: =IF(Summary!$L$16>K27,E$22*K27+E$23*(Summary!$L$16-K27),Summary!$L$16*E$22) -> 76.49497994 | L102: =IF(Summary!$L$16>I27,F$22*I27+F$23*(Summary!$L$16-I27),Summary!$L$16*F$22) -> 86.58429001 | M102: =IF(Summary!$L$16>J27,F$22*J27+F$23*(Summary!$L$16-J27),Summary!$L$16*F$22) -> 80.13442833 | N102: =IF(Summary!$L$16>K27,F$22*K27+F$23*(Summary!$L$16-K27),Summary!$L$16*F$22) -> 80.13442833
B103: W | C103: =IF(Summary!$L$16>I28,C$22*I28+C$23*(Summary!$L$16-I28),Summary!$L$16*C$22) -> 91.23248579 | D103: =IF(Summary!$L$16>J28,C$22*J28+C$23*(Summary!$L$16-J28),Summary!$L$16*C$22) -> 81.63820495 | E103: =IF(Summary!$L$16>K28,C$22*K28+C$23*(Summary!$L$16-K28),Summary!$L$16*C$22) -> 81.63820495 | F103: =IF(Summary!$L$16>I28,D$22*I28+D$23*(Summary!$L$16-I28),Summary!$L$16*D$22) -> 91.49164359 | G103: =IF(Summary!$L$16>J28,D$22*J28+D$23*(Summary!$L$16-J28),Summary!$L$16*D$22) -> 81.86325 | H103: =IF(Summary!$L$16>K28,D$22*K28+D$23*(Summary!$L$16-K28),Summary!$L$16*D$22) -> 81.86325 | I103: =IF(Summary!$L$16>I28,E$22*I28+E$23*(Summary!$L$16-I28),Summary!$L$16*E$22) -> 85.46431503 | J103: =IF(Summary!$L$16>J28,E$22*J28+E$23*(Summary!$L$16-J28),Summary!$L$16*E$22) -> 76.49497994 | K103: =IF(Summary!$L$16>K28,E$22*K28+E$23*(Summary!$L$16-K28),Summary!$L$16*E$22) -> 76.49497994 | L103: =IF(Summary!$L$16>I28,F$22*I28+F$23*(Summary!$L$16-I28),Summary!$L$16*F$22) -> 89.59004906 | M103: =IF(Summary!$L$16>J28,F$22*J28+F$23*(Summary!$L$16-J28),Summary!$L$16*F$22) -> 80.13442833 | N103: =IF(Summary!$L$16>K28,F$22*K28+F$23*(Summary!$L$16-K28),Summary!$L$16*F$22) -> 80.13442833
B104: X | C104: =IF(Summary!$L$16>I29,C$22*I29+C$23*(Summary!$L$16-I29),Summary!$L$16*C$22) -> 89.70756757 | D104: =IF(Summary!$L$16>J29,C$22*J29+C$23*(Summary!$L$16-J29),Summary!$L$16*C$22) -> 81.63820495 | E104: =IF(Summary!$L$16>K29,C$22*K29+C$23*(Summary!$L$16-K29),Summary!$L$16*C$22) -> 81.63820495 | F104: =IF(Summary!$L$16>I29,D$22*I29+D$23*(Summary!$L$16-I29),Summary!$L$16*D$22) -> 89.96130349 | G104: =IF(Summary!$L$16>J29,D$22*J29+D$23*(Summary!$L$16-J29),Summary!$L$16*D$22) -> 81.86325 | H104: =IF(Summary!$L$16>K29,D$22*K29+D$23*(Summary!$L$16-K29),Summary!$L$16*D$22) -> 81.86325 | I104: =IF(Summary!$L$16>I29,E$22*I29+E$23*(Summary!$L$16-I29),Summary!$L$16*E$22) -> 84.0387259 | J104: =IF(Summary!$L$16>J29,E$22*J29+E$23*(Summary!$L$16-J29),Summary!$L$16*E$22) -> 76.49497994 | K104: =IF(Summary!$L$16>K29,E$22*K29+E$23*(Summary!$L$16-K29),Summary!$L$16*E$22) -> 76.49497994 | L104: =IF(Summary!$L$16>I29,F$22*I29+F$23*(Summary!$L$16-I29),Summary!$L$16*F$22) -> 88.08716953 | M104: =IF(Summary!$L$16>J29,F$22*J29+F$23*(Summary!$L$16-J29),Summary!$L$16*F$22) -> 80.13442833 | N104: =IF(Summary!$L$16>K29,F$22*K29+F$23*(Summary!$L$16-K29),Summary!$L$16*F$22) -> 80.13442833
B105: Y | C105: =IF(Summary!$L$16>I30,C$22*I30+C$23*(Summary!$L$16-I30),Summary!$L$16*C$22) -> 86.20025569 | D105: =IF(Summary!$L$16>J30,C$22*J30+C$23*(Summary!$L$16-J30),Summary!$L$16*C$22) -> 81.63820495 | E105: =IF(Summary!$L$16>K30,C$22*K30+C$23*(Summary!$L$16-K30),Summary!$L$16*C$22) -> 81.63820495 | F105: =IF(Summary!$L$16>I30,D$22*I30+D$23*(Summary!$L$16-I30),Summary!$L$16*D$22) -> 86.44152125 | G105: =IF(Summary!$L$16>J30,D$22*J30+D$23*(Summary!$L$16-J30),Summary!$L$16*D$22) -> 81.86325 | H105: =IF(Summary!$L$16>K30,D$22*K30+D$23*(Summary!$L$16-K30),Summary!$L$16*D$22) -> 81.86325 | I105: =IF(Summary!$L$16>I30,E$22*I30+E$23*(Summary!$L$16-I30),Summary!$L$16*E$22) -> 80.75987092 | J105: =IF(Summary!$L$16>J30,E$22*J30+E$23*(Summary!$L$16-J30),Summary!$L$16*E$22) -> 76.49497994 | K105: =IF(Summary!$L$16>K30,E$22*K30+E$23*(Summary!$L$16-K30),Summary!$L$16*E$22) -> 76.49497994 | L105: =IF(Summary!$L$16>I30,F$22*I30+F$23*(Summary!$L$16-I30),Summary!$L$16*F$22) -> 84.63054662 | M105: =IF(Summary!$L$16>J30,F$22*J30+F$23*(Summary!$L$16-J30),Summary!$L$16*F$22) -> 80.13442833 | N105: =IF(Summary!$L$16>K30,F$22*K30+F$23*(Summary!$L$16-K30),Summary!$L$16*F$22) -> 80.13442833
B106: ALL CLIMATE ZONES | C106: =SUMPRODUCT(C97:C105,$W$22:$W$30) -> 90.1492264 | D106: 81.63820495 | E106: 81.63820495 | F106: 90.40453264 | G106: 81.86325 | H106: 81.86325 | I106: 84.45161625 | J106: 76.49497994 | K106: 76.49497994 | L106: 88.52244534 | M106: 80.13442833 | N106: 80.13442833
C109: TYPICAL CARE
C110: =C27 -> 2026-01-01 | F110: =D27 -> 2026-03-01 | I110: =I95 -> Illustrative Proposed Authorized | L110: =L95 -> Illustrative Proposed w/Pending
C111: Summer | D111: Winter Off-Peak | E111: Winter On-Peak | F111: Summer | G111: Winter Off-Peak | H111: Winter On-Peak | I111: Summer | J111: Winter Off-Peak | K111: Winter On-Peak | L111: Summer | M111: Winter Off-Peak | N111: Winter On-Peak
B112: P | C112: =IF(Summary!$L$17>I22,C$28*I22+C$29*(Summary!$L$17-I22),Summary!$L$17*C$28) -> 59.86512212 | D112: =IF(Summary!$L$17>J22,C$28*J22+C$29*(Summary!$L$17-J22),Summary!$L$17*C$28) -> 54.19501886 | E112: =IF(Summary!$L$17>K22,C$28*K22+C$29*(Summary!$L$17-K22),Summary!$L$17*C$28) -> 54.19501886 | F112: =IF(Summary!$L$17>I22,D$28*I22+D$29*(Summary!$L$17-I22),Summary!$L$17*D$28) -> 60.04023556 | G112: =IF(Summary!$L$17>J22,D$28*J22+D$29*(Summary!$L$17-J22),Summary!$L$17*D$28) -> 54.35000069 | H112: =IF(Summary!$L$17>K22,D$28*K22+D$29*(Summary!$L$17-K22),Summary!$L$17*D$28) -> 54.35000069 | I112: =IF(Summary!$L$17>I22,E$28*I22+E$29*(Summary!$L$17-I22),Summary!$L$17*E$28) -> 56.15827751 | J112: =IF(Summary!$L$17>J22,E$28*J22+E$29*(Summary!$L$17-J22),Summary!$L$17*E$28) -> 50.85753624 | K112: =IF(Summary!$L$17>K22,E$28*K22+E$29*(Summary!$L$17-K22),Summary!$L$17*E$28) -> 50.85753624 | L112: =IF(Summary!$L$17>I22,F$28*I22+F$29*(Summary!$L$17-I22),Summary!$L$17*F$28) -> 58.77026082 | M112: =IF(Summary!$L$17>J22,F$28*J22+F$29*(Summary!$L$17-J22),Summary!$L$17*F$28) -> 53.1821321 | N112: =IF(Summary!$L$17>K22,F$28*K22+F$29*(Summary!$L$17-K22),Summary!$L$17*F$28) -> 53.1821321
B113: Q
B114: R | C114: =IF(Summary!$L$17>I24,C$28*I24+C$29*(Summary!$L$17-I24),Summary!$L$17*C$28) -> 60.23110433 | D114: =IF(Summary!$L$17>J24,C$28*J24+C$29*(Summary!$L$17-J24),Summary!$L$17*C$28) -> 54.19501886 | E114: =IF(Summary!$L$17>K24,C$28*K24+C$29*(Summary!$L$17-K24),Summary!$L$17*C$28) -> 54.19501886 | F114: =IF(Summary!$L$17>I24,D$28*I24+D$29*(Summary!$L$17-I24),Summary!$L$17*D$28) -> 60.40751719 | G114: =IF(Summary!$L$17>J24,D$28*J24+D$29*(Summary!$L$17-J24),Summary!$L$17*D$28) -> 54.35000069 | H114: =IF(Summary!$L$17>K24,D$28*K24+D$29*(Summary!$L$17-K24),Summary!$L$17*D$28) -> 54.35000069 | I114: =IF(Summary!$L$17>I24,E$28*I24+E$29*(Summary!$L$17-I24),Summary!$L$17*E$28) -> 56.5004189 | J114: =IF(Summary!$L$17>J24,E$28*J24+E$29*(Summary!$L$17-J24),Summary!$L$17*E$28) -> 50.85753624 | K114: =IF(Summary!$L$17>K24,E$28*K24+E$29*(Summary!$L$17-K24),Summary!$L$17*E$28) -> 50.85753624 | L114: =IF(Summary!$L$17>I24,F$28*I24+F$29*(Summary!$L$17-I24),Summary!$L$17*F$28) -> 59.13095191 | M114: =IF(Summary!$L$17>J24,F$28*J24+F$29*(Summary!$L$17-J24),Summary!$L$17*F$28) -> 53.1821321 | N114: =IF(Summary!$L$17>K24,F$28*K24+F$29*(Summary!$L$17-K24),Summary!$L$17*F$28) -> 53.1821321
B115: S | C115: =IF(Summary!$L$17>I25,C$28*I25+C$29*(Summary!$L$17-I25),Summary!$L$17*C$28) -> 59.86512212 | D115: =IF(Summary!$L$17>J25,C$28*J25+C$29*(Summary!$L$17-J25),Summary!$L$17*C$28) -> 54.19501886 | E115: =IF(Summary!$L$17>K25,C$28*K25+C$29*(Summary!$L$17-K25),Summary!$L$17*C$28) -> 54.19501886 | F115: =IF(Summary!$L$17>I25,D$28*I25+D$29*(Summary!$L$17-I25),Summary!$L$17*D$28) -> 60.04023556 | G115: =IF(Summary!$L$17>J25,D$28*J25+D$29*(Summary!$L$17-J25),Summary!$L$17*D$28) -> 54.35000069 | H115: =IF(Summary!$L$17>K25,D$28*K25+D$29*(Summary!$L$17-K25),Summary!$L$17*D$28) -> 54.35000069 | I115: =IF(Summary!$L$17>I25,E$28*I25+E$29*(Summary!$L$17-I25),Summary!$L$17*E$28) -> 56.15827751 | J115: =IF(Summary!$L$17>J25,E$28*J25+E$29*(Summary!$L$17-J25),Summary!$L$17*E$28) -> 50.85753624 | K115: =IF(Summary!$L$17>K25,E$28*K25+E$29*(Summary!$L$17-K25),Summary!$L$17*E$28) -> 50.85753624 | L115: =IF(Summary!$L$17>I25,F$28*I25+F$29*(Summary!$L$17-I25),Summary!$L$17*F$28) -> 58.77026082 | M115: =IF(Summary!$L$17>J25,F$28*J25+F$29*(Summary!$L$17-J25),Summary!$L$17*F$28) -> 53.1821321 | N115: =IF(Summary!$L$17>K25,F$28*K25+F$29*(Summary!$L$17-K25),Summary!$L$17*F$28) -> 53.1821321
B116: T | C116: =IF(Summary!$L$17>I26,C$28*I26+C$29*(Summary!$L$17-I26),Summary!$L$17*C$28) -> 57.79122292 | D116: =IF(Summary!$L$17>J26,C$28*J26+C$29*(Summary!$L$17-J26),Summary!$L$17*C$28) -> 54.19501886 | E116: =IF(Summary!$L$17>K26,C$28*K26+C$29*(Summary!$L$17-K26),Summary!$L$17*C$28) -> 54.19501886 | F116: =IF(Summary!$L$17>I26,D$28*I26+D$29*(Summary!$L$17-I26),Summary!$L$17*D$28) -> 57.95897302 | G116: =IF(Summary!$L$17>J26,D$28*J26+D$29*(Summary!$L$17-J26),Summary!$L$17*D$28) -> 54.35000069 | H116: =IF(Summary!$L$17>K26,D$28*K26+D$29*(Summary!$L$17-K26),Summary!$L$17*D$28) -> 54.35000069 | I116: =IF(Summary!$L$17>I26,E$28*I26+E$29*(Summary!$L$17-I26),Summary!$L$17*E$28) -> 54.2194763 | J116: =IF(Summary!$L$17>J26,E$28*J26+E$29*(Summary!$L$17-J26),Summary!$L$17*E$28) -> 50.85753624 | K116: =IF(Summary!$L$17>K26,E$28*K26+E$29*(Summary!$L$17-K26),Summary!$L$17*E$28) -> 50.85753624 | L116: =IF(Summary!$L$17>I26,F$28*I26+F$29*(Summary!$L$17-I26),Summary!$L$17*F$28) -> 56.72634467 | M116: =IF(Summary!$L$17>J26,F$28*J26+F$29*(Summary!$L$17-J26),Summary!$L$17*F$28) -> 53.1821321 | N116: =IF(Summary!$L$17>K26,F$28*K26+F$29*(Summary!$L$17-K26),Summary!$L$17*F$28) -> 53.1821321
B117: V | C117: =IF(Summary!$L$17>I27,C$28*I27+C$29*(Summary!$L$17-I27),Summary!$L$17*C$28) -> 57.42524071 | D117: =IF(Summary!$L$17>J27,C$28*J27+C$29*(Summary!$L$17-J27),Summary!$L$17*C$28) -> 54.19501886 | E117: =IF(Summary!$L$17>K27,C$28*K27+C$29*(Summary!$L$17-K27),Summary!$L$17*C$28) -> 54.19501886 | F117: =IF(Summary!$L$17>I27,D$28*I27+D$29*(Summary!$L$17-I27),Summary!$L$17*D$28) -> 57.59169139 | G117: =IF(Summary!$L$17>J27,D$28*J27+D$29*(Summary!$L$17-J27),Summary!$L$17*D$28) -> 54.35000069 | H117: =IF(Summary!$L$17>K27,D$28*K27+D$29*(Summary!$L$17-K27),Summary!$L$17*D$28) -> 54.35000069 | I117: =IF(Summary!$L$17>I27,E$28*I27+E$29*(Summary!$L$17-I27),Summary!$L$17*E$28) -> 53.87733491 | J117: =IF(Summary!$L$17>J27,E$28*J27+E$29*(Summary!$L$17-J27),Summary!$L$17*E$28) -> 50.85753624 | K117: =IF(Summary!$L$17>K27,E$28*K27+E$29*(Summary!$L$17-K27),Summary!$L$17*E$28) -> 50.85753624 | L117: =IF(Summary!$L$17>I27,F$28*I27+F$29*(Summary!$L$17-I27),Summary!$L$17*F$28) -> 56.36565358 | M117: =IF(Summary!$L$17>J27,F$28*J27+F$29*(Summary!$L$17-J27),Summary!$L$17*F$28) -> 53.1821321 | N117: =IF(Summary!$L$17>K27,F$28*K27+F$29*(Summary!$L$17-K27),Summary!$L$17*F$28) -> 53.1821321
B118: W | C118: =IF(Summary!$L$17>I28,C$28*I28+C$29*(Summary!$L$17-I28),Summary!$L$17*C$28) -> 59.86512212 | D118: =IF(Summary!$L$17>J28,C$28*J28+C$29*(Summary!$L$17-J28),Summary!$L$17*C$28) -> 54.19501886 | E118: =IF(Summary!$L$17>K28,C$28*K28+C$29*(Summary!$L$17-K28),Summary!$L$17*C$28) -> 54.19501886 | F118: =IF(Summary!$L$17>I28,D$28*I28+D$29*(Summary!$L$17-I28),Summary!$L$17*D$28) -> 60.04023556 | G118: =IF(Summary!$L$17>J28,D$28*J28+D$29*(Summary!$L$17-J28),Summary!$L$17*D$28) -> 54.35000069 | H118: =IF(Summary!$L$17>K28,D$28*K28+D$29*(Summary!$L$17-K28),Summary!$L$17*D$28) -> 54.35000069 | I118: =IF(Summary!$L$17>I28,E$28*I28+E$29*(Summary!$L$17-I28),Summary!$L$17*E$28) -> 56.15827751 | J118: =IF(Summary!$L$17>J28,E$28*J28+E$29*(Summary!$L$17-J28),Summary!$L$17*E$28) -> 50.85753624 | K118: =IF(Summary!$L$17>K28,E$28*K28+E$29*(Summary!$L$17-K28),Summary!$L$17*E$28) -> 50.85753624 | L118: =IF(Summary!$L$17>I28,F$28*I28+F$29*(Summary!$L$17-I28),Summary!$L$17*F$28) -> 58.77026082 | M118: =IF(Summary!$L$17>J28,F$28*J28+F$29*(Summary!$L$17-J28),Summary!$L$17*F$28) -> 53.1821321 | N118: =IF(Summary!$L$17>K28,F$28*K28+F$29*(Summary!$L$17-K28),Summary!$L$17*F$28) -> 53.1821321
B119: X | C119: =IF(Summary!$L$17>I29,C$28*I29+C$29*(Summary!$L$17-I29),Summary!$L$17*C$28) -> 58.64518141 | D119: =IF(Summary!$L$17>J29,C$28*J29+C$29*(Summary!$L$17-J29),Summary!$L$17*C$28) -> 54.19501886 | E119: =IF(Summary!$L$17>K29,C$28*K29+C$29*(Summary!$L$17-K29),Summary!$L$17*C$28) -> 54.19501886 | F119: =IF(Summary!$L$17>I29,D$28*I29+D$29*(Summary!$L$17-I29),Summary!$L$17*D$28) -> 58.81596348 | G119: =IF(Summary!$L$17>J29,D$28*J29+D$29*(Summary!$L$17-J29),Summary!$L$17*D$28) -> 54.35000069 | H119: =IF(Summary!$L$17>K29,D$28*K29+D$29*(Summary!$L$17-K29),Summary!$L$17*D$28) -> 54.35000069 | I119: =IF(Summary!$L$17>I29,E$28*I29+E$29*(Summary!$L$17-I29),Summary!$L$17*E$28) -> 55.01780621 | J119: =IF(Summary!$L$17>J29,E$28*J29+E$29*(Summary!$L$17-J29),Summary!$L$17*E$28) -> 50.85753624 | K119: =IF(Summary!$L$17>K29,E$28*K29+E$29*(Summary!$L$17-K29),Summary!$L$17*E$28) -> 50.85753624 | L119: =IF(Summary!$L$17>I29,F$28*I29+F$29*(Summary!$L$17-I29),Summary!$L$17*F$28) -> 57.5679572 | M119: =IF(Summary!$L$17>J29,F$28*J29+F$29*(Summary!$L$17-J29),Summary!$L$17*F$28) -> 53.1821321 | N119: =IF(Summary!$L$17>K29,F$28*K29+F$29*(Summary!$L$17-K29),Summary!$L$17*F$28) -> 53.1821321
B120: Y | C120: =IF(Summary!$L$17>I30,C$28*I30+C$29*(Summary!$L$17-I30),Summary!$L$17*C$28) -> 55.8393178 | D120: =IF(Summary!$L$17>J30,C$28*J30+C$29*(Summary!$L$17-J30),Summary!$L$17*C$28) -> 54.19501886 | E120: =IF(Summary!$L$17>K30,C$28*K30+C$29*(Summary!$L$17-K30),Summary!$L$17*C$28) -> 54.19501886 | F120: =IF(Summary!$L$17>I30,D$28*I30+D$29*(Summary!$L$17-I30),Summary!$L$17*D$28) -> 56.00013769 | G120: =IF(Summary!$L$17>J30,D$28*J30+D$29*(Summary!$L$17-J30),Summary!$L$17*D$28) -> 54.35000069 | H120: =IF(Summary!$L$17>K30,D$28*K30+D$29*(Summary!$L$17-K30),Summary!$L$17*D$28) -> 54.35000069 | I120: =IF(Summary!$L$17>I30,E$28*I30+E$29*(Summary!$L$17-I30),Summary!$L$17*E$28) -> 52.39472222 | J120: =IF(Summary!$L$17>J30,E$28*J30+E$29*(Summary!$L$17-J30),Summary!$L$17*E$28) -> 50.85753624 | K120: =IF(Summary!$L$17>K30,E$28*K30+E$29*(Summary!$L$17-K30),Summary!$L$17*E$28) -> 50.85753624 | L120: =IF(Summary!$L$17>I30,F$28*I30+F$29*(Summary!$L$17-I30),Summary!$L$17*F$28) -> 54.80265888 | M120: =IF(Summary!$L$17>J30,F$28*J30+F$29*(Summary!$L$17-J30),Summary!$L$17*F$28) -> 53.1821321 | N120: =IF(Summary!$L$17>K30,F$28*K30+F$29*(Summary!$L$17-K30),Summary!$L$17*F$28) -> 53.1821321
B121: ALL CLIMATE ZONES | C121: =SUMPRODUCT(C112:C120,$X$22:$X$30) -> 59.30083824 | D121: 54.19501886 | E121: 54.19501886 | F121: 59.4739482 | G121: 54.35000069 | H121: 54.35000069 | I121: 55.63075223 | J121: 50.85753624 | K121: 50.85753624 | L121: 58.21413498 | M121: 53.1821321 | N121: 53.1821321

Sheet Authorized Rev Req
A2: Annual Period 2026
A3: Reporting Date: Q2 2026
C5: January 1, 2024 | D5: February 1, 2024 | E5: April 1, 2024 | F5: September 1, 2024 | G5: January 1, 2025 | H5: August 1, 2025 | I5: September 1, 2025 | J5: January 1, 2026 | K5: March 1, 2026
C6: 4845-G - AGT | D6: 4859-G - COC | E6: AL 4884-G WGSC | F6: AL 4966-G CARD | G6: AL 5014-G AGT | H6: AL 5090-G 2020 WMCE | I6: AL 5099-G 2021 WMCE | J6: AL 5160-G Final AGT | K6: AL 5184-G 2023 WMCE
A7: Filing Description | B7: Authority for Revenue Requirement | C7: Authorized Revenue Requirement ($000) | D7: Authorized Revenue Requirement ($000) | E7: Authorized Revenue Requirement ($000) | F7: Authorized Revenue Requirement ($000) | G7: Authorized Revenue Requirement ($000) | H7: Authorized Revenue Requirement ($000) | I7: Authorized Revenue Requirement ($000) | J7: Authorized Revenue Requirement ($000) | K7: Authorized Revenue Requirement ($000) | L7: Revenue Recovery Mechanism/Allocation | M7: Balancing Account
A8: Safety Affordability Reliability Proceedings
A9: General Rate Case | B9: D. 23-11-069 | C9: 2695191.955 | D9: 2695191.955 | E9: 2695191.955 | F9: 2695191.955 | G9: 2837661.424 | H9: 2837661.424 | I9: 2837661.424 | J9: 3015379.975 | K9: 3015379.975 | L9: Distribution | M9: =IF(RIGHT(A9,1)="*","Y","N") -> N
A10: General Rate Case - Gas Distribution Late Implementation | B10: D. 23-11-069 | C10: 200589.2578 | D10: 200589.2578 | E10: 200589.2578 | F10: 200589.2578 | G10: 200589.2578 | H10: 200589.2578 | I10: 200589.2578 | J10: 0 | K10: 0 | L10: Distribution | M10: N
A11: Pension Contribution - Distribution | B11: D.09-09-020 | C11: 34877.61496 | D11: 34877.61496 | E11: 34877.61496 | F11: 37805.84365 | G11: 37805.84365 | H11: 42969.37257 | I11: 42969.37257 | J11: 42969.37257 | K11: 42969.37257 | L11: Distribution | M11: N
A12: Pension Contribution - GT&S Core | B12: D.09-09-020 | C12: 10150.45606 | D12: 10150.45606 | E12: 10150.45606 | F12: 11024.33372 | G12: 11024.33372 | H12: 12330.78009 | I12: 12330.78009 | J12: 12330.78009 | K12: 12330.78009 | L12: Core - ECPT | M12: N
A13: Pension Contribution - GT&S NonCore (LT) | B13: D.09-09-020 | C13: 4042.644918 | D13: 4042.644918 | E13: 4042.644918 | F13: 3986.072364 | G13: 3986.072364 | H13: 4921.782241 | I13: 4921.782241 | J13: 4921.782241 | K13: 4921.782241 | L13: Noncore (No-BB/EG-BB)-ECPT | M13: N
A14: Pension Contribution - GT&S Noncore (BB& Storage) | B14: D.09-09-020 | C14: 2430.008673 | D14: 2430.008673 | E14: 2430.008673 | F14: 3008.334161 | G14: 3008.334161 | H14: 3227.180703 | I14: 3227.180703 | J14: 3227.180703 | K14: 3227.180703 | L14: Noncore - ECPT | M14: =IF(RIGHT(A26,1)="*","Y","N") -> N
A15: Cost of Capital | B15: D.22-12-031/D.23-01-002/ AL 4813-G/D.24-10-008/AL 4996-G | C15: 0 | D15: 71193.52069 | E15: 71193.52069 | F15: 71193.52069 | G15: 50569.41165 | H15: 50569.41165 | I15: 50569.41165 | J15: 42019.41356 | K15: 42019.41356 | L15: Distribution | M15: =IF(RIGHT(A15,1)="*","Y","N") -> N
A16: GT&S (excluding costs recovered through Core Procurement)
A17: Late Implementation (Transmission Undercollection, Capital Audit, GRC Track II, WGSC) | B17: D.22-07-007/ D.23-11-069/ WGSC IRR D.24-03-006 | C17: 289979.733 | D17: 289979.733 | E17: 377623.574 | F17: 377623.574 | G17: 311890.6932 | H17: 311890.6932 | I17: 311890.6932 | J17: 61082.72649 | K17: 61082.72649 | L17: ECPT | M17: N
A18: Local Transmission | B18: D. 24-03-002 | C18: 1360671.608 | D18: 1360671.608 | E18: 1360671.608 | F18: 1360671.608 | G18: 1428467.573 | H18: 1428467.573 | I18: 1428467.573 | J18: 1499197.889 | K18: 1499197.889 | L18: ECPT (No BB) | M18: N
A19: Customer Access Charge | B19: D. 24-03-002 | C19: 3740.039321 | D19: 3740.039321 | E19: 3740.039321 | F19: 3740.039321 | G19: 4616.173305 | H19: 4616.173305 | I19: 4616.173305 | J19: 5465.240945 | K19: 5465.240945 | L19: CAC Allocation | M19: N
A20: Unbundled Backbone/Inventory Management | B20: D. 24-03-002 | C20: 319583.6122 | D20: 319583.6122 | E20: 319583.6122 | F20: 375103.0568 | G20: 389964.4952 | H20: 389964.4952 | I20: 389964.4952 | J20: 406912.0475 | K20: 406912.0475 | L20: ECPT-All | M20: N
A21: GT&S Balancing Accounts - LT (excludes BB) | B21: D.23-11-069 | C21: 32271.77647 | D21: 32271.77647 | E21: 32271.77647 | F21: 32271.77647 | G21: 4730.745 | H21: 4730.745 | I21: 4730.745 | J21: 0 | K21: 0 | L21: ECPT (No BB) | M21: Y
A22: GT&S Balancing Accounts - Non-LT (all customers pay) | B22: D.23-11-069 | C22: -132483.2783 | D22: -132483.2783 | E22: -132483.2783 | F22: -132483.2783 | G22: 187.974 | H22: 187.974 | I22: 187.974 | J22: 0 | K22: 0 | L22: ECPT-All | M22: Y
A23: CFCA - Distribution Cost Subaccount | B23: Preliminary Statement F | C23: -105772.6405 | D23: -105772.6405 | E23: -105772.6405 | F23: -105772.6405 | G23: 126074.2372 | H23: 126074.2372 | I23: 126074.2372 | J23: 30985.65313 | K23: 30985.65313 | L23: Distribution | M23: Y
A24: CFCA - Core Cost Subaccount | B24: Preliminary Statement F | C24: -26622.23875 | D24: -26876.21342 | E24: -26876.21342 | F24: -26876.21342 | G24: 52966.97098 | H24: 52966.97098 | I24: 52966.97098 | J24: 6381.057784 | K24: 6381.057784 | L24: ECPT | M24: Y
A25: CFCA - AB32 ARB COI | B25: Preliminary Statement F | C25: 13746.46288 | D25: 13746.46288 | E25: 13746.46288 | F25: 13746.46288 | G25: 14221.84697 | H25: 14221.84697 | I25: 14221.84697 | J25: 15767.29272 | K25: 15767.29272 | L25: ECPT (Certain Covered Entities) | M25: Y
A26: NCA - Noncore Subaccount | B26: Preliminary Statement J | C26: 4451.98524 | D26: 4082.959912 | E26: 4082.959912 | F26: 4082.959912 | G26: -28484.12163 | H26: -28484.12163 | I26: -28484.12163 | J26: -29441.08689 | K26: -29441.08689 | L26: ECPT | M26: Y
A27: NCA - Distribution Sub | B27: Preliminary Statement J | C27: -2320.088795 | D27: -2320.088795 | E27: -2320.088795 | F27: -2320.088795 | G27: 8614.191621 | H27: 8614.191621 | I27: 8614.191621 | J27: -25638.15454 | K27: -25638.15454 | L27: Distribution | M27: Y
A28: NCA - AB32 ARB COI | B28: Preliminary Statement J | C28: -496.3779861 | D28: -496.3779861 | E28: -496.3779861 | F28: -496.3779861 | G28: -1803.843786 | H28: -1803.843786 | I28: -1803.843786 | J28: -2474.423973 | K28: -2474.423973 | L28: ECPT (Certain Covered Entities) | M28: Y
A29: NCA - Local Transmission Subaccount | B29: Preliminary Statement J | C29: 2857.747031 | D29: 2857.747031 | E29: 2857.747031 | F29: 2857.747031 | G29: -9843.60886 | H29: -9843.60886 | I29: -9843.60886 | J29: -13298.16165 | K29: -13298.16165 | L29: ECPT (Noncore) | M29: Y
A30: GT&S Audit - Noncore Storage | B30: Preliminary Statement J | C30: 1557.895255 | D30: 1557.895255 | E30: 1557.895255 | F30: 1557.895255 | G30: 1555.933202 | H30: 1555.933202 | I30: 1555.933202 | J30: 1554.269756 | K30: 1554.269756 | L30: ECPT (Noncore) | M30: Y
A31: Core Brokerage Fee Balancing Account | B31: Preliminary Statement U | C31: -579.0487785 | D31: -579.0487785 | E31: -579.0487785 | F31: -579.0487785 | G31: -27.45384348 | H31: -27.45384348 | I31: -27.45384348 | J31: -235.7004218 | K31: -235.7004218 | L31: Core - ECPT | M31: Y
A32: Hazardous Substance Materials (HSM) * | B32: Preliminary Statement AN | C32: 106048.5766 | D32: 106048.5766 | E32: 106048.5766 | F32: 106048.5766 | G32: 95401.74617 | H32: 95401.74617 | I32: 95401.74617 | J32: 102173.6489 | K32: 102173.6489 | L32: ECPT | M32: Y
A33: Balancing Charge Account | B33: Preliminary Statement L | C33: -12535.13101 | D33: -12535.13101 | E33: -12535.13101 | F33: -12535.13101 | G33: -4337.35272 | H33: -4337.35272 | I33: -4337.35272 | J33: -1728.92836 | K33: -1728.92836 | L33: ECPT | M33: Y
A34: CFCA - NGSS Enduser Dist. Sub Acct Recovery | B34: Preliminary Statement F | C34: -38434.84297 | D34: -38434.84297 | E34: -38434.84297 | F34: -41605.2506 | G34: -41605.2506 | H34: -41605.2506 | I34: -41605.2506 | J34: 2051.460825 | K34: 2051.460825 | L34: Core - Distribution | M34: Y
A35: CFCA/NCA - NGSS Enduser Sub Acct Recovery | B35: Preliminary Statement J/F | C35: -9139.491991 | D35: -9139.491991 | E35: -9139.491991 | F35: -9893.389052 | G35: -9893.389052 | H35: -9893.389052 | I35: -9893.389052 | J35: 487.8206422 | K35: 487.8206422 | L35: ECPT | M35: Y
A36: NCA - NGSS Enduser Sub Acct Recovery | B36: Preliminary Statement J | C36: -9386.708266 | D36: -9386.708266 | E36: -9386.708266 | F36: -10160.99767 | G36: -10160.99767 | H36: -10160.99767 | I36: -10160.99767 | J36: 501.0158178 | K36: 501.0158178 | L36: Noncore - ECPT | M36: Y
A37: Adjust. Mechanism Costs Determined Other Proceedings | B37: Preliminary Statement CO | C37: 18794.28532 | D37: 73091.27662 | E37: 73091.27662 | F37: 73091.27662 | G37: 42660.83061 | H37: 42660.83061 | I37: 42660.83061 | J37: 29323.21022 | K37: 29323.21022 | L37: 50 Core/50 Noncore - ECPT | M37: Y
A38: Percentage of Income Payment Plan Bal Acct | B38: Preliminary Statement FU | C38: 337.043393 | D38: 337.043393 | E38: 337.043393 | F38: 337.043393 | G38: 1500.878473 | H38: 1500.878473 | I38: 1500.878473 | J38: 1719.056849 | K38: 1719.056849 | L38: ECPT | M38: Y
A39: GT&S Revenue Sharing Mechanism | B39: Preliminary Statement CP | C39: -123356.7191 | D39: -123356.7191 | E39: -123356.7191 | F39: -123356.7191 | G39: -65585.16756 | H39: -65585.16756 | I39: -65585.16756 | J39: -70222.31544 | K39: -70222.31544 | L39: 50 Core/50 Noncore - ECPT | M39: Y
A40: CA Solar Thermal Program Memo Account | B40: Preliminary Statement CA | C40: 5964.99871 | D40: 5964.99871 | E40: 5964.99871 | F40: 5964.99871 | G40: 5260.703469 | H40: 5260.703469 | I40: 5260.703469 | J40: 1066.079071 | K40: 1066.079071 | L40: ECPT (excludes CARE/FERA, EG, Whsl customers) | M40: Y
A41: Non-Tariffed Products and Services | B41: Preliminary Statement BT | C41: -393.6296115 | D41: -393.6296115 | E41: -393.6296115 | F41: -393.6296115 | G41: -178.6079279 | H41: -178.6079279 | I41: -178.6079279 | J41: 0 | K41: 0 | L41: Core Distribution | M41: Y
A42: Risk Transfer Balancing Account (RTBA) | B42: Preliminary Statement FK | C42: 25316.8679 | D42: 25316.8679 | E42: 25316.8679 | F42: 25316.8679 | G42: 0 | H42: 0 | I42: 0 | J42: 0 | K42: 0 | L42: Distribution | M42: Y
A43: Wildfire Mitigation Balancing Account (WMBA)/Biomethane | B43: D.20-12-005/Preliminary Statement FL | C43: 0 | D43: 0 | E43: 0 | F43: 0 | G43: 1965.586047 | H43: 1965.586047 | I43: 1965.586047 | J43: 1025.700482 | K43: 1025.700482 | L43: Distribution | M43: Y
A44: New Environmental Regulations Balancing Account(Distribution) | B44: Preliminary Statement DZ | C44: -1745.890543 | D44: -1745.890543 | E44: -1745.890543 | F44: -1745.890543 | G44: -839.770747 | H44: -839.770747 | I44: -839.770747 | J44: -2376.142949 | K44: -2376.142949 | L44: Distribution | M44: Y
A45: 2020 -2021 Wildfire Mitigation and Catastrophic Events/WGSC (Distribution) | B45: D.23-02-017 / D.23-08-027/A.22-12-009 | C45: 34151.60546 | D45: 34151.60546 | E45: 47759.4379 | F45: 47759.4379 | G45: 37553.56357 | H45: 28718.95532 | I45: 3401.958109 | J45: 0 | K45: 0 | L45: Distribution | M45: N
A46: Oakland General Office Purchase (Distribution) | B46: D.24-08-009/AL 4972-G | G46: 74682.81908 | H46: 74682.81908 | I46: 74682.81908 | J46: 25543.30358 | K46: 25543.30358 | L46: Distribution | M46: N
A47: 2020 -2021 Wildfire Mitigation and Catastrophic Events (Transmission) | B47: D.23-02-017 / D.23-08-027 | C47: 3251.404638 | D47: 3251.404638 | E47: 3251.404638 | F47: 3251.404638 | G47: 3251.404638 | H47: 2995.099899 | I47: 0 | J47: 0 | K47: 0 | L47: ECPT | M47: N
A48: 2022 WMCE | B48: D.25-09-008 | G48: 0 | H48: 0 | I48: 0 | J48: 13823.72411 | K48: 13823.72411 | L48: Distribution | M48: N
A49: 2023 WMCE (Distribution) | K49: 14414.51767 | L49: Distribution
A50: 2023 WMCE (Transmission) | K50: 5283.728791 | L50: ECPT
A51: Oakland General Office Purchase (Transmission) | B51: D.24-08-009/AL 4972-G | G51: 35685.00229 | H51: 35685.00229 | I51: 35685.00229 | J51: 12175.53727 | K51: 12175.53727 | L51: ECPT | M51: N
A52: Gas Advanced Metering Infrastructure (AMI) (distribution) | B52: D.25-12-029 | J52: 40564.01418 | K52: 40564.01418 | L52: Distribution | M52: N
A53: Concurrent Application System Program and Balancing Account | B53: D. 23-05-006 | J53: 473.76 | K53: 473.76 | L53: ECPT | M53: N
A54: TRRRMA (Distribution) | B54: D.25-12-026 | J54: 104322.8472 | K54: 104322.8472 | L54: Distribution | M54: N
A55: TRRRMA (Transmission) | B55: D.25-12-026 | J55: 47122.58432 | K55: 47122.58432 | L55: ECPT | M55: N
A56: Residential Uncollectibles Balancing Account | B56: D.20-12-005 | C56: 124915.5552 | D56: 124915.5552 | E56: 124915.5552 | F56: 124915.5552 | G56: 31775.58215 | H56: 31775.58215 | I56: 31775.58215 | J56: 60975.51633 | K56: 60975.51633 | L56: ECPT | M56: Y
A57: Property Sales | B57: D.21-08-027/AL 4538-G-A | C57: -8084.989543 | D57: -8084.989543 | E57: -8084.989543 | F57: -8084.989543 | G57: -32047.71945 | H57: -32047.71945 | I57: -32047.71945 | J57: -28378.06678 | K57: -28378.06678 | L57: ECPT | M57: N
A58: Santa Nella Balancing Account | B58: Preliminary Statement FY | C58: 0 | D58: 0 | E58: 0 | F58: 0 | G58: 46.05792918 | H58: 46.05792918 | I58: 46.05792918 | J58: 133.1498953 | K58: 133.1498953 | L58: Distribution | M58: Y
A59: RF&U | C59: 8380.043016 | D59: 9117.94491 | E59: 9305.265118 | F59: 9297.998973 | G59: 12900.50548 | H59: 12763.7507 | I59: 12337.90874 | J59: 10057.02436 | K59: 10374.58565 | L59: ECPT | M59: N
A60: Subtotal Safety Affordability Reliability | C60: =SUM(C9:C59) -> 4831952.101 | D60: 4957557.515 | E60: 5058996.509 | F60: 5114133.952 | G60: 5625812.907 | H60: 5624209.771 | I60: 5595471.832 | J60: 5427941.154 | K60: =SUM(K9:K59) -> 5447956.962
A62: Public Policy Proceedings
A63: AB 32: Cap & Trade/GHG | B63: D.15-10-032/D.18-03-017/SB 1477 | C63: -440353.5963 | D63: -440353.5963 | E63: -440353.5963 | F63: -440353.5963 | G63: -345869.7457 | H63: -345869.7457 | I63: -345869.7457 | J63: -239888.9521 | K63: -239888.9521 | L63: 100% Residential | M63: =IF(RIGHT(A63,1)="*","Y","N") -> N
A64: GHG Operational Costs | B64: D.15-10-032/D.18-03-017 | C64: 34508.68999 | D64: 34508.68999 | E64: 34508.68999 | F64: 34508.68999 | G64: -9916.695581 | H64: -9916.695581 | I64: -9916.695581 | J64: -280.8201427 | K64: -280.8201427 | L64: ECPT | M64: N
A65: GHG Compliance Costs | B65: D.15-10-032/D.18-03-017 | C65: 577963.2932 | D65: 577963.2932 | E65: 577963.2932 | F65: 577963.2932 | G65: 437585.4379 | H65: 437585.4379 | I65: 437585.4379 | J65: 259520.1694 | K65: 259520.1694 | L65: ECPT (excludes Covered Entities 3 yr avg vol) | M65: N
A66: CPUC Fee | B66: Preliminary Statement O | C66: 5043.250421 | D66: 5043.250421 | E66: 5043.250421 | F66: 4531.708352 | G66: 11329.34033 | H66: 11329.34033 | I66: 11329.34033 | J66: 15861.02532 | K66: 15861.02532 | L66: ECPT (reduced EG volumes; excludes WHSL) | M66: N
A67: SGIP | B67: SB 700/D.17-04-017 | C67: 12990.138 | D67: 12990.138 | E67: 12990.138 | F67: 12990.138 | G67: 0 | H67: 0 | I67: 0 | J67: 0 | K67: 0 | L67: Direct Benefits - 3 year average | M67: N
A68: Mobilehome Park Balancing Account | B68: Preliminary Statement DB | C68: 19247.35697 | D68: 19247.35697 | E68: 19247.35697 | F68: 19247.35697 | G68: 23664.28455 | H68: 23664.28455 | I68: 23664.28455 | J68: 27197.14673 | K68: 27197.14673 | L68: Distribtion | M68: N
A69: CEE Incentive Recovery Account - Gas | B69: Preliminary Statement Y | C69: -175.84147 | D69: -175.84147 | E69: -175.84147 | F69: -175.84147 | G69: -17.90958 | H69: -17.90958 | I69: -17.90958 | J69: -4.2324 | K69: -4.2324 | L69: Direct Allocation Method | M69: N
A70: Energy Efficiency | B70: D.23-06-055 | C70: 102550.5389 | D70: 102550.5389 | E70: 102550.5389 | F70: 102550.5389 | G70: 122474.8554 | H70: 122474.8554 | I70: 122474.8554 | J70: 127629.8097 | K70: 127629.8097 | L70: Direct Allocation Method | M70: N
A71: Energy Savings Assistance Program (ESA) | B71: D.21-06-015/D.20-12-005 | C71: 80725.879 | D71: 80725.879 | E71: 80725.879 | F71: 80725.879 | G71: 75426.796 | H71: 75426.796 | I71: 75426.796 | J71: 75530.121 | K71: 75530.121 | L71: Direct Allocation Method 100% Residential | M71: N
A72: Research Development and Demonstration | B72: AL 4822-G | C72: 10494.407 | D72: 10494.407 | E72: 10494.407 | F72: 10494.407 | G72: 10469.05738 | H72: 10469.05738 | I72: 10469.05738 | J72: 10233.68784 | K72: 10233.68784 | L72: ECPT | M72: N
A73: CARE Administrative Expense | B73: D.21-06-015/D.20-12-005 | C73: 2814.12 | D73: 2814.12 | E73: 2814.12 | F73: 2814.12 | G73: 2888.84 | H73: 2888.84 | I73: 2888.84 | J73: 2957.54 | K73: 2957.54 | L73: ECPT (non-CARE) | M73: N
A74: CARE Shortfall in Rates | B74: AL 4822-G | L74: ECPT (excludes CARE) | M74: N
A75: BOE/CPUC Gas Surcharge Administration Costs | B75: AL 4822-G | C75: 417.152 | D75: 417.152 | E75: 417.152 | F75: 417.152 | G75: 429.23135 | H75: 429.23135 | I75: 429.23135 | J75: 414.03795 | K75: 414.03795 | L75: ECPT | M75: N
A76: Marketing, Education & Outreach (ME&O) | B76: D.19-01-005 | C76: 0 | D76: 0 | E76: 0 | F76: 0 | G76: 0 | H76: 0 | I76: 0 | J76: 0 | K76: 0 | L76: ECPT | M76: N
A77: PPP-Energy Efficiency BA | B77: Preliminary Statement Y | C77: 2097.329095 | D77: 2097.329095 | E77: 2097.329095 | F77: 2097.329095 | G77: 25054.17121 | H77: 25054.17121 | I77: 25054.17121 | J77: 1966.444052 | K77: 1966.444052 | L77: Direct Allocation Method | M77: Y
A78: PPP-Energy Savings Assistance Program BA | B78: Preliminary Statement Y/D.17-12-009 | C78: -10057.28753 | D78: -10057.28753 | E78: -10057.28753 | F78: -10057.28753 | G78: 10204.45436 | H78: 10204.45436 | I78: 10204.45436 | J78: 1696.711132 | K78: 1696.711132 | L78: =L71 -> Direct Allocation Method 100% Residential | M78: Y
A79: PPP-RD&D BA | B79: Preliminary Statement BI | C79: 164.2624856 | D79: 164.2624856 | E79: 164.2624856 | F79: 164.2624856 | G79: 939.5338946 | H79: 939.5338946 | I79: 939.5338946 | J79: -185.3392549 | K79: -185.3392549 | L79: ECPT | M79: Y
A80: CARE BA | B80: Preliminary Statement V | C80: 30973.07546 | D80: 30973.07546 | E80: 30973.07546 | F80: 30973.07546 | G80: 12590.9108 | H80: 12590.9108 | I80: 12590.9108 | J80: -29885.50465 | K80: -29885.50465 | L80: ECPT (excludes CARE) | M80: Y
A81: Core Capacity | B81: D. 24-03-002/Other | C81: 273072.8998 | D81: 273072.8998 | E81: 273072.8998 | F81: 220217.6893 | G81: 244356.4094 | H81: 244356.4094 | I81: 244356.4094 | J81: 242390.1203 | K81: 242390.1203 | L81: Unadjusted Average Year January | M81: =IF(RIGHT(A81,1)="*","Y","N") -> N
A82: Core Procurement | B82: D. 97-10-065 | C82: 643838.6482 | D82: 643838.6482 | E82: 643838.6482 | F82: 611969.6695 | G82: 583625.3534 | H82: 583625.3534 | I82: 583625.3534 | J82: 667968.1699 | K82: 667968.1699 | L82: Core - ECPT | M82: =IF(RIGHT(A82,1)="*","Y","N") -> N
A83: Core Storage | B83: D. 19-09-025 | C83: 82215.45352 | D83: 82215.45352 | E83: 82215.45352 | F83: 86889.9849 | G83: 134502.8939 | H83: 134502.8939 | I83: 134502.8939 | J83: 135685.9394 | K83: 135685.9394 | L83: Unadjusted Cold Year Winter Season | M83: =IF(RIGHT(A83,1)="*","Y","N") -> N
A84: Core Brokerage Fee | B84: GCAP D.19-10-036 | C84: 5332.411598 | D84: 5332.411598 | E84: 5332.411598 | F84: 5066.880005 | G84: 5066.942012 | H84: 5066.942012 | I84: 5066.942012 | J84: 5066.909395 | K84: 5066.909395 | L84: ECPT (Core only) | M84: =IF(RIGHT(A84,1)="*","Y","N") -> N
A85: Core Brokerage Fee Credit | B85: =B84 -> GCAP D.19-10-036 | C85: =-C84 -> -5332.411598 | D85: -5332.411598 | E85: -5332.411598 | F85: -5066.880005 | G85: -5066.942012 | H85: -5066.942012 | I85: -5066.942012 | J85: =-J84 -> -5066.909395 | K85: -5066.909395 | L85: ECPT (Core only) | M85: =IF(RIGHT(A85,1)="*","Y","N") -> N
A87: Subtotal Public Policy | C87: =SUM(C63:C86) -> 1428529.769 | D87: 1428529.769 | E87: 1428529.769 | F87: 1347968.569 | G87: 1339737.219 | H87: 1339737.219 | I87: 1339737.219 | J87: =SUM(J63:J86) -> 1298806.074 | K87: 1298806.074
A90: Total Authorized Revenue | C90: =C60+C87 -> 6260481.87 | D90: 6386087.284 | E90: 6487526.278 | F90: 6462102.521 | G90: 6965550.126 | H90: 6963946.99 | I90: 6935209.051 | J90: =J60+J87 -> 6726747.229 | K90: 6746763.036
A93: PPP as approved in AL 5138-G for 2026

Sheet Incremental Rev Req
A2: ='Authorized Rev Req'!A2 -> Annual Period 2026
A3: ='Authorized Rev Req'!A3 -> Reporting Date: Q2 2026
A5: Current Revenue Requirement ($000): | B5: ='Authorized Rev Req'!K90 -> 6746763.036
A6: Current Revenue Requirement Effective: | B6: ='Authorized Rev Req'!K5 -> March 1, 2026
A7: Approved Application(s), Implemented Since Jan 1 or To Be Implemented
A8: Filing Description | B8: Proceeding | C8: Authority for Revenue Requirement | D8: Authorized Revenue Requirement ($000) | E8: Revenue Recovery Mechanism | F8: Allocation Methodology (Select from Drop-down menu) | G8: Authorized Revenue Requirement ($000) - Breakout by Year | L8: Existing or New Item (if existing, use delta from prior for illustrative rate impact) | T8: Summary Incremental Authorized
A9: Safety Affordability Reliability Proceedings | G9: 2026 | H9: 2027 | I9: 2028 | J9: 2029 | K9: 2030 | U9: 2026 | V9: 2027 | W9: 2028 | X9: 2029 | Y9: 2030
A10: ='Authorized Rev Req'!A9 -> General Rate Case | C10: ='Authorized Rev Req'!B9 -> D. 23-11-069 | D10: ='Authorized Rev Req'!K9 -> 3015379.975 | E10: ='Authorized Rev Req'!L9 -> Distribution | F10: Distribution | G10: ='Authorized Rev Req'!K9 -> 3015379.975 | H10: =G10 -> 3015379.975 | I10: =H10 -> 3015379.975 | J10: =I10 -> 3015379.975 | K10: =J10 -> 3015379.975 | L10: Existing | T10: ='RRQ Allocations'!B5 -> 100% Residential | U10: =SUMIF($F$10:$F$72,$T10,G$10:G$72)-SUMIF($F$10:$F$72,$T10,$D$10:$D$72) -> 0 | V10: =SUMIF($F$10:$F$72,$T10,H$10:H$72)-SUMIF($F$10:$F$72,$T10,$D$10:$D$72) -> 0 | W10: =SUMIF($F$10:$F$72,$T10,I$10:I$72)-SUMIF($F$10:$F$72,$T10,$D$10:$D$72) -> 0 | X10: =SUMIF($F$10:$F$72,$T10,J$10:J$72)-SUMIF($F$10:$F$72,$T10,$D$10:$D$72) -> 0 | Y10: =SUMIF($F$10:$F$72,$T10,K$10:K$72)-SUMIF($F$10:$F$72,$T10,$D$10:$D$72) -> 0
A11: General Rate Case - Undercollection | C11: ='Authorized Rev Req'!B9 -> D. 23-11-069 | D11: ='Authorized Rev Req'!K10 -> 0 | E11: Distribution | F11: Distribution | G11: ='Authorized Rev Req'!K10 -> 0 | L11: Existing | T11: ='RRQ Allocations'!B6 -> Core - Distribution | U11: =SUMIF($F$10:$F$72,$T11,G$10:G$72)-SUMIF($F$10:$F$72,$T11,$D$10:$D$72) -> 0 | V11: -2051.460825 | W11: =SUMIF($F$10:$F$72,$T11,I$10:I$72)-SUMIF($F$10:$F$72,$T11,$D$10:$D$72) -> -2051.460825 | X11: =SUMIF($F$10:$F$72,$T11,J$10:J$72)-SUMIF($F$10:$F$72,$T11,$D$10:$D$72) -> -2051.460825 | Y11: =SUMIF($F$10:$F$72,$T11,K$10:K$72)-SUMIF($F$10:$F$72,$T11,$D$10:$D$72) -> -2051.460825
A12: ='Authorized Rev Req'!A11 -> Pension Contribution - Distribution | C12: ='Authorized Rev Req'!B11 -> D.09-09-020 | D12: ='Authorized Rev Req'!K11 -> 42969.37257 | E12: ='Authorized Rev Req'!L11 -> Distribution | F12: Distribution | G12: ='Authorized Rev Req'!K11 -> 42969.37257 | H12: =G12 -> 42969.37257 | I12: 42969.37257 | J12: 42969.37257 | K12: 42969.37257 | L12: Existing | T12: ='RRQ Allocations'!B7 -> Distribution | U12: =SUMIF($F$10:$F$72,$T12,G$10:G$72)-SUMIF($F$10:$F$72,$T12,$D$10:$D$72) -> 0 | V12: -358316.9282 | W12: =SUMIF($F$10:$F$72,$T12,I$10:I$72)-SUMIF($F$10:$F$72,$T12,$D$10:$D$72) -> -227728.9865 | X12: -227728.9865 | Y12: -227728.9865
A13: ='Authorized Rev Req'!A12 -> Pension Contribution - GT&S Core | C13: ='Authorized Rev Req'!B12 -> D.09-09-020 | D13: ='Authorized Rev Req'!K12 -> 12330.78009 | E13: ='Authorized Rev Req'!L12 -> Core - ECPT | F13: ECPT - Core only | G13: ='Authorized Rev Req'!K12 -> 12330.78009 | H13: 12330.78009 | I13: 12330.78009 | J13: 12330.78009 | K13: 12330.78009 | L13: Existing | T13: ='RRQ Allocations'!B8 -> ECPT - ALL | U13: 0 | V13: -101111.6825 | W13: -101298.2725 | X13: -101298.2725 | Y13: -101298.2725
A14: ='Authorized Rev Req'!A13 -> Pension Contribution - GT&S NonCore (LT) | C14: ='Authorized Rev Req'!B13 -> D.09-09-020 | D14: ='Authorized Rev Req'!K13 -> 4921.782241 | E14: ='Authorized Rev Req'!L13 -> Noncore (No-BB/EG-BB)-ECPT | F14: ECPT - Noncore only | G14: ='Authorized Rev Req'!K13 -> 4921.782241 | H14: 4921.782241 | I14: 4921.782241 | J14: 4921.782241 | K14: 4921.782241 | L14: Existing | T14: ='RRQ Allocations'!B9 -> ECPT - Core only | U14: 0 | V14: =SUMIF($F$10:$F$72,$T14,H$10:H$72)-SUMIF($F$10:$F$72,$T14,$D$10:$D$72) -> 0 | W14: 0 | X14: 0 | Y14: 0
A15: ='Authorized Rev Req'!A14 -> Pension Contribution - GT&S Noncore (BB& Storage) | C15: ='Authorized Rev Req'!B14 -> D.09-09-020 | D15: ='Authorized Rev Req'!K14 -> 3227.180703 | E15: ='Authorized Rev Req'!L14 -> Noncore - ECPT | F15: ECPT - Noncore only | G15: ='Authorized Rev Req'!K14 -> 3227.180703 | H15: 3227.180703 | I15: 3227.180703 | J15: 3227.180703 | K15: 3227.180703 | L15: Existing | T15: ='RRQ Allocations'!B10 -> ECPT - Noncore only | U15: 0 | V15: -501.0158178 | W15: -501.0158178 | X15: -501.0158178 | Y15: -501.0158178
A16: ='Authorized Rev Req'!A15 -> Cost of Capital | C16: ='Authorized Rev Req'!B15 -> D.22-12-031/D.23-01-002/ AL 4813-G/D.24-10-008/AL 4996-G | D16: ='Authorized Rev Req'!K15 -> 42019.41356 | E16: ='Authorized Rev Req'!L15 -> Distribution | F16: Distribution | G16: ='Authorized Rev Req'!K15 -> 42019.41356 | H16: -11289.02697 | I16: -11289.02697 | J16: -11289.02697 | K16: -11289.02697 | L16: Existing | T16: ='RRQ Allocations'!B11 -> ECPT - 50% Core / 50% Noncore | U16: 0 | V16: 0 | W16: 0 | X16: 0 | Y16: 0
A17: ='Authorized Rev Req'!A16 -> GT&S (excluding costs recovered through Core Procurement) | T17: ='RRQ Allocations'!B12 -> ECPT (excludes Covered Entities 3 yr avg vol) | U17: 0 | V17: 0 | W17: 0 | X17: 0 | Y17: 0
A18: ='Authorized Rev Req'!A17 -> Late Implementation (Transmission Undercollection, Capital Audit, GRC Track II, WGSC) | C18: D.22-07-007 | D18: ='Authorized Rev Req'!K17 -> 61082.72649 | E18: ='Authorized Rev Req'!L17 -> ECPT | F18: ECPT - ALL | G18: ='Authorized Rev Req'!K17 -> 61082.72649 | H18: 0 | I18: 0 | J18: 0 | K18: 0 | L18: Existing | T18: ='RRQ Allocations'!B13 -> EE | U18: 0 | V18: =SUMIF($F$10:$F$72,$T18,H$10:H$72)-SUMIF($F$10:$F$72,$T18,$D$10:$D$72) -> 2020.17599 | W18: 2020.17599 | X18: 2020.17599 | Y18: 2020.17599
A19: ='Authorized Rev Req'!$A$18&" Core" -> Local Transmission Core | C19: ='Authorized Rev Req'!B18 -> D. 24-03-002 | D19: ='Authorized Rev Req'!K18-D20 -> 983371.3849 | E19: ='Authorized Rev Req'!L18 -> ECPT (No BB) | F19: ECPT - Core only | G19: 983371.3849 | H19: =G19 -> 983371.3849 | I19: 983371.3849 | J19: 983371.3849 | K19: 983371.3849 | L19: Existing | T19: ='RRQ Allocations'!B14 -> ESA | U19: 0 | V19: 0 | W19: 0 | X19: 0 | Y19: 0
A20: ='Authorized Rev Req'!$A$18&" Noncore" -> Local Transmission Noncore | C20: ='Authorized Rev Req'!B19 -> D. 24-03-002 | D20: 515826.5045 | E20: ='Authorized Rev Req'!L18 -> ECPT (No BB) | F20: ECPT - Noncore only | G20: 515826.5045 | H20: 515826.5045 | I20: 515826.5045 | J20: 515826.5045 | K20: 515826.5045 | L20: Existing | T20: ='RRQ Allocations'!B15 -> PPP ECPT | U20: 0 | V20: 26594.38112 | W20: 26594.38112 | X20: 26594.38112 | Y20: 26594.38112
A21: ='Authorized Rev Req'!A19 -> Customer Access Charge | C21: ='Authorized Rev Req'!B19 -> D. 24-03-002 | D21: ='Authorized Rev Req'!K19 -> 5465.240945 | E21: ='Authorized Rev Req'!L19 -> CAC Allocation | F21: CAC Allocation | G21: 5465.240945 | H21: 5465.240945 | I21: 5465.240945 | J21: 5465.240945 | K21: 5465.240945 | L21: Existing | T21: ='RRQ Allocations'!B16 -> SGIP allocation | U21: 0 | V21: 0 | W21: 0 | X21: 0 | Y21: 0
A22: ='Authorized Rev Req'!A20 -> Unbundled Backbone/Inventory Management | C22: ='Authorized Rev Req'!B20 -> D. 24-03-002 | D22: ='Authorized Rev Req'!K20-D23 -> 263208.0005 | E22: ='Authorized Rev Req'!L20 -> ECPT-All | F22: ECPT - ALL | G22: 263208.0005 | H22: 263208.0005 | I22: 263208.0005 | J22: 263208.0005 | K22: 263208.0005 | L22: Existing | T22: ='RRQ Allocations'!B17 -> CPUC Fee Allocation | U22: 0 | V22: 0 | W22: 0 | X22: 0 | Y22: 0
A23: Inventory management | C23: =C22 -> D. 24-03-002 | D23: =I23 -> 143704.047 | F23: 2023 GTS - Inventory Management | G23: 143704.047 | H23: =G23 -> 143704.047 | I23: 143704.047 | J23: 143704.047 | K23: 143704.047 | T23: ='RRQ Allocations'!B18 -> CAC Allocation | U23: 0 | V23: 0 | W23: 0 | X23: 0 | Y23: 0
A24: SF General Office Sale | C24: ='Authorized Rev Req'!B57 -> D.21-08-027/AL 4538-G-A | D24: ='Authorized Rev Req'!K57 -> -28378.06678 | F24: Distribution | G24: ='Authorized Rev Req'!K57 -> -28378.06678 | H24: -28378.06678 | I24: 0 | J24: 0 | K24: 0 | L24: Existing | T24: ='RRQ Allocations'!B19 -> Storage Allocation (Procurement) | U24: 0 | V24: 0 | W24: 0 | X24: 0 | Y24: 0
T25: ='RRQ Allocations'!B20 -> Capacity Allocation (Procurement) | U25: 0 | V25: 0 | W25: 0 | X25: 0 | Y25: 0
A26: Wildfire Gas & Safety Costs (Distribution) | C26: WGSC IRR D.24-03-006 | D26: ='Authorized Rev Req'!K45 -> 0 | E26: Distribution | F26: Distribution | G26: ='Authorized Rev Req'!K45 -> 0 | H26: 0 | I26: 0 | J26: 0 | K26: 0 | L26: Existing | T26: ='RRQ Allocations'!B21 -> ECPT - Core only (Procurement) | U26: 0 | V26: 0 | W26: 0 | X26: 0 | Y26: 0
A27: 2020 and 2021 Wildfire Mitigation and Catastrophic Event Memorandum Account (WMCE) (Transmission) | C27: D.23-02-017 / D.23-08-027 | D27: ='Authorized Rev Req'!K47 -> 0 | E27: ECPT - ALL | F27: ECPT - ALL | G27: ='Authorized Rev Req'!K47 -> 0 | H27: 0 | I27: 0 | J27: 0 | K27: 0 | L27: Existing | T27: ='RRQ Allocations'!B22 -> 2023 GTS - Inventory Management | U27: 0 | V27: 0 | W27: 0 | X27: 0 | Y27: 0
A28: Oakland General Office Purchase (Distribution) | C28: ='Authorized Rev Req'!B46 -> D.24-08-009/AL 4972-G | D28: ='Authorized Rev Req'!K46 -> 25543.30358 | E28: Distribution | F28: Distribution | G28: ='Authorized Rev Req'!K46 -> 25543.30358 | L28: New | T28: ='RRQ Allocations'!B23 -> User Defined 1 | U28: 0 | V28: 0 | W28: 0 | X28: 0 | Y28: 0
A29: Oakland General Office Purchase (Transmission) | C29: ='Authorized Rev Req'!B51 -> D.24-08-009/AL 4972-G | D29: ='Authorized Rev Req'!K51 -> 12175.53727 | E29: ECPT - ALL | F29: ECPT - ALL | G29: ='Authorized Rev Req'!K51 -> 12175.53727 | L29: New | T29: ='RRQ Allocations'!B24 -> User Defined 2 | U29: 0 | V29: 0 | W29: 0 | X29: 0 | Y29: 0
A30: Gas Advanced Metering Infrastructure (AMI) (distribution) | C30: ='Authorized Rev Req'!B52 -> D.25-12-029 | D30: ='Authorized Rev Req'!K52 -> 40564.01418 | E30: Distribution | F30: Distribution | G30: ='Authorized Rev Req'!K52 -> 40564.01418 | L30: New | T30: ='RRQ Allocations'!B25 -> User Defined 3 | U30: 0 | V30: 0 | W30: 0 | X30: 0 | Y30: 0
A31: Concurrent Application System Program and Balancing Account | C31: ='Authorized Rev Req'!B53 -> D. 23-05-006 | D31: ='Authorized Rev Req'!K53 -> 473.76 | E31: ECPT - ALL | F31: ECPT - ALL | G31: ='Authorized Rev Req'!K53 -> 473.76 | H31: 186.59 | I31: 0 | J31: 0 | K31: 0 | L31: New | T31: Total | U31: =SUM(U10:U30) -> 0 | V31: =SUM(V10:V30) -> -433366.5302 | W31: =SUM(W10:W30) -> -302965.1785 | X31: =SUM(X10:X30) -> -302965.1785 | Y31: =SUM(Y10:Y30) -> -302965.1785
A32: 2022 Wildfire Mitigation and Catastrophic Events | C32: ='Authorized Rev Req'!B48 -> D.25-09-008 | D32: ='Authorized Rev Req'!K48 -> 13823.72411 | E32: Distribution | F32: Distribution | G32: ='Authorized Rev Req'!K48 -> 13823.72411 | L32: New | T32: check | U32: =ABS(U31-(G73-$D73))<0.5 -> TRUE | V32: =ABS(V31-(H73-$D73))<0.5 -> TRUE | W32: =ABS(W31-(I73-$D73))<0.5 -> TRUE | X32: =ABS(X31-(J73-$D73))<0.5 -> TRUE | Y32: =ABS(Y31-(K73-$D73))<0.5 -> TRUE
A33: TRRRMA (Distribution) | C33: ='Authorized Rev Req'!B54 -> D.25-12-026 | D33: ='Authorized Rev Req'!K54 -> 104322.8472 | E33: Distribution | F33: Distribution | G33: ='Authorized Rev Req'!K54 -> 104322.8472 | L33: New
A34: TRRRMA (Transmission) | C34: ='Authorized Rev Req'!B55 -> D.25-12-026 | D34: ='Authorized Rev Req'!K55 -> 47122.58432 | E34: ECPT - ALL | F34: ECPT - ALL | G34: ='Authorized Rev Req'!K55 -> 47122.58432 | L34: New
A35: 2023 WMCE (Distribution) | C35: D.26-02-004 | D35: ='Authorized Rev Req'!K49 -> 14414.51767 | E35: Distribution | F35: Distribution | G35: ='Authorized Rev Req'!K49 -> 14414.51767 | H35: 0 | I35: 0 | J35: 0 | K35: 0 | L35: New
A36: 2023 WMCE (Transmission) | C36: D.26-02-004 | D36: ='Authorized Rev Req'!K50 -> 5283.728791 | E36: ECPT - ALL | F36: ECPT - ALL | G36: ='Authorized Rev Req'!K50 -> 5283.728791 | H36: 0 | I36: 0 | J36: 0 | K36: 0 | L36: New
A37: Public Policy Proceedings
A38: ='Authorized Rev Req'!A63 -> AB 32: Cap & Trade/GHG | C38: ='Authorized Rev Req'!B63 -> D.15-10-032/D.18-03-017/SB 1477 | D38: ='Authorized Rev Req'!K63 -> -239888.9521 | E38: ='Authorized Rev Req'!L63 -> 100% Residential | F38: 100% Residential | G38: ='Authorized Rev Req'!K63 -> -239888.9521 | H38: =G38 -> -239888.9521 | I38: -239888.9521 | J38: -239888.9521 | K38: -239888.9521 | L38: Existing
A39: ='Authorized Rev Req'!A64 -> GHG Operational Costs | C39: ='Authorized Rev Req'!B64 -> D.15-10-032/D.18-03-017 | D39: ='Authorized Rev Req'!K64 -> -280.8201427 | E39: ='Authorized Rev Req'!L64 -> ECPT | F39: ECPT - ALL | G39: ='Authorized Rev Req'!K64 -> -280.8201427 | H39: -280.8201427 | I39: -280.8201427 | J39: -280.8201427 | K39: -280.8201427 | L39: Existing
A40: ='Authorized Rev Req'!A65 -> GHG Compliance Costs | C40: ='Authorized Rev Req'!B65 -> D.15-10-032/D.18-03-017 | D40: ='Authorized Rev Req'!K65 -> 259520.1694 | E40: ='Authorized Rev Req'!L65 -> ECPT (excludes Covered Entities 3 yr avg vol) | F40: ECPT (excludes Covered Entities 3 yr avg vol) | G40: ='Authorized Rev Req'!K65 -> 259520.1694 | H40: 259520.1694 | I40: 259520.1694 | J40: 259520.1694 | K40: 259520.1694 | L40: Existing
A41: ='Authorized Rev Req'!A66 -> CPUC Fee | C41: ='Authorized Rev Req'!B66 -> Preliminary Statement O | D41: ='Authorized Rev Req'!K66 -> 15861.02532 | E41: ='Authorized Rev Req'!L66 -> ECPT (reduced EG volumes; excludes WHSL) | F41: CPUC Fee Allocation | G41: ='Authorized Rev Req'!K66 -> 15861.02532 | H41: 15861.02532 | I41: 15861.02532 | J41: 15861.02532 | K41: 15861.02532 | L41: Existing
A42: ='Authorized Rev Req'!A67 -> SGIP | C42: ='Authorized Rev Req'!B67 -> SB 700/D.17-04-017 | D42: ='Authorized Rev Req'!K67 -> 0 | E42: ='Authorized Rev Req'!L67 -> Direct Benefits - 3 year average | F42: SGIP allocation | G42: ='Authorized Rev Req'!K67 -> 0 | H42: 0 | I42: 0 | J42: 0 | K42: 0 | L42: Existing
A43: ='Authorized Rev Req'!A70 -> Energy Efficiency | C43: ='Authorized Rev Req'!B70 -> D.23-06-055 | D43: ='Authorized Rev Req'!K70 -> 127629.8097 | E43: ='Authorized Rev Req'!L70 -> Direct Allocation Method | F43: EE | G43: ='Authorized Rev Req'!K70 -> 127629.8097 | H43: 129649.9857 | I43: =H43 -> 129649.9857 | J43: 129649.9857 | K43: 129649.9857 | L43: Existing
A44: ='Authorized Rev Req'!A71 -> Energy Savings Assistance Program (ESA) | C44: ='Authorized Rev Req'!B71 -> D.21-06-015/D.20-12-005 | D44: ='Authorized Rev Req'!K71 -> 75530.121 | E44: ='Authorized Rev Req'!L71 -> Direct Allocation Method 100% Residential | F44: ESA | G44: ='Authorized Rev Req'!K71 -> 75530.121 | H44: =G44 -> 75530.121 | I44: =H44 -> 75530.121 | J44: 75530.121 | K44: 75530.121 | L44: Existing
A45: ='Authorized Rev Req'!A72 -> Research Development and Demonstration | C45: ='Authorized Rev Req'!B72 -> AL 4822-G | D45: ='Authorized Rev Req'!K72 -> 10233.68784 | E45: ='Authorized Rev Req'!L72 -> ECPT | F45: PPP ECPT | G45: ='Authorized Rev Req'!K72 -> 10233.68784 | H45: =G45 -> 10233.68784 | I45: =H45 -> 10233.68784 | J45: =I45 -> 10233.68784 | K45: =J45 -> 10233.68784 | L45: Existing
A46: ='Authorized Rev Req'!A73 -> CARE Administrative Expense | C46: ='Authorized Rev Req'!B73 -> D.21-06-015/D.20-12-005 | D46: ='Authorized Rev Req'!K73 -> 2957.54 | E46: ='Authorized Rev Req'!L73 -> ECPT (non-CARE) | F46: PPP ECPT | G46: ='Authorized Rev Req'!K73 -> 2957.54 | H46: 3140 | I46: 3140 | J46: 3140 | K46: 3140 | L46: Existing
A47: ='Authorized Rev Req'!A74 -> CARE Shortfall in Rates | C47: ='Authorized Rev Req'!B74 -> AL 4822-G | D47: ='Authorized Rev Req'!K74 -> 0 | E47: ='Authorized Rev Req'!L74 -> ECPT (excludes CARE) | F47: PPP ECPT | G47: ='Authorized Rev Req'!K74 -> 0 | H47: =G47 -> 0 | I47: 0 | J47: 0 | K47: 0 | L47: Existing
A48: ='Authorized Rev Req'!A75 -> BOE/CPUC Gas Surcharge Administration Costs | C48: ='Authorized Rev Req'!B75 -> AL 4822-G | D48: ='Authorized Rev Req'!K75 -> 414.03795 | E48: ='Authorized Rev Req'!L75 -> ECPT | F48: PPP ECPT | G48: ='Authorized Rev Req'!K75 -> 414.03795 | H48: 414.03795 | I48: 414.03795 | J48: 414.03795 | K48: 414.03795 | L48: Existing
A49: ='Authorized Rev Req'!A76 -> Marketing, Education & Outreach (ME&O) | C49: ='Authorized Rev Req'!B76 -> D.19-01-005 | D49: ='Authorized Rev Req'!K76 -> 0 | E49: ='Authorized Rev Req'!L76 -> ECPT | F49: PPP ECPT | G49: ='Authorized Rev Req'!K76 -> 0 | H49: 0 | I49: 0 | J49: 0 | K49: 0 | L49: Existing
A51: Core Procurement (Intrastate Volumetric and Capacity) | C51: ='Authorized Rev Req'!B81 -> D. 24-03-002/Other | D51: 196211.9165 | E51: ='Authorized Rev Req'!L81 -> Unadjusted Average Year January | F51: Capacity Allocation (Procurement) | G51: 196211.9165 | H51: =G51 -> 196211.9165 | I51: 196211.9165 | J51: 196211.9165 | K51: 196211.9165 | L51: Existing
A52: Core Procurement (Other) | C52: ='Authorized Rev Req'!B82 -> D. 97-10-065 | D52: ='Authorized Rev Req'!K81+'Authorized Rev Req'!K82-D51 -> 714146.3737 | E52: ='Authorized Rev Req'!L82 -> Core - ECPT | F52: ECPT - Core only (Procurement) | G52: ='Authorized Rev Req'!K82+'Authorized Rev Req'!K81-H51 -> 714146.3737 | H52: 714146.3737 | I52: 714146.3737 | J52: 714146.3737 | K52: 714146.3737 | L52: Existing
A53: ='Authorized Rev Req'!A83 -> Core Storage | C53: ='Authorized Rev Req'!B83 -> D. 19-09-025 | D53: ='Authorized Rev Req'!K83 -> 135685.9394 | E53: ='Authorized Rev Req'!L83 -> Unadjusted Cold Year Winter Season | F53: Storage Allocation (Procurement) | G53: ='Authorized Rev Req'!K83 -> 135685.9394 | H53: 135685.9394 | I53: 135685.9394 | J53: 135685.9394 | K53: 135685.9394 | L53: Existing
A54: ='Authorized Rev Req'!A84 -> Core Brokerage Fee | C54: ='Authorized Rev Req'!B84 -> GCAP D.19-10-036 | D54: ='Authorized Rev Req'!K84 -> 5066.909395 | E54: ='Authorized Rev Req'!L84 -> ECPT (Core only) | F54: ECPT - Core only (Procurement) | G54: ='Authorized Rev Req'!K84 -> 5066.909395 | H54: 5066.909395 | I54: 5066.909395 | J54: 5066.909395 | K54: 5066.909395 | L54: Existing
A55: ='Authorized Rev Req'!A85 -> Core Brokerage Fee Credit | C55: ='Authorized Rev Req'!B85 -> GCAP D.19-10-036 | D55: ='Authorized Rev Req'!K85 -> -5066.909395 | E55: ='Authorized Rev Req'!L85 -> ECPT (Core only) | F55: Core - Distribution | G55: ='Authorized Rev Req'!K85 -> -5066.909395 | H55: -5066.909395 | I55: -5066.909395 | J55: -5066.909395 | K55: -5066.909395 | L55: Existing
C56: The Core Brokerage Fee is part of the distribution revenue requirement. In transportation the RRQ is reduced and then it is recovered via the customers that pay PG&E procurement rates.
A60: Balancing Account Balances
A61: Distribution | D61: ='Authorized Rev Req'!K23+'Authorized Rev Req'!K27+'Authorized Rev Req'!K41+'Authorized Rev Req'!K42+'Authorized Rev Req'!K43+'Authorized Rev Req'!K44+'Authorized Rev Req'!K68+'Authorized Rev Req'!K58 -> 31327.35275 | F61: Distribution | G61: ='Authorized Rev Req'!K23+'Authorized Rev Req'!K27+'Authorized Rev Req'!K41+'Authorized Rev Req'!K42+'Authorized Rev Req'!K43+'Authorized Rev Req'!K44+'Authorized Rev Req'!K68+'Authorized Rev Req'!K58 -> 31327.35275 | H61: -75012.72827 | I61: ='Authorized Rev Req'!K68 -> 27197.14673 | J61: =I61 -> 27197.14673 | K61: 27197.14673 | L61: Existing
A62: ECPT | D62: ='Authorized Rev Req'!K21+'Authorized Rev Req'!K22+'Authorized Rev Req'!K24+'Authorized Rev Req'!K25+'Authorized Rev Req'!K26+'Authorized Rev Req'!K28+'Authorized Rev Req'!K29+'Authorized Rev Req'!K30+'Authorized Rev Req'!K31+'Authorized Rev Req'!K32+'Authorized Rev Req'!K33+'Authorized Rev Req'!K37+'Authorized Rev Req'!K38+'Authorized Rev Req'!K39+'Authorized Rev Req'!K40+'Authorized Rev Req'!K56+'Authorized Rev Req'!K59 -> 111934.1005 | F62: ECPT - ALL | G62: ='Authorized Rev Req'!K21+'Authorized Rev Req'!K22+'Authorized Rev Req'!K24+'Authorized Rev Req'!K25+'Authorized Rev Req'!K26+'Authorized Rev Req'!K28+'Authorized Rev Req'!K29+'Authorized Rev Req'!K30+'Authorized Rev Req'!K31+'Authorized Rev Req'!K32+'Authorized Rev Req'!K33+'Authorized Rev Req'!K37+'Authorized Rev Req'!K38+'Authorized Rev Req'!K39+'Authorized Rev Req'!K40+'Authorized Rev Req'!K56+'Authorized Rev Req'!K59 -> 111934.1005 | H62: ='Authorized Rev Req'!K25+'Authorized Rev Req'!K28+'Authorized Rev Req'!K32+'Authorized Rev Req'!K37+'Authorized Rev Req'!K38+'Authorized Rev Req'!K39+'Authorized Rev Req'!K56 -> 137261.9856 | I62: ='Authorized Rev Req'!K25+'Authorized Rev Req'!K28+'Authorized Rev Req'!K32+'Authorized Rev Req'!K37+'Authorized Rev Req'!K38+'Authorized Rev Req'!K39+'Authorized Rev Req'!K56 -> 137261.9856 | J62: =I62 -> 137261.9856 | K62: =J62 -> 137261.9856 | L62: Existing
A63: Public Purpose Program | D63: ='Authorized Rev Req'!K77+'Authorized Rev Req'!K78+'Authorized Rev Req'!K79+'Authorized Rev Req'!K80+'Authorized Rev Req'!K69 -> -26411.92112 | F63: PPP ECPT | G63: ='Authorized Rev Req'!K77+'Authorized Rev Req'!K78+'Authorized Rev Req'!K79+'Authorized Rev Req'!K80+'Authorized Rev Req'!K69 -> -26411.92112 | H63: 0 | I63: 0 | J63: 0 | K63: 0 | L63: Existing
A64: CFCA - NGSS Enduser Dist. Sub Acct Recovery | D64: ='Authorized Rev Req'!K34 -> 2051.460825 | F64: Core - Distribution | G64: ='Authorized Rev Req'!K34 -> 2051.460825 | H64: 0 | I64: 0 | J64: =I64 -> 0 | K64: =J64 -> 0 | L64: Existing
A65: CFCA/NCA - NGSS Enduser Sub Acct Recovery | D65: ='Authorized Rev Req'!K35 -> 487.8206422 | F65: ECPT - ALL | G65: ='Authorized Rev Req'!K35 -> 487.8206422 | H65: 0 | I65: 0 | J65: =I65 -> 0 | K65: 0 | L65: Existing
A66: NCA - NGSS Enduser Sub Acct Recovery | D66: ='Authorized Rev Req'!K36 -> 501.0158178 | F66: ECPT - Noncore only | G66: ='Authorized Rev Req'!K36 -> 501.0158178 | H66: 0 | I66: 0 | J66: 0 | K66: 0 | L66: Existing
A73: Total Approved, Implemented Since Jan 1 or To Be Implemented | D73: =SUM(D10:D71) -> 6746763.036 | G73: =SUM(G10:G71) -> 6746763.036 | H73: =SUM(H10:H71) -> 6313396.506 | I73: =SUM(I10:I71) -> 6443797.858 | J73: =SUM(J10:J71) -> 6443797.858 | K73: =SUM(K10:K71) -> 6443797.858
A76: Pending Application(s), Not Yet Approved | T76: Summary Incremental Authorized + Pending
A77: Filing Description | B77: Proceeding | C77: Basis of Revenue Requirement Forecast: Application Amended Application, Ammended Testimony, Proposed Settlement Agreement, Proposed Decision | D77: Proposed Revenue Requirement ($000) | E77: Proposed Revenue Recovery Mechanism | F77: Allocation Methodology | G77: Projected Authorized Revenue Requirement ($000) - Breakout by Year | L77: Existing or New Item (if existing, use delta from prior for illustrative rate impact) | M77: Change in Projected Authorized Revenue Requirement ($000) for Illustrative Rate Impact - Breakout by Year (if cell is shaded grey, rate impact is not presently determinable) | R77: Include in Impact | U77: =U9 -> 2026 | V77: =V9 -> 2027 | W77: =W9 -> 2028 | X77: =X9 -> 2029 | Y77: =Y9 -> 2030
A78: Safety Affordability Reliability Proceedings | G78: =G$9 -> 2026 | H78: =H$9 -> 2027 | I78: =I$9 -> 2028 | J78: =J$9 -> 2029 | K78: =K$9 -> 2030 | M78: =G$9 -> 2026 | N78: =H$9 -> 2027 | O78: =I$9 -> 2028 | P78: =J$9 -> 2029 | Q78: =K$9 -> 2030 | T78: =T10 -> 100% Residential | U78: =SUMIFS(M$79:M$115,$F$79:$F$115,$T78,$R$79:$R$115,"Y")+U10 -> 0 | V78: =SUMIFS(N$79:N$115,$F$79:$F$115,$T78,$R$79:$R$115,"Y")+V10 -> 0 | W78: =SUMIFS(O$79:O$115,$F$79:$F$115,$T78,$R$79:$R$115,"Y")+W10 -> 0 | X78: =SUMIFS(P$79:P$115,$F$79:$F$115,$T78,$R$79:$R$115,"Y")+X10 -> 0 | Y78: =SUMIFS(Q$79:Q$115,$F$79:$F$115,$T78,$R$79:$R$115,"Y")+Y10 -> 0
T79: Core - Distribution | U79: =SUMIFS(M$79:M$115,$F$79:$F$115,$T79,$R$79:$R$115,"Y")+U11 -> 0 | V79: -4102.92165 | W79: =SUMIFS(O$79:O$115,$F$79:$F$115,$T79,$R$79:$R$115,"Y")+W11 -> -4102.92165 | X79: -4102.92165 | Y79: -4102.92165
A80: Billing Modernization (Distribution) | B80: A. 24-10-004 | C80: Application | D80: =H80 -> 26260.509 | E80: Distribution | F80: Distribution | H80: 26260.509 | I80: 16053.142 | J80: 16042.666 | K80: 24052.205 | L80: New | M80: =G80 -> 0 | N80: 26260.509 | O80: =I80 -> 16053.142 | P80: 16042.666 | Q80: 24052.205 | R80: =VLOOKUP(A80,Summary!$B$8:$E$41,3,FALSE) -> Y | T80: Distribution | U80: 0 | V80: -123171.796 | W80: 11911.85823 | X80: 180060.7477 | Y80: 358171.5089
A81: Billing Modernization (Transmission) | B81: A. 24-10-004 | C81: Application | D81: 12499.889 | E81: ECPT | F81: ECPT - ALL | H81: 12499.889 | I81: 7651.129 | J81: 7646.136 | K81: 11463.583 | L81: New | M81: 0 | N81: 12499.889 | O81: 7651.129 | P81: 7646.136 | Q81: 11463.583 | R81: =VLOOKUP(A81,Summary!$B$8:$E$41,3,FALSE) -> Y | T81: =T13 -> ECPT - ALL | U81: 0 | V81: -76101.59235 | W81: =SUMIFS(O$79:O$115,$F$79:$F$115,$T81,$R$79:$R$115,"Y")+W13 -> -139315.774 | X81: -131812.1476 | Y81: -118411.7488
A82: Stanpac Application | B82: A.25-12-014 | C82: Application | D82: 893.4158148 | E82: ECPT | F82: ECPT - ALL | H82: 893.4158148 | I82: 857.0302256 | J82: 827.4630552 | K82: 796.941247 | L82: New | N82: 893.4158148 | O82: =I82 -> 857.0302256 | P82: =J82 -> 827.4630552 | Q82: =K82 -> 796.941247 | R82: =VLOOKUP(A82,Summary!$B$8:$E$41,3,FALSE) -> Y | T82: ECPT - Core only | U82: 0 | V82: 118980.798 | W82: 151983.4313 | X82: 189996.9603 | Y82: 230108.3314
A83: Hydrogen Demonstration Project (2027) | B83: A.22-09-006 | C83: Application | D83: 3022.022937 | E83: ECPT | F83: ECPT - ALL | H83: 3022.022937 | I83: 10324.82853 | J83: 10534.09292 | K83: 10659.19765 | L83: New | M83: =G83 -> 0 | N83: =H83 -> 3022.022937 | O83: =I83 -> 10324.82853 | P83: 10534.09292 | Q83: 10659.19765 | R83: =VLOOKUP(A83,Summary!$B$8:$E$41,3,FALSE) -> Y | T83: ECPT - Noncore only | U83: 0 | V83: 61671.64592 | W83: 79054.87802 | X83: 99077.45047 | Y83: 120204.9909
A84: 2024 Wildfire Mitigation and Catastrophic Events (distribution) | B84: A.24-11-009 | C84: Application | D84: 84357.11949 | E84: Distribution | F84: Distribution | H84: 84357.11949 | I84: 18178.26264 | J84: 17712.2756 | K84: 17253.09497 | L84: New | M84: 0 | N84: =H84 -> 84357.11949 | O84: 18178.26264 | P84: 17712.2756 | Q84: 17253.09497 | R84: =VLOOKUP(A84,Summary!$B$8:$E$41,3,FALSE) -> Y | T84: ECPT - 50% Core / 50% Noncore | U84: 0 | V84: 0 | W84: 0 | X84: 0 | Y84: 0
A85: 2024 Wildfire Mitigation and Catastrophic Events (transmission) | B85: A.24-11-009 | C85: Application | D85: 6871.218397 | E85: ECPT | F85: ECPT - ALL | H85: 6871.218397 | I85: 239.4188966 | J85: 225.0342646 | K85: 220.3344252 | L85: New | M85: 0 | N85: =H85 -> 6871.218397 | O85: 239.4188966 | P85: 225.0342646 | Q85: 220.3344252 | R85: =VLOOKUP(A85,Summary!$B$8:$E$41,3,FALSE) -> Y | T85: ECPT (excludes Covered Entities 3 yr avg vol) | U85: 0 | V85: 0 | W85: 0 | X85: 0 | Y85: 0
T86: EE | U86: 0 | V86: =SUMIFS(N$79:N$115,$F$79:$F$115,$T86,$R$79:$R$115,"Y")+V18 -> 2020.17599 | W86: =SUMIFS(O$79:O$115,$F$79:$F$115,$T86,$R$79:$R$115,"Y")+W18 -> 2020.17599 | X86: 2020.17599 | Y86: 2020.17599
T87: ESA | U87: 0 | V87: -19962.85995 | W87: 0 | X87: 0 | Y87: 0
A88: Wildfire Gas and Safety Costs (Distribution) Non-IRR | B88: A.23-06-008 | C88: Application | D88: =H88 -> 6776.716441 | E88: Distribution | F88: Distribution | H88: 6776.716441 | L88: New | M88: =G88 -> 0 | N88: =H88 -> 6776.716441 | O88: =I88 -> 0 | P88: 0 | Q88: 0 | R88: =VLOOKUP(A88,Summary!$B$8:$E$41,3,FALSE) -> Y | T88: PPP ECPT | U88: 0 | V88: 25513.40112 | W88: 26594.38112 | X88: 26594.38112 | Y88: 26594.38112
A89: Wildfire Gas and Safety Costs (Transmission) - Non IRR | B89: A.23-06-008 | C89: Application | D89: =H89 -> 44029.8428 | E89: ECPT | F89: ECPT - ALL | H89: 44029.8428 | L89: New | M89: =G89 -> 0 | N89: 44029.8428 | O89: 0 | P89: 0 | Q89: 0 | R89: =VLOOKUP(A89,Summary!$B$8:$E$41,3,FALSE) -> Y | T89: SGIP allocation | U89: 0 | V89: 0 | W89: 0 | X89: 0 | Y89: 0
A90: Kincaid-Dixie (Distribution) | B90: A.25-11-001 | C90: Application | D90: =H90 -> 71886.55064 | E90: Distribution | F90: Distribution | H90: 71886.55064 | L90: New | N90: 71886.55064 | O90: =I90 -> 0 | P90: 0 | Q90: 0 | R90: =VLOOKUP(A90,Summary!$B$8:$E$41,3,FALSE) -> Y | T90: CPUC Fee Allocation | U90: 0 | V90: 0 | W90: 0 | X90: 0 | Y90: 0
A91: Kincaid-Dixie (Generation) | B91: A.25-11-001 | C91: Application | D91: =H91 -> 23780.14007 | E91: ECPT | F91: ECPT - ALL | H91: 23780.14007 | L91: New | N91: 23780.14007 | O91: =I91 -> 0 | P91: 0 | Q91: 0 | R91: =VLOOKUP(A91,Summary!$B$8:$E$41,3,FALSE) -> Y | T91: CAC Allocation | U91: 0 | V91: -2356.437317 | W91: -1595.021972 | X91: -830.2581629 | Y91: -60.6536682
T92: Storage Allocation (Procurement) | U92: 0 | V92: -1210.3543 | W92: 1573.256393 | X92: 4081.928258 | Y92: 6586.374451
T93: Capacity Allocation (Procurement) | U93: 0 | V93: 0 | W93: 0 | X93: 0 | Y93: 0
T94: ECPT - Core only (Procurement) | U94: 0 | V94: -51718.99537 | W94: -42492.45442 | X94: -33432.00467 | Y94: -23803.88144
A95: 2027 GRC - Gas Distribution | B95: A.25-05-009 | C95: Application | D95: =H95 -> 3061244.211 | E95: Distribution | F95: Distribution | H95: 3061244.211 | I95: 3220789.415 | J95: 3389414.767 | K95: 3559975.17 | L95: Existing | N95: =H95-H10 -> 45864.23671 | O95: =I95-I10 -> 205409.4401 | P95: =J95-J10 -> 374034.7925 | Q95: =K95-K10 -> 544595.1954 | R95: =VLOOKUP(A95,Summary!$B$8:$E$41,3,FALSE) -> Y | T95: 2023 GTS - Inventory Management | U95: 0 | V95: -4041.423614 | W95: 7215.421172 | X95: 17360.42093 | Y95: 27488.33219
A96: 2027 GRC - Core Local Transmission | B96: A.25-05-009 | C96: Application | D96: =H96 -> 1102352.183 | E96: ECPT | F96: ECPT - Core only | H96: 1102352.183 | I96: 1135354.816 | J96: 1173368.345 | K96: 1213479.716 | L96: Existing | N96: =H96-H19 -> 118980.798 | O96: =I96-I19 -> 151983.4313 | P96: =J96-J19 -> 189996.9603 | Q96: =K96-K19 -> 230108.3314 | R96: =VLOOKUP(A96,Summary!$B$8:$E$41,3,FALSE) -> Y | T96: =T28 -> User Defined 1 | U96: 0 | V96: 0 | W96: 0 | X96: 0 | Y96: 0
A97: 2027 GRC - Core Procurement (Intrastate Volumetric and Capacity) | B97: A.25-05-009 | C97: Application | D97: 144492.9212 | E97: ECPT (No BB) | F97: ECPT - Core only (Procurement) | H97: 144492.9212 | I97: 153719.4621 | J97: 162779.9119 | K97: 172408.0351 | L97: Existing | N97: =H97-H51 -> -51718.99537 | O97: =I97-I51 -> -42492.45442 | P97: =J97-J51 -> -33432.00467 | Q97: =K97-K51 -> -23803.88144 | R97: =VLOOKUP(A97,Summary!$B$8:$E$41,3,FALSE) -> Y | T97: =T29 -> User Defined 2 | U97: 0 | V97: 0 | W97: 0 | X97: 0 | Y97: 0
A98: 2027 GRC - Core Procurement (Storage) | B98: A.25-05-009 | C98: Application | D98: 34475.58511 | E98: Unadjusted Cold Year Winter Season | F98: Storage Allocation (Procurement) | H98: 34475.58511 | I98: 37259.1958 | J98: 39767.86767 | K98: 42272.31386 | L98: Existing | N98: =H98-H53+100000 -> -1210.3543 | O98: =I98-I53+100000 -> 1573.256393 | P98: =J98-J53+100000 -> 4081.928258 | Q98: =K98-K53+100000 -> 6586.374451 | R98: =VLOOKUP(A98,Summary!$B$8:$E$41,3,FALSE) -> Y | T98: =T30 -> User Defined 3 | U98: 0 | V98: 0 | W98: 0 | X98: 0 | Y98: 0
A99: 2027 GRC - Noncore Local Transmission | B99: A.25-05-009 | C99: Application | D99: 578500.182 | E99: ECPT (No BB) | F99: ECPT - Noncore only | H99: 578500.182 | I99: 595883.4141 | J99: 615905.9866 | K99: 637033.527 | L99: Existing | N99: =H99-H20 -> 62673.67756 | O99: =I99-I20 -> 80056.90966 | P99: =J99-J20 -> 100079.4821 | Q99: 121207.0225 | R99: =VLOOKUP(A99,Summary!$B$8:$E$41,3,FALSE) -> Y | T99: =T31 -> Total | U99: =SUM(U78:U98) -> 0 | V99: =SUM(V78:V98) -> -74480.35946 | W99: =SUM(W78:W98) -> 92847.23019 | X99: =SUM(X78:X98) -> 349014.7326 | Y99: =SUM(Y78:Y98) -> 624794.8893
A100: 2027 GRC - Customer Access Charge | B100: A.25-05-009 | C100: Application | D100: 3108.803628 | E100: CAC Allocation | F100: CAC Allocation | H100: 3108.803628 | I100: 3870.218973 | J100: 4634.982782 | K100: 5404.587277 | L100: Existing | N100: -2356.437317 | O100: -1595.021972 | P100: -830.2581629 | Q100: -60.6536682 | R100: =VLOOKUP(A100,Summary!$B$8:$E$41,3,FALSE) -> Y | T100: check | U100: =U31+SUMIF($R$79:$R$115,"Y",M79:M115)=U99 -> TRUE | V100: =ABS(V31+SUMIF($R$79:$R$115,"Y",N79:N115)-V99)<0.0000005 -> TRUE | W100: =ABS(W31+SUMIF($R$79:$R$115,"Y",O79:O115)-W99)<0.0000005 -> TRUE | X100: =ABS(X31+SUMIF($R$79:$R$115,"Y",P79:P115)-X99)<0.0000005 -> TRUE | Y100: =ABS(Y31+SUMIF($R$79:$R$115,"Y",Q79:Q115)-Y99)<0.0000005 -> TRUE
A101: 2027 GRC - Noncore Unbundled | B101: A.25-05-009 | C101: Application | D101: 197609.3823 | E101: ECPT-All | F101: ECPT - ALL | H101: 197609.3823 | I101: 206605.913 | J101: 213949.2198 | K101: 223442.2885 | L101: Existing | N101: -65598.61827 | O101: -56602.08753 | P101: -49258.78074 | Q101: -39765.71203 | R101: =VLOOKUP(A101,Summary!$B$8:$E$41,3,FALSE) -> Y
A102: 2027 GRC - Inventory Management | B102: A.25-05-009 | C102: Application | D102: 139662.6234 | E102: 2023 GTS - Inventory Management | F102: 2023 GTS - Inventory Management | H102: 139662.6234 | I102: 150919.4682 | J102: 161064.4679 | K102: 171192.3792 | L102: Existing | N102: -4041.423614 | O102: 7215.421172 | P102: 17360.42093 | Q102: 27488.33219 | R102: =VLOOKUP(A102,Summary!$B$8:$E$41,3,FALSE) -> Y
A103: CFCA - NGSS Enduser Dist. Sub Acct Recovery | B103: A.25-05-009 | C103: Application | D103: 0 | E103: Core - Distribution | F103: Core - Distribution | H103: 0 | I103: 0 | J103: 0 | K103: 0 | L103: Existing | N103: =-G64 -> -2051.460825 | O103: =N103 -> -2051.460825 | P103: =O103 -> -2051.460825 | Q103: -2051.460825 | R103: =VLOOKUP(A103,Summary!$B$8:$E$41,3,FALSE) -> Y
A104: CFCA/NCA - NGSS Enduser Sub Acct Recovery | B104: A.25-05-009 | C104: Application | D104: 0 | E104: ECPT - ALL | F104: ECPT - ALL | H104: 0 | I104: 0 | J104: 0 | K104: 0 | L104: Existing | N104: =-G65 -> -487.8206422 | O104: =N104 -> -487.8206422 | P104: -487.8206422 | Q104: -487.8206422 | R104: =VLOOKUP(A104,Summary!$B$8:$E$41,3,FALSE) -> Y
A105: NCA - NGSS Enduser Sub Acct Recovery | B105: A.25-05-009 | C105: Application | D105: 0 | E105: ECPT - Noncore only | F105: ECPT - Noncore only | H105: 0 | I105: 0 | J105: 0 | K105: 0 | L105: Existing | N105: =-G66 -> -501.0158178 | O105: -501.0158178 | P105: -501.0158178 | Q105: -501.0158178 | R105: =VLOOKUP(A105,Summary!$B$8:$E$41,3,FALSE) -> Y
D106: =H106 -> 0
A109: Public Policy Proceedings
A110: 2027 Energy Savings Assistance Bridge Funding | B110: A.25-06-024 | C110: Application | D110: =H110 -> 55567.26105 | E110: PPP | F110: ESA | H110: 55567.26105 | L110: Existing | N110: =H110-H44 -> -19962.85995 | R110: =VLOOKUP(A110,Summary!$B$8:$E$41,3,FALSE) -> Y
A111: 2027 CARE Administrative Bridge Funding | B111: A.25-06-024 | C111: Application | D111: =H111 -> 2059.02 | E111: PPP | F111: PPP ECPT | H111: 2059.02 | L111: Existing | N111: =H111-H46 -> -1080.98 | R111: =VLOOKUP(A111,Summary!$B$8:$E$41,3,FALSE) -> Y
A112: Income Qualified Program (ESA) PY 2028-2033 | B112: A.26-01-003 | C112: Application | D112: =I112 -> 64939.148 | E112: PPP | F112: ESA | I112: 64939.148 | J112: 72336.854 | K112: 74375.996 | L112: Existing | O112: =I112-I44 -> -10590.973 | P112: =J112-J44 -> -3193.267 | Q112: =K112-K44 -> -1154.125 | R112: =VLOOKUP(A112,Summary!$B$8:$E$41,3,FALSE) -> N
A113: Income Qualified Program (CARE) PY 2028-2033 | B113: A.26-01-003 | C113: Application | D113: =I113 -> 1619.91 | E113: PPP | F113: PPP ECPT | I113: 1619.91 | J113: 1700.19 | K113: 1755.33 | L113: Existing | O113: =I113-I46 -> -1520.09 | P113: =J113-J46 -> -1439.81 | Q113: =K113-K46 -> -1384.67 | R113: =VLOOKUP(A113,Summary!$B$8:$E$41,3,FALSE) -> N
A114: Energy Efficiency 2028-2031 | B114: A.26-03-017 | C114: Application | D114: =I114 -> 129117.004 | E114: PPP | F114: EE | I114: 129117.004 | J114: 138187.936 | K114: 142789.92 | L114: Existing | O114: =I114-I43 -> -532.9816633 | P114: =J114-J43 -> 8537.950337 | Q114: 13139.93434 | R114: =VLOOKUP(A114,Summary!$B$8:$E$41,3,FALSE) -> N
A116: Total Pending, Filed but not Approved | D116: =SUM(D79:D115) -> 5795125.659 | G116: =SUM(G79:G115) -> 0 | H116: =SUM(H79:H115) -> 5599449.597 | I116: =SUM(I79:I115) -> 5753381.776 | J116: =SUM(J79:J115) -> 6026098.197 | K116: =SUM(K79:K115) -> 6308574.619 | M116: =SUM(M79:M115) -> 0 | N116: =SUM(N79:N115) -> 358886.1708 | O116: =SUM(O79:O115) -> 383168.364 | P116: =SUM(P79:P115) -> 655884.7844 | Q116: =SUM(Q79:Q115) -> 938361.2071
A123: ** Recurring programs funding assumed to be flat at current levels

Sheet SAR and RAR
F3: Public Purpose Program Switch | G3: =IF(VLOOKUP(G$8,'RRQ Allocations'!$B$5:$L$25,3,FALSE)="PPP",1,0) -> 0 | H3: =IF(VLOOKUP(H$8,'RRQ Allocations'!$B$5:$L$25,3,FALSE)="PPP",1,0) -> 0 | I3: =IF(VLOOKUP(I$8,'RRQ Allocations'!$B$5:$L$25,3,FALSE)="PPP",1,0) -> 0 | J3: =IF(VLOOKUP(J$8,'RRQ Allocations'!$B$5:$L$25,3,FALSE)="PPP",1,0) -> 0 | K3: =IF(VLOOKUP(K$8,'RRQ Allocations'!$B$5:$L$25,3,FALSE)="PPP",1,0) -> 0 | L3: =IF(VLOOKUP(L$8,'RRQ Allocations'!$B$5:$L$25,3,FALSE)="PPP",1,0) -> 0 | M3: =IF(VLOOKUP(M$8,'RRQ Allocations'!$B$5:$L$25,3,FALSE)="PPP",1,0) -> 0 | N3: =IF(VLOOKUP(N$8,'RRQ Allocations'!$B$5:$L$25,3,FALSE)="PPP",1,0) -> 0 | O3: =IF(VLOOKUP(O$8,'RRQ Allocations'!$B$5:$L$25,3,FALSE)="PPP",1,0) -> 1 | P3: =IF(VLOOKUP(P$8,'RRQ Allocations'!$B$5:$L$25,3,FALSE)="PPP",1,0) -> 1 | Q3: =IF(VLOOKUP(Q$8,'RRQ Allocations'!$B$5:$L$25,3,FALSE)="PPP",1,0) -> 1 | R3: =IF(VLOOKUP(R$8,'RRQ Allocations'!$B$5:$L$25,3,FALSE)="PPP",1,0) -> 0 | S3: =IF(VLOOKUP(S$8,'RRQ Allocations'!$B$5:$L$25,3,FALSE)="PPP",1,0) -> 0 | T3: =IF(VLOOKUP(T$8,'RRQ Allocations'!$B$5:$L$25,3,FALSE)="PPP",1,0) -> 0 | U3: =IF(VLOOKUP(U$8,'RRQ Allocations'!$B$5:$L$25,3,FALSE)="PPP",1,0) -> 0 | V3: =IF(VLOOKUP(V$8,'RRQ Allocations'!$B$5:$L$25,3,FALSE)="PPP",1,0) -> 0 | W3: =IF(VLOOKUP(W$8,'RRQ Allocations'!$B$5:$L$25,3,FALSE)="PPP",1,0) -> 0 | X3: =IF(VLOOKUP(X$8,'RRQ Allocations'!$B$5:$L$25,3,FALSE)="PPP",1,0) -> 0 | Y3: =IF(VLOOKUP(Y$8,'RRQ Allocations'!$B$5:$L$25,3,FALSE)="PPP",1,0) -> 0 | Z3: =IF(VLOOKUP(Z$8,'RRQ Allocations'!$B$5:$L$25,3,FALSE)="PPP",1,0) -> 0 | AA3: =IF(VLOOKUP(AA$8,'RRQ Allocations'!$B$5:$L$25,3,FALSE)="PPP",1,0) -> 0
F4: Transporation Switch | G4: =IF(VLOOKUP(G$8,'RRQ Allocations'!$B$5:$L$25,3,FALSE)="T",1,0) -> 1 | H4: =IF(VLOOKUP(H$8,'RRQ Allocations'!$B$5:$L$25,3,FALSE)="T",1,0) -> 1 | I4: =IF(VLOOKUP(I$8,'RRQ Allocations'!$B$5:$L$25,3,FALSE)="T",1,0) -> 1 | J4: =IF(VLOOKUP(J$8,'RRQ Allocations'!$B$5:$L$25,3,FALSE)="T",1,0) -> 1 | K4: =IF(VLOOKUP(K$8,'RRQ Allocations'!$B$5:$L$25,3,FALSE)="T",1,0) -> 1 | L4: =IF(VLOOKUP(L$8,'RRQ Allocations'!$B$5:$L$25,3,FALSE)="T",1,0) -> 1 | M4: =IF(VLOOKUP(M$8,'RRQ Allocations'!$B$5:$L$25,3,FALSE)="T",1,0) -> 1 | N4: =IF(VLOOKUP(N$8,'RRQ Allocations'!$B$5:$L$25,3,FALSE)="T",1,0) -> 1 | O4: =IF(VLOOKUP(O$8,'RRQ Allocations'!$B$5:$L$25,3,FALSE)="T",1,0) -> 0 | P4: =IF(VLOOKUP(P$8,'RRQ Allocations'!$B$5:$L$25,3,FALSE)="T",1,0) -> 0 | Q4: =IF(VLOOKUP(Q$8,'RRQ Allocations'!$B$5:$L$25,3,FALSE)="T",1,0) -> 0 | R4: =IF(VLOOKUP(R$8,'RRQ Allocations'!$B$5:$L$25,3,FALSE)="T",1,0) -> 1 | S4: =IF(VLOOKUP(S$8,'RRQ Allocations'!$B$5:$L$25,3,FALSE)="T",1,0) -> 1 | T4: =IF(VLOOKUP(T$8,'RRQ Allocations'!$B$5:$L$25,3,FALSE)="T",1,0) -> 1 | U4: =IF(VLOOKUP(U$8,'RRQ Allocations'!$B$5:$L$25,3,FALSE)="T",1,0) -> 0 | V4: =IF(VLOOKUP(V$8,'RRQ Allocations'!$B$5:$L$25,3,FALSE)="T",1,0) -> 0 | W4: =IF(VLOOKUP(W$8,'RRQ Allocations'!$B$5:$L$25,3,FALSE)="T",1,0) -> 0 | X4: =IF(VLOOKUP(X$8,'RRQ Allocations'!$B$5:$L$25,3,FALSE)="T",1,0) -> 1 | Y4: =IF(VLOOKUP(Y$8,'RRQ Allocations'!$B$5:$L$25,3,FALSE)="T",1,0) -> 1 | Z4: =IF(VLOOKUP(Z$8,'RRQ Allocations'!$B$5:$L$25,3,FALSE)="T",1,0) -> 1 | AA4: =IF(VLOOKUP(AA$8,'RRQ Allocations'!$B$5:$L$25,3,FALSE)="T",1,0) -> 1
F5: Procurement Switch | G5: =IF(VLOOKUP(G$8,'RRQ Allocations'!$B$5:$L$25,3,FALSE)="P",1,0) -> 0 | H5: =IF(VLOOKUP(H$8,'RRQ Allocations'!$B$5:$L$25,3,FALSE)="P",1,0) -> 0 | I5: =IF(VLOOKUP(I$8,'RRQ Allocations'!$B$5:$L$25,3,FALSE)="P",1,0) -> 0 | J5: =IF(VLOOKUP(J$8,'RRQ Allocations'!$B$5:$L$25,3,FALSE)="P",1,0) -> 0 | K5: =IF(VLOOKUP(K$8,'RRQ Allocations'!$B$5:$L$25,3,FALSE)="P",1,0) -> 0 | L5: =IF(VLOOKUP(L$8,'RRQ Allocations'!$B$5:$L$25,3,FALSE)="P",1,0) -> 0 | M5: =IF(VLOOKUP(M$8,'RRQ Allocations'!$B$5:$L$25,3,FALSE)="P",1,0) -> 0 | N5: =IF(VLOOKUP(N$8,'RRQ Allocations'!$B$5:$L$25,3,FALSE)="P",1,0) -> 0 | O5: =IF(VLOOKUP(O$8,'RRQ Allocations'!$B$5:$L$25,3,FALSE)="P",1,0) -> 0 | P5: =IF(VLOOKUP(P$8,'RRQ Allocations'!$B$5:$L$25,3,FALSE)="P",1,0) -> 0 | Q5: =IF(VLOOKUP(Q$8,'RRQ Allocations'!$B$5:$L$25,3,FALSE)="P",1,0) -> 0 | R5: =IF(VLOOKUP(R$8,'RRQ Allocations'!$B$5:$L$25,3,FALSE)="P",1,0) -> 0 | S5: =IF(VLOOKUP(S$8,'RRQ Allocations'!$B$5:$L$25,3,FALSE)="P",1,0) -> 0 | T5: =IF(VLOOKUP(T$8,'RRQ Allocations'!$B$5:$L$25,3,FALSE)="P",1,0) -> 0 | U5: =IF(VLOOKUP(U$8,'RRQ Allocations'!$B$5:$L$25,3,FALSE)="P",1,0) -> 1 | V5: =IF(VLOOKUP(V$8,'RRQ Allocations'!$B$5:$L$25,3,FALSE)="P",1,0) -> 1 | W5: =IF(VLOOKUP(W$8,'RRQ Allocations'!$B$5:$L$25,3,FALSE)="P",1,0) -> 1 | X5: =IF(VLOOKUP(X$8,'RRQ Allocations'!$B$5:$L$25,3,FALSE)="P",1,0) -> 0 | Y5: =IF(VLOOKUP(Y$8,'RRQ Allocations'!$B$5:$L$25,3,FALSE)="P",1,0) -> 0 | Z5: =IF(VLOOKUP(Z$8,'RRQ Allocations'!$B$5:$L$25,3,FALSE)="P",1,0) -> 0 | AA5: =IF(VLOOKUP(AA$8,'RRQ Allocations'!$B$5:$L$25,3,FALSE)="P",1,0) -> 0
C7: =CONCATENATE(Summary!D3," Revenue Change ($000)") -> 2027 Revenue Change ($000) | G7: Allocation
C8: Authorized | D8: + Pending | G8: =TRANSPOSE('RRQ Allocations'!B5:B25) -> 100% Residential | H8: Core - Distribution | I8: Distribution | J8: ECPT - ALL | K8: ECPT - Core only | L8: ECPT - Noncore only | M8: ECPT - 50% Core / 50% Noncore | N8: ECPT (excludes Covered Entities 3 yr avg vol) | O8: EE | P8: ESA | Q8: PPP ECPT | R8: SGIP allocation | S8: CPUC Fee Allocation | T8: CAC Allocation | U8: Storage Allocation (Procurement) | V8: Capacity Allocation (Procurement) | W8: ECPT - Core only (Procurement) | X8: 2023 GTS - Inventory Management | Y8: User Defined 1 | Z8: User Defined 2 | AA8: User Defined 3 | AC8: CARE Allocation
B9: ='Incremental Rev Req'!T10 -> 100% Residential | C9: =INDEX('Incremental Rev Req'!$T$9:$Y$30,MATCH($B9,'Incremental Rev Req'!$T$9:$T$30,0),MATCH(Summary!$D$3,'Incremental Rev Req'!$T$9:$Y$9,0)) -> 0 | D9: =INDEX('Incremental Rev Req'!$T$77:$Y$98,MATCH($B9,'Incremental Rev Req'!$T$77:$T$98,0),MATCH(Summary!$D$3,'Incremental Rev Req'!$T$77:$Y$77,0)) -> 0 | F9: Residential | G9: =TRANSPOSE('RRQ Allocations'!$H$5:$H$25) -> 1 | H9: 0.8087357772 | I9: 0.7848318119 | J9: 0.2722742932 | K9: 0.6645587839 | L9: 0 | M9: 0.3322793919 | N9: 0.3629138593 | O9: 0.3384 | P9: 1 | Q9: 0.3964019068 | R9: 0.9155803564 | S9: 0.3675669459 | T9: 0 | U9: 0.7912905715 | V9: 0.7933288665 | W9: 0.7339650877 | X9: 0.3591976846 | Y9: 0 | Z9: 0 | AA9: 0 | AC9: 0.3384530811
B10: ='Incremental Rev Req'!T11 -> Core - Distribution | C10: =INDEX('Incremental Rev Req'!$T$9:$Y$30,MATCH($B10,'Incremental Rev Req'!$T$9:$T$30,0),MATCH(Summary!$D$3,'Incremental Rev Req'!$T$9:$Y$9,0)) -> -2051.460825 | D10: =INDEX('Incremental Rev Req'!$T$77:$Y$98,MATCH($B10,'Incremental Rev Req'!$T$77:$T$98,0),MATCH(Summary!$D$3,'Incremental Rev Req'!$T$77:$Y$77,0)) -> -4102.92165
B11: ='Incremental Rev Req'!T12 -> Distribution | C11: =INDEX('Incremental Rev Req'!$T$9:$Y$30,MATCH($B11,'Incremental Rev Req'!$T$9:$T$30,0),MATCH(Summary!$D$3,'Incremental Rev Req'!$T$9:$Y$9,0)) -> -358316.9282 | D11: =INDEX('Incremental Rev Req'!$T$77:$Y$98,MATCH($B11,'Incremental Rev Req'!$T$77:$T$98,0),MATCH(Summary!$D$3,'Incremental Rev Req'!$T$77:$Y$77,0)) -> -123171.796 | G11: Revenue Change ($000) - System
B12: ='Incremental Rev Req'!T13 -> ECPT - ALL | C12: =INDEX('Incremental Rev Req'!$T$9:$Y$30,MATCH($B12,'Incremental Rev Req'!$T$9:$T$30,0),MATCH(Summary!$D$3,'Incremental Rev Req'!$T$9:$Y$9,0)) -> -101111.6825 | D12: =INDEX('Incremental Rev Req'!$T$77:$Y$98,MATCH($B12,'Incremental Rev Req'!$T$77:$T$98,0),MATCH(Summary!$D$3,'Incremental Rev Req'!$T$77:$Y$77,0)) -> -76101.59235 | F12: Authorized | G12: =G$8 -> 100% Residential | H12: =H$8 -> Core - Distribution | I12: Distribution | J12: ECPT - ALL | K12: ECPT - Core only | L12: ECPT - Noncore only | M12: ECPT - 50% Core / 50% Noncore | N12: ECPT (excludes Covered Entities 3 yr avg vol) | O12: EE | P12: ESA | Q12: PPP ECPT | R12: SGIP allocation | S12: CPUC Fee Allocation | T12: CAC Allocation | U12: Storage Allocation (Procurement) | V12: Capacity Allocation (Procurement) | W12: ECPT - Core only (Procurement) | X12: 2023 GTS - Inventory Management | Y12: User Defined 1 | Z12: User Defined 2 | AA12: User Defined 3 | AB12: Total | AC12: CARE Discount
B13: ='Incremental Rev Req'!T14 -> ECPT - Core only | C13: =INDEX('Incremental Rev Req'!$T$9:$Y$30,MATCH($B13,'Incremental Rev Req'!$T$9:$T$30,0),MATCH(Summary!$D$3,'Incremental Rev Req'!$T$9:$Y$9,0)) -> 0 | D13: =INDEX('Incremental Rev Req'!$T$77:$Y$98,MATCH($B13,'Incremental Rev Req'!$T$77:$T$98,0),MATCH(Summary!$D$3,'Incremental Rev Req'!$T$77:$Y$77,0)) -> 118980.798 | F13: Residential | G13: =G9*G14 -> 0 | H13: -1659.089765 | I13: -281218.524 | J13: -27530.11188 | K13: =K9*K14 -> 0 | L13: 0 | M13: 0 | N13: 0 | O13: 683.627555 | P13: 0 | Q13: 10542.06339 | R13: 0 | S13: 0 | T13: 0 | U13: 0 | V13: 0 | W13: 0 | X13: =X9*X14 -> 0 | Y13: 0 | Z13: 0 | AA13: 0 | AB13: =SUM(G13:AA13) -> -299182.0347 | AC13: =AC9*AC14 -> -4640.466294
B14: ='Incremental Rev Req'!T15 -> ECPT - Noncore only | C14: =INDEX('Incremental Rev Req'!$T$9:$Y$30,MATCH($B14,'Incremental Rev Req'!$T$9:$T$30,0),MATCH(Summary!$D$3,'Incremental Rev Req'!$T$9:$Y$9,0)) -> -501.0158178 | D14: =INDEX('Incremental Rev Req'!$T$77:$Y$98,MATCH($B14,'Incremental Rev Req'!$T$77:$T$98,0),MATCH(Summary!$D$3,'Incremental Rev Req'!$T$77:$Y$77,0)) -> 61671.64592 | F14: Total System | G14: =VLOOKUP(G$12,$B$9:$D$29,2,FALSE) -> 0 | H14: =VLOOKUP(H$12,$B$9:$D$29,2,FALSE) -> -2051.460825 | I14: -358316.9282 | J14: -101111.6825 | K14: =VLOOKUP(K$12,$B$9:$D$29,2,FALSE) -> 0 | L14: -501.0158178 | M14: 0 | N14: 0 | O14: 2020.17599 | P14: 0 | Q14: 26594.38112 | R14: 0 | S14: 0 | T14: 0 | U14: 0 | V14: 0 | W14: 0 | X14: =VLOOKUP(X$12,$B$9:$D$29,2,FALSE) -> 0 | Y14: 0 | Z14: 0 | AA14: 0 | AB14: =SUM(G14:AA14) -> -433366.5302 | AC14: =Res_RD!M33 -> -13710.8112
B15: ='Incremental Rev Req'!T16 -> ECPT - 50% Core / 50% Noncore | C15: =INDEX('Incremental Rev Req'!$T$9:$Y$30,MATCH($B15,'Incremental Rev Req'!$T$9:$T$30,0),MATCH(Summary!$D$3,'Incremental Rev Req'!$T$9:$Y$9,0)) -> 0 | D15: =INDEX('Incremental Rev Req'!$T$77:$Y$98,MATCH($B15,'Incremental Rev Req'!$T$77:$T$98,0),MATCH(Summary!$D$3,'Incremental Rev Req'!$T$77:$Y$77,0)) -> 0 | F15: w/Pending
B16: ='Incremental Rev Req'!T17 -> ECPT (excludes Covered Entities 3 yr avg vol) | C16: =INDEX('Incremental Rev Req'!$T$9:$Y$30,MATCH($B16,'Incremental Rev Req'!$T$9:$T$30,0),MATCH(Summary!$D$3,'Incremental Rev Req'!$T$9:$Y$9,0)) -> 0 | D16: =INDEX('Incremental Rev Req'!$T$77:$Y$98,MATCH($B16,'Incremental Rev Req'!$T$77:$T$98,0),MATCH(Summary!$D$3,'Incremental Rev Req'!$T$77:$Y$77,0)) -> 0 | F16: Residential | G16: =G9*G17 -> 0 | H16: -3318.17953 | I16: -96669.14381 | J16: -20720.50727 | K16: =K9*K17 -> 79069.73445 | L16: 0 | M16: 0 | N16: 0 | O16: 683.627555 | P16: -19962.85995 | Q16: 10113.56085 | R16: 0 | S16: 0 | T16: 0 | U16: -957.7419457 | V16: 0 | W16: =W9*W17 -> -37959.93697 | X16: -1451.670005 | Y16: 0 | Z16: 0 | AA16: 0 | AB16: =SUM(G16:AA16) -> -91173.11662 | AC16: =AC9*AC17 -> -1292.358325
B17: ='Incremental Rev Req'!T18 -> EE | C17: =INDEX('Incremental Rev Req'!$T$9:$Y$30,MATCH($B17,'Incremental Rev Req'!$T$9:$T$30,0),MATCH(Summary!$D$3,'Incremental Rev Req'!$T$9:$Y$9,0)) -> 2020.17599 | D17: =INDEX('Incremental Rev Req'!$T$77:$Y$98,MATCH($B17,'Incremental Rev Req'!$T$77:$T$98,0),MATCH(Summary!$D$3,'Incremental Rev Req'!$T$77:$Y$77,0)) -> 2020.17599 | F17: Total System | G17: =VLOOKUP(G$12,$B$9:$D$29,3,FALSE) -> 0 | H17: -4102.92165 | I17: -123171.796 | J17: -76101.59235 | K17: 118980.798 | L17: 61671.64592 | M17: 0 | N17: 0 | O17: 2020.17599 | P17: -19962.85995 | Q17: 25513.40112 | R17: 0 | S17: 0 | T17: -2356.437317 | U17: -1210.3543 | V17: 0 | W17: -51718.99537 | X17: -4041.423614 | Y17: 0 | Z17: 0 | AA17: 0 | AB17: =SUM(G17:AA17) -> -74480.35946 | AC17: =(Res_RD!AD33) -> -3818.426829
B18: ='Incremental Rev Req'!T19 -> ESA | C18: =INDEX('Incremental Rev Req'!$T$9:$Y$30,MATCH($B18,'Incremental Rev Req'!$T$9:$T$30,0),MATCH(Summary!$D$3,'Incremental Rev Req'!$T$9:$Y$9,0)) -> 0 | D18: =INDEX('Incremental Rev Req'!$T$77:$Y$98,MATCH($B18,'Incremental Rev Req'!$T$77:$T$98,0),MATCH(Summary!$D$3,'Incremental Rev Req'!$T$77:$Y$77,0)) -> -19962.85995
B19: ='Incremental Rev Req'!T20 -> PPP ECPT | C19: =INDEX('Incremental Rev Req'!$T$9:$Y$30,MATCH($B19,'Incremental Rev Req'!$T$9:$T$30,0),MATCH(Summary!$D$3,'Incremental Rev Req'!$T$9:$Y$9,0)) -> 26594.38112 | D19: =INDEX('Incremental Rev Req'!$T$77:$Y$98,MATCH($B19,'Incremental Rev Req'!$T$77:$T$98,0),MATCH(Summary!$D$3,'Incremental Rev Req'!$T$77:$Y$77,0)) -> 25513.40112
B20: ='Incremental Rev Req'!T21 -> SGIP allocation | C20: =INDEX('Incremental Rev Req'!$T$9:$Y$30,MATCH($B20,'Incremental Rev Req'!$T$9:$T$30,0),MATCH(Summary!$D$3,'Incremental Rev Req'!$T$9:$Y$9,0)) -> 0 | D20: =INDEX('Incremental Rev Req'!$T$77:$Y$98,MATCH($B20,'Incremental Rev Req'!$T$77:$T$98,0),MATCH(Summary!$D$3,'Incremental Rev Req'!$T$77:$Y$77,0)) -> 0
B21: ='Incremental Rev Req'!T22 -> CPUC Fee Allocation | C21: =INDEX('Incremental Rev Req'!$T$9:$Y$30,MATCH($B21,'Incremental Rev Req'!$T$9:$T$30,0),MATCH(Summary!$D$3,'Incremental Rev Req'!$T$9:$Y$9,0)) -> 0 | D21: =INDEX('Incremental Rev Req'!$T$77:$Y$98,MATCH($B21,'Incremental Rev Req'!$T$77:$T$98,0),MATCH(Summary!$D$3,'Incremental Rev Req'!$T$77:$Y$77,0)) -> 0
B22: ='Incremental Rev Req'!T23 -> CAC Allocation | C22: =INDEX('Incremental Rev Req'!$T$9:$Y$30,MATCH($B22,'Incremental Rev Req'!$T$9:$T$30,0),MATCH(Summary!$D$3,'Incremental Rev Req'!$T$9:$Y$9,0)) -> 0 | D22: =INDEX('Incremental Rev Req'!$T$77:$Y$98,MATCH($B22,'Incremental Rev Req'!$T$77:$T$98,0),MATCH(Summary!$D$3,'Incremental Rev Req'!$T$77:$Y$77,0)) -> -2356.437317
B23: ='Incremental Rev Req'!T24 -> Storage Allocation (Procurement) | C23: =INDEX('Incremental Rev Req'!$T$9:$Y$30,MATCH($B23,'Incremental Rev Req'!$T$9:$T$30,0),MATCH(Summary!$D$3,'Incremental Rev Req'!$T$9:$Y$9,0)) -> 0 | D23: =INDEX('Incremental Rev Req'!$T$77:$Y$98,MATCH($B23,'Incremental Rev Req'!$T$77:$T$98,0),MATCH(Summary!$D$3,'Incremental Rev Req'!$T$77:$Y$77,0)) -> -1210.3543
B24: ='Incremental Rev Req'!T25 -> Capacity Allocation (Procurement) | C24: =INDEX('Incremental Rev Req'!$T$9:$Y$30,MATCH($B24,'Incremental Rev Req'!$T$9:$T$30,0),MATCH(Summary!$D$3,'Incremental Rev Req'!$T$9:$Y$9,0)) -> 0 | D24: =INDEX('Incremental Rev Req'!$T$77:$Y$98,MATCH($B24,'Incremental Rev Req'!$T$77:$T$98,0),MATCH(Summary!$D$3,'Incremental Rev Req'!$T$77:$Y$77,0)) -> 0
B25: ='Incremental Rev Req'!T26 -> ECPT - Core only (Procurement) | C25: =INDEX('Incremental Rev Req'!$T$9:$Y$30,MATCH($B25,'Incremental Rev Req'!$T$9:$T$30,0),MATCH(Summary!$D$3,'Incremental Rev Req'!$T$9:$Y$9,0)) -> 0 | D25: =INDEX('Incremental Rev Req'!$T$77:$Y$98,MATCH($B25,'Incremental Rev Req'!$T$77:$T$98,0),MATCH(Summary!$D$3,'Incremental Rev Req'!$T$77:$Y$77,0)) -> -51718.99537
B26: ='Incremental Rev Req'!T27 -> 2023 GTS - Inventory Management | C26: =INDEX('Incremental Rev Req'!$T$9:$Y$30,MATCH($B26,'Incremental Rev Req'!$T$9:$T$30,0),MATCH(Summary!$D$3,'Incremental Rev Req'!$T$9:$Y$9,0)) -> 0 | D26: =INDEX('Incremental Rev Req'!$T$77:$Y$98,MATCH($B26,'Incremental Rev Req'!$T$77:$T$98,0),MATCH(Summary!$D$3,'Incremental Rev Req'!$T$77:$Y$77,0)) -> -4041.423614 | AD26: Authorized | AF26: Authorized | AG26: w/Pending
B27: ='Incremental Rev Req'!T28 -> User Defined 1 | C27: =INDEX('Incremental Rev Req'!$T$9:$Y$30,MATCH($B27,'Incremental Rev Req'!$T$9:$T$30,0),MATCH(Summary!$D$3,'Incremental Rev Req'!$T$9:$Y$9,0)) -> 0 | D27: =INDEX('Incremental Rev Req'!$T$77:$Y$98,MATCH($B27,'Incremental Rev Req'!$T$77:$T$98,0),MATCH(Summary!$D$3,'Incremental Rev Req'!$T$77:$Y$77,0)) -> 0 | G27: Revenue Split - Bundled | AD27: Bundled Revenue Change | AF27: Bundled Revenue Change
B28: ='Incremental Rev Req'!T29 -> User Defined 2 | C28: =INDEX('Incremental Rev Req'!$T$9:$Y$30,MATCH($B28,'Incremental Rev Req'!$T$9:$T$30,0),MATCH(Summary!$D$3,'Incremental Rev Req'!$T$9:$Y$9,0)) -> 0 | D28: =INDEX('Incremental Rev Req'!$T$77:$Y$98,MATCH($B28,'Incremental Rev Req'!$T$77:$T$98,0),MATCH(Summary!$D$3,'Incremental Rev Req'!$T$77:$Y$77,0)) -> 0 | G28: =G$8 -> 100% Residential | H28: =H$8 -> Core - Distribution | I28: Distribution | J28: ECPT - ALL | K28: ECPT - Core only | L28: ECPT - Noncore only | M28: ECPT - 50% Core / 50% Noncore | N28: ECPT (excludes Covered Entities 3 yr avg vol) | O28: EE | P28: ESA | Q28: PPP ECPT | R28: SGIP allocation | S28: CPUC Fee Allocation | T28: CAC Allocation | U28: Storage Allocation (Procurement) | V28: Capacity Allocation (Procurement) | W28: ECPT - Core only (Procurement) | X28: 2023 GTS - Inventory Management | Y28: User Defined 1 | Z28: User Defined 2 | AA28: User Defined 3 | AD28: Total | AE28: CARE Adj | AF28: Total | AG28: CARE Adj
B29: ='Incremental Rev Req'!T30 -> User Defined 3 | C29: =INDEX('Incremental Rev Req'!$T$9:$Y$30,MATCH($B29,'Incremental Rev Req'!$T$9:$T$30,0),MATCH(Summary!$D$3,'Incremental Rev Req'!$T$9:$Y$9,0)) -> 0 | D29: =INDEX('Incremental Rev Req'!$T$77:$Y$98,MATCH($B29,'Incremental Rev Req'!$T$77:$T$98,0),MATCH(Summary!$D$3,'Incremental Rev Req'!$T$77:$Y$77,0)) -> 0 | F29: Residential | G29: =TRANSPOSE('RRQ Allocations'!$J$5:$J$25) -> 0.8975890644 | H29: 0.8975890644 | I29: 0.8975890644 | J29: 0.8975890644 | K29: 0.8975890644 | L29: 0 | M29: 0.8975890644 | N29: 0.8975890644 | O29: 0.8975890644 | P29: 0.8975890644 | Q29: 0.8975890644 | R29: 0.8975890644 | S29: 0.8975890644 | T29: 0 | U29: 1 | V29: 1 | W29: 1 | X29: 0.8975890644 | Y29: 0 | Z29: 0 | AA29: 0 | AC29: 0.8976129238 | AD29: =SUMPRODUCT(G13:AA13,G29:AA29) -> -268542.5226 | AE29: =AD29-($AC$14*AC29)+($AC$13*$AC$29) -> -260400.8638 | AF29: =SUMPRODUCT(G16:AA16,G29:AA29) -> -85821.58835 | AG29: =AF29-($AC$17*AC29)+($AC$16*$AC$29) -> -83554.15662
B30: Total | C30: =SUM(C9:C26) -> -433366.5302 | D30: =SUM(D9:D26) -> -74480.35946 | F30: Total System | G30: =TRANSPOSE('RRQ Allocations'!$L$5:$L$25) -> 0.8975890644 | H30: 0.812992294 | I30: 0.8241192187 | J30: 0.3330589455 | K30: 0.8129201077 | L30: 0 | M30: 0.4064066796 | N30: 0.4436087024 | O30: 0.5263600131 | P30: 0.8975890644 | Q30: 0.4832992734 | R30: 0.875994189 | S30: 0.4477831178 | T30: 0 | U30: 1 | V30: 1 | W30: 1 | X30: 0.4303735271 | Y30: 0 | Z30: 0 | AA30: 0 | AC30: 0.4435331891 | AD30: =SUMPRODUCT(G14:AA14,G30:AA30) -> -316723.4542 | AE30: =AD30 -> -316723.4542 | AF30: =SUMPRODUCT(G17:X17,G30:X30) -> -92661.48899 | AG30: =AF30 -> -92661.48899
C31: =C30=HLOOKUP(Summary!$D$3,'Incremental Rev Req'!$U$9:$Y$31,23,FALSE) -> TRUE | D31: =D30=HLOOKUP(Summary!$D$3,'Incremental Rev Req'!U77:Y99,23,FALSE) -> TRUE
F32: ="Notes: Allocation and bundled/unbundled split based on "&Summary!L4&" throughput forecast" -> Notes: Allocation and bundled/unbundled split based on 2023 CARD throughput forecast
G36: Bundled | O36: System (Bundled and Transportation)
G37: =Summary!$L$4&" Throughput" -> 2023 CARD Throughput | H37: =TEXT(Summary!L3,"m/d/yyy")&" Avg Rates ($ / therm)" -> 3/1/2026 Avg Rates ($ / therm) | I37: Illustrative Proposed Avg Rates (Authorized) | J37: Illustrative Proposed Avg Rates (w/Pending) | K37: % Change (Illustrative Authorized) | L37: % Change (w/Illustrative Pending) | O37: =Summary!$L$4&" Throughput" -> 2023 CARD Throughput | P37: =H37 -> 3/1/2026 Avg Rates ($ / therm) | Q37: Illustrative Proposed Avg Rates (Authorized) | R37: Illustrative Proposed Avg Rates (w/Pending) | S37: % Change (Illustrative Authorized) | T37: % Change (w/Illustrative Pending)
F38: Residential | G38: 1495141.703 | H38: 2.660726159 | I38: =AE29/G38+H38 -> 2.486561487 | J38: =AG29/G38+H38 -> 2.604842388 | K38: =I38/H38-1 -> -0.06545757107 | L38: =J38/H38-1 -> -0.02100320277 | N38: Residential | O38: 1665711.039 | P38: 2.492619045 | Q38: =((SUM(G13:AA13)-AC14+AC13)/O38)+P38 -> 2.318452168 | R38: =((SUM(G16:AA16)-AC17+AC16)/O38)+P38 -> 2.439400302 | S38: =Q38/P38-1 -> -0.06987304277 | T38: =R38/P38-1 -> -0.02135053223
F39: Total System | G39: 2037601.566 | H39: 2.37724518 | I39: =AE30/G39+H39 -> 2.221805834 | J39: =AG30/G39+H39 -> 2.331769415 | K39: =I39/H39-1 -> -0.06538633331 | L39: =J39/H39-1 -> -0.01912960636 | N39: Total System | O39: 6116441.313 | P39: ='Authorized Rev Req'!G90/'SAR and RAR'!O39 -> 1.138823994 | Q39: =(SUM(G14:AA14)/O39)+P39 -> 1.06797127 | R39: =(SUM(G17:AA17)/O39)+P39 -> 1.12664692 | S39: =Q39/P39-1 -> -0.06221569329 | T39: =R39/P39-1 -> -0.01069267439
O41: Illustrative System Rate does not include illustrative procurement for transport only customers.

Sheet Res_RD
A8: CALCULATION OF ILLUSTRATIVE RESIDENTIAL RATES WITH AUTHORIZED INCREMENTAL RRQs | R8: CALCULATION OF ILLUSTRATIVE RESIDENTIAL RATES WITH AUTHORIZED AND PENDING INCREMENTAL RRQs
B13: Authorized Pre-CARE costs allocated to residential class | C13: 3602727.497 | S13: Authorized Pre-CARE costs allocated to residential class | T13: =C13 -> 3602727.497
B14: + Authorized Incremental RRQ | C14: =SUMPRODUCT('SAR and RAR'!$G$4:$AA$4,'SAR and RAR'!$G$13:$AA$13) -> -310407.7257 | S14: + Authorized + Pending Incremental RRQ | T14: =SUMPRODUCT('SAR and RAR'!$G$4:$AA$4,'SAR and RAR'!$G$16:$AA$16) -> -43089.76616
B15: Total Pre-CARE costs allocated to residential class | C15: =SUM(C13:C14) -> 3292319.771 | S15: Total Pre-CARE costs allocated to residential class | T15: =SUM(T13:T14) -> 3559637.731
B16: Residential Tier I volumes (includes CARE) | C16: 1212728.376 | S16: Residential Tier I volumes (includes CARE) | T16: =C16 -> 1212728.376
B17: + Residential Tier II volumes (includes CARE) | C17: 453002.3718 | S17: + Residential Tier II volumes (includes CARE) | T17: =C17 -> 453002.3718
B18: = Total Residential Volumes (includes CARE) | C18: =C16+C17 -> 1665730.748 | S18: = Total G-10 adjusted Residential Volumes (includes CARE) | T18: =T16+T17 -> 1665730.748
B20: GCAP Decision Ratio of Tier II/Tier I Residential Rates | C20: 1.250852745 | S20: GCAP Decision Ratio of Tier II/Tier I Residential Rates | T20: 1.244340614
F22: ADD Illustrative Procurement Rate | I22: CARE Discount | W22: ADD Illustrative Procurement Rate | Z22: CARE Discount
C23: Pre-CARE Illustrative Res. Transportation Rates | F23: Current Rate | G23: Illustrative Authorized Incremental | H23: CSI - Thermal Exemption | I23: 0.2 | J23: Interim Illustrative CARE Transportation Rates | K23: CARE Transportation Volumes (mth) | L23: Illustrative CARE Transportation Discount | T23: Pre-CARE Illustrative Res. Transportation Rates | W23: Current Rate | X23: Illustrative Authorized + Illustrative Pending Incremental | Y23: CSI - Thermal Exemption | Z23: =I23 -> 0.2 | AA23: Interim Illustrative CARE Transportation Rates | AB23: CARE Transportation Volumes (mth) | AC23: Illustrative CARE Transportation Discount
B24: Illustrative Residential Tier I rates | C24: =C15/(C16+C17*C20) -> 1.850275179 | F24: 0.50786 | G24: =SUMPRODUCT('SAR and RAR'!$G$5:$AA$5,'SAR and RAR'!$G$13:$AA$13)/'SAR and RAR'!G38 -> 0 | H24: -0.000764197823 | I24: =SUM(C24:H24)*I23 -> 0.4714741962 | J24: =ROUND(C24+H24-I24,7) -> 1.3780368 | K24: 27420.07488 | L24: =Res_RD!I24*Res_RD!K24 -> 12927.85777 | S24: Illustrative Residential Tier I rates | T24: =T15/(T16+T17*T20) -> 2.003829325 | W24: =F24 -> 0.50786 | X24: =SUMPRODUCT('SAR and RAR'!$G$5:$AA$5,'SAR and RAR'!$G$16:$AA$16)/'SAR and RAR'!G38 -> -0.02602942506 | Y24: =H24 -> -0.000764197823 | Z24: =SUM(T24:Y24)*Z23 -> 0.4969791403 | AA24: =ROUND(T24+Y24-Z24,7) -> 1.506086 | AB24: =K24 -> 27420.07488 | AC24: =Res_RD!Z24*Res_RD!AB24 -> 13627.20524
B25: Illustrative Residential Tier II rates | C25: =C24*C20 -> 2.314421786 | F25: =F24 -> 0.50786 | G25: =G24 -> 0 | H25: =H24 -> -0.000764197823 | I25: =SUM(C25:H25)*I23 -> 0.5643035177 | J25: =ROUND(C25+H25-I25,7) -> 1.7493541 | K25: 10245.82278 | L25: =Res_RD!I25*Res_RD!K25 -> 5781.753837 | S25: Illustrative Residential Tier II rates | T25: =T24*T20 -> 2.493446212 | W25: =F25 -> 0.50786 | X25: =X24 -> -0.02602942506 | Y25: =H25 -> -0.000764197823 | Z25: =SUM(T25:Y25)*Z23 -> 0.5949025179 | AA25: =ROUND(T25+Y25-Z25,7) -> 1.8977795 | AB25: =K25 -> 10245.82278 | AC25: =Res_RD!Z25*Res_RD!AB25 -> 6095.265771
B26: Average | C26: =SUMPRODUCT($C$16:$C$17,C$24:C$25)/$C$18 -> 1.97650177 | F26: =SUMPRODUCT($C$16:$C$17,F$24:F$25)/$C$18 -> 0.50786 | G26: =SUMPRODUCT($C$16:$C$17,G$24:G$25)/$C$18 -> 0 | H26: =H24 -> -0.000764197823 | I26: =SUMPRODUCT($C$16:$C$17,I$24:I$25)/$C$18 -> 0.4967195144 | J26: =SUMPRODUCT($C$16:$C$17,J$24:J$25)/$C$18 -> 1.479018077 | K26: =Res_RD!K24+Res_RD!K25 -> 37665.89767 | L26: =Res_RD!L24+Res_RD!L25 -> 18709.6116 | S26: Average | T26: =SUMPRODUCT($T$16:$T$17,$T$24:$T$25)/$T$18 -> 2.136982664 | W26: =SUMPRODUCT($T$16:$T$17,$W$24:$W$25)/$T$18 -> 0.50786 | X26: =SUMPRODUCT($T$16:$T$17,$X$24:$X$25)/$T$18 -> -0.02602942506 | Y26: =Y24 -> -0.000764197823 | Z26: =SUMPRODUCT($T$16:$T$17,$Z$24:$Z$25)/$T$18 -> 0.5236098082 | AA26: =SUMPRODUCT($T$16:$T$17,$AA$24:$AA$25)/$T$18 -> 1.612608669 | AB26: =Res_RD!AB24+Res_RD!AB25 -> 37665.89767 | AC26: =Res_RD!AC24+Res_RD!AC25 -> 19722.47102
C27: =C26=C15/C18 -> FALSE
B29: CALCULATION OF ILLUSTRATIVE CARE SUBSIDY | C29: Pre-CARE Illustrative Residential Transportation | F29: Illustrative Interim Bundled CARE Rates | G29: CARE | H29: CARE Bundled | I29: Illustrative CARE Bundled | J29: Illustrative CARE Transportation | K29: Total Illustrative CARE | L29: Current CARE | M29: Illustrative Incremental CARE | N29: Total Throughput Eligible for Recovery of CARE Discount | O29: Incremental Illustrative PPP Rates due to Change in CARE Discount | S29: CALCULATION OF ILLUSTRATIVE CARE SUBSIDY | T29: Pre-CARE Illustrative Residential Transportation | W29: Illustrative Interim Bundled CARE Rates | X29: CARE | Y29: CARE Bundled | Z29: Illustrative CARE Bundled | AA29: Illustrative CARE Transportation | AB29: Total Illustrative CARE | AC29: Current CARE | AD29: Illustrative Incremental CARE | AE29: Total Throughput Eligible for Recovery of CARE Discount | AF29: Illustrative Incremental PPP Rates due to Change in CARE Discount
C30: Rates | F30: ="(w/"&I23*100&"% discount)" -> (w/20% discount) | G30: ="Discount ("&I23*100&"%)" -> Discount (20%) | H30: Volumes (mth) | I30: Discount | J30: Discount | K30: Discount | L30: Discount | M30: Discount | T30: Rates | W30: ="(w/"&Z23*100&"% discount)" -> (w/20% discount) | X30: ="Discount ("&Z23*100&"%)" -> Discount (20%) | Y30: Volumes (mth) | Z30: Discount | AA30: Discount | AB30: Discount | AC30: Discount | AD30: Discount
C31: =Res_RD!C24 -> 1.850275179 | F31: =ROUND((Res_RD!C24+H24+F24+G24)*(1-$I$23),20) -> 1.885896785 | G31: =SUM(C24:H24)-F31 -> 0.4714741962 | H31: 240412.9786 | I31: =Res_RD!H31*Res_RD!G31 -> 113348.5158 | J31: =Res_RD!L24 -> 12927.85777 | K31: =SUM(I31:J31) -> 126276.3736 | O31: =O33 -> -0.00357825767 | T31: =Res_RD!T24 -> 2.003829325 | W31: =ROUND((Res_RD!T24+Y24+W24+X24)*(1-$Z$23),20) -> 1.987916561 | X31: =SUM(T24:Y24)-W31 -> 0.4969791403 | Y31: =H31 -> 240412.9786 | Z31: =Res_RD!Y31*Res_RD!X31 -> 119480.2354 | AA31: =Res_RD!AC24 -> 13627.20524 | AB31: =SUM(Z31:AA31) -> 133107.4407 | AF31: =AF33 -> -0.0009965358644
C32: =Res_RD!C25 -> 2.314421786 | F32: =ROUND((Res_RD!C25+H25+F25+G25)*(1-$I$23),20) -> 2.257214071 | G32: =SUM(C25:H25)-F32 -> 0.5643035177 | H32: 89800.49498 | I32: =Res_RD!H32*Res_RD!G32 -> 50674.73521 | J32: =Res_RD!L25 -> 5781.753837 | K32: =SUM(I32:J32) -> 56456.48905 | O32: =O33 -> -0.00357825767 | T32: =Res_RD!T25 -> 2.493446212 | W32: =ROUND((Res_RD!T25+Y25+W25+X25)*(1-$Z$23),20) -> 2.379610072 | X32: =SUM(T25:Y25)-W32 -> 0.5949025179 | Y32: =H32 -> 89800.49498 | Z32: =Res_RD!Y32*Res_RD!X32 -> 53422.54058 | AA32: =Res_RD!AC25 -> 6095.265771 | AB32: =SUM(Z32:AA32) -> 59517.80635 | AF32: =AF33 -> -0.0009965358644
B33: Total | H33: =Res_RD!H31+Res_RD!H32 -> 330213.4735 | I33: =Res_RD!I31+Res_RD!I32 -> 164023.251 | J33: =Res_RD!J31+Res_RD!J32 -> 18709.6116 | K33: =Res_RD!K31+Res_RD!K32 -> 182732.8626 | L33: 196443.6738 | M33: =K33-L33 -> -13710.8112 | N33: 3831700.358 | O33: =M33/N33 -> -0.00357825767 | S33: Total | Y33: =Res_RD!Y31+Res_RD!Y32 -> 330213.4735 | Z33: =Res_RD!Z31+Res_RD!Z32 -> 172902.776 | AA33: =Res_RD!AA31+Res_RD!AA32 -> 19722.47102 | AB33: =Res_RD!AB31+Res_RD!AB32 -> 192625.247 | AC33: =L33 -> 196443.6738 | AD33: =AB33-AC33 -> -3818.426829 | AE33: 3831700.358 | AF33: =AD33/AE33 -> -0.0009965358644
B35: CALCULATION OF FINAL ILLUSTRATIVE RESIDENTIAL NON-CARE RATES | R35: CALCULATION OF FINAL ILLUSTRATIVE RESIDENTIAL NON-CARE RATES
B37: Post-CARE costs allocated to residential class | C37: =C13*C$42/C$18 -> 2807059.212 | S37: Post-CARE costs allocated to residential class | T37: =T13*T$42/T$18 -> 2807059.212
B38: + Authorized Incremental RRQ | C38: =C14*C$42/C$18 -> -241853.6697 | S38: + Authorized Incremental RRQ | T38: =T14*T$42/T$18 -> -33573.32054
B39: = Total Post-CARE costs allocated to residential class | C39: =SUM(C37:C38) -> 2565205.543 | S39: = Total Post-CARE costs allocated to residential class | T39: =SUM(T37:T38) -> 2773485.892
B40: Residential Tier I volumes (non-CARE) | C40: 920403.8806 | S40: Residential Tier I volumes (non-CARE) | T40: =C40 -> 920403.8806
B41: + Residential Tier II volumes (non-CARE) | C41: 377447.496 | S41: + Residential Tier II volumes (non-CARE) | T41: =C41 -> 377447.496
B42: Total Residential Volumes (Non-CARE) | C42: =SUM(C40:C41) -> 1297851.377 | S42: Total Residential Volumes (Non-CARE) | T42: =SUM(T40:T41) -> 1297851.377
B44: GCAP Decision Ratio of Tier II/Tier I Residential Transportation Rates | C44: =C20 -> 1.250852745 | S44: GCAP Decision Ratio of Tier II/Tier I Residential Transportation Rates | T44: =T20 -> 1.244340614
D46: Current Minimum | U46: Current Minimum
C47: Non-CARE | D47: Monthly Transporation | E47: Post-MMTC | F47: Residential Procurement Rate | H47: Non-CARE | J47: Authorized | K47: Recovery of | T47: Non-CARE | U47: Monthly Transporation | V47: Post-MMTC | W47: Residential Procurement Rate | Y47: Non-CARE | AA47: Illustrative Authorized + | AB47: Recovery of
C48: Illustrative Residential Transportation | D48: Charge (MMTC) adjustment | E48: Illustrative Non-CARE Res Transporation | F48: Current Rate | G48: Authorized Illustrative Incremental Rate | H48: Illustrative Bundled Rate | I48: Current PPP Rate | J48: Illustrative Incremental PPP Rate | K48: Illustrative Incremental CARE Discount | L48: Total Illustrative Non-CARE Bundled Rate | T48: Illustrative Residential Transportation | U48: Charge (MMTC) adjustment | V48: Illustrative Non-CARE Res Transporation | W48: Current Rate | X48: Illustrative Authorized + Illustrative Pending Incremental | Y48: Illustrative Bundled Rate | Z48: Current PPP Rate | AA48: Pending Illustrative Incremental PPP Rate | AB48: Illustrative Incremental CARE Discount | AC48: Total Illustrative Non-CARE Bundled Rate
B49: Illustrative Residential Tier I rates | C49: =C39/(C40+C41*C44) -> 1.842111923 | D49: 0.006582866837 | E49: =C49-D49 -> 1.835529057 | F49: =F24 -> 0.50786 | G49: =G24 -> 0 | H49: =E49+SUM(F49:G49) -> 2.343389057 | I49: 0.12103 | J49: =SUMPRODUCT('SAR and RAR'!$G$3:$AA$3,'SAR and RAR'!$G$13:$AA$13)/C18 -> 0.006739198971 | K49: =O33 -> -0.00357825767 | L49: =SUM(H49:K49) -> 2.467579998 | S49: Illustrative Residential Tier I rates | T49: =T39/(T40+T41*T44) -> 1.99520288 | U49: =D49 -> 0.006582866837 | V49: =T49-U49 -> 1.988620013 | W49: =W24 -> 0.50786 | X49: =X24 -> -0.02602942506 | Y49: =V49+SUM(W49:X49) -> 2.470450588 | Z49: =I49 -> 0.12103 | AA49: =SUMPRODUCT('SAR and RAR'!$G$3:$AA$3,'SAR and RAR'!$G$16:$AA$16)/T18 -> -0.005502492858 | AB49: =AF31 -> -0.0009965358644 | AC49: =SUM(Y49:AB49) -> 2.584981559
B50: Illustrative Residential Tier II rates | C50: =C49*C44 -> 2.304210756 | D50: 0 | E50: =C50-D50 -> 2.304210756 | F50: =F25 -> 0.50786 | G50: =G25 -> 0 | H50: =E50+SUM(F50:G50) -> 2.812070756 | I50: =I49 -> 0.12103 | J50: =J49 -> 0.006739198971 | K50: =O33 -> -0.00357825767 | L50: =SUM(H50:K50) -> 2.936261697 | S50: Illustrative Residential Tier II rates | T50: =T49*T44 -> 2.482711977 | U50: =D50 -> 0 | V50: =T50-U50 -> 2.482711977 | W50: =W25 -> 0.50786 | X50: =X25 -> -0.02602942506 | Y50: =V50+SUM(W50:X50) -> 2.964542552 | Z50: =I50 -> 0.12103 | AA50: =AA49 -> -0.005502492858 | AB50: =AF32 -> -0.0009965358644 | AC50: =SUM(Y50:AB50) -> 3.079073523
B51: Avg. Illustrative Non-CARE Residential Rate (Bundled & Transportation-only) | C51: =(($C$40*C49)+($C$41*C50))/$C$42 -> 1.97650177 | D51: =(($C$40*D49)+($C$41*D50))/$C$42 -> 0.004668405252 | E51: =(($C$40*E49)+($C$41*E50))/$C$42 -> 1.971833365 | F51: =SUMPRODUCT($C$40:$C$41,F$49:F$50)/$C$42 -> 0.50786 | G51: =SUMPRODUCT($C$40:$C$41,$G$49:$G$50)/$C$42 -> 0 | H51: =SUMPRODUCT($C$40:$C$41,$H$49:$H$50)/$C$42 -> 2.479693365 | I51: =SUMPRODUCT($C$40:$C$41,$I$49:$I$50)/$C$42 -> 0.12103 | J51: =J49 -> 0.006739198971 | K51: =SUMPRODUCT($C$40:$C$41,$K$49:$K$50)/$C$42 -> -0.00357825767 | L51: =SUM(H51:K51) -> 2.603884306 | S51: Avg. Illustrative Non-CARE Residential Rate (Bundled & Transportation-only) | T51: =(($T$40*T49)+($T$41*T50))/$T$42 -> 2.136982664 | U51: =(($T$40*U49)+($T$41*U50))/$T$42 -> 0.004668405252 | V51: =(($T$40*V49)+($T$41*V50))/$T$42 -> 2.132314259 | W51: =SUMPRODUCT($T$40:$T$41,$W$49:$W$50)/$T$42 -> 0.50786 | X51: =SUMPRODUCT($T$40:$T$41,$X$49:$X$50)/$T$42 -> -0.02602942506 | Y51: =(($T$40*Y49)+($T$41*Y50))/$T$42 -> 2.614144834 | Z51: =I51 -> 0.12103 | AA51: =AA49 -> -0.005502492858 | AB51: =AF33 -> -0.0009965358644 | AC51: =SUM(Y51:AB51) -> 2.728675805
H52: =H50/H49 -> 1.200001659 | I52: <=Macro sets this cell equal to | J52: 1.2 | Y52: =Y50/Y49 -> 1.200000747 | Z52: <=Macro sets this cell equal to | AA52: =IF(Summary!$D$3=2024,1.249,1.2) -> 1.2
I53: by changing the value in cell C20 | Z53: by changing the value in cell T20
B56: CALCULATION OF FINAL ILLUSTRATIVE RESIDENTIAL CARE RATES | R56: CALCULATION OF FINAL ILLUSTRATIVE RESIDENTIAL CARE RATES
C58: Non-CARE | D58: CSI - Thermal | E58: CARE | G58: Illustrative Authorized | T58: Non-CARE | U58: CSI - Thermal | V58: CARE | X58: Illustrative Authorized+Illustrative Pending
C59: Illustrative Bundled | D59: Exemption | E59: Illustrative Bundled | F59: Current CARE PPP | G59: Incremental PPP | H59: Total Illustrative CARE | T59: Illustrative Bundled | U59: Exemption | V59: Illustrative Bundled | W59: Current CARE PPP | X59: Incremental PPP | Y59: Total Illustrative CARE
C60: Rate | E60: Rate | F60: Rate | G60: Rate | H60: Bundled Rate | T60: Rate | V60: Rate | W60: Rate | X60: Rate | Y60: Bundled Rate
B61: Illustrative Residential Tier I rates | C61: =H49 -> 2.343389057 | D61: =H24 -> -0.000764197823 | E61: =SUM(C61:D61)*(1-$I$23) -> 1.874099887 | F61: 0.07522 | G61: =J49 -> 0.006739198971 | H61: =E61+F61+G61 -> 1.956059086 | S61: Illustrative Residential Tier I rates | T61: =Y49 -> 2.470450588 | U61: =Y24 -> -0.000764197823 | V61: =SUM(T61:U61)*(1-$Z$23) -> 1.975749112 | W61: =F61 -> 0.07522 | X61: =AA49 -> -0.005502492858 | Y61: =V61+W61+X61 -> 2.045466619
B62: Illustrative Residential Tier II rates | C62: =H50 -> 2.812070756 | D62: =H25 -> -0.000764197823 | E62: =SUM(C62:D62)*(1-$I$23) -> 2.249045246 | F62: =F61 -> 0.07522 | G62: =G61 -> 0.006739198971 | H62: =E62+F62+G62 -> 2.331004445 | S62: Illustrative Residential Tier II rates | T62: =Y50 -> 2.964542552 | U62: =Y25 -> -0.000764197823 | V62: =SUM(T62:U62)*(1-$Z$23) -> 2.371022683 | W62: =W61 -> 0.07522 | X62: =X61 -> -0.005502492858 | Y62: =V62+W62+X62 -> 2.44074019
B63: Avg. Illustrative CARE Residential Rate | C63: =H51 -> 2.479693365 | D63: =H26 -> -0.000764197823 | E63: =SUMPRODUCT($H$31:$H$32,E$61:E$62)/$H$33 -> 1.976065075 | F63: =F62 -> 0.07522 | G63: =G61 -> 0.006739198971 | H63: =SUMPRODUCT($H$31:$H$32,H$61:H$62)/$H$33 -> 2.058024274 | S63: Avg. Illustrative CARE Residential Rate | T63: =Y51 -> 2.614144834 | U63: =Y26 -> -0.000764197823 | V63: =SUMPRODUCT($Y$31:$Y$32,V$61:V$62)/$Y$33 -> 2.083242492 | W63: =W62 -> 0.07522 | X63: =X61 -> -0.005502492858 | Y63: =SUMPRODUCT($Y$31:$Y$32,Y$61:Y$62)/$Y$33 -> 2.152959999

Sheet Instructions-Hypothetical
A1: INSTRUCTIONS TO RUN "HYPOTHETICAL" MODEL
A2: CLICK HERE FOR INSTRUCTIONS ON VALIDATING AGAINST BILL INSERT
B5: The "hypothetical" portion of this model produces illustrative rates and illustrative residential bill calculations based on selected user inputs.
B6: PLEASE DO NOT INSERT ROWS OR COLUMNS INTO THE SUMMARY
B7: To run the "hypothetical" portion of the model:
B9: 1. | C9: User drop down selections are highlighted in green.
B10: 2. | C10: User value input cells are highlighted in yellow.
B11: 3. | C11: In cell D4 of the "Hypothetical Summary" tab, select, from the dropdown choices, the baseline territory for which illustrative bill impacts are desired.
B12: 4. | C12: Select the "Residential Tier Ratio" in the green highlighted cells G7 of the "Hypothetical Summary" tab.
C13: Authorized tier ratios (D.19-10-036, Ordering Paragraph 4) are listed by year in the table below OR the user may enter their own desired tier ratio.
D14: For 2026 revenues | E14: . | F14: . | G14: =Instructions!G16 -> 1.20 (Note that the initial tiering factor for 2026 has been set at 1.246 therefore the factor for 2026 will remain at the already established value)
D15: For 2027 + revenues | E15: . | F15: . | G15: 1.2
B16: 5. | C16: Enter the "hypothetical" revenues, by program, in the yellow highlighted cells in column F of the "Hypothetical Summary" tab.
B17: 6. | C17: In column I of the "Hypothetical Summary" tab, select from the dropdown choices, the desired allocation methodology.
C18: Note that PG&E's proposed allocation methdology is listed in column H of the "Hypothetical Summary" tab.
C19: Also note that there are three opportunities for the user to enter their own Allocation Methodology on the "RRQ Allocations" tab (ILLUSTRATION 2)
C20: and as described under the "RRQ ALLOCATION OPTIONS" section on the "Instruction" tab.
B21: 7. | C21: Create hypothetical illustrative tiered residential rates by executing the "Run Hypothetical Residential Rate Tiering" macro (ILLUSTRATION 1).
C24: ILLUSTRATION 1: | P24: 7.
H25: 3. | K25: 5. | M25: 4. | Q25: 6.
B44: RRQ ALLOCATION OPTIONS:
B45: 1. | C45: On the "RRQ Allocations" tab there are 4 spaces for the user to enter their own allocation methodology (ILLUSTRATION 2).
C46: NOTE that this tab has not been fully populated by PG&E.
C48: ILLUSTRATION 2
A90: VALIDATING THE RESULTS OF THE ILLUSTRATIVE "TYPICAL CUSTOMER" BILL AGAINST A BILL INSERT
B92: 1. | C92: The model is set up to accept separate "typical" therms for Non-CARE and CARE customers. (See screenshot below, yellow highlights.)
B93: 2. | C93: Ensure that the therms entered in the model match the therms used in the bill insert.
B94: 3. | C94: Ensure that only the revenue requirement being evaluated is included in the impact. (See step 5 above.)
B95: 4. | C95: Run the model as described in the instructions above.

Sheet Hypothetical Summary
B1: PLEASE DO NOT INSERT ROWS OR COLUMNS
B2: User Inputs: | C2: Yellow highlighted cells - enter value
C3: Green highlighted cells - select from drop-down menu
F6: Year (informational only) | G6: =IF(Hypothetical_Tier_Ratio=1.246,2026, "2027 or later") -> 2027 or later | K6: Assumptions:
F7: Residential Tier Ratio | K7: Current Effective Rates | M7: =Summary!L3 -> 2026-03-01
C8: Baseline Region - (Residential bill) | D8: ALL CLIMATE ZONES | F8: (See Instructions-Hypothetical) | G8: 1.2 | K8: Throughput Forecast | M8: =Summary!L4 -> 2023 CARD
K9: Illustrative Residential bill calculated using | M9: =Summary!L5 -> Schedule G-1, Basic, Single Family | N9: =Summary!M5 -> 0 | O9: =Summary!N5 -> 0
D10: Current | E10: PG&E Requested | G10: Incremental | H10: Adopted or Proposed Allocation | I10: Hypothetical Allocation | K10: Illustrative Non-CARE bill impact calculated with average summer usage of | O10: =VLOOKUP('Hypothetical Summary'!$D$8,'Hypothetical Res Bill Impact'!$P$22:$V$31,2,FALSE) -> 16.8868721 | P10: therms per month
D11: Authorized | E11: Revenue * | F11: Hypothetical | G11: Hypothetical | H11: Methodology | I11: Methodology | K11: Illustrative Non-CARE bill impact calculated with average winter off-peak usage of | O11: =VLOOKUP('Hypothetical Summary'!$D$8,'Hypothetical Res Bill Impact'!$P$22:$V$31,3,FALSE) -> 41.97723344 | P11: therms per month
B12: Pending Proceedings | D12: Revenue | E12: (Informational Only) | F12: Revenue | G12: Revenue | H12: (Informational Only) | I12: (Select from drop down menu) | K12: Illustrative Non-CARE bill impact calculated with average winter on-peak usage of | O12: =VLOOKUP('Hypothetical Summary'!$D$8,'Hypothetical Res Bill Impact'!$P$22:$V$31,4,FALSE) -> 56.78155781 | P12: therms per month
B13: =Summary!B9 -> 2027 Energy Savings Assistance Bridge Funding | D13: ='Incremental Rev Req'!$D$44 -> 75530.121 | E13: =MAX('Incremental Rev Req'!G110:K110) -> 55567.26105 | F13: 75530.121 | G13: =F13-D13 -> 0 | H13: =IF('Incremental Rev Req'!E110=0," ",'Incremental Rev Req'!E110) -> PPP | I13: ESA | K13: Illustrative CARE bill impact calculated with average summer usage of | O13: =VLOOKUP('Hypothetical Summary'!$D$8,'Hypothetical Res Bill Impact'!$P$22:$V$31,5,FALSE) -> 16.95668609 | P13: therms per month
B14: =Summary!B10 -> 2027 CARE Administrative Bridge Funding | D14: ='Incremental Rev Req'!$D$46 -> 2957.54 | E14: =MAX('Incremental Rev Req'!G111:K111) -> 2059.02 | F14: 2957.54 | G14: =F14-D14 -> 0 | H14: =IF('Incremental Rev Req'!E111=0," ",'Incremental Rev Req'!E111) -> PPP | I14: PPP ECPT | K14: Illustrative CARE bill impact calculated with average winter off-peak usage of | O14: =VLOOKUP('Hypothetical Summary'!$D$8,'Hypothetical Res Bill Impact'!$P$22:$V$31,6,FALSE) -> 36.20604596 | P14: therms per month
B15: =Summary!B11 -> Income Qualified Program (ESA) PY 2028-2033 | D15: ='Incremental Rev Req'!$D$44 -> 75530.121 | E15: =MAX('Incremental Rev Req'!G112:K112) -> 74375.996 | F15: 75530.121 | G15: =F15-D15 -> 0 | H15: ='Incremental Rev Req'!E112 -> PPP | I15: ESA | K15: Illustrative CARE bill impact calculated with average winter on-peak usage of | O15: =VLOOKUP('Hypothetical Summary'!$D$8,'Hypothetical Res Bill Impact'!$P$22:$V$31,7,FALSE) -> 48.77262802 | P15: therms per month
B16: =Summary!B12 -> Income Qualified Program (CARE) PY 2028-2033 | D16: ='Incremental Rev Req'!$D$46 -> 2957.54 | E16: =MAX('Incremental Rev Req'!G113:K113) -> 1755.33 | F16: 2957.54 | G16: 0 | H16: ='Incremental Rev Req'!E113 -> PPP | I16: PPP ECPT | K16: Average monthly usage is for all customers (Non-CARE and CARE) based on seasonal usage in | Q16: =Summary!P12 -> 2025
B17: =Summary!B13 -> Billing Modernization (Distribution) | D17: 0 | E17: =MAX('Incremental Rev Req'!G80:K80) -> 26260.509 | F17: 0 | G17: 0 | H17: ='Incremental Rev Req'!E80 -> Distribution | I17: Distribution | K17: Summer Season | M17: =Summary!L13 -> 7 | N17: months
B18: =Summary!B14 -> Billing Modernization (Transmission) | D18: 0 | E18: =MAX('Incremental Rev Req'!G81:K81) -> 12499.889 | F18: 0 | G18: 0 | H18: ='Incremental Rev Req'!E81 -> ECPT | I18: ECPT - ALL | K18: Winter Season Off-peak | M18: =Summary!L14 -> 3 | N18: months
B19: =Summary!B15 -> Stanpac Application | D19: 0 | E19: =MAX('Incremental Rev Req'!G82:K82) -> 893.4158148 | F19: 0 | G19: 0 | H19: ='Incremental Rev Req'!E82 -> ECPT | I19: ECPT - ALL | K19: Winter Season On-peak | M19: =Summary!L15 -> 2 | N19: months
B20: =Summary!B16 -> Hydrogen Demonstration Project (2027) | D20: 0 | E20: =MAX('Incremental Rev Req'!G83:K83) -> 10659.19765 | F20: 0 | G20: 0 | H20: ='Incremental Rev Req'!E83 -> ECPT | I20: ECPT - ALL | K20: Typical Non-CARE Residential Customer usage | M20: 33 | N20: therms per month
B21: =Summary!B17 -> 2024 Wildfire Mitigation and Catastrophic Events (distribution) | D21: 0 | E21: =MAX('Incremental Rev Req'!G84:K84) -> 84357.11949 | F21: 0 | G21: 0 | H21: ='Incremental Rev Req'!E84 -> Distribution | I21: Distribution | K21: Typical CARE Residential Customer usage | M21: 29 | N21: therms per month
B22: =Summary!B18 -> 2024 Wildfire Mitigation and Catastrophic Events (transmission) | D22: 0 | E22: =MAX('Incremental Rev Req'!G85:K85) -> 6871.218397 | F22: 0 | G22: 0 | H22: ='Incremental Rev Req'!E85 -> ECPT | I22: ECPT - ALL | K22: Residential CARE Customers as Percent of Total Residential Customers | O22: 0.2253453186
B23: =Summary!B19 -> Energy Efficiency 2028-2031 | D23: ='Incremental Rev Req'!D43 -> 127629.8097 | E23: =MAX('Incremental Rev Req'!I114:K114) -> 142789.92 | F23: 127629.8097 | G23: 0 | H23: ='Incremental Rev Req'!E114 -> PPP | I23: EE | K23: Historic California Climate Credit | M23: 46.25933774
B24: =Summary!B20 -> Wildfire Gas and Safety Costs (Distribution) Non-IRR | D24: 0 | E24: =MAX('Incremental Rev Req'!G88:K88) -> 6776.716441 | F24: 0 | G24: =F24-D24 -> 0 | H24: ='Incremental Rev Req'!E88 -> Distribution | I24: Distribution | K24: Present California Climate Credit | M24: 46.25933774
B25: =Summary!B21 -> Wildfire Gas and Safety Costs (Transmission) - Non IRR | D25: 0 | E25: =MAX('Incremental Rev Req'!G89:K89) -> 44029.8428 | F25: 0 | G25: 0 | H25: ='Incremental Rev Req'!E89 -> ECPT | I25: ECPT - ALL
B26: =Summary!B22 -> Kincaid-Dixie (Distribution) | D26: 0 | E26: =MAX('Incremental Rev Req'!G90:K90) -> 71886.55064 | F26: 0 | G26: 0 | H26: ='Incremental Rev Req'!E90 -> Distribution | I26: Distribution
B27: =Summary!B23 -> Kincaid-Dixie (Generation) | D27: 0 | E27: =MAX('Incremental Rev Req'!G91:K91) -> 23780.14007 | F27: 0 | G27: 0 | H27: ='Incremental Rev Req'!E91 -> ECPT | I27: ECPT - ALL
B28: =Summary!B24 -> 2027 GRC - Gas Distribution | D28: ='Incremental Rev Req'!$D$10 -> 3015379.975 | E28: =MAX('Incremental Rev Req'!$G$95:$K$95) -> 3559975.17 | F28: 3015379.975 | G28: 0 | H28: ='Incremental Rev Req'!E95 -> Distribution | I28: Distribution
B29: =Summary!B25 -> 2027 GRC - Core Local Transmission | D29: ='Incremental Rev Req'!$D$19 -> 983371.3849 | E29: =MAX('Incremental Rev Req'!$G$96:$K$96) -> 1213479.716 | F29: 983371.3849 | G29: 0 | H29: ='Incremental Rev Req'!E96 -> ECPT | I29: ECPT - Core only
B30: =Summary!B26 -> 2027 GRC - Core Procurement (Intrastate Volumetric and Capacity) | D30: ='Incremental Rev Req'!$D$51 -> 196211.9165 | E30: =MAX('Incremental Rev Req'!$G$97:$K$97) -> 172408.0351 | F30: 196211.9165 | G30: 0 | H30: ='Incremental Rev Req'!E97 -> ECPT (No BB) | I30: ECPT - Core only (Procurement)
B31: =Summary!B27 -> 2027 GRC - Core Procurement (Storage) | D31: ='Incremental Rev Req'!$D$53 -> 135685.9394 | E31: =MAX('Incremental Rev Req'!$G$98:$K$98) -> 42272.31386 | F31: 135685.9394 | G31: 0 | H31: ='Incremental Rev Req'!E98 -> Unadjusted Cold Year Winter Season | I31: Storage Allocation (Procurement)
B32: =Summary!B28 -> 2027 GRC - Noncore Local Transmission | D32: ='Incremental Rev Req'!$D$20 -> 515826.5045 | E32: =MAX('Incremental Rev Req'!$G$99:$K$99) -> 637033.527 | F32: 515826.5045 | G32: 0 | H32: ='Incremental Rev Req'!E99 -> ECPT (No BB) | I32: ECPT - Noncore only
B33: =Summary!B29 -> 2027 GRC - Customer Access Charge | D33: ='Incremental Rev Req'!$D$21 -> 5465.240945 | E33: =MAX('Incremental Rev Req'!$G$100:$K$100) -> 5404.587277 | F33: 5465.240945 | G33: 0 | H33: ='Incremental Rev Req'!E100 -> CAC Allocation | I33: CAC Allocation
B34: =Summary!B30 -> 2027 GRC - Noncore Unbundled | D34: ='Incremental Rev Req'!$D$22 -> 263208.0005 | E34: =MAX('Incremental Rev Req'!$G$101:$K$101) -> 223442.2885 | F34: 263208.0005 | G34: 0 | H34: ='Incremental Rev Req'!E101 -> ECPT-All | I34: ECPT - ALL
B35: =Summary!B31 -> 2027 GRC - Inventory Management | D35: ='Incremental Rev Req'!$D$23 -> 143704.047 | E35: =MAX('Incremental Rev Req'!G102:K102) -> 171192.3792 | F35: 143704.047 | G35: 0 | H35: ='Incremental Rev Req'!E102 -> 2023 GTS - Inventory Management | I35: 2023 GTS - Inventory Management
B36: =Summary!B32 -> CFCA - NGSS Enduser Dist. Sub Acct Recovery | D36: ='Incremental Rev Req'!$D$64 -> 2051.460825 | E36: 0 | F36: 2051.460825 | G36: 0 | H36: ='Incremental Rev Req'!E103 -> Core - Distribution | I36: Core - Distribution
B37: =Summary!B33 -> CFCA/NCA - NGSS Enduser Sub Acct Recovery | D37: ='Incremental Rev Req'!$D$65 -> 487.8206422 | E37: 0 | F37: 487.8206422 | G37: 0 | H37: ='Incremental Rev Req'!E104 -> ECPT - ALL | I37: ECPT - ALL
B38: =Summary!B34 -> NCA - NGSS Enduser Sub Acct Recovery | D38: ='Incremental Rev Req'!$D$66 -> 501.0158178 | E38: 0 | F38: 501.0158178 | G38: 0 | H38: ='Incremental Rev Req'!E105 -> ECPT - Noncore only | I38: ECPT - Noncore only
B46: * For applications with revenues in multiple years, the highest year revenue is reflected here.
B48: Outputs:
D49: (A) | E49: (B) | F49: (C) | G49: (C)/(A) | H49: (C)/(B) | N49: (A) | O49: (B) | P49: (C) | Q49: (C)/(A) | R49: (C)/(B)
B50: Illustrative Bundled Average Rates - $ / therm | L50: Illustrative Total System (Bundled + Unbundled) Average Rates - $ / therm
B51: Customer Group | D51: =Summary!D46 -> 2026-01-01 | E51: =$M$7 -> 2026-03-01 | F51: Illustrative Proposed | G51: ="% Change over "&TEXT($D$51,"mm/d/yyyy") -> % Change over 01/1/2026 | H51: ="% Change over "&TEXT($M$7,"mm/d/yyyy") -> % Change over 03/1/2026 | L51: Customer Group | N51: =D51 -> 2026-01-01 | O51: =E51 -> 2026-03-01 | P51: =F51 -> Illustrative Proposed | Q51: =G51 -> % Change over 01/1/2026 | R51: =H51 -> % Change over 03/1/2026
B52: Residential | D52: =Summary!D47 -> 2.650756047 | E52: =Summary!E47 -> 2.660726159 | F52: ='Hypothetical SAR and RAR'!I38 -> 2.660726159 | G52: =$F52/D52-1 -> 0.003761233256 | H52: =$F52/E52-1 -> 0 | L52: Residential (RAR) | N52: =Summary!N47 -> 2.450640792 | O52: =Summary!O47 -> 2.492619045 | P52: ='Hypothetical SAR and RAR'!O38 -> 2.492619045 | Q52: =$P52/N52-1 -> 0.01712950063 | R52: =$P52/O52-1 -> 0
B53: System | D53: =Summary!D48 -> 2.447520575 | E53: =Summary!E48 -> 2.37724518 | F53: ='Hypothetical SAR and RAR'!I39 -> 2.37724518 | G53: =$F53/D53-1 -> -0.02871289265 | H53: =$F53/E53-1 -> 0 | L53: System (SAR) | N53: =Summary!N48 -> 1.099529651 | O53: =Summary!O48 -> 1.138823994 | P53: ='Hypothetical SAR and RAR'!O39 -> 1.138823994 | Q53: =$P53/N53-1 -> 0.03573741121 | R53: =$P53/O53-1 -> 0
L55: Illustrative System Rate does not include illustrative procurement for transport only customers.
B56: =CONCATENATE("Illustrative Bundled Residential Monthly Average Bills - Baseline Territory ",$D$8," (Includes Climate Credit)") -> Illustrative Bundled Residential Monthly Average Bills - Baseline Territory ALL CLIMATE ZONES (Includes Climate Credit)
D57: =$D$51 -> 2026-01-01 | E57: =$E$51 -> 2026-03-01 | F57: =$F$51 -> Illustrative Proposed | G57: =$G$51 -> % Change over 01/1/2026 | H57: =$H$51 -> % Change over 03/1/2026
B58: Non-CARE | D58: =((D64*$M$17)+(D70*$M$18)+(D76*$M$19))/12-M23/12 -> 75.63844557 | E58: =((E64*$M$17)+(E70*$M$18)+(E76*$M$19))/12-M24/12 -> 75.85837135 | F58: =((F64*$M$17)+(F70*$M$18)+(F76*$M$19))/12-M24/12 -> 75.85845229 | G58: =$F58/D58-1 -> 0.002908662659 | H58: 1.067012723e-06
B59: CARE | D59: =((D65*$M$17)+(D71*$M$18)+(D77*$M$19))/12-M23/12 -> 53.44327687 | E59: =((E65*$M$17)+(E71*$M$18)+(E77*$M$19))/12-M24/12 -> 53.60773349 | F59: =((F65*$M$17)+(F71*$M$18)+(F77*$M$19))/12-M24/12 -> 53.60779243 | G59: 0.003078320982 | H59: 1.099609697e-06
B60: Total | D60: =((D66*$M$17)+(D72*$M$18)+(D78*$M$19))/12-M23/12 -> 70.63686821 | E60: =((E66*$M$17)+(E72*$M$18)+(E78*$M$19))/12-M24/12 -> 70.84429427 | F60: =((F66*$M$17)+(F72*$M$18)+(F78*$M$19))/12-M24/12 -> 70.84437026 | G60: 0.002937588458 | H60: 1.072571106e-06
B62: =CONCATENATE("Illustrative Bundled Residential Monthly Average Bills - Summer - Baseline Territory ",$D$8) -> Illustrative Bundled Residential Monthly Average Bills - Summer - Baseline Territory ALL CLIMATE ZONES
D63: =$D$51 -> 2026-01-01 | E63: =$E$51 -> 2026-03-01 | F63: =$F$51 -> Illustrative Proposed | G63: =$G$51 -> % Change over 01/1/2026 | H63: =$H$51 -> % Change over 03/1/2026
B64: Non-CARE | D64: =VLOOKUP($D$8,'Hypothetical Res Bill Impact'!$B$37:$K$46,2,FALSE) -> 45.90699843 | E64: =VLOOKUP($D$8,'Hypothetical Res Bill Impact'!$B$37:$K$46,5,FALSE) -> 46.03469323 | F64: =VLOOKUP($D$8,'Hypothetical Res Bill Impact'!$B$37:$K$46,8,FALSE) -> 46.03473991 | G64: =$F64/D64-1 -> 0.002782614511 | H64: 1.013954185e-06
B65: CARE | D65: =VLOOKUP($D$8,'Hypothetical Res Bill Impact'!$B$52:$K$61,2,FALSE) -> 36.8240734 | E65: =VLOOKUP($D$8,'Hypothetical Res Bill Impact'!$B$52:$K$61,5,FALSE) -> 36.9304012 | F65: =VLOOKUP($D$8,'Hypothetical Res Bill Impact'!$B$52:$K$61,8,FALSE) -> 36.930439 | G65: 0.002888480003 | H65: 1.023631403e-06
B66: Total | D66: =D64*(1-$O$22)+('Hypothetical Summary'!D65*$O$22) -> 43.8602038 | E66: =E64*(1-$O$22)+('Hypothetical Summary'!E65*$O$22) -> 43.98308364 | F66: =F64*(1-$O$22)+('Hypothetical Summary'!F65*$O$22) -> 43.98312832 | G66: 0.002802643736 | H66: 1.015785223e-06
B68: =CONCATENATE("Illustrative Bundled Residential Monthly Average Bills - Winter Off-Peak - Baseline Territory ",$D$8) -> Illustrative Bundled Residential Monthly Average Bills - Winter Off-Peak - Baseline Territory ALL CLIMATE ZONES
D69: =$D$51 -> 2026-01-01 | E69: =$E$51 -> 2026-03-01 | F69: =$F$51 -> Illustrative Proposed | G69: =$G$51 -> % Change over 01/1/2026 | H69: =$H$51 -> % Change over 03/1/2026
B70: Non-CARE | D70: =VLOOKUP($D$8,'Hypothetical Res Bill Impact'!$B$37:$K$46,3,FALSE) -> 110.7585559 | E70: =VLOOKUP($D$8,'Hypothetical Res Bill Impact'!$B$37:$K$46,6,FALSE) -> 111.0640438 | F70: =VLOOKUP($D$8,'Hypothetical Res Bill Impact'!$B$37:$K$46,9,FALSE) -> 111.0641567 | G70: =$F70/D70-1 -> 0.002759162008 | H70: 1.016232648e-06
B71: CARE | D71: =VLOOKUP($D$8,'Hypothetical Res Bill Impact'!$B$52:$K$61,3,FALSE) -> 75.47790642 | E71: =VLOOKUP($D$8,'Hypothetical Res Bill Impact'!$B$52:$K$61,6,FALSE) -> 75.69375738 | F71: =VLOOKUP($D$8,'Hypothetical Res Bill Impact'!$B$52:$K$61,9,FALSE) -> 75.69383514 | G71: 0.002860820114 | H71: 1.027171897e-06
B72: Total | D72: =D70*(1-$O$22)+('Hypothetical Summary'!D71*$O$22) -> 102.8082267 | E72: =E70*(1-$O$22)+('Hypothetical Summary'!E71*$O$22) -> 103.0935154 | F72: =F70*(1-$O$22)+('Hypothetical Summary'!F71*$O$22) -> 103.0936203 | G72: 0.002775980325 | H72: 1.01804259e-06
B74: =CONCATENATE("Illustrative Bundled Residential Monthly Average Bills - Winter On-Peak - Baseline Territory ",$D$8) -> Illustrative Bundled Residential Monthly Average Bills - Winter On-Peak - Baseline Territory ALL CLIMATE ZONES
D75: =$D$51 -> 2026-01-01 | E75: =$E$51 -> 2026-03-01 | F75: =$F$51 -> Illustrative Proposed | G75: =$G$51 -> % Change over 01/1/2026 | H75: =$H$51 -> % Change over 03/1/2026
B76: Non-CARE | D76: =VLOOKUP($D$8,'Hypothetical Res Bill Impact'!$B$37:$K$46,4,FALSE) -> 150.1480139 | E76: =VLOOKUP($D$8,'Hypothetical Res Bill Impact'!$B$37:$K$46,7,FALSE) -> 150.5624049 | F76: =VLOOKUP($D$8,'Hypothetical Res Bill Impact'!$B$37:$K$46,10,FALSE) -> 150.5625579 | G76: =$F76/D76-1 -> 0.002760902015 | H76: 1.016063598e-06
B77: CARE | D77: =VLOOKUP($D$8,'Hypothetical Res Bill Impact'!$B$52:$K$61,4,FALSE) -> 101.6882136 | E77: =VLOOKUP($D$8,'Hypothetical Res Bill Impact'!$B$52:$K$61,7,FALSE) -> 101.9790295 | F77: =VLOOKUP($D$8,'Hypothetical Res Bill Impact'!$B$52:$K$61,10,FALSE) -> 101.9791343 | G77: 0.002860908703 | H77: 1.027160556e-06
B78: Total | D78: =D76*(1-$O$22)+('Hypothetical Summary'!D77*$O$22) -> 139.2278248 | E78: =E76*(1-$O$22)+('Hypothetical Summary'!E77*$O$22) -> 139.6143687 | F78: =F76*(1-$O$22)+('Hypothetical Summary'!F77*$O$22) -> 139.6145108 | G78: 0.002777361724 | H78: 1.017890155e-06
B81: =CONCATENATE("Illustrative Essential Use Bundled Residential Monthly Average Bills - Baseline Territory ",$D$8," (Includes Climate Credit)") -> Illustrative Essential Use Bundled Residential Monthly Average Bills - Baseline Territory ALL CLIMATE ZONES (Includes Climate Credit)
D82: =$D$51 -> 2026-01-01 | E82: =$E$51 -> 2026-03-01 | F82: =$F$51 -> Illustrative Proposed | G82: =$G$51 -> % Change over 01/1/2026 | H82: =$H$51 -> % Change over 03/1/2026
B83: Essential Use Non-CARE | D83: =((D89*$M$17)+(D95*$M$18)+(D101*$M$19))/12-M23/12 -> 70.90891599 | E83: =((E89*$M$17)+(E95*$M$18)+(E101*$M$19))/12-M24/12 -> 71.11501113 | F83: =((F89*$M$17)+(F95*$M$18)+(F101*$M$19))/12-M24/12 -> 71.11508732 | G83: =$F83/D83-1 -> 0.002907551648 | H83: 1.071476302e-06
B84: Essential Use CARE | D84: =((D90*$M$17)+(D96*$M$18)+(D102*$M$19))/12-M23/12 -> 53.55978573 | E84: =((E90*$M$17)+(E96*$M$18)+(E102*$M$19))/12-M24/12 -> 53.72397499 | F84: =((F90*$M$17)+(F96*$M$18)+(F102*$M$19))/12-M24/12 -> 53.72403414 | G84: 0.003066636653 | H84: 1.100887755e-06
B85: Total | D85: =((D91*$M$17)+(D97*$M$18)+(D103*$M$19))/12-M23/12 -> 66.9993707 | E85: =((E91*$M$17)+(E97*$M$18)+(E103*$M$19))/12-M24/12 -> 67.19602255 | F85: =((F91*$M$17)+(F97*$M$18)+(F103*$M$19))/12-M24/12 -> 67.1960949 | G85: 0.002936209649 | H85: 1.076775249e-06
B87: =CONCATENATE("Illustrative Essential Use Bundled Residential Monthly Average Bills - Summer - Baseline Territory ",$D$8) -> Illustrative Essential Use Bundled Residential Monthly Average Bills - Summer - Baseline Territory ALL CLIMATE ZONES
D88: =$D$51 -> 2026-01-01 | E88: =$E$51 -> 2026-03-01 | F88: =$F$51 -> Illustrative Proposed | G88: =$G$51 -> % Change over 01/1/2026 | H88: =$H$51 -> % Change over 03/1/2026
B89: Essential Use Non-CARE | D89: =VLOOKUP($D$8,'Hypothetical Res Bill Impact'!$B$69:$K$78,2,FALSE) -> 36.9304085 | E89: =VLOOKUP($D$8,'Hypothetical Res Bill Impact'!$B$69:$K$78,5,FALSE) -> 37.0322114 | F89: =VLOOKUP($D$8,'Hypothetical Res Bill Impact'!$B$69:$K$78,8,FALSE) -> 37.03224904 | G89: =$F89/D89-1 -> 0.002757633613 | H89: 1.016381138e-06
B90: Essential Use CARE | D90: =VLOOKUP($D$8,'Hypothetical Res Bill Impact'!$B$84:$K$93,2,FALSE) -> 27.65940567 | E90: =VLOOKUP($D$8,'Hypothetical Res Bill Impact'!$B$84:$K$93,5,FALSE) -> 27.73850345 | F90: =VLOOKUP($D$8,'Hypothetical Res Bill Impact'!$B$84:$K$93,8,FALSE) -> 27.73853194 | G90: 0.002860736269 | H90: 1.027182629e-06
B91: Total | D91: =D89*(1-$O$22)+('Hypothetical Summary'!D90*$O$22) -> 34.84123142 | E91: =E89*(1-$O$22)+('Hypothetical Summary'!E90*$O$22) -> 34.93791782 | F91: =F89*(1-$O$22)+('Hypothetical Summary'!F90*$O$22) -> 34.9379534 | G91: 0.002776078149 | H91: 1.018313633e-06
B93: =CONCATENATE("Illustrative Essential Use Bundled Residential Monthly Average Bills - Winter Off-Peak - Baseline Territory ",$D$8) -> Illustrative Essential Use Bundled Residential Monthly Average Bills - Winter Off-Peak - Baseline Territory ALL CLIMATE ZONES
D94: =$D$51 -> 2026-01-01 | E94: =$E$51 -> 2026-03-01 | F94: =$F$51 -> Illustrative Proposed | G94: =$G$51 -> % Change over 01/1/2026 | H94: =$H$51 -> % Change over 03/1/2026
B95: Essential Use Non-CARE | D95: =VLOOKUP($D$8,'Hypothetical Res Bill Impact'!$B$69:$K$78,3,FALSE) -> 111.5859789 | E95: =VLOOKUP($D$8,'Hypothetical Res Bill Impact'!$B$69:$K$78,6,FALSE) -> 111.8935784 | F95: =VLOOKUP($D$8,'Hypothetical Res Bill Impact'!$B$69:$K$78,9,FALSE) -> 111.8936921 | G95: =$F95/D95-1 -> 0.002757633613 | H95: 1.016381138e-06
B96: Essential Use CARE | D96: =VLOOKUP($D$8,'Hypothetical Res Bill Impact'!$B$84:$K$93,3,FALSE) -> 85.96154764 | E96: =VLOOKUP($D$8,'Hypothetical Res Bill Impact'!$B$84:$K$93,6,FALSE) -> 86.20737241 | F96: =VLOOKUP($D$8,'Hypothetical Res Bill Impact'!$B$84:$K$93,9,FALSE) -> 86.20746096 | G96: 0.002860736269 | H96: 1.027182629e-06
B97: Total | D97: =D95*(1-$O$22)+('Hypothetical Summary'!D96*$O$22) -> 105.8116333 | E97: =E95*(1-$O$22)+('Hypothetical Summary'!E96*$O$22) -> 106.1053121 | F97: =F95*(1-$O$22)+('Hypothetical Summary'!F96*$O$22) -> 106.1054202 | G97: 0.00277650871 | H97: 1.018358743e-06
B99: =CONCATENATE("Illustrative Essential Use Bundled Residential Monthly Average Bills - Winter On-Peak - Baseline Territory ",$D$4) -> Illustrative Essential Use Bundled Residential Monthly Average Bills - Winter On-Peak - Baseline Territory
D100: =$D$51 -> 2026-01-01 | E100: =$E$51 -> 2026-03-01 | F100: =$F$51 -> Illustrative Proposed | G100: =$G$51 -> % Change over 01/1/2026 | H100: =$H$51 -> % Change over 03/1/2026
B101: Essential Use Non-CARE | D101: =VLOOKUP($D$8,'Hypothetical Res Bill Impact'!$B$69:$K$78,4,FALSE) -> 151.9477667 | E101: =VLOOKUP($D$8,'Hypothetical Res Bill Impact'!$B$69:$K$78,7,FALSE) -> 152.3666281 | F101: =VLOOKUP($D$8,'Hypothetical Res Bill Impact'!$B$69:$K$78,10,FALSE) -> 152.366783 | G101: =$F101/D101-1 -> 0.002757633613 | H101: 1.016381138e-06
B102: Essential Use CARE | D102: =VLOOKUP($D$8,'Hypothetical Res Bill Impact'!$B$84:$K$93,4,FALSE) -> 118.738142 | E102: =VLOOKUP($D$8,'Hypothetical Res Bill Impact'!$B$84:$K$93,7,FALSE) -> 119.0776982 | F102: =VLOOKUP($D$8,'Hypothetical Res Bill Impact'!$B$84:$K$93,10,FALSE) -> 119.0778205 | G102: 0.002860736269 | H102: 1.027182629e-06
B103: Total | D103: =D101*(1-$O$22)+('Hypothetical Summary'!D102*$O$22) -> 144.4641333 | E103: =E101*(1-$O$22)+('Hypothetical Summary'!E102*$O$22) -> 144.8651236 | F103: =F101*(1-$O$22)+('Hypothetical Summary'!F102*$O$22) -> 144.8652711 | G103: 0.002776729886 | H103: 1.018381916e-06
B106: =CONCATENATE("Illustrative Typical Customer Bundled Residential Monthly Average Bills - Baseline Territory ",$D$8," (Includes Climate Credit)") -> Illustrative Typical Customer Bundled Residential Monthly Average Bills - Baseline Territory ALL CLIMATE ZONES (Includes Climate Credit)
D107: =$D$51 -> 2026-01-01 | E107: =$E$51 -> 2026-03-01 | F107: =$F$51 -> Illustrative Proposed | G107: =$G$51 -> % Change over 01/1/2026 | H107: =$H$51 -> % Change over 03/1/2026
B108: =CONCATENATE($M$20," Therms Monthly Usage - Non-CARE") -> 33 Therms Monthly Usage - Non-CARE | D108: =((D114*$M$17)+(D120*$M$18)+(D126*$M$19))/12-M23/12 -> 88.59989734 | E108: =((E114*$M$17)+(E120*$M$18)+(E126*$M$19))/12-M24/12 -> 88.8591934 | F108: =((F114*$M$17)+(F120*$M$18)+(F126*$M$19))/12-M24/12 -> 88.8592872 | G108: =$F108/D108-1 -> 0.002927654189 | H108: 1.055613901e-06
B109: =CONCATENATE($M$21," Therms Monthly Usage - CARE") -> 29 Therms Monthly Usage - CARE | D109: =((D115*$M$17)+(D121*$M$18)+(D127*$M$19))/12-M23/12 -> 60.27361609 | E109: =((E115*$M$17)+(E121*$M$18)+(E127*$M$19))/12-M24/12 -> 60.45954718 | F109: =((F115*$M$17)+(F121*$M$18)+(F127*$M$19))/12-M24/12 -> 60.45961292 | G109: 0.003085874724 | H109: 1.087279398e-06
B110: Total | D110: =((D116*$M$17)+(D122*$M$18)+(D128*$M$19))/12-M23/12 -> 82.21670247 | E110: =((E116*$M$17)+(E122*$M$18)+(E128*$M$19))/12-M24/12 -> 82.45946607 | F110: =((F116*$M$17)+(F122*$M$18)+(F128*$M$19))/12-M24/12 -> 82.45955355 | G110: 0.002953792564 | H110: 1.060845798e-06
B112: =CONCATENATE("Illustrative Typical Customer Bundled Residential Monthly Average Bills - Summer - Baseline Territory ",$D$8) -> Illustrative Typical Customer Bundled Residential Monthly Average Bills - Summer - Baseline Territory ALL CLIMATE ZONES
D113: =$D$51 -> 2026-01-01 | E113: =$E$51 -> 2026-03-01 | F113: =$F$51 -> Illustrative Proposed | G113: =$G$51 -> % Change over 01/1/2026 | H113: =$H$51 -> % Change over 03/1/2026
B114: =CONCATENATE($M$20," Therms Monthly Usage - Non-CARE") -> 33 Therms Monthly Usage - Non-CARE | D114: =VLOOKUP($D$8,'Hypothetical Res Bill Impact'!$B$99:$K$108,2,FALSE) -> 96.41888232 | E114: =VLOOKUP($D$8,'Hypothetical Res Bill Impact'!$B$99:$K$108,5,FALSE) -> 96.69227264 | F114: =VLOOKUP($D$8,'Hypothetical Res Bill Impact'!$B$99:$K$108,8,FALSE) -> 96.69237018 | G114: =$F114/D114-1 -> 0.002836455403 | H114: 1.008723828e-06
B115: =CONCATENATE($M$21," Therms Monthly Usage - CARE") -> 29 Therms Monthly Usage - CARE | D115: =VLOOKUP($D$8,'Hypothetical Res Bill Impact'!$B$114:$K$123,2,FALSE) -> 66.75732565 | E115: =VLOOKUP($D$8,'Hypothetical Res Bill Impact'!$B$114:$K$123,5,FALSE) -> 66.95259013 | F115: =VLOOKUP($D$8,'Hypothetical Res Bill Impact'!$B$114:$K$123,8,FALSE) -> 66.95265834 | G115: 0.002926011374 | H115: 1.018827662e-06
B116: Total | D116: =D114*(1-$O$22)+('Hypothetical Summary'!D115*$O$22) -> 89.73478938 | E116: =E114*(1-$O$22)+('Hypothetical Summary'!E115*$O$22) -> 89.99057441 | F116: =F114*(1-$O$22)+('Hypothetical Summary'!F115*$O$22) -> 89.99066534 | G116: 0.002851468876 | H116: 1.010417796e-06
B118: =CONCATENATE("Illustrative Typical Customer Bundled Residential Monthly Average Bills - Winter Off-Peak - Baseline Territory ",$D$8) -> Illustrative Typical Customer Bundled Residential Monthly Average Bills - Winter Off-Peak - Baseline Territory ALL CLIMATE ZONES
D119: =$D$51 -> 2026-01-01 | E119: =$E$51 -> 2026-03-01 | F119: =$F$51 -> Illustrative Proposed | G119: =$G$51 -> % Change over 01/1/2026 | H119: =$H$51 -> % Change over 03/1/2026
B120: =CONCATENATE($M$20," Therms Monthly Usage - Non-CARE") -> 33 Therms Monthly Usage - Non-CARE | D120: =VLOOKUP($D$8,'Hypothetical Res Bill Impact'!$B$99:$K$108,3,FALSE) -> 86.90518591 | E120: =VLOOKUP($D$8,'Hypothetical Res Bill Impact'!$B$99:$K$108,6,FALSE) -> 87.14475 | F120: =VLOOKUP($D$8,'Hypothetical Res Bill Impact'!$B$99:$K$108,9,FALSE) -> 87.14483857 | G120: =$F120/D120-1 -> 0.002757633613 | H120: 1.016381138e-06
B121: =CONCATENATE($M$21," Therms Monthly Usage - CARE") -> 29 Therms Monthly Usage - CARE | D121: =VLOOKUP($D$8,'Hypothetical Res Bill Impact'!$B$114:$K$123,3,FALSE) -> 60.44829026 | E121: =VLOOKUP($D$8,'Hypothetical Res Bill Impact'!$B$114:$K$123,6,FALSE) -> 60.62115461 | F121: =VLOOKUP($D$8,'Hypothetical Res Bill Impact'!$B$114:$K$123,9,FALSE) -> 60.62121688 | G121: 0.002860736269 | H121: 1.027182629e-06
B122: Total | D122: =D120*(1-$O$22)+('Hypothetical Summary'!D121*$O$22) -> 80.94324833 | E122: =E120*(1-$O$22)+('Hypothetical Summary'!E121*$O$22) -> 81.16778195 | F122: =F120*(1-$O$22)+('Hypothetical Summary'!F121*$O$22) -> 81.16786459 | G122: 0.002774984504 | H122: 1.01819905e-06
B124: =CONCATENATE("Illustrative Typical Customer Bundled Residential Monthly Average Bills - Winter On-Peak - Baseline Territory ",$D$8) -> Illustrative Typical Customer Bundled Residential Monthly Average Bills - Winter On-Peak - Baseline Territory ALL CLIMATE ZONES
D125: =$D$51 -> 2026-01-01 | E125: =$E$51 -> 2026-03-01 | F125: =$F$51 -> Illustrative Proposed | G125: =$G$51 -> % Change over 01/1/2026 | H125: =$H$51 -> % Change over 03/1/2026
B126: =CONCATENATE($M$20," Therms Monthly Usage - Non-CARE") -> 33 Therms Monthly Usage - Non-CARE | D126: =VLOOKUP($D$8,'Hypothetical Res Bill Impact'!$B$99:$K$108,4,FALSE) -> 86.90518591 | E126: =VLOOKUP($D$8,'Hypothetical Res Bill Impact'!$B$99:$K$108,7,FALSE) -> 87.14475 | F126: =VLOOKUP($D$8,'Hypothetical Res Bill Impact'!$B$99:$K$108,10,FALSE) -> 87.14483857 | G126: =$F126/D126-1 -> 0.002757633613 | H126: 1.016381138e-06
B127: =CONCATENATE($M$21," Therms Monthly Usage - CARE") -> 29 Therms Monthly Usage - CARE | D127: =VLOOKUP($D$8,'Hypothetical Res Bill Impact'!$B$114:$K$123,4,FALSE) -> 60.44829026 | E127: =VLOOKUP($D$8,'Hypothetical Res Bill Impact'!$B$114:$K$123,7,FALSE) -> 60.62115461 | F127: =VLOOKUP($D$8,'Hypothetical Res Bill Impact'!$B$114:$K$123,10,FALSE) -> 60.62121688 | G127: 0.002860736269 | H127: 1.027182629e-06
B128: Total | D128: =D126*(1-$O$22)+('Hypothetical Summary'!D127*$O$22) -> 80.94324833 | E128: =E126*(1-$O$22)+('Hypothetical Summary'!E127*$O$22) -> 81.16778195 | F128: =F126*(1-$O$22)+('Hypothetical Summary'!F127*$O$22) -> 81.16786459 | G128: 0.002774984504 | H128: 1.01819905e-06

Sheet Instructions-Rate Trajectory
A1: INSTRUCTIONS TO RUN "ILLUSTRATIVE RATE TRAJECTORY" MODEL
B5: The "illustrative rate trajectory" portion of this model produces illustrative rates and illustrative residential bill calculations based on selected user inputs for a range of periods.
B6: PLEASE DO NOT INSERT ROWS OR COLUMNS INTO THE DASHBOARD
B7: To run the "illustrative rate trajectory" portion of the model:
B9: 1. | C9: User drop down selections are highlighted in green.
B10: 2. | C10: User value input cells are highlighted in yellow.
B11: 3. | C11: In cell D4 of the "Rate Trajectory Dashboard" tab, select, from the dropdown choices, the baseline territory for which bill impacts are desired (ILLUSTRATION 1).
B12: 4. | C12: In cell D5 of the "Rate Trajectory Dashboard" tab, select, from the dropdown choices, the desired start date for the Rate Trajectory Report (ILLUSTRATION 1).
C13: The Rate Trajectory Report will provide RRQ Information, Illustrative Average Bundled and Illustrative System Rates and Annual Average
C14: Illustrative Bills (CARE and Non-CARE) by selected baseline territory for a 24 month period beginning with the selection in cell D5
B15: 5. | C15: Enter the "Hypothetical Annual RRQs" revenues, for each year of the selected program, in the yellow highlighted cells in column G of the "Rate Trajectory Dashboard" tab (ILLUSTRATION 1).
C16: Note that PG&E's proposed Annual RRQs are listed in column E of the "Rate Trajectory Dashboard" tab.
B17: 6. | C17: In column I of the "Rate Trajectory Dashboard" tab, select from the dropdown choices, the desired allocation methodology (ILLUSTRATION 1).
C18: Note that PG&E's proposed allocation methdology is listed in column F of the "Rate Trajectory Dashboard" tab.
C19: Also note that there are opportunities for the user to enter their own Allocation Methodology on the "RRQ Allocations" tab (ILLUSTRATION 3)
C20: and as described under the "RRQ ALLOCATION OPTIONS" section on the "Instruction" tab.
B21: 7. | C21: In column J of the "Rate Trajectory Dashboard" tab, select from the dropdown choices, the start date for each year of each program listed in column B (ILLUSTRATION 1).
B22: 8. | C22: In column K of the "Rate Trajectory Dashboard" tab, enter the amortization period (in months) for each year of each program listed in column B (ILLUSTRATION 1).
C23: Note that the maximum months per line is 12 and if no amortization period is specified (i.e. cell is left blank), the RRQ amount remains in rates.
B24: 9. | C24: Residential Tier Ratios can be changed in out years on the "Hypothetical Res_RD" tab in cell K59 (ILLUSTRATION 2).
C25: Note that residential tier ratios are only changed in January of each year. Mid-year rate changes maintain the tier ratio set in January of each year.
C26: The tiering factor for 2026 has been established at 1.246.
B27: 10. | C27: Create the illustrative rate trajectory report by executing the "Run Rate Trajectory" macro (ILLUSTRATION 1).
J30: 10.
C31: ILLUSTRATION 1: | G31: 3.
H32: 4. | K32: 5. | N32: 6. | O32: 7. | P32: 8.
C43: ILLUSTRATION 2:
O44: 9.
B65: RRQ ALLOCATION OPTIONS:
B66: 1. | C66: On the "RRQ Allocations" tab there are spaces for the user to enter their own allocation methodology (ILLUSTRATION 3).
C67: NOTE that this tab has not been fully populated by PG&E.
C69: ILLUSTRATION 3

Sheet Rate Trajectory Dashboard
B1: PLEASE DO NOT ADD OR INSERT ROWS OR COLUMNS
B2: User Inputs: | C2: Yellow highlighted cells - enter number
C3: Green highlighted cells - select from drop-down menu
C5: Baseline Region - (Residential bill) | D5: ALL CLIMATE ZONES
C6: Start Date for Report | D6: 2026-06-01 | K6: Amortization
K7: Period in Months
D8: Current | H8: Hypothetical | J8: Yearly | K8: (Maximum 12
D9: Authorized | E9: PG&E Requested | F9: Adopted or PG&E Requested | G9: Hypothetical | H9: Incremental | I9: Hypothetical | J9: Start Date | K9: Months per
D10: Annual | E10: Annual RRQ | F10: Allocation Methodology | G10: Annual | H10: Annual | I10: Allocation Methodology | J10: (Select from | K10: Line OR
B11: Pending Proceedings | D11: Revenue | E11: (Informational Only) | F11: (Informational Only) | G11: RRQ | H11: RRQ | I11: (Select from Drop-down) | J11: Drop-down) | K11: Leave Blank) | L11: <<==If no amortization period is specified, RRQ amounts remain in rates.
B12: ='Incremental Rev Req'!A110 -> 2027 Energy Savings Assistance Bridge Funding | D12: ='Incremental Rev Req'!$D$44 -> 75530.121 | E12: 55567.26105 | F12: PPP | G12: 55567.26105 | H12: =G12-D12 -> -19962.85995 | I12: ESA | J12: 2027-01-01 | K12: 12
B13: ='Incremental Rev Req'!A111 -> 2027 CARE Administrative Bridge Funding | D13: ='Incremental Rev Req'!$D$46 -> 2957.54 | E13: 2059.02 | F13: PPP | G13: 2059.02 | H13: -898.52 | I13: PPP ECPT | J13: 2027-01-01 | K13: 12
B14: Income Qualified Program (ESA) PY 2028-2033 - Year 2028 | D14: ='Incremental Rev Req'!D44 -> 75530.121 | E14: 64939.148 | F14: PPP | G14: 64939.148 | H14: -10590.973 | I14: ESA | J14: 2028-01-01 | K14: 12
B15: Income Qualified Program (ESA) PY 2028-2033 - Year 2029 | D15: ='Incremental Rev Req'!$D$44 -> 75530.121 | E15: 72336.854 | F15: PPP | G15: 72336.854 | H15: -3193.267 | I15: ESA | J15: 2029-01-01 | K15: 12
B16: Income Qualified Program (ESA) PY 2028-2033 - Year 2030 | D16: ='Incremental Rev Req'!$D$44 -> 75530.121 | E16: 74375.996 | F16: PPP | G16: 74375.996 | H16: =G16-D16 -> -1154.125 | I16: ESA | J16: 2030-01-01
B17: Income Qualified Program (CARE) PY 2028-2033 - Year 2028 | D17: ='Incremental Rev Req'!$D$46 -> 2957.54 | E17: 1619.91 | F17: PPP | G17: 1619.91 | H17: -1337.63 | I17: PPP ECPT | J17: 2028-01-01 | K17: 12
B18: Income Qualified Program (CARE) PY 2028-2033 - Year 2029 | D18: ='Incremental Rev Req'!D46 -> 2957.54 | E18: 1700.19 | F18: PPP | G18: 1700.19 | H18: -1257.35 | I18: PPP ECPT | J18: 2029-01-01 | K18: 12
B19: Income Qualified Program (CARE) PY 2028-2033 - Year 2030 | D19: ='Incremental Rev Req'!D46 -> 2957.54 | E19: 1755.33 | F19: PPP | G19: 1755.33 | H19: =G19-D19 -> -1202.21 | I19: PPP ECPT | J19: 2030-01-01
B20: Billing Modernization (Distribution) - Year 2027 | D20: 0 | E20: 26260.509 | F20: Distribution | G20: 26260.509 | H20: 26260.509 | I20: Distribution | J20: 2027-01-01 | K20: 12
B21: Billing Modernization (Distribution) - Year 2028 | D21: 0 | E21: 16053.142 | F21: Distribution | G21: 16053.142 | H21: 16053.142 | I21: Distribution | J21: 2028-01-01 | K21: 12
B22: Billing Modernization (Distribution) - Year 2029 | D22: 0 | E22: 16042.666 | F22: Distribution | G22: 16042.666 | H22: 16042.666 | I22: Distribution | J22: 2029-01-01 | K22: 12
B23: Billing Modernization (Distribution) - Year 2030 | D23: 0 | E23: 24052.205 | F23: Distribution | G23: 24052.205 | H23: =G23-D23 -> 24052.205 | I23: Distribution | J23: 2030-01-01 | K23: 12
B24: Billing Modernization (Transmission) - Year 2027 | D24: 0 | E24: 12499.889 | F24: ECPT | G24: 12499.889 | H24: =G24-D24 -> 12499.889 | I24: ECPT - ALL | J24: 2027-01-01 | K24: 12
B25: Billing Modernization (Transmission) - Year 2028 | D25: 0 | E25: 7651.129 | F25: ECPT | G25: 7651.129 | H25: 7651.129 | I25: ECPT - ALL | J25: 2028-01-01 | K25: 12
B26: Billing Modernization (Transmission) - Year 2029 | D26: 0 | E26: 7646.136 | F26: ECPT | G26: 7646.136 | H26: 7646.136 | I26: ECPT - ALL | J26: 2029-01-01 | K26: 12
B27: Billing Modernization (Transmission) - Year 2030 | D27: 0 | E27: 11463.583 | F27: ECPT | G27: 11463.583 | H27: 11463.583 | I27: ECPT - ALL | J27: 2030-01-01 | K27: 12
B28: Stanpac Application - Year 2027 | D28: 0 | E28: 893.4158148 | F28: ECPT | G28: 893.4158148 | H28: 893.4158148 | I28: ECPT - ALL | J28: 2027-01-01 | K28: 12
B29: Stanpac Application - Year 2028 | D29: 0 | E29: 857.0302256 | F29: ECPT | G29: 857.0302256 | H29: 857.0302256 | I29: ECPT - ALL | J29: 2028-01-01 | K29: 12
B30: Stanpac Application - Year 2029 | D30: 0 | E30: 827.4630552 | F30: ECPT | G30: 827.4630552 | H30: 827.4630552 | I30: ECPT - ALL | J30: 2029-01-01 | K30: 12
B31: Stanpac Application - Year 2030 | D31: 0 | E31: 796.941247 | F31: ECPT | G31: 796.941247 | H31: =G31-D31 -> 796.941247 | I31: ECPT - ALL | J31: 2030-01-01 | K31: 12
B32: Hydrogen Demonstration Project (2027) - Year 2027 | D32: 0 | E32: 3022.022937 | F32: ECPT | G32: 3022.022937 | H32: 3022.022937 | I32: ECPT - ALL | J32: 2027-01-01 | K32: 12
B33: Hydrogen Demonstration Project (2027) - Year 2028 | D33: 0 | E33: 10324.82853 | F33: ECPT | G33: 10324.82853 | H33: 10324.82853 | I33: ECPT - ALL | J33: 2028-01-01 | K33: 12
B34: Hydrogen Demonstration Project (2027) - Year 2029 | D34: 0 | E34: 10534.09292 | F34: ECPT | G34: 10534.09292 | H34: 10534.09292 | I34: ECPT - ALL | J34: 2029-01-01 | K34: 12
B35: Hydrogen Demonstration Project (2027) - Year 2030 | D35: 0 | E35: 10659.19765 | F35: ECPT | G35: 10659.19765 | H35: =G35-D35 -> 10659.19765 | I35: ECPT - ALL | J35: 2030-01-01
B36: 2024 Wildfire Mitigation and Catastrophic Events (distribution) - Year 2027 | D36: 0 | E36: 84357.11949 | F36: Distribution | G36: 84357.11949 | H36: =G36-D36 -> 84357.11949 | I36: Distribution | J36: 2027-01-01 | K36: 12
B37: 2024 Wildfire Mitigation and Catastrophic Events (distribution) - Year 2028 | D37: 0 | E37: 18178.26264 | F37: Distribution | G37: 18178.26264 | H37: 18178.26264 | I37: Distribution | J37: 2028-01-01 | K37: 12
B38: 2024 Wildfire Mitigation and Catastrophic Events (distribution) - Year 2029 | D38: 0 | E38: 17712.2756 | F38: Distribution | G38: 17712.2756 | H38: 17712.2756 | I38: Distribution | J38: 2029-01-01 | K38: 12
B39: 2024 Wildfire Mitigation and Catastrophic Events (distribution) - Year 2030 | D39: 0 | E39: 17253.09497 | F39: Distribution | G39: 17253.09497 | H39: 17253.09497 | I39: Distribution | J39: 2030-01-01 | K39: 12
B40: 2024 Wildfire Mitigation and Catastrophic Events (transmission) - Year 2027 | D40: 0 | E40: 6871.218397 | F40: ECPT | G40: 6871.218397 | H40: =G40-D40 -> 6871.218397 | I40: ECPT - ALL | J40: 2027-01-01 | K40: 12
B41: 2024 Wildfire Mitigation and Catastrophic Events (transmission) - Year 2028 | D41: 0 | E41: 239.4188966 | F41: ECPT | G41: 239.4188966 | H41: 239.4188966 | I41: ECPT - ALL | J41: 2028-01-01 | K41: 12
B42: 2024 Wildfire Mitigation and Catastrophic Events (transmission) - Year 2029 | D42: 0 | E42: 225.0342646 | F42: ECPT | G42: 225.0342646 | H42: 225.0342646 | I42: ECPT - ALL | J42: 2029-01-01 | K42: 12
B43: 2024 Wildfire Mitigation and Catastrophic Events (transmission) - Year 2030 | D43: 0 | E43: 220.3344252 | F43: ECPT | G43: 220.3344252 | H43: 220.3344252 | I43: ECPT - ALL | J43: 2030-01-01 | K43: 12
B44: Wildfire Gas and Safety Costs (Distribution) Non-IRR | D44: 0 | E44: 6776.716441 | F44: Distribution | G44: 6776.716441 | H44: =G44-D44 -> 6776.716441 | I44: Distribution | J44: 2027-01-01 | K44: 12
B45: Wildfire Gas and Safety Costs (Transmission) - Non IRR - Year 2027 | D45: 0 | E45: 44029.8428 | F45: ECPT | G45: 44029.8428 | H45: 44029.8428 | I45: ECPT - ALL | J45: 2027-01-01 | K45: 12
B46: Kincaid-Dixie (Distribution) | D46: 0 | E46: 71886.55064 | F46: Distribution | G46: 71886.55064 | H46: 71886.55064 | I46: Distribution | J46: 2027-01-01 | K46: 12
B47: Kincaid-Dixie (Generation) | D47: 0 | E47: 23780.14007 | F47: ECPT | G47: 23780.14007 | H47: 23780.14007 | I47: ECPT - ALL | J47: 2027-01-01 | K47: 12
B48: 2027 GRC - Gas Distribution - Year 2027 | D48: ='Incremental Rev Req'!$D$10 -> 3015379.975 | E48: 3061244.211 | F48: Distribution | G48: 3061244.211 | H48: 45864.23671 | I48: Distribution | J48: 2027-01-01 | K48: 12
B49: 2027 GRC - Gas Distribution - Year 2028 | D49: ='Incremental Rev Req'!$D$10 -> 3015379.975 | E49: 3220789.415 | F49: Distribution | G49: 3220789.415 | H49: 205409.4401 | I49: Distribution | J49: 2028-01-01 | K49: 12
B50: 2027 GRC - Gas Distribution - Year 2029 | D50: ='Incremental Rev Req'!$D$10 -> 3015379.975 | E50: 3389414.767 | F50: Distribution | G50: 3389414.767 | H50: 374034.7925 | I50: Distribution | J50: 2029-01-01 | K50: 12
B51: 2028 GRC - Gas Distribution - Year 2030 | D51: ='Incremental Rev Req'!$D$10 -> 3015379.975 | E51: 3559975.17 | F51: Distribution | G51: 3559975.17 | H51: =G51-D51 -> 544595.1954 | I51: Distribution | J51: 2030-01-01
B52: 2027 GRC - Core Local Transmission - Year 2027 | D52: ='Incremental Rev Req'!$D$19 -> 983371.3849 | E52: 1102352.183 | F52: ECPT | G52: 1102352.183 | H52: =G52-D52 -> 118980.798 | I52: ECPT - Core only | J52: 2027-01-01 | K52: 12
B53: 2027 GRC - Core Local Transmission - Year 2028 | D53: ='Incremental Rev Req'!$D$19 -> 983371.3849 | E53: 1135354.816 | F53: ECPT | G53: 1135354.816 | H53: 151983.4313 | I53: ECPT - Core only | J53: 2028-01-01 | K53: 12
B54: 2027 GRC - Core Local Transmission - Year 2029 | D54: ='Incremental Rev Req'!$D$19 -> 983371.3849 | E54: 1173368.345 | F54: ECPT | G54: 1173368.345 | H54: 189996.9603 | I54: ECPT - Core only | J54: 2029-01-01 | K54: 12
B55: 2027 GRC - Core Local Transmission - Year 2030 | D55: ='Incremental Rev Req'!$D$19 -> 983371.3849 | E55: 1213479.716 | F55: ECPT | G55: 1213479.716 | H55: =G55-D55 -> 230108.3314 | I55: ECPT - Core only | J55: 2030-01-01
B56: 2027 GRC - Core Procurement (Intrastate Volumetric and Capacity) - Year 2027 | D56: ='Incremental Rev Req'!$D$51 -> 196211.9165 | E56: 144492.9212 | F56: ECPT (No BB) | G56: 144492.9212 | H56: -51718.99537 | I56: ECPT - Core only (Procurement) | J56: 2027-01-01 | K56: 12
B57: 2027 GRC - Core Procurement (Intrastate Volumetric and Capacity) - Year 2028 | D57: ='Incremental Rev Req'!$D$51 -> 196211.9165 | E57: 153719.4621 | F57: ECPT (No BB) | G57: 153719.4621 | H57: -42492.45442 | I57: ECPT - Core only (Procurement) | J57: 2028-01-01 | K57: 12
B58: 2027 GRC - Core Procurement (Intrastate Volumetric and Capacity) - Year 2029 | D58: ='Incremental Rev Req'!$D$51 -> 196211.9165 | E58: 162779.9119 | F58: ECPT (No BB) | G58: 162779.9119 | H58: -33432.00467 | I58: ECPT - Core only (Procurement) | J58: 2029-01-01 | K58: 12
B59: 2028 GRC - Core Procurement (Intrastate Volumetric and Capacity) - Year 2030 | D59: ='Incremental Rev Req'!$D$51 -> 196211.9165 | E59: 172408.0351 | F59: ECPT (No BB) | G59: 172408.0351 | H59: -23803.88144 | I59: ECPT - Core only (Procurement) | J59: 2030-01-01
B60: 2027 GRC - Core Procurement (Storage) - Year 2027 | D60: ='Incremental Rev Req'!$D$53 -> 135685.9394 | E60: 34475.58511 | F60: Unadjusted Cold Year Winter Season | G60: 34475.58511 | H60: =G60-D60 -> -101210.3543 | I60: Storage Allocation (Procurement) | J60: 2027-01-01 | K60: 12
B61: 2027 GRC - Core Procurement (Storage) - Year 2028 | D61: ='Incremental Rev Req'!$D$53 -> 135685.9394 | E61: 37259.1958 | F61: Unadjusted Cold Year Winter Season | G61: 37259.1958 | H61: -98426.74361 | I61: Storage Allocation (Procurement) | J61: 2028-01-01 | K61: 12
B62: 2027 GRC - Core Procurement (Storage) - Year 2029 | D62: ='Incremental Rev Req'!$D$53 -> 135685.9394 | E62: 39767.86767 | F62: Unadjusted Cold Year Winter Season | G62: 39767.86767 | H62: -95918.07174 | I62: Storage Allocation (Procurement) | J62: 2029-01-01 | K62: 12
B63: 2028 GRC - Core Procurement (Storage) - Year 2030 | D63: ='Incremental Rev Req'!$D$53 -> 135685.9394 | E63: 42272.31386 | F63: Unadjusted Cold Year Winter Season | G63: 42272.31386 | H63: -93413.62555 | I63: Storage Allocation (Procurement) | J63: 2030-01-01
B64: 2027 GRC - Noncore Local Transmission - Year 2027 | D64: ='Incremental Rev Req'!$D$20 -> 515826.5045 | E64: 578500.182 | F64: ECPT (No BB) | G64: 578500.182 | H64: 62673.67756 | I64: ECPT - Noncore only | J64: 2027-01-01 | K64: 12
B65: 2027 GRC - Noncore Local Transmission - Year 2028 | D65: ='Incremental Rev Req'!$D$20 -> 515826.5045 | E65: 595883.4141 | F65: ECPT (No BB) | G65: 595883.4141 | H65: 80056.90966 | I65: ECPT - Noncore only | J65: 2028-01-01 | K65: 12
B66: 2027 GRC - Noncore Local Transmission - Year 2029 | D66: ='Incremental Rev Req'!$D$20 -> 515826.5045 | E66: 615905.9866 | F66: ECPT (No BB) | G66: 615905.9866 | H66: 100079.4821 | I66: ECPT - Noncore only | J66: 2029-01-01 | K66: 12
B67: 2027 GRC - Noncore Local Transmission - Year 2030 | D67: ='Incremental Rev Req'!$D$20 -> 515826.5045 | E67: 637033.527 | F67: ECPT (No BB) | G67: 637033.527 | H67: =G67-D67 -> 121207.0225 | I67: ECPT - Noncore only | J67: 2030-01-01
B68: 2027 GRC - Customer Access Charge - Year 2027 | D68: ='Incremental Rev Req'!$D$21 -> 5465.240945 | E68: 3108.803628 | F68: CAC Allocation | G68: 3108.803628 | H68: -2356.437317 | I68: CAC Allocation | J68: 2027-01-01 | K68: 12
B69: 2027 GRC - Customer Access Charge - Year 2028 | D69: ='Incremental Rev Req'!$D$21 -> 5465.240945 | E69: 3870.218973 | F69: CAC Allocation | G69: 3870.218973 | H69: -1595.021972 | I69: CAC Allocation | J69: 2028-01-01 | K69: 12
B70: 2027 GRC - Customer Access Charge - Year 2029 | D70: ='Incremental Rev Req'!$D$21 -> 5465.240945 | E70: 4634.982782 | F70: CAC Allocation | G70: 4634.982782 | H70: -830.2581629 | I70: CAC Allocation | J70: 2029-01-01 | K70: 12
B71: 2027 GRC - Customer Access Charge - Year 2030 | D71: ='Incremental Rev Req'!$D$21 -> 5465.240945 | E71: 5404.587277 | F71: CAC Allocation | G71: 5404.587277 | H71: -60.6536682 | I71: CAC Allocation | J71: 2030-01-01
B72: 2027 GRC - Noncore Unbundled - Year 2027 | D72: ='Incremental Rev Req'!$D$22 -> 263208.0005 | E72: 197609.3823 | F72: ECPT-All | G72: 197609.3823 | H72: -65598.61827 | I72: ECPT - ALL | J72: 2027-01-01 | K72: 12
B73: 2027 GRC - Noncore Unbundled - Year 2028 | D73: ='Incremental Rev Req'!$D$22 -> 263208.0005 | E73: 206605.913 | F73: ECPT-All | G73: 206605.913 | H73: -56602.08753 | I73: ECPT - ALL | J73: 2028-01-01 | K73: 12
B74: 2027 GRC - Noncore Unbundled - Year 2029 | D74: ='Incremental Rev Req'!$D$22 -> 263208.0005 | E74: 213949.2198 | F74: ECPT-All | G74: 213949.2198 | H74: -49258.78074 | I74: ECPT - ALL | J74: 2029-01-01 | K74: 12
B75: 2027 GRC - Noncore Unbundled - Year 2030 | D75: ='Incremental Rev Req'!$D$22 -> 263208.0005 | E75: 223442.2885 | F75: ECPT-All | G75: 223442.2885 | H75: =G75-D75 -> -39765.71203 | I75: ECPT - ALL | J75: 2030-01-01
B76: 2027 GRC - Inventory Management - Year 2027 | D76: ='Incremental Rev Req'!$D$23 -> 143704.047 | E76: 139662.6234 | F76: 2023 GTS - Inventory Management | G76: 139662.6234 | H76: -4041.423614 | I76: 2023 GTS - Inventory Management | J76: 2027-01-01 | K76: 12
B77: 2027 GRC - Inventory Management - Year 2028 | D77: ='Incremental Rev Req'!$D$23 -> 143704.047 | E77: 150919.4682 | F77: 2023 GTS - Inventory Management | G77: 150919.4682 | H77: 7215.421172 | I77: 2023 GTS - Inventory Management | J77: 2028-01-01 | K77: 12
B78: 2027 GRC - Inventory Management - Year 2029 | D78: ='Incremental Rev Req'!$D$23 -> 143704.047 | E78: 161064.4679 | F78: 2023 GTS - Inventory Management | G78: 161064.4679 | H78: 17360.42093 | I78: 2023 GTS - Inventory Management | J78: 2029-01-01 | K78: 12
B79: 2027 GRC - Inventory Management - Year 2030 | D79: ='Incremental Rev Req'!$D$23 -> 143704.047 | E79: 171192.3792 | F79: 2023 GTS - Inventory Management | G79: 171192.3792 | H79: 27488.33219 | I79: 2023 GTS - Inventory Management | J79: 2030-01-01
B80: Energy Efficiency 2028-2031 - Year 2028 | D80: ='Incremental Rev Req'!$D$43 -> 127629.8097 | E80: 129117.004 | F80: PPP | G80: 129117.004 | H80: =G80-D80 -> 1487.194327 | I80: EE | J80: 2028-01-01 | K80: 12
B81: Energy Efficiency 2028-2031 - Year 2029 | D81: ='Incremental Rev Req'!$D$43 -> 127629.8097 | E81: 138187.936 | F81: PPP | G81: 138187.936 | H81: 10558.12633 | I81: EE | J81: 2029-01-01 | K81: 12
B82: Energy Efficiency 2028-2031 - Year 2030 | D82: ='Incremental Rev Req'!$D$43 -> 127629.8097 | E82: 142789.92 | F82: PPP | G82: 142789.92 | H82: 15160.11033 | I82: EE | J82: 2030-01-01
B83: CFCA - NGSS Enduser Dist. Sub Acct Recovery | D83: ='Incremental Rev Req'!$D$64 -> 2051.460825 | E83: 0 | F83: Core - Distribution | G83: 0 | H83: -2051.460825 | I83: Core - Distribution | J83: 2027-01-01
B84: CFCA/NCA - NGSS Enduser Sub Acct Recovery | D84: ='Incremental Rev Req'!$D$65 -> 487.8206422 | E84: 0 | F84: ECPT - ALL | G84: 0 | H84: =G84-D84 -> -487.8206422 | I84: ECPT - ALL | J84: 2027-01-01
B85: NCA - NGSS Enduser Sub Acct Recovery | D85: ='Incremental Rev Req'!$D$66 -> 501.0158178 | E85: 0 | F85: ECPT - Noncore only | G85: 0 | H85: -501.0158178 | I85: ECPT - Noncore only | J85: 2027-01-01
B86: Available | H86: 0
B87: Available | H87: 0
B88: Available | H88: 0
B89: Available | H89: 0
B90: Available | H90: 0
B91: Available | H91: 0
B92: Available | H92: 0
B93: Available | H93: 0
B94: Available | H94: 0
B95: Available | H95: 0
B96: Available | H96: 0
B97: Available | H97: 0
B98: Available | H98: 0
B99: Available | H99: 0
B100: Available | H100: 0

Sheet Rate Trajectory Report
A1: Pacific Gas and Electric Company
A2: Illustrative Gas Rate Trajectory Report
A3: ="For the Period "&TEXT(D5,"mmmmmmmmmm YYYY")&" through "&TEXT(AA5,"mmmmmmmmmm YYYY") -> For the Period June 2026 through May 2028
C5: ="Present ( "&TEXT(Summary!E46,"mmm yy")&")" -> Present ( Mar 26) | D5: ='Rate Trajectory Dashboard'!D6 -> 2026-06-01 | E5: =DATE(YEAR(D5),MONTH(D5)+1,DAY(D5)) -> 2026-07-01 | F5: =DATE(YEAR(E5),MONTH(E5)+1,DAY(E5)) -> 2026-08-01 | G5: 2026-09-01 | H5: 2026-10-01 | I5: 2026-11-01 | J5: 2026-12-01 | K5: 2027-01-01 | L5: 2027-02-01 | M5: 2027-03-01 | N5: 2027-04-01 | O5: 2027-05-01 | P5: 2027-06-01 | Q5: 2027-07-01 | R5: 2027-08-01 | S5: 2027-09-01 | T5: 2027-10-01 | U5: 2027-11-01 | V5: 2027-12-01 | W5: 2028-01-01 | X5: 2028-02-01 | Y5: 2028-03-01 | Z5: 2028-04-01 | AA5: =DATE(YEAR(Z5),MONTH(Z5)+1,DAY(Z5)) -> 2028-05-01
A6: # | B6: RRQ in Current Gas Rates ($ millions) | C6: ='Authorized Rev Req'!K90/1000 -> 6746.763036
A8: 1 | B8: ='Rate Trajectory Dashboard'!B12 -> 2027 Energy Savings Assistance Bridge Funding | C8: =IFERROR(VLOOKUP(B8,'Rate Trajectory Dashboard'!$B$12:$D$100,3,FALSE)/1000,'Rate Trajectory Report'!C6) -> 75.530121 | D8: =IF(INDEX('Rate Trajectory Calc'!$A$6:$CQ$96,MATCH('Rate Trajectory Report'!$B8,'Rate Trajectory Calc'!$A$6:$A$96,0),MATCH('Rate Trajectory Report'!D$5,'Rate Trajectory Calc'!$A$6:$CQ$6,0))=0," ",INDEX('Rate Trajectory Calc'!$A$6:$CQ$96,MATCH('Rate Trajectory Report'!$B8,'Rate Trajectory Calc'!$A$6:$A$96,0),MATCH('Rate Trajectory Report'!D$5,'Rate Trajectory Calc'!$A$6:$CQ$6,0))/1000) ->  | E8: =IF(INDEX('Rate Trajectory Calc'!$A$6:$CQ$96,MATCH('Rate Trajectory Report'!$B8,'Rate Trajectory Calc'!$A$6:$A$96,0),MATCH('Rate Trajectory Report'!E$5,'Rate Trajectory Calc'!$A$6:$CQ$6,0))=0," ",INDEX('Rate Trajectory Calc'!$A$6:$CQ$96,MATCH('Rate Trajectory Report'!$B8,'Rate Trajectory Calc'!$A$6:$A$96,0),MATCH('Rate Trajectory Report'!E$5,'Rate Trajectory Calc'!$A$6:$CQ$6,0))/1000) ->  | F8: =IF(INDEX('Rate Trajectory Calc'!$A$6:$CQ$96,MATCH('Rate Trajectory Report'!$B8,'Rate Trajectory Calc'!$A$6:$A$96,0),MATCH('Rate Trajectory Report'!F$5,'Rate Trajectory Calc'!$A$6:$CQ$6,0))=0," ",INDEX('Rate Trajectory Calc'!$A$6:$CQ$96,MATCH('Rate Trajectory Report'!$B8,'Rate Trajectory Calc'!$A$6:$A$96,0),MATCH('Rate Trajectory Report'!F$5,'Rate Trajectory Calc'!$A$6:$CQ$6,0))/1000) ->  | G8: =IF(INDEX('Rate Trajectory Calc'!$A$6:$CQ$96,MATCH('Rate Trajectory Report'!$B8,'Rate Trajectory Calc'!$A$6:$A$96,0),MATCH('Rate Trajectory Report'!G$5,'Rate Trajectory Calc'!$A$6:$CQ$6,0))=0," ",INDEX('Rate Trajectory Calc'!$A$6:$CQ$96,MATCH('Rate Trajectory Report'!$B8,'Rate Trajectory Calc'!$A$6:$A$96,0),MATCH('Rate Trajectory Report'!G$5,'Rate Trajectory Calc'!$A$6:$CQ$6,0))/1000) ->  | H8: =IF(INDEX('Rate Trajectory Calc'!$A$6:$CQ$96,MATCH('Rate Trajectory Report'!$B8,'Rate Trajectory Calc'!$A$6:$A$96,0),MATCH('Rate Trajectory Report'!H$5,'Rate Trajectory Calc'!$A$6:$CQ$6,0))=0," ",INDEX('Rate Trajectory Calc'!$A$6:$CQ$96,MATCH('Rate Trajectory Report'!$B8,'Rate Trajectory Calc'!$A$6:$A$96,0),MATCH('Rate Trajectory Report'!H$5,'Rate Trajectory Calc'!$A$6:$CQ$6,0))/1000) ->  | I8: =IF(INDEX('Rate Trajectory Calc'!$A$6:$CQ$96,MATCH('Rate Trajectory Report'!$B8,'Rate Trajectory Calc'!$A$6:$A$96,0),MATCH('Rate Trajectory Report'!I$5,'Rate Trajectory Calc'!$A$6:$CQ$6,0))=0," ",INDEX('Rate Trajectory Calc'!$A$6:$CQ$96,MATCH('Rate Trajectory Report'!$B8,'Rate Trajectory Calc'!$A$6:$A$96,0),MATCH('Rate Trajectory Report'!I$5,'Rate Trajectory Calc'!$A$6:$CQ$6,0))/1000) ->  | J8: =IF(INDEX('Rate Trajectory Calc'!$A$6:$CQ$96,MATCH('Rate Trajectory Report'!$B8,'Rate Trajectory Calc'!$A$6:$A$96,0),MATCH('Rate Trajectory Report'!J$5,'Rate Trajectory Calc'!$A$6:$CQ$6,0))=0," ",INDEX('Rate Trajectory Calc'!$A$6:$CQ$96,MATCH('Rate Trajectory Report'!$B8,'Rate Trajectory Calc'!$A$6:$A$96,0),MATCH('Rate Trajectory Report'!J$5,'Rate Trajectory Calc'!$A$6:$CQ$6,0))/1000) ->  | K8: =IF(INDEX('Rate Trajectory Calc'!$A$6:$CQ$96,MATCH('Rate Trajectory Report'!$B8,'Rate Trajectory Calc'!$A$6:$A$96,0),MATCH('Rate Trajectory Report'!K$5,'Rate Trajectory Calc'!$A$6:$CQ$6,0))=0," ",INDEX('Rate Trajectory Calc'!$A$6:$CQ$96,MATCH('Rate Trajectory Report'!$B8,'Rate Trajectory Calc'!$A$6:$A$96,0),MATCH('Rate Trajectory Report'!K$5,'Rate Trajectory Calc'!$A$6:$CQ$6,0))/1000) -> -19.96285995 | L8: =IF(INDEX('Rate Trajectory Calc'!$A$6:$CQ$96,MATCH('Rate Trajectory Report'!$B8,'Rate Trajectory Calc'!$A$6:$A$96,0),MATCH('Rate Trajectory Report'!L$5,'Rate Trajectory Calc'!$A$6:$CQ$6,0))=0," ",INDEX('Rate Trajectory Calc'!$A$6:$CQ$96,MATCH('Rate Trajectory Report'!$B8,'Rate Trajectory Calc'!$A$6:$A$96,0),MATCH('Rate Trajectory Report'!L$5,'Rate Trajectory Calc'!$A$6:$CQ$6,0))/1000) ->  | M8: =IF(INDEX('Rate Trajectory Calc'!$A$6:$CQ$96,MATCH('Rate Trajectory Report'!$B8,'Rate Trajectory Calc'!$A$6:$A$96,0),MATCH('Rate Trajectory Report'!M$5,'Rate Trajectory Calc'!$A$6:$CQ$6,0))=0," ",INDEX('Rate Trajectory Calc'!$A$6:$CQ$96,MATCH('Rate Trajectory Report'!$B8,'Rate Trajectory Calc'!$A$6:$A$96,0),MATCH('Rate Trajectory Report'!M$5,'Rate Trajectory Calc'!$A$6:$CQ$6,0))/1000) ->  | N8: =IF(INDEX('Rate Trajectory Calc'!$A$6:$CQ$96,MATCH('Rate Trajectory Report'!$B8,'Rate Trajectory Calc'!$A$6:$A$96,0),MATCH('Rate Trajectory Report'!N$5,'Rate Trajectory Calc'!$A$6:$CQ$6,0))=0," ",INDEX('Rate Trajectory Calc'!$A$6:$CQ$96,MATCH('Rate Trajectory Report'!$B8,'Rate Trajectory Calc'!$A$6:$A$96,0),MATCH('Rate Trajectory Report'!N$5,'Rate Trajectory Calc'!$A$6:$CQ$6,0))/1000) ->  | O8: =IF(INDEX('Rate Trajectory Calc'!$A$6:$CQ$96,MATCH('Rate Trajectory Report'!$B8,'Rate Trajectory Calc'!$A$6:$A$96,0),MATCH('Rate Trajectory Report'!O$5,'Rate Trajectory Calc'!$A$6:$CQ$6,0))=0," ",INDEX('Rate Trajectory Calc'!$A$6:$CQ$96,MATCH('Rate Trajectory Report'!$B8,'Rate Trajectory Calc'!$A$6:$A$96,0),MATCH('Rate Trajectory Report'!O$5,'Rate Trajectory Calc'!$A$6:$CQ$6,0))/1000) ->  | P8: =IF(INDEX('Rate Trajectory Calc'!$A$6:$CQ$96,MATCH('Rate Trajectory Report'!$B8,'Rate Trajectory Calc'!$A$6:$A$96,0),MATCH('Rate Trajectory Report'!P$5,'Rate Trajectory Calc'!$A$6:$CQ$6,0))=0," ",INDEX('Rate Trajectory Calc'!$A$6:$CQ$96,MATCH('Rate Trajectory Report'!$B8,'Rate Trajectory Calc'!$A$6:$A$96,0),MATCH('Rate Trajectory Report'!P$5,'Rate Trajectory Calc'!$A$6:$CQ$6,0))/1000) ->  | Q8: =IF(INDEX('Rate Trajectory Calc'!$A$6:$CQ$96,MATCH('Rate Trajectory Report'!$B8,'Rate Trajectory Calc'!$A$6:$A$96,0),MATCH('Rate Trajectory Report'!Q$5,'Rate Trajectory Calc'!$A$6:$CQ$6,0))=0," ",INDEX('Rate Trajectory Calc'!$A$6:$CQ$96,MATCH('Rate Trajectory Report'!$B8,'Rate Trajectory Calc'!$A$6:$A$96,0),MATCH('Rate Trajectory Report'!Q$5,'Rate Trajectory Calc'!$A$6:$CQ$6,0))/1000) ->  | R8: =IF(INDEX('Rate Trajectory Calc'!$A$6:$CQ$96,MATCH('Rate Trajectory Report'!$B8,'Rate Trajectory Calc'!$A$6:$A$96,0),MATCH('Rate Trajectory Report'!R$5,'Rate Trajectory Calc'!$A$6:$CQ$6,0))=0," ",INDEX('Rate Trajectory Calc'!$A$6:$CQ$96,MATCH('Rate Trajectory Report'!$B8,'Rate Trajectory Calc'!$A$6:$A$96,0),MATCH('Rate Trajectory Report'!R$5,'Rate Trajectory Calc'!$A$6:$CQ$6,0))/1000) ->  | S8: =IF(INDEX('Rate Trajectory Calc'!$A$6:$CQ$96,MATCH('Rate Trajectory Report'!$B8,'Rate Trajectory Calc'!$A$6:$A$96,0),MATCH('Rate Trajectory Report'!S$5,'Rate Trajectory Calc'!$A$6:$CQ$6,0))=0," ",INDEX('Rate Trajectory Calc'!$A$6:$CQ$96,MATCH('Rate Trajectory Report'!$B8,'Rate Trajectory Calc'!$A$6:$A$96,0),MATCH('Rate Trajectory Report'!S$5,'Rate Trajectory Calc'!$A$6:$CQ$6,0))/1000) ->  | T8: =IF(INDEX('Rate Trajectory Calc'!$A$6:$CQ$96,MATCH('Rate Trajectory Report'!$B8,'Rate Trajectory Calc'!$A$6:$A$96,0),MATCH('Rate Trajectory Report'!T$5,'Rate Trajectory Calc'!$A$6:$CQ$6,0))=0," ",INDEX('Rate Trajectory Calc'!$A$6:$CQ$96,MATCH('Rate Trajectory Report'!$B8,'Rate Trajectory Calc'!$A$6:$A$96,0),MATCH('Rate Trajectory Report'!T$5,'Rate Trajectory Calc'!$A$6:$CQ$6,0))/1000) ->  | U8: =IF(INDEX('Rate Trajectory Calc'!$A$6:$CQ$96,MATCH('Rate Trajectory Report'!$B8,'Rate Trajectory Calc'!$A$6:$A$96,0),MATCH('Rate Trajectory Report'!U$5,'Rate Trajectory Calc'!$A$6:$CQ$6,0))=0," ",INDEX('Rate Trajectory Calc'!$A$6:$CQ$96,MATCH('Rate Trajectory Report'!$B8,'Rate Trajectory Calc'!$A$6:$A$96,0),MATCH('Rate Trajectory Report'!U$5,'Rate Trajectory Calc'!$A$6:$CQ$6,0))/1000) ->  | V8: =IF(INDEX('Rate Trajectory Calc'!$A$6:$CQ$96,MATCH('Rate Trajectory Report'!$B8,'Rate Trajectory Calc'!$A$6:$A$96,0),MATCH('Rate Trajectory Report'!V$5,'Rate Trajectory Calc'!$A$6:$CQ$6,0))=0," ",INDEX('Rate Trajectory Calc'!$A$6:$CQ$96,MATCH('Rate Trajectory Report'!$B8,'Rate Trajectory Calc'!$A$6:$A$96,0),MATCH('Rate Trajectory Report'!V$5,'Rate Trajectory Calc'!$A$6:$CQ$6,0))/1000) ->  | W8: =IF(INDEX('Rate Trajectory Calc'!$A$6:$CQ$96,MATCH('Rate Trajectory Report'!$B8,'Rate Trajectory Calc'!$A$6:$A$96,0),MATCH('Rate Trajectory Report'!W$5,'Rate Trajectory Calc'!$A$6:$CQ$6,0))=0," ",INDEX('Rate Trajectory Calc'!$A$6:$CQ$96,MATCH('Rate Trajectory Report'!$B8,'Rate Trajectory Calc'!$A$6:$A$96,0),MATCH('Rate Trajectory Report'!W$5,'Rate Trajectory Calc'!$A$6:$CQ$6,0))/1000) -> 19.96285995 | X8: =IF(INDEX('Rate Trajectory Calc'!$A$6:$CQ$96,MATCH('Rate Trajectory Report'!$B8,'Rate Trajectory Calc'!$A$6:$A$96,0),MATCH('Rate Trajectory Report'!X$5,'Rate Trajectory Calc'!$A$6:$CQ$6,0))=0," ",INDEX('Rate Trajectory Calc'!$A$6:$CQ$96,MATCH('Rate Trajectory Report'!$B8,'Rate Trajectory Calc'!$A$6:$A$96,0),MATCH('Rate Trajectory Report'!X$5,'Rate Trajectory Calc'!$A$6:$CQ$6,0))/1000) ->  | Y8: =IF(INDEX('Rate Trajectory Calc'!$A$6:$CQ$96,MATCH('Rate Trajectory Report'!$B8,'Rate Trajectory Calc'!$A$6:$A$96,0),MATCH('Rate Trajectory Report'!Y$5,'Rate Trajectory Calc'!$A$6:$CQ$6,0))=0," ",INDEX('Rate Trajectory Calc'!$A$6:$CQ$96,MATCH('Rate Trajectory Report'!$B8,'Rate Trajectory Calc'!$A$6:$A$96,0),MATCH('Rate Trajectory Report'!Y$5,'Rate Trajectory Calc'!$A$6:$CQ$6,0))/1000) ->  | Z8: =IF(INDEX('Rate Trajectory Calc'!$A$6:$CQ$96,MATCH('Rate Trajectory Report'!$B8,'Rate Trajectory Calc'!$A$6:$A$96,0),MATCH('Rate Trajectory Report'!Z$5,'Rate Trajectory Calc'!$A$6:$CQ$6,0))=0," ",INDEX('Rate Trajectory Calc'!$A$6:$CQ$96,MATCH('Rate Trajectory Report'!$B8,'Rate Trajectory Calc'!$A$6:$A$96,0),MATCH('Rate Trajectory Report'!Z$5,'Rate Trajectory Calc'!$A$6:$CQ$6,0))/1000) ->  | AA8: =IF(INDEX('Rate Trajectory Calc'!$A$6:$CQ$96,MATCH('Rate Trajectory Report'!$B8,'Rate Trajectory Calc'!$A$6:$A$96,0),MATCH('Rate Trajectory Report'!AA$5,'Rate Trajectory Calc'!$A$6:$CQ$6,0))=0," ",INDEX('Rate Trajectory Calc'!$A$6:$CQ$96,MATCH('Rate Trajectory Report'!$B8,'Rate Trajectory Calc'!$A$6:$A$96,0),MATCH('Rate Trajectory Report'!AA$5,'Rate Trajectory Calc'!$A$6:$CQ$6,0))/1000) -> 
A9: 2 | B9: ='Rate Trajectory Dashboard'!B13 -> 2027 CARE Administrative Bridge Funding | C9: =IFERROR(VLOOKUP(B9,'Rate Trajectory Dashboard'!$B$12:$D$100,3,FALSE)/1000,C8) -> 2.95754 | D9: =IF(INDEX('Rate Trajectory Calc'!$A$6:$CQ$96,MATCH('Rate Trajectory Report'!$B9,'Rate Trajectory Calc'!$A$6:$A$96,0),MATCH(D$5,'Rate Trajectory Calc'!$A$6:$CQ$6,0))=0," ",INDEX('Rate Trajectory Calc'!$A$6:$CQ$96,MATCH('Rate Trajectory Report'!$B9,'Rate Trajectory Calc'!$A$6:$A$96,0),MATCH(D$5,'Rate Trajectory Calc'!$A$6:$CQ$6,0))/1000) ->  | E9: =IF(INDEX('Rate Trajectory Calc'!$A$6:$CQ$96,MATCH('Rate Trajectory Report'!$B9,'Rate Trajectory Calc'!$A$6:$A$96,0),MATCH(E$5,'Rate Trajectory Calc'!$A$6:$CQ$6,0))=0," ",INDEX('Rate Trajectory Calc'!$A$6:$CQ$96,MATCH('Rate Trajectory Report'!$B9,'Rate Trajectory Calc'!$A$6:$A$96,0),MATCH(E$5,'Rate Trajectory Calc'!$A$6:$CQ$6,0))/1000) ->  | F9: =IF(INDEX('Rate Trajectory Calc'!$A$6:$CQ$96,MATCH('Rate Trajectory Report'!$B9,'Rate Trajectory Calc'!$A$6:$A$96,0),MATCH(F$5,'Rate Trajectory Calc'!$A$6:$CQ$6,0))=0," ",INDEX('Rate Trajectory Calc'!$A$6:$CQ$96,MATCH('Rate Trajectory Report'!$B9,'Rate Trajectory Calc'!$A$6:$A$96,0),MATCH(F$5,'Rate Trajectory Calc'!$A$6:$CQ$6,0))/1000) ->  | G9: =IF(INDEX('Rate Trajectory Calc'!$A$6:$CQ$96,MATCH('Rate Trajectory Report'!$B9,'Rate Trajectory Calc'!$A$6:$A$96,0),MATCH(G$5,'Rate Trajectory Calc'!$A$6:$CQ$6,0))=0," ",INDEX('Rate Trajectory Calc'!$A$6:$CQ$96,MATCH('Rate Trajectory Report'!$B9,'Rate Trajectory Calc'!$A$6:$A$96,0),MATCH(G$5,'Rate Trajectory Calc'!$A$6:$CQ$6,0))/1000) ->  | H9: =IF(INDEX('Rate Trajectory Calc'!$A$6:$CQ$96,MATCH('Rate Trajectory Report'!$B9,'Rate Trajectory Calc'!$A$6:$A$96,0),MATCH(H$5,'Rate Trajectory Calc'!$A$6:$CQ$6,0))=0," ",INDEX('Rate Trajectory Calc'!$A$6:$CQ$96,MATCH('Rate Trajectory Report'!$B9,'Rate Trajectory Calc'!$A$6:$A$96,0),MATCH(H$5,'Rate Trajectory Calc'!$A$6:$CQ$6,0))/1000) ->  | I9: =IF(INDEX('Rate Trajectory Calc'!$A$6:$CQ$96,MATCH('Rate Trajectory Report'!$B9,'Rate Trajectory Calc'!$A$6:$A$96,0),MATCH(I$5,'Rate Trajectory Calc'!$A$6:$CQ$6,0))=0," ",INDEX('Rate Trajectory Calc'!$A$6:$CQ$96,MATCH('Rate Trajectory Report'!$B9,'Rate Trajectory Calc'!$A$6:$A$96,0),MATCH(I$5,'Rate Trajectory Calc'!$A$6:$CQ$6,0))/1000) ->  | J9: =IF(INDEX('Rate Trajectory Calc'!$A$6:$CQ$96,MATCH('Rate Trajectory Report'!$B9,'Rate Trajectory Calc'!$A$6:$A$96,0),MATCH(J$5,'Rate Trajectory Calc'!$A$6:$CQ$6,0))=0," ",INDEX('Rate Trajectory Calc'!$A$6:$CQ$96,MATCH('Rate Trajectory Report'!$B9,'Rate Trajectory Calc'!$A$6:$A$96,0),MATCH(J$5,'Rate Trajectory Calc'!$A$6:$CQ$6,0))/1000) ->  | K9: =IF(INDEX('Rate Trajectory Calc'!$A$6:$CQ$96,MATCH('Rate Trajectory Report'!$B9,'Rate Trajectory Calc'!$A$6:$A$96,0),MATCH(K$5,'Rate Trajectory Calc'!$A$6:$CQ$6,0))=0," ",INDEX('Rate Trajectory Calc'!$A$6:$CQ$96,MATCH('Rate Trajectory Report'!$B9,'Rate Trajectory Calc'!$A$6:$A$96,0),MATCH(K$5,'Rate Trajectory Calc'!$A$6:$CQ$6,0))/1000) -> -0.89852 | L9: =IF(INDEX('Rate Trajectory Calc'!$A$6:$CQ$96,MATCH('Rate Trajectory Report'!$B9,'Rate Trajectory Calc'!$A$6:$A$96,0),MATCH(L$5,'Rate Trajectory Calc'!$A$6:$CQ$6,0))=0," ",INDEX('Rate Trajectory Calc'!$A$6:$CQ$96,MATCH('Rate Trajectory Report'!$B9,'Rate Trajectory Calc'!$A$6:$A$96,0),MATCH(L$5,'Rate Trajectory Calc'!$A$6:$CQ$6,0))/1000) ->  | M9: =IF(INDEX('Rate Trajectory Calc'!$A$6:$CQ$96,MATCH('Rate Trajectory Report'!$B9,'Rate Trajectory Calc'!$A$6:$A$96,0),MATCH(M$5,'Rate Trajectory Calc'!$A$6:$CQ$6,0))=0," ",INDEX('Rate Trajectory Calc'!$A$6:$CQ$96,MATCH('Rate Trajectory Report'!$B9,'Rate Trajectory Calc'!$A$6:$A$96,0),MATCH(M$5,'Rate Trajectory Calc'!$A$6:$CQ$6,0))/1000) ->  | N9: =IF(INDEX('Rate Trajectory Calc'!$A$6:$CQ$96,MATCH('Rate Trajectory Report'!$B9,'Rate Trajectory Calc'!$A$6:$A$96,0),MATCH(N$5,'Rate Trajectory Calc'!$A$6:$CQ$6,0))=0," ",INDEX('Rate Trajectory Calc'!$A$6:$CQ$96,MATCH('Rate Trajectory Report'!$B9,'Rate Trajectory Calc'!$A$6:$A$96,0),MATCH(N$5,'Rate Trajectory Calc'!$A$6:$CQ$6,0))/1000) ->  | O9: =IF(INDEX('Rate Trajectory Calc'!$A$6:$CQ$96,MATCH('Rate Trajectory Report'!$B9,'Rate Trajectory Calc'!$A$6:$A$96,0),MATCH(O$5,'Rate Trajectory Calc'!$A$6:$CQ$6,0))=0," ",INDEX('Rate Trajectory Calc'!$A$6:$CQ$96,MATCH('Rate Trajectory Report'!$B9,'Rate Trajectory Calc'!$A$6:$A$96,0),MATCH(O$5,'Rate Trajectory Calc'!$A$6:$CQ$6,0))/1000) ->  | P9: =IF(INDEX('Rate Trajectory Calc'!$A$6:$CQ$96,MATCH('Rate Trajectory Report'!$B9,'Rate Trajectory Calc'!$A$6:$A$96,0),MATCH(P$5,'Rate Trajectory Calc'!$A$6:$CQ$6,0))=0," ",INDEX('Rate Trajectory Calc'!$A$6:$CQ$96,MATCH('Rate Trajectory Report'!$B9,'Rate Trajectory Calc'!$A$6:$A$96,0),MATCH(P$5,'Rate Trajectory Calc'!$A$6:$CQ$6,0))/1000) ->  | Q9: =IF(INDEX('Rate Trajectory Calc'!$A$6:$CQ$96,MATCH('Rate Trajectory Report'!$B9,'Rate Trajectory Calc'!$A$6:$A$96,0),MATCH(Q$5,'Rate Trajectory Calc'!$A$6:$CQ$6,0))=0," ",INDEX('Rate Trajectory Calc'!$A$6:$CQ$96,MATCH('Rate Trajectory Report'!$B9,'Rate Trajectory Calc'!$A$6:$A$96,0),MATCH(Q$5,'Rate Trajectory Calc'!$A$6:$CQ$6,0))/1000) ->  | R9: =IF(INDEX('Rate Trajectory Calc'!$A$6:$CQ$96,MATCH('Rate Trajectory Report'!$B9,'Rate Trajectory Calc'!$A$6:$A$96,0),MATCH(R$5,'Rate Trajectory Calc'!$A$6:$CQ$6,0))=0," ",INDEX('Rate Trajectory Calc'!$A$6:$CQ$96,MATCH('Rate Trajectory Report'!$B9,'Rate Trajectory Calc'!$A$6:$A$96,0),MATCH(R$5,'Rate Trajectory Calc'!$A$6:$CQ$6,0))/1000) ->  | S9: =IF(INDEX('Rate Trajectory Calc'!$A$6:$CQ$96,MATCH('Rate Trajectory Report'!$B9,'Rate Trajectory Calc'!$A$6:$A$96,0),MATCH(S$5,'Rate Trajectory Calc'!$A$6:$CQ$6,0))=0," ",INDEX('Rate Trajectory Calc'!$A$6:$CQ$96,MATCH('Rate Trajectory Report'!$B9,'Rate Trajectory Calc'!$A$6:$A$96,0),MATCH(S$5,'Rate Trajectory Calc'!$A$6:$CQ$6,0))/1000) ->  | T9: =IF(INDEX('Rate Trajectory Calc'!$A$6:$CQ$96,MATCH('Rate Trajectory Report'!$B9,'Rate Trajectory Calc'!$A$6:$A$96,0),MATCH(T$5,'Rate Trajectory Calc'!$A$6:$CQ$6,0))=0," ",INDEX('Rate Trajectory Calc'!$A$6:$CQ$96,MATCH('Rate Trajectory Report'!$B9,'Rate Trajectory Calc'!$A$6:$A$96,0),MATCH(T$5,'Rate Trajectory Calc'!$A$6:$CQ$6,0))/1000) ->  | U9: =IF(INDEX('Rate Trajectory Calc'!$A$6:$CQ$96,MATCH('Rate Trajectory Report'!$B9,'Rate Trajectory Calc'!$A$6:$A$96,0),MATCH(U$5,'Rate Trajectory Calc'!$A$6:$CQ$6,0))=0," ",INDEX('Rate Trajectory Calc'!$A$6:$CQ$96,MATCH('Rate Trajectory Report'!$B9,'Rate Trajectory Calc'!$A$6:$A$96,0),MATCH(U$5,'Rate Trajectory Calc'!$A$6:$CQ$6,0))/1000) ->  | V9: =IF(INDEX('Rate Trajectory Calc'!$A$6:$CQ$96,MATCH('Rate Trajectory Report'!$B9,'Rate Trajectory Calc'!$A$6:$A$96,0),MATCH(V$5,'Rate Trajectory Calc'!$A$6:$CQ$6,0))=0," ",INDEX('Rate Trajectory Calc'!$A$6:$CQ$96,MATCH('Rate Trajectory Report'!$B9,'Rate Trajectory Calc'!$A$6:$A$96,0),MATCH(V$5,'Rate Trajectory Calc'!$A$6:$CQ$6,0))/1000) ->  | W9: =IF(INDEX('Rate Trajectory Calc'!$A$6:$CQ$96,MATCH('Rate Trajectory Report'!$B9,'Rate Trajectory Calc'!$A$6:$A$96,0),MATCH(W$5,'Rate Trajectory Calc'!$A$6:$CQ$6,0))=0," ",INDEX('Rate Trajectory Calc'!$A$6:$CQ$96,MATCH('Rate Trajectory Report'!$B9,'Rate Trajectory Calc'!$A$6:$A$96,0),MATCH(W$5,'Rate Trajectory Calc'!$A$6:$CQ$6,0))/1000) -> 0.89852 | X9: =IF(INDEX('Rate Trajectory Calc'!$A$6:$CQ$96,MATCH('Rate Trajectory Report'!$B9,'Rate Trajectory Calc'!$A$6:$A$96,0),MATCH(X$5,'Rate Trajectory Calc'!$A$6:$CQ$6,0))=0," ",INDEX('Rate Trajectory Calc'!$A$6:$CQ$96,MATCH('Rate Trajectory Report'!$B9,'Rate Trajectory Calc'!$A$6:$A$96,0),MATCH(X$5,'Rate Trajectory Calc'!$A$6:$CQ$6,0))/1000) ->  | Y9: =IF(INDEX('Rate Trajectory Calc'!$A$6:$CQ$96,MATCH('Rate Trajectory Report'!$B9,'Rate Trajectory Calc'!$A$6:$A$96,0),MATCH(Y$5,'Rate Trajectory Calc'!$A$6:$CQ$6,0))=0," ",INDEX('Rate Trajectory Calc'!$A$6:$CQ$96,MATCH('Rate Trajectory Report'!$B9,'Rate Trajectory Calc'!$A$6:$A$96,0),MATCH(Y$5,'Rate Trajectory Calc'!$A$6:$CQ$6,0))/1000) ->  | Z9: =IF(INDEX('Rate Trajectory Calc'!$A$6:$CQ$96,MATCH('Rate Trajectory Report'!$B9,'Rate Trajectory Calc'!$A$6:$A$96,0),MATCH(Z$5,'Rate Trajectory Calc'!$A$6:$CQ$6,0))=0," ",INDEX('Rate Trajectory Calc'!$A$6:$CQ$96,MATCH('Rate Trajectory Report'!$B9,'Rate Trajectory Calc'!$A$6:$A$96,0),MATCH(Z$5,'Rate Trajectory Calc'!$A$6:$CQ$6,0))/1000) ->  | AA9: =IF(INDEX('Rate Trajectory Calc'!$A$6:$CQ$96,MATCH('Rate Trajectory Report'!$B9,'Rate Trajectory Calc'!$A$6:$A$96,0),MATCH(AA$5,'Rate Trajectory Calc'!$A$6:$CQ$6,0))=0," ",INDEX('Rate Trajectory Calc'!$A$6:$CQ$96,MATCH('Rate Trajectory Report'!$B9,'Rate Trajectory Calc'!$A$6:$A$96,0),MATCH(AA$5,'Rate Trajectory Calc'!$A$6:$CQ$6,0))/1000) -> 
B10: ='Rate Trajectory Dashboard'!B14 -> Income Qualified Program (ESA) PY 2028-2033 - Year 2028 | C10: =IFERROR(VLOOKUP(B10,'Rate Trajectory Dashboard'!$B$12:$D$100,3,FALSE)/1000,C9) -> 75.530121 | D10: =IF(INDEX('Rate Trajectory Calc'!$A$6:$CQ$96,MATCH('Rate Trajectory Report'!$B10,'Rate Trajectory Calc'!$A$6:$A$96,0),MATCH(D$5,'Rate Trajectory Calc'!$A$6:$CQ$6,0))=0," ",INDEX('Rate Trajectory Calc'!$A$6:$CQ$96,MATCH('Rate Trajectory Report'!$B10,'Rate Trajectory Calc'!$A$6:$A$96,0),MATCH('Rate Trajectory Report'!D$5,'Rate Trajectory Calc'!$A$6:$CQ$6,0))/1000) ->  | E10: =IF(INDEX('Rate Trajectory Calc'!$A$6:$CQ$96,MATCH('Rate Trajectory Report'!$B10,'Rate Trajectory Calc'!$A$6:$A$96,0),MATCH(E$5,'Rate Trajectory Calc'!$A$6:$CQ$6,0))=0," ",INDEX('Rate Trajectory Calc'!$A$6:$CQ$96,MATCH('Rate Trajectory Report'!$B10,'Rate Trajectory Calc'!$A$6:$A$96,0),MATCH('Rate Trajectory Report'!E$5,'Rate Trajectory Calc'!$A$6:$CQ$6,0))/1000) ->  | F10: =IF(INDEX('Rate Trajectory Calc'!$A$6:$CQ$96,MATCH('Rate Trajectory Report'!$B10,'Rate Trajectory Calc'!$A$6:$A$96,0),MATCH(F$5,'Rate Trajectory Calc'!$A$6:$CQ$6,0))=0," ",INDEX('Rate Trajectory Calc'!$A$6:$CQ$96,MATCH('Rate Trajectory Report'!$B10,'Rate Trajectory Calc'!$A$6:$A$96,0),MATCH('Rate Trajectory Report'!F$5,'Rate Trajectory Calc'!$A$6:$CQ$6,0))/1000) ->  | G10: =IF(INDEX('Rate Trajectory Calc'!$A$6:$CQ$96,MATCH('Rate Trajectory Report'!$B10,'Rate Trajectory Calc'!$A$6:$A$96,0),MATCH(G$5,'Rate Trajectory Calc'!$A$6:$CQ$6,0))=0," ",INDEX('Rate Trajectory Calc'!$A$6:$CQ$96,MATCH('Rate Trajectory Report'!$B10,'Rate Trajectory Calc'!$A$6:$A$96,0),MATCH('Rate Trajectory Report'!G$5,'Rate Trajectory Calc'!$A$6:$CQ$6,0))/1000) ->  | H10: =IF(INDEX('Rate Trajectory Calc'!$A$6:$CQ$96,MATCH('Rate Trajectory Report'!$B10,'Rate Trajectory Calc'!$A$6:$A$96,0),MATCH(H$5,'Rate Trajectory Calc'!$A$6:$CQ$6,0))=0," ",INDEX('Rate Trajectory Calc'!$A$6:$CQ$96,MATCH('Rate Trajectory Report'!$B10,'Rate Trajectory Calc'!$A$6:$A$96,0),MATCH('Rate Trajectory Report'!H$5,'Rate Trajectory Calc'!$A$6:$CQ$6,0))/1000) ->  | I10: =IF(INDEX('Rate Trajectory Calc'!$A$6:$CQ$96,MATCH('Rate Trajectory Report'!$B10,'Rate Trajectory Calc'!$A$6:$A$96,0),MATCH(I$5,'Rate Trajectory Calc'!$A$6:$CQ$6,0))=0," ",INDEX('Rate Trajectory Calc'!$A$6:$CQ$96,MATCH('Rate Trajectory Report'!$B10,'Rate Trajectory Calc'!$A$6:$A$96,0),MATCH('Rate Trajectory Report'!I$5,'Rate Trajectory Calc'!$A$6:$CQ$6,0))/1000) ->  | J10: =IF(INDEX('Rate Trajectory Calc'!$A$6:$CQ$96,MATCH('Rate Trajectory Report'!$B10,'Rate Trajectory Calc'!$A$6:$A$96,0),MATCH(J$5,'Rate Trajectory Calc'!$A$6:$CQ$6,0))=0," ",INDEX('Rate Trajectory Calc'!$A$6:$CQ$96,MATCH('Rate Trajectory Report'!$B10,'Rate Trajectory Calc'!$A$6:$A$96,0),MATCH('Rate Trajectory Report'!J$5,'Rate Trajectory Calc'!$A$6:$CQ$6,0))/1000) ->  | K10: =IF(INDEX('Rate Trajectory Calc'!$A$6:$CQ$96,MATCH('Rate Trajectory Report'!$B10,'Rate Trajectory Calc'!$A$6:$A$96,0),MATCH(K$5,'Rate Trajectory Calc'!$A$6:$CQ$6,0))=0," ",INDEX('Rate Trajectory Calc'!$A$6:$CQ$96,MATCH('Rate Trajectory Report'!$B10,'Rate Trajectory Calc'!$A$6:$A$96,0),MATCH('Rate Trajectory Report'!K$5,'Rate Trajectory Calc'!$A$6:$CQ$6,0))/1000) ->  | L10: =IF(INDEX('Rate Trajectory Calc'!$A$6:$CQ$96,MATCH('Rate Trajectory Report'!$B10,'Rate Trajectory Calc'!$A$6:$A$96,0),MATCH(L$5,'Rate Trajectory Calc'!$A$6:$CQ$6,0))=0," ",INDEX('Rate Trajectory Calc'!$A$6:$CQ$96,MATCH('Rate Trajectory Report'!$B10,'Rate Trajectory Calc'!$A$6:$A$96,0),MATCH('Rate Trajectory Report'!L$5,'Rate Trajectory Calc'!$A$6:$CQ$6,0))/1000) ->  | M10: =IF(INDEX('Rate Trajectory Calc'!$A$6:$CQ$96,MATCH('Rate Trajectory Report'!$B10,'Rate Trajectory Calc'!$A$6:$A$96,0),MATCH(M$5,'Rate Trajectory Calc'!$A$6:$CQ$6,0))=0," ",INDEX('Rate Trajectory Calc'!$A$6:$CQ$96,MATCH('Rate Trajectory Report'!$B10,'Rate Trajectory Calc'!$A$6:$A$96,0),MATCH('Rate Trajectory Report'!M$5,'Rate Trajectory Calc'!$A$6:$CQ$6,0))/1000) ->  | N10: =IF(INDEX('Rate Trajectory Calc'!$A$6:$CQ$96,MATCH('Rate Trajectory Report'!$B10,'Rate Trajectory Calc'!$A$6:$A$96,0),MATCH(N$5,'Rate Trajectory Calc'!$A$6:$CQ$6,0))=0," ",INDEX('Rate Trajectory Calc'!$A$6:$CQ$96,MATCH('Rate Trajectory Report'!$B10,'Rate Trajectory Calc'!$A$6:$A$96,0),MATCH('Rate Trajectory Report'!N$5,'Rate Trajectory Calc'!$A$6:$CQ$6,0))/1000) ->  | O10: =IF(INDEX('Rate Trajectory Calc'!$A$6:$CQ$96,MATCH('Rate Trajectory Report'!$B10,'Rate Trajectory Calc'!$A$6:$A$96,0),MATCH(O$5,'Rate Trajectory Calc'!$A$6:$CQ$6,0))=0," ",INDEX('Rate Trajectory Calc'!$A$6:$CQ$96,MATCH('Rate Trajectory Report'!$B10,'Rate Trajectory Calc'!$A$6:$A$96,0),MATCH('Rate Trajectory Report'!O$5,'Rate Trajectory Calc'!$A$6:$CQ$6,0))/1000) ->  | P10: =IF(INDEX('Rate Trajectory Calc'!$A$6:$CQ$96,MATCH('Rate Trajectory Report'!$B10,'Rate Trajectory Calc'!$A$6:$A$96,0),MATCH(P$5,'Rate Trajectory Calc'!$A$6:$CQ$6,0))=0," ",INDEX('Rate Trajectory Calc'!$A$6:$CQ$96,MATCH('Rate Trajectory Report'!$B10,'Rate Trajectory Calc'!$A$6:$A$96,0),MATCH('Rate Trajectory Report'!P$5,'Rate Trajectory Calc'!$A$6:$CQ$6,0))/1000) ->  | Q10: =IF(INDEX('Rate Trajectory Calc'!$A$6:$CQ$96,MATCH('Rate Trajectory Report'!$B10,'Rate Trajectory Calc'!$A$6:$A$96,0),MATCH(Q$5,'Rate Trajectory Calc'!$A$6:$CQ$6,0))=0," ",INDEX('Rate Trajectory Calc'!$A$6:$CQ$96,MATCH('Rate Trajectory Report'!$B10,'Rate Trajectory Calc'!$A$6:$A$96,0),MATCH('Rate Trajectory Report'!Q$5,'Rate Trajectory Calc'!$A$6:$CQ$6,0))/1000) ->  | R10: =IF(INDEX('Rate Trajectory Calc'!$A$6:$CQ$96,MATCH('Rate Trajectory Report'!$B10,'Rate Trajectory Calc'!$A$6:$A$96,0),MATCH(R$5,'Rate Trajectory Calc'!$A$6:$CQ$6,0))=0," ",INDEX('Rate Trajectory Calc'!$A$6:$CQ$96,MATCH('Rate Trajectory Report'!$B10,'Rate Trajectory Calc'!$A$6:$A$96,0),MATCH('Rate Trajectory Report'!R$5,'Rate Trajectory Calc'!$A$6:$CQ$6,0))/1000) ->  | S10: =IF(INDEX('Rate Trajectory Calc'!$A$6:$CQ$96,MATCH('Rate Trajectory Report'!$B10,'Rate Trajectory Calc'!$A$6:$A$96,0),MATCH(S$5,'Rate Trajectory Calc'!$A$6:$CQ$6,0))=0," ",INDEX('Rate Trajectory Calc'!$A$6:$CQ$96,MATCH('Rate Trajectory Report'!$B10,'Rate Trajectory Calc'!$A$6:$A$96,0),MATCH('Rate Trajectory Report'!S$5,'Rate Trajectory Calc'!$A$6:$CQ$6,0))/1000) ->  | T10: =IF(INDEX('Rate Trajectory Calc'!$A$6:$CQ$96,MATCH('Rate Trajectory Report'!$B10,'Rate Trajectory Calc'!$A$6:$A$96,0),MATCH(T$5,'Rate Trajectory Calc'!$A$6:$CQ$6,0))=0," ",INDEX('Rate Trajectory Calc'!$A$6:$CQ$96,MATCH('Rate Trajectory Report'!$B10,'Rate Trajectory Calc'!$A$6:$A$96,0),MATCH('Rate Trajectory Report'!T$5,'Rate Trajectory Calc'!$A$6:$CQ$6,0))/1000) ->  | U10: =IF(INDEX('Rate Trajectory Calc'!$A$6:$CQ$96,MATCH('Rate Trajectory Report'!$B10,'Rate Trajectory Calc'!$A$6:$A$96,0),MATCH(U$5,'Rate Trajectory Calc'!$A$6:$CQ$6,0))=0," ",INDEX('Rate Trajectory Calc'!$A$6:$CQ$96,MATCH('Rate Trajectory Report'!$B10,'Rate Trajectory Calc'!$A$6:$A$96,0),MATCH('Rate Trajectory Report'!U$5,'Rate Trajectory Calc'!$A$6:$CQ$6,0))/1000) ->  | V10: =IF(INDEX('Rate Trajectory Calc'!$A$6:$CQ$96,MATCH('Rate Trajectory Report'!$B10,'Rate Trajectory Calc'!$A$6:$A$96,0),MATCH(V$5,'Rate Trajectory Calc'!$A$6:$CQ$6,0))=0," ",INDEX('Rate Trajectory Calc'!$A$6:$CQ$96,MATCH('Rate Trajectory Report'!$B10,'Rate Trajectory Calc'!$A$6:$A$96,0),MATCH('Rate Trajectory Report'!V$5,'Rate Trajectory Calc'!$A$6:$CQ$6,0))/1000) ->  | W10: =IF(INDEX('Rate Trajectory Calc'!$A$6:$CQ$96,MATCH('Rate Trajectory Report'!$B10,'Rate Trajectory Calc'!$A$6:$A$96,0),MATCH(W$5,'Rate Trajectory Calc'!$A$6:$CQ$6,0))=0," ",INDEX('Rate Trajectory Calc'!$A$6:$CQ$96,MATCH('Rate Trajectory Report'!$B10,'Rate Trajectory Calc'!$A$6:$A$96,0),MATCH('Rate Trajectory Report'!W$5,'Rate Trajectory Calc'!$A$6:$CQ$6,0))/1000) -> -10.590973 | X10: =IF(INDEX('Rate Trajectory Calc'!$A$6:$CQ$96,MATCH('Rate Trajectory Report'!$B10,'Rate Trajectory Calc'!$A$6:$A$96,0),MATCH(X$5,'Rate Trajectory Calc'!$A$6:$CQ$6,0))=0," ",INDEX('Rate Trajectory Calc'!$A$6:$CQ$96,MATCH('Rate Trajectory Report'!$B10,'Rate Trajectory Calc'!$A$6:$A$96,0),MATCH('Rate Trajectory Report'!X$5,'Rate Trajectory Calc'!$A$6:$CQ$6,0))/1000) ->  | Y10: =IF(INDEX('Rate Trajectory Calc'!$A$6:$CQ$96,MATCH('Rate Trajectory Report'!$B10,'Rate Trajectory Calc'!$A$6:$A$96,0),MATCH(Y$5,'Rate Trajectory Calc'!$A$6:$CQ$6,0))=0," ",INDEX('Rate Trajectory Calc'!$A$6:$CQ$96,MATCH('Rate Trajectory Report'!$B10,'Rate Trajectory Calc'!$A$6:$A$96,0),MATCH('Rate Trajectory Report'!Y$5,'Rate Trajectory Calc'!$A$6:$CQ$6,0))/1000) ->  | Z10: =IF(INDEX('Rate Trajectory Calc'!$A$6:$CQ$96,MATCH('Rate Trajectory Report'!$B10,'Rate Trajectory Calc'!$A$6:$A$96,0),MATCH(Z$5,'Rate Trajectory Calc'!$A$6:$CQ$6,0))=0," ",INDEX('Rate Trajectory Calc'!$A$6:$CQ$96,MATCH('Rate Trajectory Report'!$B10,'Rate Trajectory Calc'!$A$6:$A$96,0),MATCH('Rate Trajectory Report'!Z$5,'Rate Trajectory Calc'!$A$6:$CQ$6,0))/1000) ->  | AA10: =IF(INDEX('Rate Trajectory Calc'!$A$6:$CQ$96,MATCH('Rate Trajectory Report'!$B10,'Rate Trajectory Calc'!$A$6:$A$96,0),MATCH(AA$5,'Rate Trajectory Calc'!$A$6:$CQ$6,0))=0," ",INDEX('Rate Trajectory Calc'!$A$6:$CQ$96,MATCH('Rate Trajectory Report'!$B10,'Rate Trajectory Calc'!$A$6:$A$96,0),MATCH('Rate Trajectory Report'!AA$5,'Rate Trajectory Calc'!$A$6:$CQ$6,0))/1000) -> 
B11: ='Rate Trajectory Dashboard'!B15 -> Income Qualified Program (ESA) PY 2028-2033 - Year 2029 | C11: =IFERROR(VLOOKUP(B11,'Rate Trajectory Dashboard'!$B$12:$D$100,3,FALSE)/1000,C10) -> 75.530121 | D11: =IF(INDEX('Rate Trajectory Calc'!$A$6:$CQ$96,MATCH('Rate Trajectory Report'!$B11,'Rate Trajectory Calc'!$A$6:$A$96,0),MATCH('Rate Trajectory Report'!D$5,'Rate Trajectory Calc'!$A$6:$CQ$6,0))=0," ",INDEX('Rate Trajectory Calc'!$A$6:$CQ$96,MATCH('Rate Trajectory Report'!$B11,'Rate Trajectory Calc'!$A$6:$A$96,0),MATCH('Rate Trajectory Report'!D$5,'Rate Trajectory Calc'!$A$6:$CQ$6,0))/1000) ->  | E11: =IF(INDEX('Rate Trajectory Calc'!$A$6:$CQ$96,MATCH('Rate Trajectory Report'!$B11,'Rate Trajectory Calc'!$A$6:$A$96,0),MATCH('Rate Trajectory Report'!E$5,'Rate Trajectory Calc'!$A$6:$CQ$6,0))=0," ",INDEX('Rate Trajectory Calc'!$A$6:$CQ$96,MATCH('Rate Trajectory Report'!$B11,'Rate Trajectory Calc'!$A$6:$A$96,0),MATCH('Rate Trajectory Report'!E$5,'Rate Trajectory Calc'!$A$6:$CQ$6,0))/1000) ->  | F11: =IF(INDEX('Rate Trajectory Calc'!$A$6:$CQ$96,MATCH('Rate Trajectory Report'!$B11,'Rate Trajectory Calc'!$A$6:$A$96,0),MATCH('Rate Trajectory Report'!F$5,'Rate Trajectory Calc'!$A$6:$CQ$6,0))=0," ",INDEX('Rate Trajectory Calc'!$A$6:$CQ$96,MATCH('Rate Trajectory Report'!$B11,'Rate Trajectory Calc'!$A$6:$A$96,0),MATCH('Rate Trajectory Report'!F$5,'Rate Trajectory Calc'!$A$6:$CQ$6,0))/1000) ->  | G11: =IF(INDEX('Rate Trajectory Calc'!$A$6:$CQ$96,MATCH('Rate Trajectory Report'!$B11,'Rate Trajectory Calc'!$A$6:$A$96,0),MATCH('Rate Trajectory Report'!G$5,'Rate Trajectory Calc'!$A$6:$CQ$6,0))=0," ",INDEX('Rate Trajectory Calc'!$A$6:$CQ$96,MATCH('Rate Trajectory Report'!$B11,'Rate Trajectory Calc'!$A$6:$A$96,0),MATCH('Rate Trajectory Report'!G$5,'Rate Trajectory Calc'!$A$6:$CQ$6,0))/1000) ->  | H11: =IF(INDEX('Rate Trajectory Calc'!$A$6:$CQ$96,MATCH('Rate Trajectory Report'!$B11,'Rate Trajectory Calc'!$A$6:$A$96,0),MATCH('Rate Trajectory Report'!H$5,'Rate Trajectory Calc'!$A$6:$CQ$6,0))=0," ",INDEX('Rate Trajectory Calc'!$A$6:$CQ$96,MATCH('Rate Trajectory Report'!$B11,'Rate Trajectory Calc'!$A$6:$A$96,0),MATCH('Rate Trajectory Report'!H$5,'Rate Trajectory Calc'!$A$6:$CQ$6,0))/1000) ->  | I11: =IF(INDEX('Rate Trajectory Calc'!$A$6:$CQ$96,MATCH('Rate Trajectory Report'!$B11,'Rate Trajectory Calc'!$A$6:$A$96,0),MATCH('Rate Trajectory Report'!I$5,'Rate Trajectory Calc'!$A$6:$CQ$6,0))=0," ",INDEX('Rate Trajectory Calc'!$A$6:$CQ$96,MATCH('Rate Trajectory Report'!$B11,'Rate Trajectory Calc'!$A$6:$A$96,0),MATCH('Rate Trajectory Report'!I$5,'Rate Trajectory Calc'!$A$6:$CQ$6,0))/1000) ->  | J11: =IF(INDEX('Rate Trajectory Calc'!$A$6:$CQ$96,MATCH('Rate Trajectory Report'!$B11,'Rate Trajectory Calc'!$A$6:$A$96,0),MATCH('Rate Trajectory Report'!J$5,'Rate Trajectory Calc'!$A$6:$CQ$6,0))=0," ",INDEX('Rate Trajectory Calc'!$A$6:$CQ$96,MATCH('Rate Trajectory Report'!$B11,'Rate Trajectory Calc'!$A$6:$A$96,0),MATCH('Rate Trajectory Report'!J$5,'Rate Trajectory Calc'!$A$6:$CQ$6,0))/1000) ->  | K11: =IF(INDEX('Rate Trajectory Calc'!$A$6:$CQ$96,MATCH('Rate Trajectory Report'!$B11,'Rate Trajectory Calc'!$A$6:$A$96,0),MATCH('Rate Trajectory Report'!K$5,'Rate Trajectory Calc'!$A$6:$CQ$6,0))=0," ",INDEX('Rate Trajectory Calc'!$A$6:$CQ$96,MATCH('Rate Trajectory Report'!$B11,'Rate Trajectory Calc'!$A$6:$A$96,0),MATCH('Rate Trajectory Report'!K$5,'Rate Trajectory Calc'!$A$6:$CQ$6,0))/1000) ->  | L11: =IF(INDEX('Rate Trajectory Calc'!$A$6:$CQ$96,MATCH('Rate Trajectory Report'!$B11,'Rate Trajectory Calc'!$A$6:$A$96,0),MATCH('Rate Trajectory Report'!L$5,'Rate Trajectory Calc'!$A$6:$CQ$6,0))=0," ",INDEX('Rate Trajectory Calc'!$A$6:$CQ$96,MATCH('Rate Trajectory Report'!$B11,'Rate Trajectory Calc'!$A$6:$A$96,0),MATCH('Rate Trajectory Report'!L$5,'Rate Trajectory Calc'!$A$6:$CQ$6,0))/1000) ->  | M11: =IF(INDEX('Rate Trajectory Calc'!$A$6:$CQ$96,MATCH('Rate Trajectory Report'!$B11,'Rate Trajectory Calc'!$A$6:$A$96,0),MATCH('Rate Trajectory Report'!M$5,'Rate Trajectory Calc'!$A$6:$CQ$6,0))=0," ",INDEX('Rate Trajectory Calc'!$A$6:$CQ$96,MATCH('Rate Trajectory Report'!$B11,'Rate Trajectory Calc'!$A$6:$A$96,0),MATCH('Rate Trajectory Report'!M$5,'Rate Trajectory Calc'!$A$6:$CQ$6,0))/1000) ->  | N11: =IF(INDEX('Rate Trajectory Calc'!$A$6:$CQ$96,MATCH('Rate Trajectory Report'!$B11,'Rate Trajectory Calc'!$A$6:$A$96,0),MATCH('Rate Trajectory Report'!N$5,'Rate Trajectory Calc'!$A$6:$CQ$6,0))=0," ",INDEX('Rate Trajectory Calc'!$A$6:$CQ$96,MATCH('Rate Trajectory Report'!$B11,'Rate Trajectory Calc'!$A$6:$A$96,0),MATCH('Rate Trajectory Report'!N$5,'Rate Trajectory Calc'!$A$6:$CQ$6,0))/1000) ->  | O11: =IF(INDEX('Rate Trajectory Calc'!$A$6:$CQ$96,MATCH('Rate Trajectory Report'!$B11,'Rate Trajectory Calc'!$A$6:$A$96,0),MATCH('Rate Trajectory Report'!O$5,'Rate Trajectory Calc'!$A$6:$CQ$6,0))=0," ",INDEX('Rate Trajectory Calc'!$A$6:$CQ$96,MATCH('Rate Trajectory Report'!$B11,'Rate Trajectory Calc'!$A$6:$A$96,0),MATCH('Rate Trajectory Report'!O$5,'Rate Trajectory Calc'!$A$6:$CQ$6,0))/1000) ->  | P11: =IF(INDEX('Rate Trajectory Calc'!$A$6:$CQ$96,MATCH('Rate Trajectory Report'!$B11,'Rate Trajectory Calc'!$A$6:$A$96,0),MATCH('Rate Trajectory Report'!P$5,'Rate Trajectory Calc'!$A$6:$CQ$6,0))=0," ",INDEX('Rate Trajectory Calc'!$A$6:$CQ$96,MATCH('Rate Trajectory Report'!$B11,'Rate Trajectory Calc'!$A$6:$A$96,0),MATCH('Rate Trajectory Report'!P$5,'Rate Trajectory Calc'!$A$6:$CQ$6,0))/1000) ->  | Q11: =IF(INDEX('Rate Trajectory Calc'!$A$6:$CQ$96,MATCH('Rate Trajectory Report'!$B11,'Rate Trajectory Calc'!$A$6:$A$96,0),MATCH('Rate Trajectory Report'!Q$5,'Rate Trajectory Calc'!$A$6:$CQ$6,0))=0," ",INDEX('Rate Trajectory Calc'!$A$6:$CQ$96,MATCH('Rate Trajectory Report'!$B11,'Rate Trajectory Calc'!$A$6:$A$96,0),MATCH('Rate Trajectory Report'!Q$5,'Rate Trajectory Calc'!$A$6:$CQ$6,0))/1000) ->  | R11: =IF(INDEX('Rate Trajectory Calc'!$A$6:$CQ$96,MATCH('Rate Trajectory Report'!$B11,'Rate Trajectory Calc'!$A$6:$A$96,0),MATCH('Rate Trajectory Report'!R$5,'Rate Trajectory Calc'!$A$6:$CQ$6,0))=0," ",INDEX('Rate Trajectory Calc'!$A$6:$CQ$96,MATCH('Rate Trajectory Report'!$B11,'Rate Trajectory Calc'!$A$6:$A$96,0),MATCH('Rate Trajectory Report'!R$5,'Rate Trajectory Calc'!$A$6:$CQ$6,0))/1000) ->  | S11: =IF(INDEX('Rate Trajectory Calc'!$A$6:$CQ$96,MATCH('Rate Trajectory Report'!$B11,'Rate Trajectory Calc'!$A$6:$A$96,0),MATCH('Rate Trajectory Report'!S$5,'Rate Trajectory Calc'!$A$6:$CQ$6,0))=0," ",INDEX('Rate Trajectory Calc'!$A$6:$CQ$96,MATCH('Rate Trajectory Report'!$B11,'Rate Trajectory Calc'!$A$6:$A$96,0),MATCH('Rate Trajectory Report'!S$5,'Rate Trajectory Calc'!$A$6:$CQ$6,0))/1000) ->  | T11: =IF(INDEX('Rate Trajectory Calc'!$A$6:$CQ$96,MATCH('Rate Trajectory Report'!$B11,'Rate Trajectory Calc'!$A$6:$A$96,0),MATCH('Rate Trajectory Report'!T$5,'Rate Trajectory Calc'!$A$6:$CQ$6,0))=0," ",INDEX('Rate Trajectory Calc'!$A$6:$CQ$96,MATCH('Rate Trajectory Report'!$B11,'Rate Trajectory Calc'!$A$6:$A$96,0),MATCH('Rate Trajectory Report'!T$5,'Rate Trajectory Calc'!$A$6:$CQ$6,0))/1000) ->  | U11: =IF(INDEX('Rate Trajectory Calc'!$A$6:$CQ$96,MATCH('Rate Trajectory Report'!$B11,'Rate Trajectory Calc'!$A$6:$A$96,0),MATCH('Rate Trajectory Report'!U$5,'Rate Trajectory Calc'!$A$6:$CQ$6,0))=0," ",INDEX('Rate Trajectory Calc'!$A$6:$CQ$96,MATCH('Rate Trajectory Report'!$B11,'Rate Trajectory Calc'!$A$6:$A$96,0),MATCH('Rate Trajectory Report'!U$5,'Rate Trajectory Calc'!$A$6:$CQ$6,0))/1000) ->  | V11: =IF(INDEX('Rate Trajectory Calc'!$A$6:$CQ$96,MATCH('Rate Trajectory Report'!$B11,'Rate Trajectory Calc'!$A$6:$A$96,0),MATCH('Rate Trajectory Report'!V$5,'Rate Trajectory Calc'!$A$6:$CQ$6,0))=0," ",INDEX('Rate Trajectory Calc'!$A$6:$CQ$96,MATCH('Rate Trajectory Report'!$B11,'Rate Trajectory Calc'!$A$6:$A$96,0),MATCH('Rate Trajectory Report'!V$5,'Rate Trajectory Calc'!$A$6:$CQ$6,0))/1000) ->  | W11: =IF(INDEX('Rate Trajectory Calc'!$A$6:$CQ$96,MATCH('Rate Trajectory Report'!$B11,'Rate Trajectory Calc'!$A$6:$A$96,0),MATCH('Rate Trajectory Report'!W$5,'Rate Trajectory Calc'!$A$6:$CQ$6,0))=0," ",INDEX('Rate Trajectory Calc'!$A$6:$CQ$96,MATCH('Rate Trajectory Report'!$B11,'Rate Trajectory Calc'!$A$6:$A$96,0),MATCH('Rate Trajectory Report'!W$5,'Rate Trajectory Calc'!$A$6:$CQ$6,0))/1000) ->  | X11: =IF(INDEX('Rate Trajectory Calc'!$A$6:$CQ$96,MATCH('Rate Trajectory Report'!$B11,'Rate Trajectory Calc'!$A$6:$A$96,0),MATCH('Rate Trajectory Report'!X$5,'Rate Trajectory Calc'!$A$6:$CQ$6,0))=0," ",INDEX('Rate Trajectory Calc'!$A$6:$CQ$96,MATCH('Rate Trajectory Report'!$B11,'Rate Trajectory Calc'!$A$6:$A$96,0),MATCH('Rate Trajectory Report'!X$5,'Rate Trajectory Calc'!$A$6:$CQ$6,0))/1000) ->  | Y11: =IF(INDEX('Rate Trajectory Calc'!$A$6:$CQ$96,MATCH('Rate Trajectory Report'!$B11,'Rate Trajectory Calc'!$A$6:$A$96,0),MATCH('Rate Trajectory Report'!Y$5,'Rate Trajectory Calc'!$A$6:$CQ$6,0))=0," ",INDEX('Rate Trajectory Calc'!$A$6:$CQ$96,MATCH('Rate Trajectory Report'!$B11,'Rate Trajectory Calc'!$A$6:$A$96,0),MATCH('Rate Trajectory Report'!Y$5,'Rate Trajectory Calc'!$A$6:$CQ$6,0))/1000) ->  | Z11: =IF(INDEX('Rate Trajectory Calc'!$A$6:$CQ$96,MATCH('Rate Trajectory Report'!$B11,'Rate Trajectory Calc'!$A$6:$A$96,0),MATCH('Rate Trajectory Report'!Z$5,'Rate Trajectory Calc'!$A$6:$CQ$6,0))=0," ",INDEX('Rate Trajectory Calc'!$A$6:$CQ$96,MATCH('Rate Trajectory Report'!$B11,'Rate Trajectory Calc'!$A$6:$A$96,0),MATCH('Rate Trajectory Report'!Z$5,'Rate Trajectory Calc'!$A$6:$CQ$6,0))/1000) ->  | AA11: =IF(INDEX('Rate Trajectory Calc'!$A$6:$CQ$96,MATCH('Rate Trajectory Report'!$B11,'Rate Trajectory Calc'!$A$6:$A$96,0),MATCH('Rate Trajectory Report'!AA$5,'Rate Trajectory Calc'!$A$6:$CQ$6,0))=0," ",INDEX('Rate Trajectory Calc'!$A$6:$CQ$96,MATCH('Rate Trajectory Report'!$B11,'Rate Trajectory Calc'!$A$6:$A$96,0),MATCH('Rate Trajectory Report'!AA$5,'Rate Trajectory Calc'!$A$6:$CQ$6,0))/1000) -> 
B12: ='Rate Trajectory Dashboard'!B16 -> Income Qualified Program (ESA) PY 2028-2033 - Year 2030 | C12: =IFERROR(VLOOKUP(B12,'Rate Trajectory Dashboard'!$B$12:$D$100,3,FALSE)/1000,C11) -> 75.530121 | D12: =IF(INDEX('Rate Trajectory Calc'!$A$6:$CQ$96,MATCH('Rate Trajectory Report'!$B12,'Rate Trajectory Calc'!$A$6:$A$96,0),MATCH('Rate Trajectory Report'!D$5,'Rate Trajectory Calc'!$A$6:$CQ$6,0))=0," ",INDEX('Rate Trajectory Calc'!$A$6:$CQ$96,MATCH('Rate Trajectory Report'!$B12,'Rate Trajectory Calc'!$A$6:$A$96,0),MATCH('Rate Trajectory Report'!D$5,'Rate Trajectory Calc'!$A$6:$CQ$6,0))/1000) ->  | E12: =IF(INDEX('Rate Trajectory Calc'!$A$6:$CQ$96,MATCH('Rate Trajectory Report'!$B12,'Rate Trajectory Calc'!$A$6:$A$96,0),MATCH('Rate Trajectory Report'!E$5,'Rate Trajectory Calc'!$A$6:$CQ$6,0))=0," ",INDEX('Rate Trajectory Calc'!$A$6:$CQ$96,MATCH('Rate Trajectory Report'!$B12,'Rate Trajectory Calc'!$A$6:$A$96,0),MATCH('Rate Trajectory Report'!E$5,'Rate Trajectory Calc'!$A$6:$CQ$6,0))/1000) ->  | F12: =IF(INDEX('Rate Trajectory Calc'!$A$6:$CQ$96,MATCH('Rate Trajectory Report'!$B12,'Rate Trajectory Calc'!$A$6:$A$96,0),MATCH('Rate Trajectory Report'!F$5,'Rate Trajectory Calc'!$A$6:$CQ$6,0))=0," ",INDEX('Rate Trajectory Calc'!$A$6:$CQ$96,MATCH('Rate Trajectory Report'!$B12,'Rate Trajectory Calc'!$A$6:$A$96,0),MATCH('Rate Trajectory Report'!F$5,'Rate Trajectory Calc'!$A$6:$CQ$6,0))/1000) ->  | G12: =IF(INDEX('Rate Trajectory Calc'!$A$6:$CQ$96,MATCH('Rate Trajectory Report'!$B12,'Rate Trajectory Calc'!$A$6:$A$96,0),MATCH('Rate Trajectory Report'!G$5,'Rate Trajectory Calc'!$A$6:$CQ$6,0))=0," ",INDEX('Rate Trajectory Calc'!$A$6:$CQ$96,MATCH('Rate Trajectory Report'!$B12,'Rate Trajectory Calc'!$A$6:$A$96,0),MATCH('Rate Trajectory Report'!G$5,'Rate Trajectory Calc'!$A$6:$CQ$6,0))/1000) ->  | H12: =IF(INDEX('Rate Trajectory Calc'!$A$6:$CQ$96,MATCH('Rate Trajectory Report'!$B12,'Rate Trajectory Calc'!$A$6:$A$96,0),MATCH('Rate Trajectory Report'!H$5,'Rate Trajectory Calc'!$A$6:$CQ$6,0))=0," ",INDEX('Rate Trajectory Calc'!$A$6:$CQ$96,MATCH('Rate Trajectory Report'!$B12,'Rate Trajectory Calc'!$A$6:$A$96,0),MATCH('Rate Trajectory Report'!H$5,'Rate Trajectory Calc'!$A$6:$CQ$6,0))/1000) ->  | I12: =IF(INDEX('Rate Trajectory Calc'!$A$6:$CQ$96,MATCH('Rate Trajectory Report'!$B12,'Rate Trajectory Calc'!$A$6:$A$96,0),MATCH('Rate Trajectory Report'!I$5,'Rate Trajectory Calc'!$A$6:$CQ$6,0))=0," ",INDEX('Rate Trajectory Calc'!$A$6:$CQ$96,MATCH('Rate Trajectory Report'!$B12,'Rate Trajectory Calc'!$A$6:$A$96,0),MATCH('Rate Trajectory Report'!I$5,'Rate Trajectory Calc'!$A$6:$CQ$6,0))/1000) ->  | J12: =IF(INDEX('Rate Trajectory Calc'!$A$6:$CQ$96,MATCH('Rate Trajectory Report'!$B12,'Rate Trajectory Calc'!$A$6:$A$96,0),MATCH('Rate Trajectory Report'!J$5,'Rate Trajectory Calc'!$A$6:$CQ$6,0))=0," ",INDEX('Rate Trajectory Calc'!$A$6:$CQ$96,MATCH('Rate Trajectory Report'!$B12,'Rate Trajectory Calc'!$A$6:$A$96,0),MATCH('Rate Trajectory Report'!J$5,'Rate Trajectory Calc'!$A$6:$CQ$6,0))/1000) ->  | K12: =IF(INDEX('Rate Trajectory Calc'!$A$6:$CQ$96,MATCH('Rate Trajectory Report'!$B12,'Rate Trajectory Calc'!$A$6:$A$96,0),MATCH('Rate Trajectory Report'!K$5,'Rate Trajectory Calc'!$A$6:$CQ$6,0))=0," ",INDEX('Rate Trajectory Calc'!$A$6:$CQ$96,MATCH('Rate Trajectory Report'!$B12,'Rate Trajectory Calc'!$A$6:$A$96,0),MATCH('Rate Trajectory Report'!K$5,'Rate Trajectory Calc'!$A$6:$CQ$6,0))/1000) ->  | L12: =IF(INDEX('Rate Trajectory Calc'!$A$6:$CQ$96,MATCH('Rate Trajectory Report'!$B12,'Rate Trajectory Calc'!$A$6:$A$96,0),MATCH('Rate Trajectory Report'!L$5,'Rate Trajectory Calc'!$A$6:$CQ$6,0))=0," ",INDEX('Rate Trajectory Calc'!$A$6:$CQ$96,MATCH('Rate Trajectory Report'!$B12,'Rate Trajectory Calc'!$A$6:$A$96,0),MATCH('Rate Trajectory Report'!L$5,'Rate Trajectory Calc'!$A$6:$CQ$6,0))/1000) ->  | M12: =IF(INDEX('Rate Trajectory Calc'!$A$6:$CQ$96,MATCH('Rate Trajectory Report'!$B12,'Rate Trajectory Calc'!$A$6:$A$96,0),MATCH('Rate Trajectory Report'!M$5,'Rate Trajectory Calc'!$A$6:$CQ$6,0))=0," ",INDEX('Rate Trajectory Calc'!$A$6:$CQ$96,MATCH('Rate Trajectory Report'!$B12,'Rate Trajectory Calc'!$A$6:$A$96,0),MATCH('Rate Trajectory Report'!M$5,'Rate Trajectory Calc'!$A$6:$CQ$6,0))/1000) ->  | N12: =IF(INDEX('Rate Trajectory Calc'!$A$6:$CQ$96,MATCH('Rate Trajectory Report'!$B12,'Rate Trajectory Calc'!$A$6:$A$96,0),MATCH('Rate Trajectory Report'!N$5,'Rate Trajectory Calc'!$A$6:$CQ$6,0))=0," ",INDEX('Rate Trajectory Calc'!$A$6:$CQ$96,MATCH('Rate Trajectory Report'!$B12,'Rate Trajectory Calc'!$A$6:$A$96,0),MATCH('Rate Trajectory Report'!N$5,'Rate Trajectory Calc'!$A$6:$CQ$6,0))/1000) ->  | O12: =IF(INDEX('Rate Trajectory Calc'!$A$6:$CQ$96,MATCH('Rate Trajectory Report'!$B12,'Rate Trajectory Calc'!$A$6:$A$96,0),MATCH('Rate Trajectory Report'!O$5,'Rate Trajectory Calc'!$A$6:$CQ$6,0))=0," ",INDEX('Rate Trajectory Calc'!$A$6:$CQ$96,MATCH('Rate Trajectory Report'!$B12,'Rate Trajectory Calc'!$A$6:$A$96,0),MATCH('Rate Trajectory Report'!O$5,'Rate Trajectory Calc'!$A$6:$CQ$6,0))/1000) ->  | P12: =IF(INDEX('Rate Trajectory Calc'!$A$6:$CQ$96,MATCH('Rate Trajectory Report'!$B12,'Rate Trajectory Calc'!$A$6:$A$96,0),MATCH('Rate Trajectory Report'!P$5,'Rate Trajectory Calc'!$A$6:$CQ$6,0))=0," ",INDEX('Rate Trajectory Calc'!$A$6:$CQ$96,MATCH('Rate Trajectory Report'!$B12,'Rate Trajectory Calc'!$A$6:$A$96,0),MATCH('Rate Trajectory Report'!P$5,'Rate Trajectory Calc'!$A$6:$CQ$6,0))/1000) ->  | Q12: =IF(INDEX('Rate Trajectory Calc'!$A$6:$CQ$96,MATCH('Rate Trajectory Report'!$B12,'Rate Trajectory Calc'!$A$6:$A$96,0),MATCH('Rate Trajectory Report'!Q$5,'Rate Trajectory Calc'!$A$6:$CQ$6,0))=0," ",INDEX('Rate Trajectory Calc'!$A$6:$CQ$96,MATCH('Rate Trajectory Report'!$B12,'Rate Trajectory Calc'!$A$6:$A$96,0),MATCH('Rate Trajectory Report'!Q$5,'Rate Trajectory Calc'!$A$6:$CQ$6,0))/1000) ->  | R12: =IF(INDEX('Rate Trajectory Calc'!$A$6:$CQ$96,MATCH('Rate Trajectory Report'!$B12,'Rate Trajectory Calc'!$A$6:$A$96,0),MATCH('Rate Trajectory Report'!R$5,'Rate Trajectory Calc'!$A$6:$CQ$6,0))=0," ",INDEX('Rate Trajectory Calc'!$A$6:$CQ$96,MATCH('Rate Trajectory Report'!$B12,'Rate Trajectory Calc'!$A$6:$A$96,0),MATCH('Rate Trajectory Report'!R$5,'Rate Trajectory Calc'!$A$6:$CQ$6,0))/1000) ->  | S12: =IF(INDEX('Rate Trajectory Calc'!$A$6:$CQ$96,MATCH('Rate Trajectory Report'!$B12,'Rate Trajectory Calc'!$A$6:$A$96,0),MATCH('Rate Trajectory Report'!S$5,'Rate Trajectory Calc'!$A$6:$CQ$6,0))=0," ",INDEX('Rate Trajectory Calc'!$A$6:$CQ$96,MATCH('Rate Trajectory Report'!$B12,'Rate Trajectory Calc'!$A$6:$A$96,0),MATCH('Rate Trajectory Report'!S$5,'Rate Trajectory Calc'!$A$6:$CQ$6,0))/1000) ->  | T12: =IF(INDEX('Rate Trajectory Calc'!$A$6:$CQ$96,MATCH('Rate Trajectory Report'!$B12,'Rate Trajectory Calc'!$A$6:$A$96,0),MATCH('Rate Trajectory Report'!T$5,'Rate Trajectory Calc'!$A$6:$CQ$6,0))=0," ",INDEX('Rate Trajectory Calc'!$A$6:$CQ$96,MATCH('Rate Trajectory Report'!$B12,'Rate Trajectory Calc'!$A$6:$A$96,0),MATCH('Rate Trajectory Report'!T$5,'Rate Trajectory Calc'!$A$6:$CQ$6,0))/1000) ->  | U12: =IF(INDEX('Rate Trajectory Calc'!$A$6:$CQ$96,MATCH('Rate Trajectory Report'!$B12,'Rate Trajectory Calc'!$A$6:$A$96,0),MATCH('Rate Trajectory Report'!U$5,'Rate Trajectory Calc'!$A$6:$CQ$6,0))=0," ",INDEX('Rate Trajectory Calc'!$A$6:$CQ$96,MATCH('Rate Trajectory Report'!$B12,'Rate Trajectory Calc'!$A$6:$A$96,0),MATCH('Rate Trajectory Report'!U$5,'Rate Trajectory Calc'!$A$6:$CQ$6,0))/1000) ->  | V12: =IF(INDEX('Rate Trajectory Calc'!$A$6:$CQ$96,MATCH('Rate Trajectory Report'!$B12,'Rate Trajectory Calc'!$A$6:$A$96,0),MATCH('Rate Trajectory Report'!V$5,'Rate Trajectory Calc'!$A$6:$CQ$6,0))=0," ",INDEX('Rate Trajectory Calc'!$A$6:$CQ$96,MATCH('Rate Trajectory Report'!$B12,'Rate Trajectory Calc'!$A$6:$A$96,0),MATCH('Rate Trajectory Report'!V$5,'Rate Trajectory Calc'!$A$6:$CQ$6,0))/1000) ->  | W12: =IF(INDEX('Rate Trajectory Calc'!$A$6:$CQ$96,MATCH('Rate Trajectory Report'!$B12,'Rate Trajectory Calc'!$A$6:$A$96,0),MATCH('Rate Trajectory Report'!W$5,'Rate Trajectory Calc'!$A$6:$CQ$6,0))=0," ",INDEX('Rate Trajectory Calc'!$A$6:$CQ$96,MATCH('Rate Trajectory Report'!$B12,'Rate Trajectory Calc'!$A$6:$A$96,0),MATCH('Rate Trajectory Report'!W$5,'Rate Trajectory Calc'!$A$6:$CQ$6,0))/1000) ->  | X12: =IF(INDEX('Rate Trajectory Calc'!$A$6:$CQ$96,MATCH('Rate Trajectory Report'!$B12,'Rate Trajectory Calc'!$A$6:$A$96,0),MATCH('Rate Trajectory Report'!X$5,'Rate Trajectory Calc'!$A$6:$CQ$6,0))=0," ",INDEX('Rate Trajectory Calc'!$A$6:$CQ$96,MATCH('Rate Trajectory Report'!$B12,'Rate Trajectory Calc'!$A$6:$A$96,0),MATCH('Rate Trajectory Report'!X$5,'Rate Trajectory Calc'!$A$6:$CQ$6,0))/1000) ->  | Y12: =IF(INDEX('Rate Trajectory Calc'!$A$6:$CQ$96,MATCH('Rate Trajectory Report'!$B12,'Rate Trajectory Calc'!$A$6:$A$96,0),MATCH('Rate Trajectory Report'!Y$5,'Rate Trajectory Calc'!$A$6:$CQ$6,0))=0," ",INDEX('Rate Trajectory Calc'!$A$6:$CQ$96,MATCH('Rate Trajectory Report'!$B12,'Rate Trajectory Calc'!$A$6:$A$96,0),MATCH('Rate Trajectory Report'!Y$5,'Rate Trajectory Calc'!$A$6:$CQ$6,0))/1000) ->  | Z12: =IF(INDEX('Rate Trajectory Calc'!$A$6:$CQ$96,MATCH('Rate Trajectory Report'!$B12,'Rate Trajectory Calc'!$A$6:$A$96,0),MATCH('Rate Trajectory Report'!Z$5,'Rate Trajectory Calc'!$A$6:$CQ$6,0))=0," ",INDEX('Rate Trajectory Calc'!$A$6:$CQ$96,MATCH('Rate Trajectory Report'!$B12,'Rate Trajectory Calc'!$A$6:$A$96,0),MATCH('Rate Trajectory Report'!Z$5,'Rate Trajectory Calc'!$A$6:$CQ$6,0))/1000) ->  | AA12: =IF(INDEX('Rate Trajectory Calc'!$A$6:$CQ$96,MATCH('Rate Trajectory Report'!$B12,'Rate Trajectory Calc'!$A$6:$A$96,0),MATCH('Rate Trajectory Report'!AA$5,'Rate Trajectory Calc'!$A$6:$CQ$6,0))=0," ",INDEX('Rate Trajectory Calc'!$A$6:$CQ$96,MATCH('Rate Trajectory Report'!$B12,'Rate Trajectory Calc'!$A$6:$A$96,0),MATCH('Rate Trajectory Report'!AA$5,'Rate Trajectory Calc'!$A$6:$CQ$6,0))/1000) -> 
A13: 3a | B13: Income Qualified Program (ESA) PY 2028-2033 | C13: =IFERROR(VLOOKUP(B13,'Rate Trajectory Dashboard'!$B$12:$D$100,3,FALSE)/1000,C12) -> 75.530121 | D13: =IF(SUM(D10:D12)=0," ",SUBTOTAL(9,D10:D12)) ->  | E13: =IF(SUM(E10:E12)=0," ",SUBTOTAL(9,E10:E12)) ->  | W13: -10.590973
B14: ='Rate Trajectory Dashboard'!B17 -> Income Qualified Program (CARE) PY 2028-2033 - Year 2028 | C14: =IFERROR(VLOOKUP(B14,'Rate Trajectory Dashboard'!$B$12:$D$100,3,FALSE)/1000,C13) -> 2.95754 | D14: =IF(INDEX('Rate Trajectory Calc'!$A$6:$CQ$96,MATCH('Rate Trajectory Report'!$B14,'Rate Trajectory Calc'!$A$6:$A$96,0),MATCH('Rate Trajectory Report'!D$5,'Rate Trajectory Calc'!$A$6:$CQ$6,0))=0," ",INDEX('Rate Trajectory Calc'!$A$6:$CQ$96,MATCH('Rate Trajectory Report'!$B14,'Rate Trajectory Calc'!$A$6:$A$96,0),MATCH('Rate Trajectory Report'!D$5,'Rate Trajectory Calc'!$A$6:$CQ$6,0))/1000) ->  | E14: =IF(INDEX('Rate Trajectory Calc'!$A$6:$CQ$96,MATCH('Rate Trajectory Report'!$B14,'Rate Trajectory Calc'!$A$6:$A$96,0),MATCH('Rate Trajectory Report'!E$5,'Rate Trajectory Calc'!$A$6:$CQ$6,0))=0," ",INDEX('Rate Trajectory Calc'!$A$6:$CQ$96,MATCH('Rate Trajectory Report'!$B14,'Rate Trajectory Calc'!$A$6:$A$96,0),MATCH('Rate Trajectory Report'!E$5,'Rate Trajectory Calc'!$A$6:$CQ$6,0))/1000) ->  | F14: =IF(INDEX('Rate Trajectory Calc'!$A$6:$CQ$96,MATCH('Rate Trajectory Report'!$B14,'Rate Trajectory Calc'!$A$6:$A$96,0),MATCH('Rate Trajectory Report'!F$5,'Rate Trajectory Calc'!$A$6:$CQ$6,0))=0," ",INDEX('Rate Trajectory Calc'!$A$6:$CQ$96,MATCH('Rate Trajectory Report'!$B14,'Rate Trajectory Calc'!$A$6:$A$96,0),MATCH('Rate Trajectory Report'!F$5,'Rate Trajectory Calc'!$A$6:$CQ$6,0))/1000) ->  | G14: =IF(INDEX('Rate Trajectory Calc'!$A$6:$CQ$96,MATCH('Rate Trajectory Report'!$B14,'Rate Trajectory Calc'!$A$6:$A$96,0),MATCH('Rate Trajectory Report'!G$5,'Rate Trajectory Calc'!$A$6:$CQ$6,0))=0," ",INDEX('Rate Trajectory Calc'!$A$6:$CQ$96,MATCH('Rate Trajectory Report'!$B14,'Rate Trajectory Calc'!$A$6:$A$96,0),MATCH('Rate Trajectory Report'!G$5,'Rate Trajectory Calc'!$A$6:$CQ$6,0))/1000) ->  | H14: =IF(INDEX('Rate Trajectory Calc'!$A$6:$CQ$96,MATCH('Rate Trajectory Report'!$B14,'Rate Trajectory Calc'!$A$6:$A$96,0),MATCH('Rate Trajectory Report'!H$5,'Rate Trajectory Calc'!$A$6:$CQ$6,0))=0," ",INDEX('Rate Trajectory Calc'!$A$6:$CQ$96,MATCH('Rate Trajectory Report'!$B14,'Rate Trajectory Calc'!$A$6:$A$96,0),MATCH('Rate Trajectory Report'!H$5,'Rate Trajectory Calc'!$A$6:$CQ$6,0))/1000) ->  | I14: =IF(INDEX('Rate Trajectory Calc'!$A$6:$CQ$96,MATCH('Rate Trajectory Report'!$B14,'Rate Trajectory Calc'!$A$6:$A$96,0),MATCH('Rate Trajectory Report'!I$5,'Rate Trajectory Calc'!$A$6:$CQ$6,0))=0," ",INDEX('Rate Trajectory Calc'!$A$6:$CQ$96,MATCH('Rate Trajectory Report'!$B14,'Rate Trajectory Calc'!$A$6:$A$96,0),MATCH('Rate Trajectory Report'!I$5,'Rate Trajectory Calc'!$A$6:$CQ$6,0))/1000) ->  | J14: =IF(INDEX('Rate Trajectory Calc'!$A$6:$CQ$96,MATCH('Rate Trajectory Report'!$B14,'Rate Trajectory Calc'!$A$6:$A$96,0),MATCH('Rate Trajectory Report'!J$5,'Rate Trajectory Calc'!$A$6:$CQ$6,0))=0," ",INDEX('Rate Trajectory Calc'!$A$6:$CQ$96,MATCH('Rate Trajectory Report'!$B14,'Rate Trajectory Calc'!$A$6:$A$96,0),MATCH('Rate Trajectory Report'!J$5,'Rate Trajectory Calc'!$A$6:$CQ$6,0))/1000) ->  | K14: =IF(INDEX('Rate Trajectory Calc'!$A$6:$CQ$96,MATCH('Rate Trajectory Report'!$B14,'Rate Trajectory Calc'!$A$6:$A$96,0),MATCH('Rate Trajectory Report'!K$5,'Rate Trajectory Calc'!$A$6:$CQ$6,0))=0," ",INDEX('Rate Trajectory Calc'!$A$6:$CQ$96,MATCH('Rate Trajectory Report'!$B14,'Rate Trajectory Calc'!$A$6:$A$96,0),MATCH('Rate Trajectory Report'!K$5,'Rate Trajectory Calc'!$A$6:$CQ$6,0))/1000) ->  | L14: =IF(INDEX('Rate Trajectory Calc'!$A$6:$CQ$96,MATCH('Rate Trajectory Report'!$B14,'Rate Trajectory Calc'!$A$6:$A$96,0),MATCH('Rate Trajectory Report'!L$5,'Rate Trajectory Calc'!$A$6:$CQ$6,0))=0," ",INDEX('Rate Trajectory Calc'!$A$6:$CQ$96,MATCH('Rate Trajectory Report'!$B14,'Rate Trajectory Calc'!$A$6:$A$96,0),MATCH('Rate Trajectory Report'!L$5,'Rate Trajectory Calc'!$A$6:$CQ$6,0))/1000) ->  | M14: =IF(INDEX('Rate Trajectory Calc'!$A$6:$CQ$96,MATCH('Rate Trajectory Report'!$B14,'Rate Trajectory Calc'!$A$6:$A$96,0),MATCH('Rate Trajectory Report'!M$5,'Rate Trajectory Calc'!$A$6:$CQ$6,0))=0," ",INDEX('Rate Trajectory Calc'!$A$6:$CQ$96,MATCH('Rate Trajectory Report'!$B14,'Rate Trajectory Calc'!$A$6:$A$96,0),MATCH('Rate Trajectory Report'!M$5,'Rate Trajectory Calc'!$A$6:$CQ$6,0))/1000) ->  | N14: =IF(INDEX('Rate Trajectory Calc'!$A$6:$CQ$96,MATCH('Rate Trajectory Report'!$B14,'Rate Trajectory Calc'!$A$6:$A$96,0),MATCH('Rate Trajectory Report'!N$5,'Rate Trajectory Calc'!$A$6:$CQ$6,0))=0," ",INDEX('Rate Trajectory Calc'!$A$6:$CQ$96,MATCH('Rate Trajectory Report'!$B14,'Rate Trajectory Calc'!$A$6:$A$96,0),MATCH('Rate Trajectory Report'!N$5,'Rate Trajectory Calc'!$A$6:$CQ$6,0))/1000) ->  | O14: =IF(INDEX('Rate Trajectory Calc'!$A$6:$CQ$96,MATCH('Rate Trajectory Report'!$B14,'Rate Trajectory Calc'!$A$6:$A$96,0),MATCH('Rate Trajectory Report'!O$5,'Rate Trajectory Calc'!$A$6:$CQ$6,0))=0," ",INDEX('Rate Trajectory Calc'!$A$6:$CQ$96,MATCH('Rate Trajectory Report'!$B14,'Rate Trajectory Calc'!$A$6:$A$96,0),MATCH('Rate Trajectory Report'!O$5,'Rate Trajectory Calc'!$A$6:$CQ$6,0))/1000) ->  | P14: =IF(INDEX('Rate Trajectory Calc'!$A$6:$CQ$96,MATCH('Rate Trajectory Report'!$B14,'Rate Trajectory Calc'!$A$6:$A$96,0),MATCH('Rate Trajectory Report'!P$5,'Rate Trajectory Calc'!$A$6:$CQ$6,0))=0," ",INDEX('Rate Trajectory Calc'!$A$6:$CQ$96,MATCH('Rate Trajectory Report'!$B14,'Rate Trajectory Calc'!$A$6:$A$96,0),MATCH('Rate Trajectory Report'!P$5,'Rate Trajectory Calc'!$A$6:$CQ$6,0))/1000) ->  | Q14: =IF(INDEX('Rate Trajectory Calc'!$A$6:$CQ$96,MATCH('Rate Trajectory Report'!$B14,'Rate Trajectory Calc'!$A$6:$A$96,0),MATCH('Rate Trajectory Report'!Q$5,'Rate Trajectory Calc'!$A$6:$CQ$6,0))=0," ",INDEX('Rate Trajectory Calc'!$A$6:$CQ$96,MATCH('Rate Trajectory Report'!$B14,'Rate Trajectory Calc'!$A$6:$A$96,0),MATCH('Rate Trajectory Report'!Q$5,'Rate Trajectory Calc'!$A$6:$CQ$6,0))/1000) ->  | R14: =IF(INDEX('Rate Trajectory Calc'!$A$6:$CQ$96,MATCH('Rate Trajectory Report'!$B14,'Rate Trajectory Calc'!$A$6:$A$96,0),MATCH('Rate Trajectory Report'!R$5,'Rate Trajectory Calc'!$A$6:$CQ$6,0))=0," ",INDEX('Rate Trajectory Calc'!$A$6:$CQ$96,MATCH('Rate Trajectory Report'!$B14,'Rate Trajectory Calc'!$A$6:$A$96,0),MATCH('Rate Trajectory Report'!R$5,'Rate Trajectory Calc'!$A$6:$CQ$6,0))/1000) ->  | S14: =IF(INDEX('Rate Trajectory Calc'!$A$6:$CQ$96,MATCH('Rate Trajectory Report'!$B14,'Rate Trajectory Calc'!$A$6:$A$96,0),MATCH('Rate Trajectory Report'!S$5,'Rate Trajectory Calc'!$A$6:$CQ$6,0))=0," ",INDEX('Rate Trajectory Calc'!$A$6:$CQ$96,MATCH('Rate Trajectory Report'!$B14,'Rate Trajectory Calc'!$A$6:$A$96,0),MATCH('Rate Trajectory Report'!S$5,'Rate Trajectory Calc'!$A$6:$CQ$6,0))/1000) ->  | T14: =IF(INDEX('Rate Trajectory Calc'!$A$6:$CQ$96,MATCH('Rate Trajectory Report'!$B14,'Rate Trajectory Calc'!$A$6:$A$96,0),MATCH('Rate Trajectory Report'!T$5,'Rate Trajectory Calc'!$A$6:$CQ$6,0))=0," ",INDEX('Rate Trajectory Calc'!$A$6:$CQ$96,MATCH('Rate Trajectory Report'!$B14,'Rate Trajectory Calc'!$A$6:$A$96,0),MATCH('Rate Trajectory Report'!T$5,'Rate Trajectory Calc'!$A$6:$CQ$6,0))/1000) ->  | U14: =IF(INDEX('Rate Trajectory Calc'!$A$6:$CQ$96,MATCH('Rate Trajectory Report'!$B14,'Rate Trajectory Calc'!$A$6:$A$96,0),MATCH('Rate Trajectory Report'!U$5,'Rate Trajectory Calc'!$A$6:$CQ$6,0))=0," ",INDEX('Rate Trajectory Calc'!$A$6:$CQ$96,MATCH('Rate Trajectory Report'!$B14,'Rate Trajectory Calc'!$A$6:$A$96,0),MATCH('Rate Trajectory Report'!U$5,'Rate Trajectory Calc'!$A$6:$CQ$6,0))/1000) ->  | V14: =IF(INDEX('Rate Trajectory Calc'!$A$6:$CQ$96,MATCH('Rate Trajectory Report'!$B14,'Rate Trajectory Calc'!$A$6:$A$96,0),MATCH('Rate Trajectory Report'!V$5,'Rate Trajectory Calc'!$A$6:$CQ$6,0))=0," ",INDEX('Rate Trajectory Calc'!$A$6:$CQ$96,MATCH('Rate Trajectory Report'!$B14,'Rate Trajectory Calc'!$A$6:$A$96,0),MATCH('Rate Trajectory Report'!V$5,'Rate Trajectory Calc'!$A$6:$CQ$6,0))/1000) ->  | W14: =IF(INDEX('Rate Trajectory Calc'!$A$6:$CQ$96,MATCH('Rate Trajectory Report'!$B14,'Rate Trajectory Calc'!$A$6:$A$96,0),MATCH('Rate Trajectory Report'!W$5,'Rate Trajectory Calc'!$A$6:$CQ$6,0))=0," ",INDEX('Rate Trajectory Calc'!$A$6:$CQ$96,MATCH('Rate Trajectory Report'!$B14,'Rate Trajectory Calc'!$A$6:$A$96,0),MATCH('Rate Trajectory Report'!W$5,'Rate Trajectory Calc'!$A$6:$CQ$6,0))/1000) -> -1.33763 | X14: =IF(INDEX('Rate Trajectory Calc'!$A$6:$CQ$96,MATCH('Rate Trajectory Report'!$B14,'Rate Trajectory Calc'!$A$6:$A$96,0),MATCH('Rate Trajectory Report'!X$5,'Rate Trajectory Calc'!$A$6:$CQ$6,0))=0," ",INDEX('Rate Trajectory Calc'!$A$6:$CQ$96,MATCH('Rate Trajectory Report'!$B14,'Rate Trajectory Calc'!$A$6:$A$96,0),MATCH('Rate Trajectory Report'!X$5,'Rate Trajectory Calc'!$A$6:$CQ$6,0))/1000) ->  | Y14: =IF(INDEX('Rate Trajectory Calc'!$A$6:$CQ$96,MATCH('Rate Trajectory Report'!$B14,'Rate Trajectory Calc'!$A$6:$A$96,0),MATCH('Rate Trajectory Report'!Y$5,'Rate Trajectory Calc'!$A$6:$CQ$6,0))=0," ",INDEX('Rate Trajectory Calc'!$A$6:$CQ$96,MATCH('Rate Trajectory Report'!$B14,'Rate Trajectory Calc'!$A$6:$A$96,0),MATCH('Rate Trajectory Report'!Y$5,'Rate Trajectory Calc'!$A$6:$CQ$6,0))/1000) ->  | Z14: =IF(INDEX('Rate Trajectory Calc'!$A$6:$CQ$96,MATCH('Rate Trajectory Report'!$B14,'Rate Trajectory Calc'!$A$6:$A$96,0),MATCH('Rate Trajectory Report'!Z$5,'Rate Trajectory Calc'!$A$6:$CQ$6,0))=0," ",INDEX('Rate Trajectory Calc'!$A$6:$CQ$96,MATCH('Rate Trajectory Report'!$B14,'Rate Trajectory Calc'!$A$6:$A$96,0),MATCH('Rate Trajectory Report'!Z$5,'Rate Trajectory Calc'!$A$6:$CQ$6,0))/1000) ->  | AA14: =IF(INDEX('Rate Trajectory Calc'!$A$6:$CQ$96,MATCH('Rate Trajectory Report'!$B14,'Rate Trajectory Calc'!$A$6:$A$96,0),MATCH('Rate Trajectory Report'!AA$5,'Rate Trajectory Calc'!$A$6:$CQ$6,0))=0," ",INDEX('Rate Trajectory Calc'!$A$6:$CQ$96,MATCH('Rate Trajectory Report'!$B14,'Rate Trajectory Calc'!$A$6:$A$96,0),MATCH('Rate Trajectory Report'!AA$5,'Rate Trajectory Calc'!$A$6:$CQ$6,0))/1000) -> 
B15: ='Rate Trajectory Dashboard'!B18 -> Income Qualified Program (CARE) PY 2028-2033 - Year 2029 | C15: =IFERROR(VLOOKUP(B15,'Rate Trajectory Dashboard'!$B$12:$D$100,3,FALSE)/1000,C14) -> 2.95754 | D15: =IF(INDEX('Rate Trajectory Calc'!$A$6:$CQ$96,MATCH('Rate Trajectory Report'!$B15,'Rate Trajectory Calc'!$A$6:$A$96,0),MATCH('Rate Trajectory Report'!D$5,'Rate Trajectory Calc'!$A$6:$CQ$6,0))=0," ",INDEX('Rate Trajectory Calc'!$A$6:$CQ$96,MATCH('Rate Trajectory Report'!$B15,'Rate Trajectory Calc'!$A$6:$A$96,0),MATCH('Rate Trajectory Report'!D$5,'Rate Trajectory Calc'!$A$6:$CQ$6,0))/1000) ->  | E15: =IF(INDEX('Rate Trajectory Calc'!$A$6:$CQ$96,MATCH('Rate Trajectory Report'!$B15,'Rate Trajectory Calc'!$A$6:$A$96,0),MATCH('Rate Trajectory Report'!E$5,'Rate Trajectory Calc'!$A$6:$CQ$6,0))=0," ",INDEX('Rate Trajectory Calc'!$A$6:$CQ$96,MATCH('Rate Trajectory Report'!$B15,'Rate Trajectory Calc'!$A$6:$A$96,0),MATCH('Rate Trajectory Report'!E$5,'Rate Trajectory Calc'!$A$6:$CQ$6,0))/1000) ->  | F15: =IF(INDEX('Rate Trajectory Calc'!$A$6:$CQ$96,MATCH('Rate Trajectory Report'!$B15,'Rate Trajectory Calc'!$A$6:$A$96,0),MATCH('Rate Trajectory Report'!F$5,'Rate Trajectory Calc'!$A$6:$CQ$6,0))=0," ",INDEX('Rate Trajectory Calc'!$A$6:$CQ$96,MATCH('Rate Trajectory Report'!$B15,'Rate Trajectory Calc'!$A$6:$A$96,0),MATCH('Rate Trajectory Report'!F$5,'Rate Trajectory Calc'!$A$6:$CQ$6,0))/1000) ->  | G15: =IF(INDEX('Rate Trajectory Calc'!$A$6:$CQ$96,MATCH('Rate Trajectory Report'!$B15,'Rate Trajectory Calc'!$A$6:$A$96,0),MATCH('Rate Trajectory Report'!G$5,'Rate Trajectory Calc'!$A$6:$CQ$6,0))=0," ",INDEX('Rate Trajectory Calc'!$A$6:$CQ$96,MATCH('Rate Trajectory Report'!$B15,'Rate Trajectory Calc'!$A$6:$A$96,0),MATCH('Rate Trajectory Report'!G$5,'Rate Trajectory Calc'!$A$6:$CQ$6,0))/1000) ->  | H15: =IF(INDEX('Rate Trajectory Calc'!$A$6:$CQ$96,MATCH('Rate Trajectory Report'!$B15,'Rate Trajectory Calc'!$A$6:$A$96,0),MATCH('Rate Trajectory Report'!H$5,'Rate Trajectory Calc'!$A$6:$CQ$6,0))=0," ",INDEX('Rate Trajectory Calc'!$A$6:$CQ$96,MATCH('Rate Trajectory Report'!$B15,'Rate Trajectory Calc'!$A$6:$A$96,0),MATCH('Rate Trajectory Report'!H$5,'Rate Trajectory Calc'!$A$6:$CQ$6,0))/1000) ->  | I15: =IF(INDEX('Rate Trajectory Calc'!$A$6:$CQ$96,MATCH('Rate Trajectory Report'!$B15,'Rate Trajectory Calc'!$A$6:$A$96,0),MATCH('Rate Trajectory Report'!I$5,'Rate Trajectory Calc'!$A$6:$CQ$6,0))=0," ",INDEX('Rate Trajectory Calc'!$A$6:$CQ$96,MATCH('Rate Trajectory Report'!$B15,'Rate Trajectory Calc'!$A$6:$A$96,0),MATCH('Rate Trajectory Report'!I$5,'Rate Trajectory Calc'!$A$6:$CQ$6,0))/1000) ->  | J15: =IF(INDEX('Rate Trajectory Calc'!$A$6:$CQ$96,MATCH('Rate Trajectory Report'!$B15,'Rate Trajectory Calc'!$A$6:$A$96,0),MATCH('Rate Trajectory Report'!J$5,'Rate Trajectory Calc'!$A$6:$CQ$6,0))=0," ",INDEX('Rate Trajectory Calc'!$A$6:$CQ$96,MATCH('Rate Trajectory Report'!$B15,'Rate Trajectory Calc'!$A$6:$A$96,0),MATCH('Rate Trajectory Report'!J$5,'Rate Trajectory Calc'!$A$6:$CQ$6,0))/1000) ->  | K15: =IF(INDEX('Rate Trajectory Calc'!$A$6:$CQ$96,MATCH('Rate Trajectory Report'!$B15,'Rate Trajectory Calc'!$A$6:$A$96,0),MATCH('Rate Trajectory Report'!K$5,'Rate Trajectory Calc'!$A$6:$CQ$6,0))=0," ",INDEX('Rate Trajectory Calc'!$A$6:$CQ$96,MATCH('Rate Trajectory Report'!$B15,'Rate Trajectory Calc'!$A$6:$A$96,0),MATCH('Rate Trajectory Report'!K$5,'Rate Trajectory Calc'!$A$6:$CQ$6,0))/1000) ->  | L15: =IF(INDEX('Rate Trajectory Calc'!$A$6:$CQ$96,MATCH('Rate Trajectory Report'!$B15,'Rate Trajectory Calc'!$A$6:$A$96,0),MATCH('Rate Trajectory Report'!L$5,'Rate Trajectory Calc'!$A$6:$CQ$6,0))=0," ",INDEX('Rate Trajectory Calc'!$A$6:$CQ$96,MATCH('Rate Trajectory Report'!$B15,'Rate Trajectory Calc'!$A$6:$A$96,0),MATCH('Rate Trajectory Report'!L$5,'Rate Trajectory Calc'!$A$6:$CQ$6,0))/1000) ->  | M15: =IF(INDEX('Rate Trajectory Calc'!$A$6:$CQ$96,MATCH('Rate Trajectory Report'!$B15,'Rate Trajectory Calc'!$A$6:$A$96,0),MATCH('Rate Trajectory Report'!M$5,'Rate Trajectory Calc'!$A$6:$CQ$6,0))=0," ",INDEX('Rate Trajectory Calc'!$A$6:$CQ$96,MATCH('Rate Trajectory Report'!$B15,'Rate Trajectory Calc'!$A$6:$A$96,0),MATCH('Rate Trajectory Report'!M$5,'Rate Trajectory Calc'!$A$6:$CQ$6,0))/1000) ->  | N15: =IF(INDEX('Rate Trajectory Calc'!$A$6:$CQ$96,MATCH('Rate Trajectory Report'!$B15,'Rate Trajectory Calc'!$A$6:$A$96,0),MATCH('Rate Trajectory Report'!N$5,'Rate Trajectory Calc'!$A$6:$CQ$6,0))=0," ",INDEX('Rate Trajectory Calc'!$A$6:$CQ$96,MATCH('Rate Trajectory Report'!$B15,'Rate Trajectory Calc'!$A$6:$A$96,0),MATCH('Rate Trajectory Report'!N$5,'Rate Trajectory Calc'!$A$6:$CQ$6,0))/1000) ->  | O15: =IF(INDEX('Rate Trajectory Calc'!$A$6:$CQ$96,MATCH('Rate Trajectory Report'!$B15,'Rate Trajectory Calc'!$A$6:$A$96,0),MATCH('Rate Trajectory Report'!O$5,'Rate Trajectory Calc'!$A$6:$CQ$6,0))=0," ",INDEX('Rate Trajectory Calc'!$A$6:$CQ$96,MATCH('Rate Trajectory Report'!$B15,'Rate Trajectory Calc'!$A$6:$A$96,0),MATCH('Rate Trajectory Report'!O$5,'Rate Trajectory Calc'!$A$6:$CQ$6,0))/1000) ->  | P15: =IF(INDEX('Rate Trajectory Calc'!$A$6:$CQ$96,MATCH('Rate Trajectory Report'!$B15,'Rate Trajectory Calc'!$A$6:$A$96,0),MATCH('Rate Trajectory Report'!P$5,'Rate Trajectory Calc'!$A$6:$CQ$6,0))=0," ",INDEX('Rate Trajectory Calc'!$A$6:$CQ$96,MATCH('Rate Trajectory Report'!$B15,'Rate Trajectory Calc'!$A$6:$A$96,0),MATCH('Rate Trajectory Report'!P$5,'Rate Trajectory Calc'!$A$6:$CQ$6,0))/1000) ->  | Q15: =IF(INDEX('Rate Trajectory Calc'!$A$6:$CQ$96,MATCH('Rate Trajectory Report'!$B15,'Rate Trajectory Calc'!$A$6:$A$96,0),MATCH('Rate Trajectory Report'!Q$5,'Rate Trajectory Calc'!$A$6:$CQ$6,0))=0," ",INDEX('Rate Trajectory Calc'!$A$6:$CQ$96,MATCH('Rate Trajectory Report'!$B15,'Rate Trajectory Calc'!$A$6:$A$96,0),MATCH('Rate Trajectory Report'!Q$5,'Rate Trajectory Calc'!$A$6:$CQ$6,0))/1000) ->  | R15: =IF(INDEX('Rate Trajectory Calc'!$A$6:$CQ$96,MATCH('Rate Trajectory Report'!$B15,'Rate Trajectory Calc'!$A$6:$A$96,0),MATCH('Rate Trajectory Report'!R$5,'Rate Trajectory Calc'!$A$6:$CQ$6,0))=0," ",INDEX('Rate Trajectory Calc'!$A$6:$CQ$96,MATCH('Rate Trajectory Report'!$B15,'Rate Trajectory Calc'!$A$6:$A$96,0),MATCH('Rate Trajectory Report'!R$5,'Rate Trajectory Calc'!$A$6:$CQ$6,0))/1000) ->  | S15: =IF(INDEX('Rate Trajectory Calc'!$A$6:$CQ$96,MATCH('Rate Trajectory Report'!$B15,'Rate Trajectory Calc'!$A$6:$A$96,0),MATCH('Rate Trajectory Report'!S$5,'Rate Trajectory Calc'!$A$6:$CQ$6,0))=0," ",INDEX('Rate Trajectory Calc'!$A$6:$CQ$96,MATCH('Rate Trajectory Report'!$B15,'Rate Trajectory Calc'!$A$6:$A$96,0),MATCH('Rate Trajectory Report'!S$5,'Rate Trajectory Calc'!$A$6:$CQ$6,0))/1000) ->  | T15: =IF(INDEX('Rate Trajectory Calc'!$A$6:$CQ$96,MATCH('Rate Trajectory Report'!$B15,'Rate Trajectory Calc'!$A$6:$A$96,0),MATCH('Rate Trajectory Report'!T$5,'Rate Trajectory Calc'!$A$6:$CQ$6,0))=0," ",INDEX('Rate Trajectory Calc'!$A$6:$CQ$96,MATCH('Rate Trajectory Report'!$B15,'Rate Trajectory Calc'!$A$6:$A$96,0),MATCH('Rate Trajectory Report'!T$5,'Rate Trajectory Calc'!$A$6:$CQ$6,0))/1000) ->  | U15: =IF(INDEX('Rate Trajectory Calc'!$A$6:$CQ$96,MATCH('Rate Trajectory Report'!$B15,'Rate Trajectory Calc'!$A$6:$A$96,0),MATCH('Rate Trajectory Report'!U$5,'Rate Trajectory Calc'!$A$6:$CQ$6,0))=0," ",INDEX('Rate Trajectory Calc'!$A$6:$CQ$96,MATCH('Rate Trajectory Report'!$B15,'Rate Trajectory Calc'!$A$6:$A$96,0),MATCH('Rate Trajectory Report'!U$5,'Rate Trajectory Calc'!$A$6:$CQ$6,0))/1000) ->  | V15: =IF(INDEX('Rate Trajectory Calc'!$A$6:$CQ$96,MATCH('Rate Trajectory Report'!$B15,'Rate Trajectory Calc'!$A$6:$A$96,0),MATCH('Rate Trajectory Report'!V$5,'Rate Trajectory Calc'!$A$6:$CQ$6,0))=0," ",INDEX('Rate Trajectory Calc'!$A$6:$CQ$96,MATCH('Rate Trajectory Report'!$B15,'Rate Trajectory Calc'!$A$6:$A$96,0),MATCH('Rate Trajectory Report'!V$5,'Rate Trajectory Calc'!$A$6:$CQ$6,0))/1000) ->  | W15: =IF(INDEX('Rate Trajectory Calc'!$A$6:$CQ$96,MATCH('Rate Trajectory Report'!$B15,'Rate Trajectory Calc'!$A$6:$A$96,0),MATCH('Rate Trajectory Report'!W$5,'Rate Trajectory Calc'!$A$6:$CQ$6,0))=0," ",INDEX('Rate Trajectory Calc'!$A$6:$CQ$96,MATCH('Rate Trajectory Report'!$B15,'Rate Trajectory Calc'!$A$6:$A$96,0),MATCH('Rate Trajectory Report'!W$5,'Rate Trajectory Calc'!$A$6:$CQ$6,0))/1000) ->  | X15: =IF(INDEX('Rate Trajectory Calc'!$A$6:$CQ$96,MATCH('Rate Trajectory Report'!$B15,'Rate Trajectory Calc'!$A$6:$A$96,0),MATCH('Rate Trajectory Report'!X$5,'Rate Trajectory Calc'!$A$6:$CQ$6,0))=0," ",INDEX('Rate Trajectory Calc'!$A$6:$CQ$96,MATCH('Rate Trajectory Report'!$B15,'Rate Trajectory Calc'!$A$6:$A$96,0),MATCH('Rate Trajectory Report'!X$5,'Rate Trajectory Calc'!$A$6:$CQ$6,0))/1000) ->  | Y15: =IF(INDEX('Rate Trajectory Calc'!$A$6:$CQ$96,MATCH('Rate Trajectory Report'!$B15,'Rate Trajectory Calc'!$A$6:$A$96,0),MATCH('Rate Trajectory Report'!Y$5,'Rate Trajectory Calc'!$A$6:$CQ$6,0))=0," ",INDEX('Rate Trajectory Calc'!$A$6:$CQ$96,MATCH('Rate Trajectory Report'!$B15,'Rate Trajectory Calc'!$A$6:$A$96,0),MATCH('Rate Trajectory Report'!Y$5,'Rate Trajectory Calc'!$A$6:$CQ$6,0))/1000) ->  | Z15: =IF(INDEX('Rate Trajectory Calc'!$A$6:$CQ$96,MATCH('Rate Trajectory Report'!$B15,'Rate Trajectory Calc'!$A$6:$A$96,0),MATCH('Rate Trajectory Report'!Z$5,'Rate Trajectory Calc'!$A$6:$CQ$6,0))=0," ",INDEX('Rate Trajectory Calc'!$A$6:$CQ$96,MATCH('Rate Trajectory Report'!$B15,'Rate Trajectory Calc'!$A$6:$A$96,0),MATCH('Rate Trajectory Report'!Z$5,'Rate Trajectory Calc'!$A$6:$CQ$6,0))/1000) ->  | AA15: =IF(INDEX('Rate Trajectory Calc'!$A$6:$CQ$96,MATCH('Rate Trajectory Report'!$B15,'Rate Trajectory Calc'!$A$6:$A$96,0),MATCH('Rate Trajectory Report'!AA$5,'Rate Trajectory Calc'!$A$6:$CQ$6,0))=0," ",INDEX('Rate Trajectory Calc'!$A$6:$CQ$96,MATCH('Rate Trajectory Report'!$B15,'Rate Trajectory Calc'!$A$6:$A$96,0),MATCH('Rate Trajectory Report'!AA$5,'Rate Trajectory Calc'!$A$6:$CQ$6,0))/1000) -> 
